Workbook

Sheet INTRO
B2: PC Joint Reporting Form v.3.1
B4: The purpose of this template Joint Reporting Form (JRF) - available as an Excel file - is to provide national health authorities and data managers with a standardized tool to address these reporting challenges, facilitate integration and thereby further contribute to improving overall programme management. This template aims to standardize national reporting of programme implementation outcomes, improve availability and coordination of preventive chemotherapy data across the World Health Organization regions. National authorities are requested to complete this form for submission to the World Health Organization any time before 15 August of the current year for reporting data on PC interventions implemented during the previous year.
B6: Structure of the application (worksheets):
B8: INTRO | C8: This worksheet includes guides on how to complete the joint reporting form and information about status of PC for endemic diseases in the country
B9: COUNTRY_INFO | C9: This worksheet includes information about administrative structure of the country, population by age group, status of endemicity for each disease, population requiring PC, planned interventions and interventions implemented
B10: MDA1, MDA2, MDA3, T1, T2 and T3 | C10: These worksheets include information about endemic districts targeted for treatment with specified PC medicines, treatment plan, and number of people who received treatment by age group
B11: DISTRICT | C11: This worksheet includes summary of people treated by disease at the level of implementation. If data by gender is available, it requires to enter.
B12: SUMMARY | C12: This worksheet includes summary of people treated by disease and by PC intervention. Before generating the report (run macros) please select the disease for which you need the report. Follow the same rule to generate various reports. This worksheet should be printed and submitted as a Joint Report (see the instruction for submission in the SUMMARY worksheet).
B14: Instruction for data entry
B16: Most of the cells in the above-mentioned worksheets include formula that are calculated automatically according to the treatment policy recommended by WHO for each disease. See the link http://www.who.int/neglected_diseases/preventive_chemotherapy/pct_manual/en/index.html
B18: Please enter your data into the cells according to their colour code:
C20: White - cell is not protected. Please enter the value of the requested indicator.
C22: Yellow - cell is protected and includes name of indicator. No data entry required.
C24: Orange - cell is not protected and includes a drop-down menu. Please select the value from the drop-down list.
C27: Green - cell is not protected and includes formula. Please change the value only if your data are different from those that are calculated automatically.
C30: Blue - cell is protected and includes formula. No data entry required.
B32: Country data
B34: COUNTRY | E34: Mozambique
B36: Year of reporting data | E36: 2019
B38: Is country endemic for lymphatic filariasis (LF)? | E38: Endemic
B40: Is country endemic for onchocerciasis (ONCHO)? | E40: Endemic but PC is not required
B42: Is country endemic for soil-transmitted helminthiases (STH)? | E42: Endemic
B44: Is country endemic for schistosomiasis (SCH)? | E44: Endemic
B46: How many administrative units in the country? | E46: 161
B47: If demographical data at the second administrative level are not available by age group, please enter the proportion (%) of population by age group in the country. If data are available, please leave these cells blank.
B48: 1-4 years age | C48: Preschool-age children (PreSAC) | E48: 0.116
B49: 5-14 years age | C49: School-age children (SAC) | E49: 0.28
B50: 15 years + | C50: Adults | E50: 0.575

Sheet COUNTRY_INFO
A1: COUNTRY INFORMATION
A2: Administrative structure, population by age group, endemicity status, planned interventions and interventions implemented
A4: TOTAL | D4: =SUM(D$9:D$1000) -> 28584507.26 | E4: =SUM(E$9:E$1000) -> 3315798 | F4: =SUM(F$9:F$1000) -> 8003658 | G4: =SUM(G$9:G$1000) -> 16436093 | L4: =SUM(L$9:L$1000) -> 18059542.02 | M4: =SUM(M$9:M$1000) -> 0 | N4: =SUM(N$9:N$1000) -> 10862269 | O4: =SUM(O$9:O$1000) -> 15726917.08
A6: Country administrative structure | D6: Population | H6: Endemicity | L6: Population requiring PC | P6: Number of treatment rounds planned for the year | T6: PC implemented | V6: Click to see the recommended strategy
A7: Country | B7: Province/State | C7: District | D7: Total | E7: PreSAC | F7: SAC | G7: Adults | H7: LF | I7: Oncho | J7: STH | K7: SCH | L7: LF | M7: Oncho | N7: STH | O7: SCH | P7: LF | Q7: Oncho | R7: STH | S7: SCH | T7: ROUND 1 | U7: ROUND2 | X7: IU_ID | Y7: IU_Name | AD7: JRSM2020 | AO7: JRSM2019 | AY7: MDA1 | AZ7: T1 | BA7: T2 | BD7: lf | BE7: sth | BF7: sch
A9: =IF(INTRO!$E$34<>0,INTRO!$E$34,"") -> Mozambique | B9: Cabo Delgado | C9: Cid. Pemba | D9: 238679.575 | E9: =IF(INTRO!$E$48="","",ROUND($D9*INTRO!$E$48,0)) -> 27687 | F9: =IF(INTRO!$E$49="","",ROUND($D9*INTRO!$E$49,0)) -> 66830 | G9: =IF(INTRO!$E$50="","",ROUND($D9*INTRO!$E$50,0)) -> 137241 | H9: 1 | I9: 4 | J9: 3 | K9: 1 | L9: =IF(INTRO!$E$38="Endemic", IF($H9>0, IF($H9=4,"Unknown", IF($H9=99,"Stopped", $D9)), 0),"Not required") -> 238679.575 | M9: =IF(INTRO!$E$40="Endemic", IF($I9>0, IF($I9=4,"Unknown",IF($I9=99,"Stopped", $D9)), 0),"Not required") -> Not required | N9: =IF(INTRO!$E$42="Endemic", IF(AND($J9>1,$J9<5), IF($J9=4, "Unknown", E9+F9), 0),"Not required") -> 94517 | O9: =IF(INTRO!$E$44="Endemic", IF(AND($K9>0,$K9<5), IF($K9=4,"Unknown", IF($K9=1, $F9*0.33, IF($K9=2, $F9*0.5+$G9*0.2, SUM(F9:G9)))), 0),"Not required") -> 22053.9 | P9: 0 | R9: 0 | S9: 0 | V9: MDA 1 | W9: T1 | X9: 33103 | Y9: Cid. Pemba | AA9: =AC9=C9 -> TRUE | AB9: Cabo Delgado | AC9: Cid. Pemba | AD9: 1 | AE9: 4 | AF9: 3 | AG9: 1 | AH9: =AD9=H9 -> TRUE | AI9: =AE9=I9 -> TRUE | AJ9: TRUE | AK9: TRUE | AO9: 1 | AQ9: 3 | AR9: 1 | AS9: =AO9=H9 -> TRUE | AU9: =AQ9=J9 -> TRUE | AV9: TRUE | AY9: ='MDA1'!M9 -> 0 | AZ9: ='T1'!O9 -> 0 | BA9: ='T2'!M9 -> 0 | BD9: =DISTRICT!H8:H9 -> 0 | BE9: =DISTRICT!X9 -> 0 | BF9: =DISTRICT!AH9 -> 0 | BI9: 2 | BJ9: 0 | BK9: =BI9=R9 -> FALSE | BL9: =BJ9=S9 -> TRUE | BM9: Cid. Pemba | BN9: =BM9=C9 -> TRUE
A10: =IF(INTRO!$E$34<>0,INTRO!$E$34,"") -> Mozambique | B10: Cabo Delgado | C10: Ancuabe | D10: 124186.2253 | E10: =IF(INTRO!$E$48="","",ROUND($D10*INTRO!$E$48,0)) -> 14406 | F10: =IF(INTRO!$E$49="","",ROUND($D10*INTRO!$E$49,0)) -> 34772 | G10: =IF(INTRO!$E$50="","",ROUND($D10*INTRO!$E$50,0)) -> 71407 | H10: 1 | I10: 4 | J10: 3 | K10: 3 | L10: =IF(INTRO!$E$38="Endemic", IF($H10>0, IF($H10=4,"Unknown", IF($H10=99,"Stopped", $D10)), 0),"Not required") -> 124186.2253 | M10: =IF(INTRO!$E$40="Endemic", IF($I10>0, IF($I10=4,"Unknown",IF($I10=99,"Stopped", $D10)), 0),"Not required") -> Not required | N10: =IF(INTRO!$E$42="Endemic", IF(AND($J10>1,$J10<5), IF($J10=4, "Unknown", E10+F10), 0),"Not required") -> 49178 | O10: =IF(INTRO!$E$44="Endemic", IF(AND($K10>0,$K10<5), IF($K10=4,"Unknown", IF($K10=1, $F10*0.33, IF($K10=2, $F10*0.5+$G10*0.2, SUM(F10:G10)))), 0),"Not required") -> 106179 | P10: 0 | R10: 0 | S10: 1 | V10: MDA 1 | W10: T1 | X10: 33100 | Y10: Ancuabe | AA10: =AC10=C10 -> TRUE | AB10: Cabo Delgado | AC10: Ancuabe | AD10: 1 | AE10: 4 | AF10: 3 | AG10: 3 | AH10: =AD10=H10 -> TRUE | AI10: =AE10=I10 -> TRUE | AJ10: =AF10=J10 -> TRUE | AK10: =AG10=K10 -> TRUE | AO10: 1 | AQ10: 3 | AR10: 3 | AS10: =AO10=H10 -> TRUE | AU10: TRUE | AV10: TRUE | AY10: ='MDA1'!M10 -> 0 | AZ10: ='T1'!O10 -> 0 | BA10: ='T2'!M10 -> 0 | BD10: =DISTRICT!H9:H10 -> 0 | BE10: =DISTRICT!X10 -> 0 | BF10: =DISTRICT!AH10 -> 0 | BI10: 2 | BJ10: 1 | BK10: =BI10=R10 -> FALSE | BL10: =BJ10=S10 -> TRUE | BM10: Ancuabe | BN10: =BM10=C10 -> TRUE
A11: =IF(INTRO!$E$34<>0,INTRO!$E$34,"") -> Mozambique | B11: Cabo Delgado | C11: Balama | D11: 147681.7169 | E11: =IF(INTRO!$E$48="","",ROUND($D11*INTRO!$E$48,0)) -> 17131 | F11: =IF(INTRO!$E$49="","",ROUND($D11*INTRO!$E$49,0)) -> 41351 | G11: =IF(INTRO!$E$50="","",ROUND($D11*INTRO!$E$50,0)) -> 84917 | H11: 1 | I11: 4 | J11: 3 | K11: 3 | L11: =IF(INTRO!$E$38="Endemic", IF($H11>0, IF($H11=4,"Unknown", IF($H11=99,"Stopped", $D11)), 0),"Not required") -> 147681.7169 | M11: =IF(INTRO!$E$40="Endemic", IF($I11>0, IF($I11=4,"Unknown",IF($I11=99,"Stopped", $D11)), 0),"Not required") -> Not required | N11: =IF(INTRO!$E$42="Endemic", IF(AND($J11>1,$J11<5), IF($J11=4, "Unknown", E11+F11), 0),"Not required") -> 58482 | O11: =IF(INTRO!$E$44="Endemic", IF(AND($K11>0,$K11<5), IF($K11=4,"Unknown", IF($K11=1, $F11*0.33, IF($K11=2, $F11*0.5+$G11*0.2, SUM(F11:G11)))), 0),"Not required") -> 126268 | P11: 0 | R11: 0 | S11: 1 | V11: MDA 1 | W11: T1 | X11: 33101 | Y11: Balama | AA11: TRUE | AB11: Cabo Delgado | AC11: Balama | AD11: 1 | AE11: 4 | AF11: 3 | AG11: 3 | AH11: TRUE | AI11: TRUE | AJ11: TRUE | AK11: TRUE | AO11: 1 | AQ11: 3 | AR11: 3 | AS11: TRUE | AU11: TRUE | AV11: TRUE | AY11: ='MDA1'!M11 -> 0 | AZ11: ='T1'!O11 -> 0 | BA11: ='T2'!M11 -> 0 | BD11: =DISTRICT!H10:H11 -> 0 | BE11: =DISTRICT!X11 -> 0 | BF11: =DISTRICT!AH11 -> 0 | BI11: 2 | BJ11: 1 | BK11: FALSE | BL11: TRUE | BM11: Balama | BN11: TRUE
A12: =IF(INTRO!$E$34<>0,INTRO!$E$34,"") -> Mozambique | B12: Cabo Delgado | C12: Chiure | D12: 260658.8549 | E12: =IF(INTRO!$E$48="","",ROUND($D12*INTRO!$E$48,0)) -> 30236 | F12: =IF(INTRO!$E$49="","",ROUND($D12*INTRO!$E$49,0)) -> 72984 | G12: =IF(INTRO!$E$50="","",ROUND($D12*INTRO!$E$50,0)) -> 149879 | H12: 1 | I12: 4 | J12: 3 | K12: 3 | L12: =IF(INTRO!$E$38="Endemic", IF($H12>0, IF($H12=4,"Unknown", IF($H12=99,"Stopped", $D12)), 0),"Not required") -> 260658.8549 | M12: =IF(INTRO!$E$40="Endemic", IF($I12>0, IF($I12=4,"Unknown",IF($I12=99,"Stopped", $D12)), 0),"Not required") -> Not required | N12: =IF(INTRO!$E$42="Endemic", IF(AND($J12>1,$J12<5), IF($J12=4, "Unknown", E12+F12), 0),"Not required") -> 103220 | O12: =IF(INTRO!$E$44="Endemic", IF(AND($K12>0,$K12<5), IF($K12=4,"Unknown", IF($K12=1, $F12*0.33, IF($K12=2, $F12*0.5+$G12*0.2, SUM(F12:G12)))), 0),"Not required") -> 222863 | P12: 0 | R12: 0 | S12: 1 | V12: MDA 1 | W12: T1 | X12: 33102 | Y12: Chiure | AA12: TRUE | AB12: Cabo Delgado | AC12: Chiure | AD12: 1 | AE12: 4 | AF12: 3 | AG12: 3 | AH12: TRUE | AI12: TRUE | AJ12: TRUE | AK12: TRUE | AO12: 1 | AQ12: 3 | AR12: 3 | AS12: TRUE | AU12: TRUE | AV12: TRUE | AY12: ='MDA1'!M12 -> 0 | AZ12: ='T1'!O12 -> 0 | BA12: ='T2'!M12 -> 0 | BD12: =DISTRICT!H11:H12 -> 0 | BE12: =DISTRICT!X12 -> 0 | BF12: =DISTRICT!AH12 -> 0 | BI12: 2 | BJ12: 1 | BK12: FALSE | BL12: TRUE | BM12: Chiure | BN12: TRUE
A13: =IF(INTRO!$E$34<>0,INTRO!$E$34,"") -> Mozambique | B13: Cabo Delgado | C13: Ibo | D13: 13084.4112 | E13: =IF(INTRO!$E$48="","",ROUND($D13*INTRO!$E$48,0)) -> 1518 | F13: =IF(INTRO!$E$49="","",ROUND($D13*INTRO!$E$49,0)) -> 3664 | G13: =IF(INTRO!$E$50="","",ROUND($D13*INTRO!$E$50,0)) -> 7524 | H13: 1 | I13: 4 | J13: 3 | K13: 2 | L13: =IF(INTRO!$E$38="Endemic", IF($H13>0, IF($H13=4,"Unknown", IF($H13=99,"Stopped", $D13)), 0),"Not required") -> 13084.4112 | M13: =IF(INTRO!$E$40="Endemic", IF($I13>0, IF($I13=4,"Unknown",IF($I13=99,"Stopped", $D13)), 0),"Not required") -> Not required | N13: =IF(INTRO!$E$42="Endemic", IF(AND($J13>1,$J13<5), IF($J13=4, "Unknown", E13+F13), 0),"Not required") -> 5182 | O13: =IF(INTRO!$E$44="Endemic", IF(AND($K13>0,$K13<5), IF($K13=4,"Unknown", IF($K13=1, $F13*0.33, IF($K13=2, $F13*0.5+$G13*0.2, SUM(F13:G13)))), 0),"Not required") -> 3336.8 | P13: 0 | R13: 0 | S13: 0 | V13: MDA 1 | W13: T1 | X13: 33104 | Y13: Ibo | AA13: TRUE | AB13: Cabo Delgado | AC13: Ibo | AD13: 1 | AE13: 4 | AF13: 3 | AG13: 2 | AH13: TRUE | AI13: TRUE | AJ13: TRUE | AK13: TRUE | AO13: 1 | AQ13: 3 | AR13: 2 | AS13: TRUE | AU13: TRUE | AV13: TRUE | AY13: ='MDA1'!M13 -> 0 | AZ13: ='T1'!O13 -> 0 | BA13: ='T2'!M13 -> 0 | BD13: =DISTRICT!H12:H13 -> 0 | BE13: =DISTRICT!X13 -> 0 | BF13: =DISTRICT!AH13 -> 0 | BI13: 2 | BJ13: 0 | BK13: FALSE | BL13: TRUE | BM13: Ibo | BN13: TRUE
A14: =IF(INTRO!$E$34<>0,INTRO!$E$34,"") -> Mozambique | B14: Cabo Delgado | C14: Macomia | D14: 95696.30371 | E14: =IF(INTRO!$E$48="","",ROUND($D14*INTRO!$E$48,0)) -> 11101 | F14: =IF(INTRO!$E$49="","",ROUND($D14*INTRO!$E$49,0)) -> 26795 | G14: =IF(INTRO!$E$50="","",ROUND($D14*INTRO!$E$50,0)) -> 55025 | H14: 1 | I14: 4 | J14: 3 | K14: 2 | L14: =IF(INTRO!$E$38="Endemic", IF($H14>0, IF($H14=4,"Unknown", IF($H14=99,"Stopped", $D14)), 0),"Not required") -> 95696.30371 | M14: =IF(INTRO!$E$40="Endemic", IF($I14>0, IF($I14=4,"Unknown",IF($I14=99,"Stopped", $D14)), 0),"Not required") -> Not required | N14: =IF(INTRO!$E$42="Endemic", IF(AND($J14>1,$J14<5), IF($J14=4, "Unknown", E14+F14), 0),"Not required") -> 37896 | O14: =IF(INTRO!$E$44="Endemic", IF(AND($K14>0,$K14<5), IF($K14=4,"Unknown", IF($K14=1, $F14*0.33, IF($K14=2, $F14*0.5+$G14*0.2, SUM(F14:G14)))), 0),"Not required") -> 24402.5 | P14: 0 | R14: 0 | S14: 1 | V14: MDA 1 | W14: T1 | X14: 33105 | Y14: Macomia | AA14: TRUE | AB14: Cabo Delgado | AC14: Macomia | AD14: 1 | AE14: 4 | AF14: 3 | AG14: 2 | AH14: TRUE | AI14: TRUE | AJ14: TRUE | AK14: TRUE | AO14: 1 | AQ14: 3 | AR14: 2 | AS14: TRUE | AU14: TRUE | AV14: TRUE | AY14: ='MDA1'!M14 -> 0 | AZ14: ='T1'!O14 -> 0 | BA14: ='T2'!M14 -> 0 | BD14: =DISTRICT!H13:H14 -> 0 | BE14: =DISTRICT!X14 -> 0 | BF14: =DISTRICT!AH14 -> 0 | BI14: 2 | BJ14: 1 | BK14: FALSE | BL14: TRUE | BM14: Macomia | BN14: TRUE
A15: =IF(INTRO!$E$34<>0,INTRO!$E$34,"") -> Mozambique | B15: Cabo Delgado | C15: Mecufi | D15: 49409.54838 | E15: =IF(INTRO!$E$48="","",ROUND($D15*INTRO!$E$48,0)) -> 5732 | F15: =IF(INTRO!$E$49="","",ROUND($D15*INTRO!$E$49,0)) -> 13835 | G15: =IF(INTRO!$E$50="","",ROUND($D15*INTRO!$E$50,0)) -> 28410 | H15: 1 | I15: 4 | J15: 3 | K15: 2 | L15: =IF(INTRO!$E$38="Endemic", IF($H15>0, IF($H15=4,"Unknown", IF($H15=99,"Stopped", $D15)), 0),"Not required") -> 49409.54838 | M15: =IF(INTRO!$E$40="Endemic", IF($I15>0, IF($I15=4,"Unknown",IF($I15=99,"Stopped", $D15)), 0),"Not required") -> Not required | N15: =IF(INTRO!$E$42="Endemic", IF(AND($J15>1,$J15<5), IF($J15=4, "Unknown", E15+F15), 0),"Not required") -> 19567 | O15: =IF(INTRO!$E$44="Endemic", IF(AND($K15>0,$K15<5), IF($K15=4,"Unknown", IF($K15=1, $F15*0.33, IF($K15=2, $F15*0.5+$G15*0.2, SUM(F15:G15)))), 0),"Not required") -> 12599.5 | P15: 0 | R15: 0 | S15: 1 | V15: MDA 1 | W15: T1 | X15: 33106 | Y15: Mecufi | AA15: TRUE | AB15: Cabo Delgado | AC15: Mecufi | AD15: 1 | AE15: 4 | AF15: 3 | AG15: 2 | AH15: TRUE | AI15: TRUE | AJ15: TRUE | AK15: TRUE | AO15: 1 | AQ15: 3 | AR15: 2 | AS15: TRUE | AU15: TRUE | AV15: TRUE | AY15: ='MDA1'!M15 -> 0 | AZ15: ='T1'!O15 -> 0 | BA15: ='T2'!M15 -> 0 | BD15: =DISTRICT!H14:H15 -> 0 | BE15: =DISTRICT!X15 -> 0 | BF15: =DISTRICT!AH15 -> 0 | BI15: 2 | BJ15: 1 | BK15: FALSE | BL15: TRUE | BM15: Mecufi | BN15: TRUE
A16: =IF(INTRO!$E$34<>0,INTRO!$E$34,"") -> Mozambique | B16: Cabo Delgado | C16: Meluco | D16: 26281.17136 | E16: =IF(INTRO!$E$48="","",ROUND($D16*INTRO!$E$48,0)) -> 3049 | F16: =IF(INTRO!$E$49="","",ROUND($D16*INTRO!$E$49,0)) -> 7359 | G16: =IF(INTRO!$E$50="","",ROUND($D16*INTRO!$E$50,0)) -> 15112 | H16: 1 | I16: 4 | J16: 3 | K16: 3 | L16: =IF(INTRO!$E$38="Endemic", IF($H16>0, IF($H16=4,"Unknown", IF($H16=99,"Stopped", $D16)), 0),"Not required") -> 26281.17136 | M16: =IF(INTRO!$E$40="Endemic", IF($I16>0, IF($I16=4,"Unknown",IF($I16=99,"Stopped", $D16)), 0),"Not required") -> Not required | N16: =IF(INTRO!$E$42="Endemic", IF(AND($J16>1,$J16<5), IF($J16=4, "Unknown", E16+F16), 0),"Not required") -> 10408 | O16: =IF(INTRO!$E$44="Endemic", IF(AND($K16>0,$K16<5), IF($K16=4,"Unknown", IF($K16=1, $F16*0.33, IF($K16=2, $F16*0.5+$G16*0.2, SUM(F16:G16)))), 0),"Not required") -> 22471 | P16: 0 | R16: 0 | S16: 1 | V16: MDA 1 | W16: T1 | X16: 33107 | Y16: Meluco | AA16: TRUE | AB16: Cabo Delgado | AC16: Meluco | AD16: 1 | AE16: 4 | AF16: 3 | AG16: 3 | AH16: TRUE | AI16: TRUE | AJ16: TRUE | AK16: TRUE | AO16: 1 | AQ16: 3 | AR16: 3 | AS16: TRUE | AU16: TRUE | AV16: TRUE | AY16: ='MDA1'!M16 -> 0 | AZ16: ='T1'!O16 -> 0 | BA16: ='T2'!M16 -> 0 | BD16: =DISTRICT!H15:H16 -> 0 | BE16: =DISTRICT!X16 -> 0 | BF16: =DISTRICT!AH16 -> 0 | BI16: 2 | BJ16: 1 | BK16: FALSE | BL16: TRUE | BM16: Meluco | BN16: TRUE
A17: =IF(INTRO!$E$34<>0,INTRO!$E$34,"") -> Mozambique | B17: Cabo Delgado | C17: Moc Praia | D17: 117161.9039 | E17: =IF(INTRO!$E$48="","",ROUND($D17*INTRO!$E$48,0)) -> 13591 | F17: =IF(INTRO!$E$49="","",ROUND($D17*INTRO!$E$49,0)) -> 32805 | G17: =IF(INTRO!$E$50="","",ROUND($D17*INTRO!$E$50,0)) -> 67368 | H17: 1 | I17: 4 | J17: 3 | K17: 2 | L17: =IF(INTRO!$E$38="Endemic", IF($H17>0, IF($H17=4,"Unknown", IF($H17=99,"Stopped", $D17)), 0),"Not required") -> 117161.9039 | M17: =IF(INTRO!$E$40="Endemic", IF($I17>0, IF($I17=4,"Unknown",IF($I17=99,"Stopped", $D17)), 0),"Not required") -> Not required | N17: =IF(INTRO!$E$42="Endemic", IF(AND($J17>1,$J17<5), IF($J17=4, "Unknown", E17+F17), 0),"Not required") -> 46396 | O17: =IF(INTRO!$E$44="Endemic", IF(AND($K17>0,$K17<5), IF($K17=4,"Unknown", IF($K17=1, $F17*0.33, IF($K17=2, $F17*0.5+$G17*0.2, SUM(F17:G17)))), 0),"Not required") -> 29876.1 | P17: 0 | R17: 0 | S17: 0 | V17: MDA 1 | W17: T1 | X17: 33108 | Y17: Moc Praia | AA17: TRUE | AB17: Cabo Delgado | AC17: Moc Praia | AD17: 1 | AE17: 4 | AF17: 3 | AG17: 2 | AH17: TRUE | AI17: TRUE | AJ17: TRUE | AK17: TRUE | AO17: 1 | AQ17: 3 | AR17: 2 | AS17: TRUE | AU17: TRUE | AV17: TRUE | AY17: ='MDA1'!M17 -> 0 | AZ17: ='T1'!O17 -> 0 | BA17: ='T2'!M17 -> 0 | BD17: =DISTRICT!H16:H17 -> 0 | BE17: =DISTRICT!X17 -> 0 | BF17: =DISTRICT!AH17 -> 0 | BI17: 2 | BJ17: 0 | BK17: FALSE | BL17: TRUE | BM17: Moc Praia | BN17: TRUE
A18: =IF(INTRO!$E$34<>0,INTRO!$E$34,"") -> Mozambique | B18: Cabo Delgado | C18: Montepuez | D18: 244976.241 | E18: =IF(INTRO!$E$48="","",ROUND($D18*INTRO!$E$48,0)) -> 28417 | F18: =IF(INTRO!$E$49="","",ROUND($D18*INTRO!$E$49,0)) -> 68593 | G18: =IF(INTRO!$E$50="","",ROUND($D18*INTRO!$E$50,0)) -> 140861 | H18: 1 | I18: 4 | J18: 2 | K18: 3 | L18: =IF(INTRO!$E$38="Endemic", IF($H18>0, IF($H18=4,"Unknown", IF($H18=99,"Stopped", $D18)), 0),"Not required") -> 244976.241 | M18: =IF(INTRO!$E$40="Endemic", IF($I18>0, IF($I18=4,"Unknown",IF($I18=99,"Stopped", $D18)), 0),"Not required") -> Not required | N18: =IF(INTRO!$E$42="Endemic", IF(AND($J18>1,$J18<5), IF($J18=4, "Unknown", E18+F18), 0),"Not required") -> 97010 | O18: =IF(INTRO!$E$44="Endemic", IF(AND($K18>0,$K18<5), IF($K18=4,"Unknown", IF($K18=1, $F18*0.33, IF($K18=2, $F18*0.5+$G18*0.2, SUM(F18:G18)))), 0),"Not required") -> 209454 | P18: 0 | R18: 0 | S18: 1 | V18: MDA 1 | W18: T2 | X18: 33109 | Y18: Montepuez | AA18: TRUE | AB18: Cabo Delgado | AC18: Montepuez | AD18: 1 | AE18: 4 | AF18: 2 | AG18: 3 | AH18: TRUE | AI18: TRUE | AJ18: TRUE | AK18: TRUE | AO18: 1 | AQ18: 2 | AR18: 3 | AS18: TRUE | AU18: TRUE | AV18: TRUE | AY18: ='MDA1'!M18 -> 0 | AZ18: ='T1'!O18 -> 0 | BA18: ='T2'!M18 -> 0 | BD18: =DISTRICT!H17:H18 -> 0 | BE18: =DISTRICT!X18 -> 0 | BF18: =DISTRICT!AH18 -> 0 | BI18: 1 | BJ18: 1 | BK18: FALSE | BL18: TRUE | BM18: Montepuez | BN18: TRUE
A19: =IF(INTRO!$E$34<>0,INTRO!$E$34,"") -> Mozambique | B19: Cabo Delgado | C19: Mueda | D19: 133995.1238 | E19: =IF(INTRO!$E$48="","",ROUND($D19*INTRO!$E$48,0)) -> 15543 | F19: =IF(INTRO!$E$49="","",ROUND($D19*INTRO!$E$49,0)) -> 37519 | G19: =IF(INTRO!$E$50="","",ROUND($D19*INTRO!$E$50,0)) -> 77047 | H19: 1 | I19: 4 | J19: 3 | K19: 2 | L19: =IF(INTRO!$E$38="Endemic", IF($H19>0, IF($H19=4,"Unknown", IF($H19=99,"Stopped", $D19)), 0),"Not required") -> 133995.1238 | M19: =IF(INTRO!$E$40="Endemic", IF($I19>0, IF($I19=4,"Unknown",IF($I19=99,"Stopped", $D19)), 0),"Not required") -> Not required | N19: =IF(INTRO!$E$42="Endemic", IF(AND($J19>1,$J19<5), IF($J19=4, "Unknown", E19+F19), 0),"Not required") -> 53062 | O19: =IF(INTRO!$E$44="Endemic", IF(AND($K19>0,$K19<5), IF($K19=4,"Unknown", IF($K19=1, $F19*0.33, IF($K19=2, $F19*0.5+$G19*0.2, SUM(F19:G19)))), 0),"Not required") -> 34168.9 | P19: 0 | R19: 0 | S19: 1 | V19: MDA 1 | W19: T1 | X19: 33110 | Y19: Mueda | AA19: TRUE | AB19: Cabo Delgado | AC19: Mueda | AD19: 1 | AE19: 4 | AF19: 3 | AG19: 2 | AH19: TRUE | AI19: TRUE | AJ19: TRUE | AK19: TRUE | AO19: 1 | AQ19: 3 | AR19: 2 | AS19: TRUE | AU19: TRUE | AV19: TRUE | AY19: ='MDA1'!M19 -> 0 | AZ19: ='T1'!O19 -> 0 | BA19: ='T2'!M19 -> 0 | BD19: =DISTRICT!H18:H19 -> 0 | BE19: =DISTRICT!X19 -> 0 | BF19: =DISTRICT!AH19 -> 0 | BI19: 2 | BJ19: 0 | BK19: FALSE | BL19: FALSE | BM19: Mueda | BN19: TRUE
A20: =IF(INTRO!$E$34<>0,INTRO!$E$34,"") -> Mozambique | B20: Cabo Delgado | C20: Muidumbe | D20: 78963.35329 | E20: =IF(INTRO!$E$48="","",ROUND($D20*INTRO!$E$48,0)) -> 9160 | F20: =IF(INTRO!$E$49="","",ROUND($D20*INTRO!$E$49,0)) -> 22110 | G20: =IF(INTRO!$E$50="","",ROUND($D20*INTRO!$E$50,0)) -> 45404 | H20: 1 | I20: 4 | J20: 3 | K20: 2 | L20: =IF(INTRO!$E$38="Endemic", IF($H20>0, IF($H20=4,"Unknown", IF($H20=99,"Stopped", $D20)), 0),"Not required") -> 78963.35329 | M20: =IF(INTRO!$E$40="Endemic", IF($I20>0, IF($I20=4,"Unknown",IF($I20=99,"Stopped", $D20)), 0),"Not required") -> Not required | N20: =IF(INTRO!$E$42="Endemic", IF(AND($J20>1,$J20<5), IF($J20=4, "Unknown", E20+F20), 0),"Not required") -> 31270 | O20: =IF(INTRO!$E$44="Endemic", IF(AND($K20>0,$K20<5), IF($K20=4,"Unknown", IF($K20=1, $F20*0.33, IF($K20=2, $F20*0.5+$G20*0.2, SUM(F20:G20)))), 0),"Not required") -> 20135.8 | P20: 0 | R20: 0 | S20: 0 | V20: MDA 1 | W20: T1 | X20: 33111 | Y20: Muidumbe | AA20: TRUE | AB20: Cabo Delgado | AC20: Muidumbe | AD20: 1 | AE20: 4 | AF20: 3 | AG20: 2 | AH20: TRUE | AI20: TRUE | AJ20: TRUE | AK20: TRUE | AO20: 1 | AQ20: 3 | AR20: 2 | AS20: TRUE | AU20: TRUE | AV20: TRUE | AY20: ='MDA1'!M20 -> 0 | AZ20: ='T1'!O20 -> 0 | BA20: ='T2'!M20 -> 0 | BD20: =DISTRICT!H19:H20 -> 0 | BE20: =DISTRICT!X20 -> 0 | BF20: =DISTRICT!AH20 -> 0 | BI20: 2 | BJ20: 0 | BK20: FALSE | BL20: TRUE | BM20: Muidumbe | BN20: TRUE
A21: =IF(INTRO!$E$34<>0,INTRO!$E$34,"") -> Mozambique | B21: Cabo Delgado | C21: Namuno | D21: 221348.7963 | E21: =IF(INTRO!$E$48="","",ROUND($D21*INTRO!$E$48,0)) -> 25676 | F21: =IF(INTRO!$E$49="","",ROUND($D21*INTRO!$E$49,0)) -> 61978 | G21: =IF(INTRO!$E$50="","",ROUND($D21*INTRO!$E$50,0)) -> 127276 | H21: 1 | I21: 4 | J21: 2 | K21: 3 | L21: =IF(INTRO!$E$38="Endemic", IF($H21>0, IF($H21=4,"Unknown", IF($H21=99,"Stopped", $D21)), 0),"Not required") -> 221348.7963 | M21: =IF(INTRO!$E$40="Endemic", IF($I21>0, IF($I21=4,"Unknown",IF($I21=99,"Stopped", $D21)), 0),"Not required") -> Not required | N21: =IF(INTRO!$E$42="Endemic", IF(AND($J21>1,$J21<5), IF($J21=4, "Unknown", E21+F21), 0),"Not required") -> 87654 | O21: =IF(INTRO!$E$44="Endemic", IF(AND($K21>0,$K21<5), IF($K21=4,"Unknown", IF($K21=1, $F21*0.33, IF($K21=2, $F21*0.5+$G21*0.2, SUM(F21:G21)))), 0),"Not required") -> 189254 | P21: 0 | R21: 0 | S21: 1 | V21: MDA 1 | W21: T2 | X21: 33112 | Y21: Namuno | AA21: TRUE | AB21: Cabo Delgado | AC21: Namuno | AD21: 1 | AE21: 4 | AF21: 2 | AG21: 3 | AH21: TRUE | AI21: TRUE | AJ21: TRUE | AK21: TRUE | AO21: 1 | AQ21: 2 | AR21: 3 | AS21: TRUE | AU21: TRUE | AV21: TRUE | AY21: ='MDA1'!M21 -> 0 | AZ21: ='T1'!O21 -> 0 | BA21: ='T2'!M21 -> 0 | BD21: =DISTRICT!H20:H21 -> 0 | BE21: =DISTRICT!X21 -> 0 | BF21: =DISTRICT!AH21 -> 0 | BI21: 1 | BJ21: 1 | BK21: FALSE | BL21: TRUE | BM21: Namuno | BN21: TRUE
A22: =IF(INTRO!$E$34<>0,INTRO!$E$34,"") -> Mozambique | B22: Cabo Delgado | C22: Nangade | D22: 73600.05298 | E22: =IF(INTRO!$E$48="","",ROUND($D22*INTRO!$E$48,0)) -> 8538 | F22: =IF(INTRO!$E$49="","",ROUND($D22*INTRO!$E$49,0)) -> 20608 | G22: =IF(INTRO!$E$50="","",ROUND($D22*INTRO!$E$50,0)) -> 42320 | H22: 1 | I22: 4 | J22: 3 | K22: 2 | L22: =IF(INTRO!$E$38="Endemic", IF($H22>0, IF($H22=4,"Unknown", IF($H22=99,"Stopped", $D22)), 0),"Not required") -> 73600.05298 | M22: =IF(INTRO!$E$40="Endemic", IF($I22>0, IF($I22=4,"Unknown",IF($I22=99,"Stopped", $D22)), 0),"Not required") -> Not required | N22: =IF(INTRO!$E$42="Endemic", IF(AND($J22>1,$J22<5), IF($J22=4, "Unknown", E22+F22), 0),"Not required") -> 29146 | O22: =IF(INTRO!$E$44="Endemic", IF(AND($K22>0,$K22<5), IF($K22=4,"Unknown", IF($K22=1, $F22*0.33, IF($K22=2, $F22*0.5+$G22*0.2, SUM(F22:G22)))), 0),"Not required") -> 18768 | P22: 0 | R22: 0 | S22: 0 | V22: MDA 1 | W22: T1 | X22: 33113 | Y22: Nangade | AA22: TRUE | AB22: Cabo Delgado | AC22: Nangade | AD22: 1 | AE22: 4 | AF22: 3 | AG22: 2 | AH22: TRUE | AI22: TRUE | AJ22: TRUE | AK22: TRUE | AO22: 1 | AQ22: 3 | AR22: 2 | AS22: TRUE | AU22: TRUE | AV22: TRUE | AY22: ='MDA1'!M22 -> 0 | AZ22: ='T1'!O22 -> 0 | BA22: ='T2'!M22 -> 0 | BD22: =DISTRICT!H21:H22 -> 0 | BE22: =DISTRICT!X22 -> 0 | BF22: =DISTRICT!AH22 -> 0 | BI22: 2 | BJ22: 0 | BK22: FALSE | BL22: TRUE | BM22: Nangade | BN22: TRUE
A23: =IF(INTRO!$E$34<>0,INTRO!$E$34,"") -> Mozambique | B23: Cabo Delgado | C23: Palma | D23: 52441.03183 | E23: =IF(INTRO!$E$48="","",ROUND($D23*INTRO!$E$48,0)) -> 6083 | F23: =IF(INTRO!$E$49="","",ROUND($D23*INTRO!$E$49,0)) -> 14683 | G23: =IF(INTRO!$E$50="","",ROUND($D23*INTRO!$E$50,0)) -> 30154 | H23: 1 | I23: 4 | J23: 3 | K23: 3 | L23: =IF(INTRO!$E$38="Endemic", IF($H23>0, IF($H23=4,"Unknown", IF($H23=99,"Stopped", $D23)), 0),"Not required") -> 52441.03183 | M23: =IF(INTRO!$E$40="Endemic", IF($I23>0, IF($I23=4,"Unknown",IF($I23=99,"Stopped", $D23)), 0),"Not required") -> Not required | N23: =IF(INTRO!$E$42="Endemic", IF(AND($J23>1,$J23<5), IF($J23=4, "Unknown", E23+F23), 0),"Not required") -> 20766 | O23: =IF(INTRO!$E$44="Endemic", IF(AND($K23>0,$K23<5), IF($K23=4,"Unknown", IF($K23=1, $F23*0.33, IF($K23=2, $F23*0.5+$G23*0.2, SUM(F23:G23)))), 0),"Not required") -> 44837 | P23: 0 | R23: 0 | S23: 1 | V23: MDA 1 | W23: T1 | X23: 33114 | Y23: Palma | AA23: TRUE | AB23: Cabo Delgado | AC23: Palma | AD23: 1 | AE23: 4 | AF23: 3 | AG23: 3 | AH23: TRUE | AI23: TRUE | AJ23: TRUE | AK23: TRUE | AO23: 1 | AQ23: 3 | AR23: 3 | AS23: TRUE | AU23: TRUE | AV23: TRUE | AY23: ='MDA1'!M23 -> 0 | AZ23: ='T1'!O23 -> 0 | BA23: ='T2'!M23 -> 0 | BD23: =DISTRICT!H22:H23 -> 0 | BE23: =DISTRICT!X23 -> 0 | BF23: =DISTRICT!AH23 -> 0 | BI23: 2 | BJ23: 1 | BK23: FALSE | BL23: TRUE | BM23: Palma | BN23: TRUE
A24: =IF(INTRO!$E$34<>0,INTRO!$E$34,"") -> Mozambique | B24: Cabo Delgado | C24: Pemba Metuge | D24: 90158.37825 | E24: =IF(INTRO!$E$48="","",ROUND($D24*INTRO!$E$48,0)) -> 10458 | F24: =IF(INTRO!$E$49="","",ROUND($D24*INTRO!$E$49,0)) -> 25244 | G24: =IF(INTRO!$E$50="","",ROUND($D24*INTRO!$E$50,0)) -> 51841 | H24: 1 | I24: 4 | J24: 3 | K24: 2 | L24: =IF(INTRO!$E$38="Endemic", IF($H24>0, IF($H24=4,"Unknown", IF($H24=99,"Stopped", $D24)), 0),"Not required") -> 90158.37825 | M24: =IF(INTRO!$E$40="Endemic", IF($I24>0, IF($I24=4,"Unknown",IF($I24=99,"Stopped", $D24)), 0),"Not required") -> Not required | N24: =IF(INTRO!$E$42="Endemic", IF(AND($J24>1,$J24<5), IF($J24=4, "Unknown", E24+F24), 0),"Not required") -> 35702 | O24: =IF(INTRO!$E$44="Endemic", IF(AND($K24>0,$K24<5), IF($K24=4,"Unknown", IF($K24=1, $F24*0.33, IF($K24=2, $F24*0.5+$G24*0.2, SUM(F24:G24)))), 0),"Not required") -> 22990.2 | P24: 0 | R24: 0 | S24: 1 | V24: MDA 1 | W24: T1 | X24: 33115 | Y24: Pemba Metuge | AA24: TRUE | AB24: Cabo Delgado | AC24: Pemba Metuge | AD24: 1 | AE24: 4 | AF24: 3 | AG24: 2 | AH24: TRUE | AI24: TRUE | AJ24: TRUE | AK24: TRUE | AO24: 1 | AQ24: 3 | AR24: 2 | AS24: TRUE | AU24: TRUE | AV24: TRUE | AY24: ='MDA1'!M24 -> 0 | AZ24: ='T1'!O24 -> 0 | BA24: ='T2'!M24 -> 0 | BD24: =DISTRICT!H23:H24 -> 0 | BE24: =DISTRICT!X24 -> 0 | BF24: =DISTRICT!AH24 -> 0 | BI24: 2 | BJ24: 1 | BK24: FALSE | BL24: TRUE | BM24: Pemba Metuge | BN24: TRUE
A25: =IF(INTRO!$E$34<>0,INTRO!$E$34,"") -> Mozambique | B25: Cabo Delgado | C25: Quissanga | D25: 40565.31183 | E25: =IF(INTRO!$E$48="","",ROUND($D25*INTRO!$E$48,0)) -> 4706 | F25: =IF(INTRO!$E$49="","",ROUND($D25*INTRO!$E$49,0)) -> 11358 | G25: =IF(INTRO!$E$50="","",ROUND($D25*INTRO!$E$50,0)) -> 23325 | H25: 1 | I25: 4 | J25: 3 | K25: 2 | L25: =IF(INTRO!$E$38="Endemic", IF($H25>0, IF($H25=4,"Unknown", IF($H25=99,"Stopped", $D25)), 0),"Not required") -> 40565.31183 | M25: =IF(INTRO!$E$40="Endemic", IF($I25>0, IF($I25=4,"Unknown",IF($I25=99,"Stopped", $D25)), 0),"Not required") -> Not required | N25: =IF(INTRO!$E$42="Endemic", IF(AND($J25>1,$J25<5), IF($J25=4, "Unknown", E25+F25), 0),"Not required") -> 16064 | O25: =IF(INTRO!$E$44="Endemic", IF(AND($K25>0,$K25<5), IF($K25=4,"Unknown", IF($K25=1, $F25*0.33, IF($K25=2, $F25*0.5+$G25*0.2, SUM(F25:G25)))), 0),"Not required") -> 10344 | P25: 0 | R25: 0 | S25: 1 | V25: MDA 1 | W25: T1 | X25: 33116 | Y25: Quissanga | AA25: TRUE | AB25: Cabo Delgado | AC25: Quissanga | AD25: 1 | AE25: 4 | AF25: 3 | AG25: 2 | AH25: TRUE | AI25: TRUE | AJ25: TRUE | AK25: TRUE | AO25: 1 | AQ25: 3 | AR25: 2 | AS25: TRUE | AU25: =AQ25=J25 -> TRUE | AV25: =AR25=K25 -> TRUE | AY25: ='MDA1'!M25 -> 0 | AZ25: ='T1'!O25 -> 0 | BA25: ='T2'!M25 -> 0 | BD25: =DISTRICT!H24:H25 -> 0 | BE25: =DISTRICT!X25 -> 0 | BF25: =DISTRICT!AH25 -> 0 | BI25: 2 | BJ25: 1 | BK25: FALSE | BL25: TRUE | BM25: Quissanga | BN25: TRUE
A26: =IF(INTRO!$E$34<>0,INTRO!$E$34,"") -> Mozambique | B26: Niassa | C26: Cidade de Lichinga | D26: 257301.5952 | E26: =IF(INTRO!$E$48="","",ROUND($D26*INTRO!$E$48,0)) -> 29847 | F26: =IF(INTRO!$E$49="","",ROUND($D26*INTRO!$E$49,0)) -> 72044 | G26: =IF(INTRO!$E$50="","",ROUND($D26*INTRO!$E$50,0)) -> 147948 | H26: 99 | I26: 4 | J26: 1 | K26: 2 | L26: =IF(INTRO!$E$38="Endemic", IF($H26>0, IF($H26=4,"Unknown", IF($H26=99,"Stopped", $D26)), 0),"Not required") -> Stopped | M26: =IF(INTRO!$E$40="Endemic", IF($I26>0, IF($I26=4,"Unknown",IF($I26=99,"Stopped", $D26)), 0),"Not required") -> Not required | N26: =IF(INTRO!$E$42="Endemic", IF(AND($J26>1,$J26<5), IF($J26=4, "Unknown", E26+F26), 0),"Not required") -> 0 | O26: =IF(INTRO!$E$44="Endemic", IF(AND($K26>0,$K26<5), IF($K26=4,"Unknown", IF($K26=1, $F26*0.33, IF($K26=2, $F26*0.5+$G26*0.2, SUM(F26:G26)))), 0),"Not required") -> 65611.6 | P26: 0 | R26: 0 | S26: 1 | T26: T1 (PZQ+ALB/MBD) | W26: T2 | X26: 33194 | Y26: Distrito de Lichinga | AA26: TRUE | AB26: Niassa | AC26: Cidade de Lichinga | AD26: 99 | AE26: 4 | AF26: 1 | AG26: 2 | AH26: TRUE | AI26: TRUE | AJ26: TRUE | AK26: TRUE | AO26: 1 | AQ26: 1 | AR26: 2 | AS26: FALSE | AU26: TRUE | AV26: TRUE | AY26: ='MDA1'!M26 -> 0 | AZ26: ='T1'!O26 -> 67640 | BA26: ='T2'!M26 -> 0 | BD26: =DISTRICT!H25:H26 -> 0 | BE26: =DISTRICT!X26 -> 0 | BF26: =DISTRICT!AH26 -> 36022 | BI26: 0 | BJ26: 0 | BK26: TRUE | BL26: FALSE | BM26: Cidade de Lichinga | BN26: TRUE
A27: =IF(INTRO!$E$34<>0,INTRO!$E$34,"") -> Mozambique | B27: Niassa | C27: Cuamba | D27: 272705.3365 | E27: =IF(INTRO!$E$48="","",ROUND($D27*INTRO!$E$48,0)) -> 31634 | F27: =IF(INTRO!$E$49="","",ROUND($D27*INTRO!$E$49,0)) -> 76357 | G27: =IF(INTRO!$E$50="","",ROUND($D27*INTRO!$E$50,0)) -> 156806 | H27: 1 | I27: 4 | J27: 3 | K27: 3 | L27: =IF(INTRO!$E$38="Endemic", IF($H27>0, IF($H27=4,"Unknown", IF($H27=99,"Stopped", $D27)), 0),"Not required") -> 272705.3365 | M27: =IF(INTRO!$E$40="Endemic", IF($I27>0, IF($I27=4,"Unknown",IF($I27=99,"Stopped", $D27)), 0),"Not required") -> Not required | N27: =IF(INTRO!$E$42="Endemic", IF(AND($J27>1,$J27<5), IF($J27=4, "Unknown", E27+F27), 0),"Not required") -> 107991 | O27: =IF(INTRO!$E$44="Endemic", IF(AND($K27>0,$K27<5), IF($K27=4,"Unknown", IF($K27=1, $F27*0.33, IF($K27=2, $F27*0.5+$G27*0.2, SUM(F27:G27)))), 0),"Not required") -> 233163 | P27: 1 | R27: 1 | S27: 1 | T27: MDA1 (IVM+ALB) | U27: T2 (PZQ) | V27: MDA 1 | W27: T1 | X27: 33195 | Y27: Cuamba | AA27: TRUE | AB27: Niassa | AC27: Cuamba | AD27: 1 | AE27: 4 | AF27: 3 | AG27: 3 | AH27: TRUE | AI27: TRUE | AJ27: TRUE | AK27: TRUE | AO27: 1 | AQ27: 3 | AR27: 3 | AS27: TRUE | AU27: TRUE | AV27: TRUE | AY27: ='MDA1'!M27 -> 209919 | AZ27: ='T1'!O27 -> 0 | BA27: ='T2'!M27 -> 105477 | BD27: =DISTRICT!H26:H27 -> 209919 | BE27: =DISTRICT!X27 -> 76357 | BF27: =DISTRICT!AH27 -> 76357 | BI27: 2 | BJ27: 1 | BK27: FALSE | BL27: TRUE | BM27: Cuamba | BN27: TRUE
A28: =IF(INTRO!$E$34<>0,INTRO!$E$34,"") -> Mozambique | B28: Niassa | C28: Chimbonila | D28: 126375.039 | E28: =IF(INTRO!$E$48="","",ROUND($D28*INTRO!$E$48,0)) -> 14660 | F28: =IF(INTRO!$E$49="","",ROUND($D28*INTRO!$E$49,0)) -> 35385 | G28: =IF(INTRO!$E$50="","",ROUND($D28*INTRO!$E$50,0)) -> 72666 | H28: 0 | I28: 4 | J28: 2 | K28: 2 | L28: =IF(INTRO!$E$38="Endemic", IF($H28>0, IF($H28=4,"Unknown", IF($H28=99,"Stopped", $D28)), 0),"Not required") -> 0 | M28: =IF(INTRO!$E$40="Endemic", IF($I28>0, IF($I28=4,"Unknown",IF($I28=99,"Stopped", $D28)), 0),"Not required") -> Not required | N28: =IF(INTRO!$E$42="Endemic", IF(AND($J28>1,$J28<5), IF($J28=4, "Unknown", E28+F28), 0),"Not required") -> 50045 | O28: =IF(INTRO!$E$44="Endemic", IF(AND($K28>0,$K28<5), IF($K28=4,"Unknown", IF($K28=1, $F28*0.33, IF($K28=2, $F28*0.5+$G28*0.2, SUM(F28:G28)))), 0),"Not required") -> 32225.7 | P28: 0 | R28: 1 | S28: 1 | T28: T1 (PZQ+ALB/MBD) | W28: T1 | X28: 33197 | Y28: Chimbonila | AA28: TRUE | AB28: Niassa | AC28: Chimbonila | AD28: 0 | AE28: 4 | AF28: 2 | AG28: 2 | AH28: TRUE | AI28: TRUE | AJ28: TRUE | AK28: TRUE | AO28: 0 | AQ28: 2 | AR28: 2 | AS28: TRUE | AU28: TRUE | AV28: TRUE | AY28: ='MDA1'!M28 -> 0 | AZ28: ='T1'!O28 -> 29444 | BA28: ='T2'!M28 -> 0 | BD28: =DISTRICT!H27:H28 -> 0 | BE28: =DISTRICT!X28 -> 29444 | BF28: =DISTRICT!AH28 -> 17692.5 | BI28: 1 | BJ28: 0 | BK28: TRUE | BL28: FALSE | BM28: Chimbonila | BN28: TRUE
A29: =IF(INTRO!$E$34<>0,INTRO!$E$34,"") -> Mozambique | B29: Niassa | C29: Lago | D29: 137733 | E29: =IF(INTRO!$E$48="","",ROUND($D29*INTRO!$E$48,0)) -> 15977 | F29: =IF(INTRO!$E$49="","",ROUND($D29*INTRO!$E$49,0)) -> 38565 | G29: =IF(INTRO!$E$50="","",ROUND($D29*INTRO!$E$50,0)) -> 79196 | H29: 0 | I29: 4 | J29: 2 | K29: 2 | L29: =IF(INTRO!$E$38="Endemic", IF($H29>0, IF($H29=4,"Unknown", IF($H29=99,"Stopped", $D29)), 0),"Not required") -> 0 | M29: =IF(INTRO!$E$40="Endemic", IF($I29>0, IF($I29=4,"Unknown",IF($I29=99,"Stopped", $D29)), 0),"Not required") -> Not required | N29: =IF(INTRO!$E$42="Endemic", IF(AND($J29>1,$J29<5), IF($J29=4, "Unknown", E29+F29), 0),"Not required") -> 54542 | O29: =IF(INTRO!$E$44="Endemic", IF(AND($K29>0,$K29<5), IF($K29=4,"Unknown", IF($K29=1, $F29*0.33, IF($K29=2, $F29*0.5+$G29*0.2, SUM(F29:G29)))), 0),"Not required") -> 35121.7 | P29: 0 | R29: 1 | S29: 1 | T29: T1 (PZQ+ALB/MBD) | W29: T1 | X29: 33196 | Y29: Lago | AA29: TRUE | AB29: Niassa | AC29: Lago | AD29: 0 | AE29: 4 | AF29: 2 | AG29: 2 | AH29: TRUE | AI29: TRUE | AJ29: TRUE | AK29: TRUE | AO29: 0 | AQ29: 2 | AR29: 2 | AS29: TRUE | AU29: TRUE | AV29: TRUE | AY29: ='MDA1'!M29 -> 0 | AZ29: ='T1'!O29 -> 34988 | BA29: ='T2'!M29 -> 0 | BD29: =DISTRICT!H28:H29 -> 0 | BE29: =DISTRICT!X29 -> 34988 | BF29: =DISTRICT!AH29 -> 19282.5 | BI29: 1 | BJ29: 1 | BK29: TRUE | BL29: TRUE | BM29: Lago | BN29: TRUE
A30: =IF(INTRO!$E$34<>0,INTRO!$E$34,"") -> Mozambique | B30: Niassa | C30: Majune | D30: 42208.00874 | E30: =IF(INTRO!$E$48="","",ROUND($D30*INTRO!$E$48,0)) -> 4896 | F30: =IF(INTRO!$E$49="","",ROUND($D30*INTRO!$E$49,0)) -> 11818 | G30: =IF(INTRO!$E$50="","",ROUND($D30*INTRO!$E$50,0)) -> 24270 | H30: 0 | I30: 4 | J30: 2 | K30: 3 | L30: =IF(INTRO!$E$38="Endemic", IF($H30>0, IF($H30=4,"Unknown", IF($H30=99,"Stopped", $D30)), 0),"Not required") -> 0 | M30: =IF(INTRO!$E$40="Endemic", IF($I30>0, IF($I30=4,"Unknown",IF($I30=99,"Stopped", $D30)), 0),"Not required") -> Not required | N30: =IF(INTRO!$E$42="Endemic", IF(AND($J30>1,$J30<5), IF($J30=4, "Unknown", E30+F30), 0),"Not required") -> 16714 | O30: =IF(INTRO!$E$44="Endemic", IF(AND($K30>0,$K30<5), IF($K30=4,"Unknown", IF($K30=1, $F30*0.33, IF($K30=2, $F30*0.5+$G30*0.2, SUM(F30:G30)))), 0),"Not required") -> 36088 | P30: 0 | R30: 1 | S30: 1 | T30: T1 (PZQ+ALB/MBD) | W30: T1 | X30: 33198 | Y30: Majune | AA30: TRUE | AB30: Niassa | AC30: Majune | AD30: 0 | AE30: 4 | AF30: 2 | AG30: 3 | AH30: TRUE | AI30: TRUE | AJ30: TRUE | AK30: TRUE | AO30: 0 | AQ30: 2 | AR30: 3 | AS30: TRUE | AU30: TRUE | AV30: TRUE | AY30: ='MDA1'!M30 -> 0 | AZ30: ='T1'!O30 -> 10317 | BA30: ='T2'!M30 -> 0 | BD30: =DISTRICT!H29:H30 -> 0 | BE30: =DISTRICT!X30 -> 10317 | BF30: =DISTRICT!AH30 -> 10317 | BI30: 1 | BJ30: 1 | BK30: TRUE | BL30: TRUE | BM30: Majune | BN30: TRUE
A31: =IF(INTRO!$E$34<>0,INTRO!$E$34,"") -> Mozambique | B31: Niassa | C31: Mandimba | D31: 206710.1419 | E31: =IF(INTRO!$E$48="","",ROUND($D31*INTRO!$E$48,0)) -> 23978 | F31: =IF(INTRO!$E$49="","",ROUND($D31*INTRO!$E$49,0)) -> 57879 | G31: =IF(INTRO!$E$50="","",ROUND($D31*INTRO!$E$50,0)) -> 118858 | H31: 0 | I31: 4 | J31: 3 | K31: 3 | L31: =IF(INTRO!$E$38="Endemic", IF($H31>0, IF($H31=4,"Unknown", IF($H31=99,"Stopped", $D31)), 0),"Not required") -> 0 | M31: =IF(INTRO!$E$40="Endemic", IF($I31>0, IF($I31=4,"Unknown",IF($I31=99,"Stopped", $D31)), 0),"Not required") -> Not required | N31: =IF(INTRO!$E$42="Endemic", IF(AND($J31>1,$J31<5), IF($J31=4, "Unknown", E31+F31), 0),"Not required") -> 81857 | O31: =IF(INTRO!$E$44="Endemic", IF(AND($K31>0,$K31<5), IF($K31=4,"Unknown", IF($K31=1, $F31*0.33, IF($K31=2, $F31*0.5+$G31*0.2, SUM(F31:G31)))), 0),"Not required") -> 176737 | P31: 0 | R31: 1 | S31: 1 | T31: T1 (PZQ+ALB/MBD) | V31: T1 | W31: T3 | X31: 33199 | Y31: Mandimba | AA31: TRUE | AB31: Niassa | AC31: Mandimba | AD31: 0 | AE31: 4 | AF31: 3 | AG31: 3 | AH31: TRUE | AI31: TRUE | AJ31: TRUE | AK31: TRUE | AO31: 0 | AQ31: 3 | AR31: 3 | AS31: TRUE | AU31: TRUE | AV31: TRUE | AY31: ='MDA1'!M31 -> 0 | AZ31: ='T1'!O31 -> 50429 | BA31: ='T2'!M31 -> 0 | BD31: =DISTRICT!H30:H31 -> 0 | BE31: =DISTRICT!X31 -> 50429 | BF31: =DISTRICT!AH31 -> 50429 | BI31: 2 | BJ31: 1 | BK31: FALSE | BL31: TRUE | BM31: Mandimba | BN31: TRUE
A32: =IF(INTRO!$E$34<>0,INTRO!$E$34,"") -> Mozambique | B32: Niassa | C32: Marrupa | D32: 75664.84763 | E32: =IF(INTRO!$E$48="","",ROUND($D32*INTRO!$E$48,0)) -> 8777 | F32: =IF(INTRO!$E$49="","",ROUND($D32*INTRO!$E$49,0)) -> 21186 | G32: =IF(INTRO!$E$50="","",ROUND($D32*INTRO!$E$50,0)) -> 43507 | H32: 99 | I32: 4 | J32: 3 | K32: 3 | L32: =IF(INTRO!$E$38="Endemic", IF($H32>0, IF($H32=4,"Unknown", IF($H32=99,"Stopped", $D32)), 0),"Not required") -> Stopped | M32: =IF(INTRO!$E$40="Endemic", IF($I32>0, IF($I32=4,"Unknown",IF($I32=99,"Stopped", $D32)), 0),"Not required") -> Not required | N32: =IF(INTRO!$E$42="Endemic", IF(AND($J32>1,$J32<5), IF($J32=4, "Unknown", E32+F32), 0),"Not required") -> 29963 | O32: =IF(INTRO!$E$44="Endemic", IF(AND($K32>0,$K32<5), IF($K32=4,"Unknown", IF($K32=1, $F32*0.33, IF($K32=2, $F32*0.5+$G32*0.2, SUM(F32:G32)))), 0),"Not required") -> 64693 | P32: 0 | R32: 1 | S32: 1 | T32: T1 (PZQ+ALB/MBD) | V32: T1 | W32: T3 | X32: 33200 | Y32: Marrupa | AA32: TRUE | AB32: Niassa | AC32: Marrupa | AD32: 99 | AE32: 4 | AF32: 3 | AG32: 3 | AH32: TRUE | AI32: TRUE | AJ32: TRUE | AK32: TRUE | AO32: 1 | AQ32: 3 | AR32: 3 | AS32: FALSE | AU32: TRUE | AV32: TRUE | AY32: ='MDA1'!M32 -> 0 | AZ32: ='T1'!O32 -> 20579 | BA32: ='T2'!M32 -> 0 | BD32: =DISTRICT!H31:H32 -> 0 | BE32: =DISTRICT!X32 -> 20579 | BF32: =DISTRICT!AH32 -> 20579 | BI32: 2 | BJ32: 1 | BK32: FALSE | BL32: TRUE | BM32: Marrupa | BN32: TRUE
A33: =IF(INTRO!$E$34<>0,INTRO!$E$34,"") -> Mozambique | B33: Niassa | C33: Maúa | D33: 68587.59557 | E33: =IF(INTRO!$E$48="","",ROUND($D33*INTRO!$E$48,0)) -> 7956 | F33: =IF(INTRO!$E$49="","",ROUND($D33*INTRO!$E$49,0)) -> 19205 | G33: =IF(INTRO!$E$50="","",ROUND($D33*INTRO!$E$50,0)) -> 39438 | H33: 99 | I33: 4 | J33: 3 | K33: 3 | L33: =IF(INTRO!$E$38="Endemic", IF($H33>0, IF($H33=4,"Unknown", IF($H33=99,"Stopped", $D33)), 0),"Not required") -> Stopped | M33: =IF(INTRO!$E$40="Endemic", IF($I33>0, IF($I33=4,"Unknown",IF($I33=99,"Stopped", $D33)), 0),"Not required") -> Not required | N33: =IF(INTRO!$E$42="Endemic", IF(AND($J33>1,$J33<5), IF($J33=4, "Unknown", E33+F33), 0),"Not required") -> 27161 | O33: =IF(INTRO!$E$44="Endemic", IF(AND($K33>0,$K33<5), IF($K33=4,"Unknown", IF($K33=1, $F33*0.33, IF($K33=2, $F33*0.5+$G33*0.2, SUM(F33:G33)))), 0),"Not required") -> 58643 | P33: 0 | R33: 1 | S33: 1 | T33: T1 (PZQ+ALB/MBD) | V33: T1 | W33: T3 | X33: 33202 | Y33: Maúa | AA33: TRUE | AB33: Niassa | AC33: Maúa | AD33: 99 | AE33: 4 | AF33: 3 | AG33: 3 | AH33: TRUE | AI33: TRUE | AJ33: TRUE | AK33: TRUE | AO33: 1 | AQ33: 3 | AR33: 3 | AS33: FALSE | AU33: TRUE | AV33: TRUE | AY33: ='MDA1'!M33 -> 0 | AZ33: ='T1'!O33 -> 17600 | BA33: ='T2'!M33 -> 0 | BD33: =DISTRICT!H32:H33 -> 0 | BE33: =DISTRICT!X33 -> 17600 | BF33: =DISTRICT!AH33 -> 17600 | BI33: 2 | BJ33: 1 | BK33: FALSE | BL33: TRUE | BM33: Maúa | BN33: TRUE
A34: =IF(INTRO!$E$34<>0,INTRO!$E$34,"") -> Mozambique | B34: Niassa | C34: Mavago | D34: 31744.96185 | E34: =IF(INTRO!$E$48="","",ROUND($D34*INTRO!$E$48,0)) -> 3682 | F34: =IF(INTRO!$E$49="","",ROUND($D34*INTRO!$E$49,0)) -> 8889 | G34: =IF(INTRO!$E$50="","",ROUND($D34*INTRO!$E$50,0)) -> 18253 | H34: 0 | I34: 4 | J34: 3 | K34: 3 | L34: =IF(INTRO!$E$38="Endemic", IF($H34>0, IF($H34=4,"Unknown", IF($H34=99,"Stopped", $D34)), 0),"Not required") -> 0 | M34: =IF(INTRO!$E$40="Endemic", IF($I34>0, IF($I34=4,"Unknown",IF($I34=99,"Stopped", $D34)), 0),"Not required") -> Not required | N34: =IF(INTRO!$E$42="Endemic", IF(AND($J34>1,$J34<5), IF($J34=4, "Unknown", E34+F34), 0),"Not required") -> 12571 | O34: =IF(INTRO!$E$44="Endemic", IF(AND($K34>0,$K34<5), IF($K34=4,"Unknown", IF($K34=1, $F34*0.33, IF($K34=2, $F34*0.5+$G34*0.2, SUM(F34:G34)))), 0),"Not required") -> 27142 | P34: 0 | R34: 1 | S34: 1 | T34: T1 (PZQ+ALB/MBD) | V34: T1 | W34: T3 | X34: 33201 | Y34: Mavago | AA34: TRUE | AB34: Niassa | AC34: Mavago | AD34: 0 | AE34: 4 | AF34: 3 | AG34: 3 | AH34: TRUE | AI34: TRUE | AJ34: TRUE | AK34: TRUE | AO34: 0 | AQ34: 3 | AR34: 3 | AS34: TRUE | AU34: TRUE | AV34: TRUE | AY34: ='MDA1'!M34 -> 0 | AZ34: ='T1'!O34 -> 8878 | BA34: ='T2'!M34 -> 0 | BD34: =DISTRICT!H33:H34 -> 0 | BE34: =DISTRICT!X34 -> 8878 | BF34: =DISTRICT!AH34 -> 8878 | BI34: 2 | BJ34: 1 | BK34: FALSE | BL34: TRUE | BM34: Mavago | BN34: TRUE
A35: =IF(INTRO!$E$34<>0,INTRO!$E$34,"") -> Mozambique | B35: Niassa | C35: Mecanhelas | D35: 325692.6013 | E35: =IF(INTRO!$E$48="","",ROUND($D35*INTRO!$E$48,0)) -> 37780 | F35: =IF(INTRO!$E$49="","",ROUND($D35*INTRO!$E$49,0)) -> 91194 | G35: =IF(INTRO!$E$50="","",ROUND($D35*INTRO!$E$50,0)) -> 187273 | H35: 1 | I35: 4 | J35: 3 | K35: 3 | L35: =IF(INTRO!$E$38="Endemic", IF($H35>0, IF($H35=4,"Unknown", IF($H35=99,"Stopped", $D35)), 0),"Not required") -> 325692.6013 | M35: =IF(INTRO!$E$40="Endemic", IF($I35>0, IF($I35=4,"Unknown",IF($I35=99,"Stopped", $D35)), 0),"Not required") -> Not required | N35: =IF(INTRO!$E$42="Endemic", IF(AND($J35>1,$J35<5), IF($J35=4, "Unknown", E35+F35), 0),"Not required") -> 128974 | O35: =IF(INTRO!$E$44="Endemic", IF(AND($K35>0,$K35<5), IF($K35=4,"Unknown", IF($K35=1, $F35*0.33, IF($K35=2, $F35*0.5+$G35*0.2, SUM(F35:G35)))), 0),"Not required") -> 278467 | P35: 1 | R35: 1 | S35: 1 | T35: MDA1 (IVM+ALB) | U35: T2 (PZQ) | V35: MDA 1 | W35: T1 | X35: 33203 | Y35: Mecanhelas | AA35: TRUE | AB35: Niassa | AC35: Mecanhelas | AD35: 1 | AE35: 4 | AF35: 3 | AG35: 3 | AH35: TRUE | AI35: TRUE | AJ35: TRUE | AK35: TRUE | AO35: 1 | AQ35: 3 | AR35: 3 | AS35: TRUE | AU35: TRUE | AV35: TRUE | AY35: ='MDA1'!M35 -> 271416 | AZ35: ='T1'!O35 -> 0 | BA35: ='T2'!M35 -> 90612 | BD35: =DISTRICT!H34:H35 -> 271416 | BE35: =DISTRICT!X35 -> 91194 | BF35: =DISTRICT!AH35 -> 90612 | BI35: 2 | BJ35: 1 | BK35: FALSE | BL35: TRUE | BM35: Mecanhelas | BN35: TRUE
A36: =IF(INTRO!$E$34<>0,INTRO!$E$34,"") -> Mozambique | B36: Niassa | C36: Mecula | D36: 19086.02075 | E36: =IF(INTRO!$E$48="","",ROUND($D36*INTRO!$E$48,0)) -> 2214 | F36: =IF(INTRO!$E$49="","",ROUND($D36*INTRO!$E$49,0)) -> 5344 | G36: =IF(INTRO!$E$50="","",ROUND($D36*INTRO!$E$50,0)) -> 10974 | H36: 99 | I36: 4 | J36: 2 | K36: 3 | L36: =IF(INTRO!$E$38="Endemic", IF($H36>0, IF($H36=4,"Unknown", IF($H36=99,"Stopped", $D36)), 0),"Not required") -> Stopped | M36: =IF(INTRO!$E$40="Endemic", IF($I36>0, IF($I36=4,"Unknown",IF($I36=99,"Stopped", $D36)), 0),"Not required") -> Not required | N36: =IF(INTRO!$E$42="Endemic", IF(AND($J36>1,$J36<5), IF($J36=4, "Unknown", E36+F36), 0),"Not required") -> 7558 | O36: =IF(INTRO!$E$44="Endemic", IF(AND($K36>0,$K36<5), IF($K36=4,"Unknown", IF($K36=1, $F36*0.33, IF($K36=2, $F36*0.5+$G36*0.2, SUM(F36:G36)))), 0),"Not required") -> 16318 | P36: 0 | R36: 1 | S36: 1 | T36: T1 (PZQ+ALB/MBD) | W36: T1 | X36: 33204 | Y36: Mecula | AA36: TRUE | AB36: Niassa | AC36: Mecula | AD36: 99 | AE36: 4 | AF36: 2 | AG36: 3 | AH36: TRUE | AI36: TRUE | AJ36: TRUE | AK36: TRUE | AO36: 1 | AQ36: 2 | AR36: 3 | AS36: FALSE | AU36: TRUE | AV36: TRUE | AY36: ='MDA1'!M36 -> 0 | AZ36: ='T1'!O36 -> 5009 | BA36: ='T2'!M36 -> 0 | BD36: =DISTRICT!H35:H36 -> 0 | BE36: =DISTRICT!X36 -> 5009 | BF36: =DISTRICT!AH36 -> 5009 | BI36: 1 | BJ36: 1 | BK36: TRUE | BL36: TRUE | BM36: Mecula | BN36: TRUE
A37: =IF(INTRO!$E$34<>0,INTRO!$E$34,"") -> Mozambique | B37: Niassa | C37: Metarica | D37: 82272.50293 | E37: =IF(INTRO!$E$48="","",ROUND($D37*INTRO!$E$48,0)) -> 9544 | F37: =IF(INTRO!$E$49="","",ROUND($D37*INTRO!$E$49,0)) -> 23036 | G37: =IF(INTRO!$E$50="","",ROUND($D37*INTRO!$E$50,0)) -> 47307 | H37: 1 | I37: 4 | J37: 3 | K37: 3 | L37: =IF(INTRO!$E$38="Endemic", IF($H37>0, IF($H37=4,"Unknown", IF($H37=99,"Stopped", $D37)), 0),"Not required") -> 82272.50293 | M37: =IF(INTRO!$E$40="Endemic", IF($I37>0, IF($I37=4,"Unknown",IF($I37=99,"Stopped", $D37)), 0),"Not required") -> Not required | N37: =IF(INTRO!$E$42="Endemic", IF(AND($J37>1,$J37<5), IF($J37=4, "Unknown", E37+F37), 0),"Not required") -> 32580 | O37: =IF(INTRO!$E$44="Endemic", IF(AND($K37>0,$K37<5), IF($K37=4,"Unknown", IF($K37=1, $F37*0.33, IF($K37=2, $F37*0.5+$G37*0.2, SUM(F37:G37)))), 0),"Not required") -> 70343 | P37: 1 | R37: 1 | S37: 1 | T37: MDA1 (IVM+ALB) | U37: T2 (PZQ) | V37: MDA 1 | W37: T1 | X37: 33205 | Y37: Metarica | AA37: TRUE | AB37: Niassa | AC37: Metarica | AD37: 99 | AE37: 4 | AF37: 3 | AG37: 3 | AH37: FALSE | AI37: TRUE | AJ37: TRUE | AK37: TRUE | AO37: 1 | AQ37: 3 | AR37: 3 | AS37: TRUE | AU37: TRUE | AV37: TRUE | AY37: ='MDA1'!M37 -> 56526 | AZ37: ='T1'!O37 -> 0 | BA37: ='T2'!M37 -> 29321 | BD37: =DISTRICT!H36:H37 -> 56526 | BE37: =DISTRICT!X37 -> 23036 | BF37: =DISTRICT!AH37 -> 23036 | BI37: 2 | BJ37: 1 | BK37: FALSE | BL37: TRUE | BM37: Metarica | BN37: TRUE
A38: =IF(INTRO!$E$34<>0,INTRO!$E$34,"") -> Mozambique | B38: Niassa | C38: Muembe | D38: 41945.34365 | E38: =IF(INTRO!$E$48="","",ROUND($D38*INTRO!$E$48,0)) -> 4866 | F38: =IF(INTRO!$E$49="","",ROUND($D38*INTRO!$E$49,0)) -> 11745 | G38: =IF(INTRO!$E$50="","",ROUND($D38*INTRO!$E$50,0)) -> 24119 | H38: 0 | I38: 4 | J38: 2 | K38: 2 | L38: =IF(INTRO!$E$38="Endemic", IF($H38>0, IF($H38=4,"Unknown", IF($H38=99,"Stopped", $D38)), 0),"Not required") -> 0 | M38: =IF(INTRO!$E$40="Endemic", IF($I38>0, IF($I38=4,"Unknown",IF($I38=99,"Stopped", $D38)), 0),"Not required") -> Not required | N38: =IF(INTRO!$E$42="Endemic", IF(AND($J38>1,$J38<5), IF($J38=4, "Unknown", E38+F38), 0),"Not required") -> 16611 | O38: =IF(INTRO!$E$44="Endemic", IF(AND($K38>0,$K38<5), IF($K38=4,"Unknown", IF($K38=1, $F38*0.33, IF($K38=2, $F38*0.5+$G38*0.2, SUM(F38:G38)))), 0),"Not required") -> 10696.3 | P38: 0 | R38: 1 | S38: 1 | T38: T1 (PZQ+ALB/MBD) | W38: T1 | X38: 33206 | Y38: Muembe | AA38: TRUE | AB38: Niassa | AC38: Muembe | AD38: 0 | AE38: 4 | AF38: 2 | AG38: 2 | AH38: TRUE | AI38: TRUE | AJ38: TRUE | AK38: TRUE | AO38: 0 | AQ38: 2 | AR38: 2 | AS38: TRUE | AU38: TRUE | AV38: TRUE | AY38: ='MDA1'!M38 -> 0 | AZ38: ='T1'!O38 -> 11341 | BA38: ='T2'!M38 -> 0 | BD38: =DISTRICT!H37:H38 -> 0 | BE38: =DISTRICT!X38 -> 11341 | BF38: =DISTRICT!AH38 -> 5872.5 | BI38: 1 | BJ38: 0 | BK38: TRUE | BL38: FALSE | BM38: Muembe | BN38: TRUE
A39: =IF(INTRO!$E$34<>0,INTRO!$E$34,"") -> Mozambique | B39: Niassa | C39: N'Gaúma | D39: 119703.7382 | E39: =IF(INTRO!$E$48="","",ROUND($D39*INTRO!$E$48,0)) -> 13886 | F39: =IF(INTRO!$E$49="","",ROUND($D39*INTRO!$E$49,0)) -> 33517 | G39: =IF(INTRO!$E$50="","",ROUND($D39*INTRO!$E$50,0)) -> 68830 | H39: 0 | I39: 4 | J39: 3 | K39: 2 | L39: =IF(INTRO!$E$38="Endemic", IF($H39>0, IF($H39=4,"Unknown", IF($H39=99,"Stopped", $D39)), 0),"Not required") -> 0 | M39: =IF(INTRO!$E$40="Endemic", IF($I39>0, IF($I39=4,"Unknown",IF($I39=99,"Stopped", $D39)), 0),"Not required") -> Not required | N39: =IF(INTRO!$E$42="Endemic", IF(AND($J39>1,$J39<5), IF($J39=4, "Unknown", E39+F39), 0),"Not required") -> 47403 | O39: =IF(INTRO!$E$44="Endemic", IF(AND($K39>0,$K39<5), IF($K39=4,"Unknown", IF($K39=1, $F39*0.33, IF($K39=2, $F39*0.5+$G39*0.2, SUM(F39:G39)))), 0),"Not required") -> 30524.5 | P39: 0 | R39: 1 | S39: 1 | T39: T1 (PZQ+ALB/MBD) | V39: T1 | W39: T3 | X39: 33207 | Y39: N'Gaúma | AA39: TRUE | AB39: Niassa | AC39: N'Gaúma | AD39: 0 | AE39: 4 | AF39: 3 | AG39: 2 | AH39: TRUE | AI39: TRUE | AJ39: TRUE | AK39: TRUE | AO39: 0 | AQ39: 3 | AR39: 2 | AS39: TRUE | AU39: TRUE | AV39: TRUE | AY39: ='MDA1'!M39 -> 0 | AZ39: ='T1'!O39 -> 32556 | BA39: ='T2'!M39 -> 0 | BD39: =DISTRICT!H38:H39 -> 0 | BE39: =DISTRICT!X39 -> 32556 | BF39: =DISTRICT!AH39 -> 16758.5 | BI39: 2 | BJ39: 0 | BK39: FALSE | BL39: FALSE | BM39: N'Gaúma | BN39: TRUE
A40: =IF(INTRO!$E$34<>0,INTRO!$E$34,"") -> Mozambique | B40: Niassa | C40: Nipepe | D40: 41329.44303 | E40: =IF(INTRO!$E$48="","",ROUND($D40*INTRO!$E$48,0)) -> 4794 | F40: =IF(INTRO!$E$49="","",ROUND($D40*INTRO!$E$49,0)) -> 11572 | G40: =IF(INTRO!$E$50="","",ROUND($D40*INTRO!$E$50,0)) -> 23764 | H40: 1 | I40: 4 | J40: 3 | K40: 3 | L40: =IF(INTRO!$E$38="Endemic", IF($H40>0, IF($H40=4,"Unknown", IF($H40=99,"Stopped", $D40)), 0),"Not required") -> 41329.44303 | M40: =IF(INTRO!$E$40="Endemic", IF($I40>0, IF($I40=4,"Unknown",IF($I40=99,"Stopped", $D40)), 0),"Not required") -> Not required | N40: =IF(INTRO!$E$42="Endemic", IF(AND($J40>1,$J40<5), IF($J40=4, "Unknown", E40+F40), 0),"Not required") -> 16366 | O40: =IF(INTRO!$E$44="Endemic", IF(AND($K40>0,$K40<5), IF($K40=4,"Unknown", IF($K40=1, $F40*0.33, IF($K40=2, $F40*0.5+$G40*0.2, SUM(F40:G40)))), 0),"Not required") -> 35336 | P40: 1 | R40: 1 | S40: 1 | T40: MDA1 (IVM+ALB) | V40: MDA 1 | W40: T1 | X40: 33208 | Y40: Nipepe | AA40: TRUE | AB40: Niassa | AC40: Nipepe | AD40: 99 | AE40: 4 | AF40: 3 | AG40: 3 | AH40: FALSE | AI40: TRUE | AJ40: TRUE | AK40: TRUE | AO40: 1 | AQ40: 3 | AR40: 3 | AS40: TRUE | AU40: TRUE | AV40: TRUE | AY40: ='MDA1'!M40 -> 32527 | AZ40: ='T1'!O40 -> 0 | BA40: ='T2'!M40 -> 0 | BD40: =DISTRICT!H39:H40 -> 32527 | BE40: =DISTRICT!X40 -> 11572 | BF40: =DISTRICT!AH40 -> 0 | BI40: 2 | BJ40: 1 | BK40: FALSE | BL40: TRUE | BM40: Nipepe | BN40: TRUE
A41: =IF(INTRO!$E$34<>0,INTRO!$E$34,"") -> Mozambique | B41: Niassa | C41: Sanga | D41: 78277.50273 | E41: =IF(INTRO!$E$48="","",ROUND($D41*INTRO!$E$48,0)) -> 9080 | F41: =IF(INTRO!$E$49="","",ROUND($D41*INTRO!$E$49,0)) -> 21918 | G41: =IF(INTRO!$E$50="","",ROUND($D41*INTRO!$E$50,0)) -> 45010 | H41: 0 | I41: 4 | J41: 2 | K41: 3 | L41: =IF(INTRO!$E$38="Endemic", IF($H41>0, IF($H41=4,"Unknown", IF($H41=99,"Stopped", $D41)), 0),"Not required") -> 0 | M41: =IF(INTRO!$E$40="Endemic", IF($I41>0, IF($I41=4,"Unknown",IF($I41=99,"Stopped", $D41)), 0),"Not required") -> Not required | N41: =IF(INTRO!$E$42="Endemic", IF(AND($J41>1,$J41<5), IF($J41=4, "Unknown", E41+F41), 0),"Not required") -> 30998 | O41: =IF(INTRO!$E$44="Endemic", IF(AND($K41>0,$K41<5), IF($K41=4,"Unknown", IF($K41=1, $F41*0.33, IF($K41=2, $F41*0.5+$G41*0.2, SUM(F41:G41)))), 0),"Not required") -> 66928 | P41: 0 | R41: 1 | S41: 1 | T41: T1 (PZQ+ALB/MBD) | W41: T1 | X41: 33209 | Y41: Sanga | AA41: TRUE | AB41: Niassa | AC41: Sanga | AD41: 0 | AE41: 4 | AF41: 2 | AG41: 3 | AH41: TRUE | AI41: TRUE | AJ41: TRUE | AK41: TRUE | AO41: 0 | AQ41: 2 | AR41: 3 | AS41: TRUE | AU41: TRUE | AV41: TRUE | AY41: ='MDA1'!M41 -> 0 | AZ41: ='T1'!O41 -> 18070 | BA41: ='T2'!M41 -> 0 | BD41: =DISTRICT!H40:H41 -> 0 | BE41: =DISTRICT!X41 -> 18070 | BF41: =DISTRICT!AH41 -> 18070 | BI41: 1 | BJ41: 1 | BK41: TRUE | BL41: TRUE | BM41: Sanga | BN41: TRUE
A42: =IF(INTRO!$E$34<>0,INTRO!$E$34,"") -> Mozambique | B42: Nampula | C42: Cid. Nampula | D42: 758047 | E42: =IF(INTRO!$E$48="","",ROUND($D42*INTRO!$E$48,0)) -> 87933 | F42: =IF(INTRO!$E$49="","",ROUND($D42*INTRO!$E$49,0)) -> 212253 | G42: =IF(INTRO!$E$50="","",ROUND($D42*INTRO!$E$50,0)) -> 435877 | H42: 1 | I42: 4 | J42: 3 | K42: 3 | L42: =IF(INTRO!$E$38="Endemic", IF($H42>0, IF($H42=4,"Unknown", IF($H42=99,"Stopped", $D42)), 0),"Not required") -> 758047 | M42: =IF(INTRO!$E$40="Endemic", IF($I42>0, IF($I42=4,"Unknown",IF($I42=99,"Stopped", $D42)), 0),"Not required") -> Not required | N42: =IF(INTRO!$E$42="Endemic", IF(AND($J42>1,$J42<5), IF($J42=4, "Unknown", E42+F42), 0),"Not required") -> 300186 | O42: =IF(INTRO!$E$44="Endemic", IF(AND($K42>0,$K42<5), IF($K42=4,"Unknown", IF($K42=1, $F42*0.33, IF($K42=2, $F42*0.5+$G42*0.2, SUM(F42:G42)))), 0),"Not required") -> 648130 | P42: 1 | R42: 2 | S42: 1 | T42: MDA1 (IVM+ALB) | U42: T1 (PZQ+ALB/MBD) | V42: MDA 1 | W42: T1 | X42: 33172 | Y42: Cid. Nampula | AA42: TRUE | AB42: Nampula | AC42: Cid. Nampula | AD42: 1 | AE42: 4 | AF42: 3 | AG42: 3 | AH42: TRUE | AI42: TRUE | AJ42: TRUE | AK42: TRUE | AO42: 1 | AQ42: 3 | AR42: 3 | AS42: TRUE | AU42: TRUE | AV42: TRUE | AY42: ='MDA1'!M42 -> 688180 | AZ42: ='T1'!O42 -> 171493 | BA42: ='T2'!M42 -> 0 | BD42: =DISTRICT!H41:H42 -> 688180 | BE42: =DISTRICT!X42 -> 212253 | BF42: =DISTRICT!AH42 -> 171493 | BI42: 2 | BJ42: 1 | BK42: TRUE | BL42: TRUE | BM42: Cid. Nampula | BN42: TRUE
A43: =IF(INTRO!$E$34<>0,INTRO!$E$34,"") -> Mozambique | B43: Nampula | C43: Angoche | D43: 346694 | E43: =IF(INTRO!$E$48="","",ROUND($D43*INTRO!$E$48,0)) -> 40217 | F43: =IF(INTRO!$E$49="","",ROUND($D43*INTRO!$E$49,0)) -> 97074 | G43: =IF(INTRO!$E$50="","",ROUND($D43*INTRO!$E$50,0)) -> 199349 | H43: 1 | I43: 4 | J43: 3 | K43: 3 | L43: =IF(INTRO!$E$38="Endemic", IF($H43>0, IF($H43=4,"Unknown", IF($H43=99,"Stopped", $D43)), 0),"Not required") -> 346694 | M43: =IF(INTRO!$E$40="Endemic", IF($I43>0, IF($I43=4,"Unknown",IF($I43=99,"Stopped", $D43)), 0),"Not required") -> Not required | N43: =IF(INTRO!$E$42="Endemic", IF(AND($J43>1,$J43<5), IF($J43=4, "Unknown", E43+F43), 0),"Not required") -> 137291 | O43: =IF(INTRO!$E$44="Endemic", IF(AND($K43>0,$K43<5), IF($K43=4,"Unknown", IF($K43=1, $F43*0.33, IF($K43=2, $F43*0.5+$G43*0.2, SUM(F43:G43)))), 0),"Not required") -> 296423 | P43: 1 | R43: 2 | S43: 1 | T43: MDA1 (IVM+ALB) | U43: T1 (PZQ+ALB/MBD) | V43: MDA 1 | W43: T1 | X43: 33171 | Y43: Angoche | AA43: TRUE | AB43: Nampula | AC43: Angoche | AD43: 1 | AE43: 4 | AF43: 3 | AG43: 3 | AH43: TRUE | AI43: TRUE | AJ43: TRUE | AK43: TRUE | AO43: 1 | AQ43: 3 | AR43: 3 | AS43: TRUE | AU43: TRUE | AV43: TRUE | AY43: ='MDA1'!M43 -> 274391 | AZ43: ='T1'!O43 -> 78708 | BA43: ='T2'!M43 -> 0 | BD43: =DISTRICT!H42:H43 -> 274391 | BE43: =DISTRICT!X43 -> 97074 | BF43: =DISTRICT!AH43 -> 78708 | BI43: 2 | BJ43: 1 | BK43: TRUE | BL43: TRUE | BM43: Angoche | BN43: TRUE
A44: =IF(INTRO!$E$34<>0,INTRO!$E$34,"") -> Mozambique | B44: Nampula | C44: Erati | D44: 336592 | E44: =IF(INTRO!$E$48="","",ROUND($D44*INTRO!$E$48,0)) -> 39045 | F44: =IF(INTRO!$E$49="","",ROUND($D44*INTRO!$E$49,0)) -> 94246 | G44: =IF(INTRO!$E$50="","",ROUND($D44*INTRO!$E$50,0)) -> 193540 | H44: 1 | I44: 4 | J44: 3 | K44: 3 | L44: =IF(INTRO!$E$38="Endemic", IF($H44>0, IF($H44=4,"Unknown", IF($H44=99,"Stopped", $D44)), 0),"Not required") -> 336592 | M44: =IF(INTRO!$E$40="Endemic", IF($I44>0, IF($I44=4,"Unknown",IF($I44=99,"Stopped", $D44)), 0),"Not required") -> Not required | N44: =IF(INTRO!$E$42="Endemic", IF(AND($J44>1,$J44<5), IF($J44=4, "Unknown", E44+F44), 0),"Not required") -> 133291 | O44: =IF(INTRO!$E$44="Endemic", IF(AND($K44>0,$K44<5), IF($K44=4,"Unknown", IF($K44=1, $F44*0.33, IF($K44=2, $F44*0.5+$G44*0.2, SUM(F44:G44)))), 0),"Not required") -> 287786 | P44: 1 | R44: 2 | S44: 1 | T44: MDA1 (IVM+ALB) | U44: T1 (PZQ+ALB/MBD) | V44: MDA 1 | W44: T1 | X44: 33173 | Y44: Erati | AA44: TRUE | AB44: Nampula | AC44: Erati | AD44: 1 | AE44: 4 | AF44: 3 | AG44: 3 | AH44: TRUE | AI44: TRUE | AJ44: TRUE | AK44: TRUE | AO44: 1 | AQ44: 3 | AR44: 3 | AS44: TRUE | AU44: TRUE | AV44: TRUE | AY44: ='MDA1'!M44 -> 294487 | AZ44: ='T1'!O44 -> 71299 | BA44: ='T2'!M44 -> 0 | BD44: =DISTRICT!H43:H44 -> 294487 | BE44: =DISTRICT!X44 -> 94246 | BF44: =DISTRICT!AH44 -> 71299 | BI44: 2 | BJ44: 1 | BK44: TRUE | BL44: TRUE | BM44: Erati | BN44: TRUE
A45: =IF(INTRO!$E$34<>0,INTRO!$E$34,"") -> Mozambique | B45: Nampula | C45: Ilha Moc. | D45: 57969 | E45: =IF(INTRO!$E$48="","",ROUND($D45*INTRO!$E$48,0)) -> 6724 | F45: =IF(INTRO!$E$49="","",ROUND($D45*INTRO!$E$49,0)) -> 16231 | G45: =IF(INTRO!$E$50="","",ROUND($D45*INTRO!$E$50,0)) -> 33332 | H45: 1 | I45: 4 | J45: 3 | K45: 2 | L45: =IF(INTRO!$E$38="Endemic", IF($H45>0, IF($H45=4,"Unknown", IF($H45=99,"Stopped", $D45)), 0),"Not required") -> 57969 | M45: =IF(INTRO!$E$40="Endemic", IF($I45>0, IF($I45=4,"Unknown",IF($I45=99,"Stopped", $D45)), 0),"Not required") -> Not required | N45: =IF(INTRO!$E$42="Endemic", IF(AND($J45>1,$J45<5), IF($J45=4, "Unknown", E45+F45), 0),"Not required") -> 22955 | O45: =IF(INTRO!$E$44="Endemic", IF(AND($K45>0,$K45<5), IF($K45=4,"Unknown", IF($K45=1, $F45*0.33, IF($K45=2, $F45*0.5+$G45*0.2, SUM(F45:G45)))), 0),"Not required") -> 14781.9 | P45: 1 | R45: 1 | S45: 0 | T45: MDA1 (IVM+ALB) | V45: MDA 1 | W45: T1 | X45: 33174 | Y45: Ilha Moc. | AA45: TRUE | AB45: Nampula | AC45: Ilha Moc. | AD45: 1 | AE45: 4 | AF45: 3 | AG45: 2 | AH45: TRUE | AI45: TRUE | AJ45: TRUE | AK45: TRUE | AO45: 1 | AQ45: 3 | AR45: 2 | AS45: TRUE | AU45: TRUE | AV45: TRUE | AY45: ='MDA1'!M45 -> 51175 | AZ45: ='T1'!O45 -> 0 | BA45: ='T2'!M45 -> 0 | BD45: =DISTRICT!H44:H45 -> 51175 | BE45: =DISTRICT!X45 -> 16231 | BF45: =DISTRICT!AH45 -> 0 | BI45: 2 | BJ45: 0 | BK45: FALSE | BL45: TRUE | BM45: Ilha Moc. | BN45: TRUE
A46: =IF(INTRO!$E$34<>0,INTRO!$E$34,"") -> Mozambique | B46: Nampula | C46: Lalaua | D46: 92638 | E46: =IF(INTRO!$E$48="","",ROUND($D46*INTRO!$E$48,0)) -> 10746 | F46: =IF(INTRO!$E$49="","",ROUND($D46*INTRO!$E$49,0)) -> 25939 | G46: =IF(INTRO!$E$50="","",ROUND($D46*INTRO!$E$50,0)) -> 53267 | H46: 1 | I46: 4 | J46: 2 | K46: 3 | L46: =IF(INTRO!$E$38="Endemic", IF($H46>0, IF($H46=4,"Unknown", IF($H46=99,"Stopped", $D46)), 0),"Not required") -> 92638 | M46: =IF(INTRO!$E$40="Endemic", IF($I46>0, IF($I46=4,"Unknown",IF($I46=99,"Stopped", $D46)), 0),"Not required") -> Not required | N46: =IF(INTRO!$E$42="Endemic", IF(AND($J46>1,$J46<5), IF($J46=4, "Unknown", E46+F46), 0),"Not required") -> 36685 | O46: =IF(INTRO!$E$44="Endemic", IF(AND($K46>0,$K46<5), IF($K46=4,"Unknown", IF($K46=1, $F46*0.33, IF($K46=2, $F46*0.5+$G46*0.2, SUM(F46:G46)))), 0),"Not required") -> 79206 | P46: 1 | R46: 1 | S46: 1 | T46: MDA1 (IVM+ALB) | U46: T2 (PZQ) | V46: MDA 1 | W46: T2 | X46: 33175 | Y46: Lalaua | AA46: TRUE | AB46: Nampula | AC46: Lalaua | AD46: 1 | AE46: 4 | AF46: 2 | AG46: 3 | AH46: TRUE | AI46: TRUE | AJ46: TRUE | AK46: TRUE | AO46: 1 | AQ46: 2 | AR46: 3 | AS46: TRUE | AU46: TRUE | AV46: TRUE | AY46: ='MDA1'!M46 -> 80858 | AZ46: ='T1'!O46 -> 0 | BA46: ='T2'!M46 -> 23521 | BD46: =DISTRICT!H45:H46 -> 80858 | BE46: =DISTRICT!X46 -> 25939 | BF46: =DISTRICT!AH46 -> 23521 | BI46: 1 | BJ46: 1 | BK46: TRUE | BL46: TRUE | BM46: Lalaua | BN46: TRUE
A47: =IF(INTRO!$E$34<>0,INTRO!$E$34,"") -> Mozambique | B47: Nampula | C47: Larde | D47: 95395.37411 | E47: =IF(INTRO!$E$48="","",ROUND($D47*INTRO!$E$48,0)) -> 11066 | F47: =IF(INTRO!$E$49="","",ROUND($D47*INTRO!$E$49,0)) -> 26711 | G47: =IF(INTRO!$E$50="","",ROUND($D47*INTRO!$E$50,0)) -> 54852 | H47: 1 | I47: 4 | J47: 3 | K47: 3 | L47: =IF(INTRO!$E$38="Endemic", IF($H47>0, IF($H47=4,"Unknown", IF($H47=99,"Stopped", $D47)), 0),"Not required") -> 95395.37411 | M47: =IF(INTRO!$E$40="Endemic", IF($I47>0, IF($I47=4,"Unknown",IF($I47=99,"Stopped", $D47)), 0),"Not required") -> Not required | N47: =IF(INTRO!$E$42="Endemic", IF(AND($J47>1,$J47<5), IF($J47=4, "Unknown", E47+F47), 0),"Not required") -> 37777 | O47: =IF(INTRO!$E$44="Endemic", IF(AND($K47>0,$K47<5), IF($K47=4,"Unknown", IF($K47=1, $F47*0.33, IF($K47=2, $F47*0.5+$G47*0.2, SUM(F47:G47)))), 0),"Not required") -> 81563 | P47: 1 | R47: 2 | S47: 1 | T47: MDA1 (IVM+ALB) | U47: T1 (PZQ+ALB/MBD) | V47: MDA 1 | W47: T1 | X47: 33176 | Y47: Larde | AA47: TRUE | AB47: Nampula | AC47: Larde | AD47: 1 | AE47: 4 | AF47: 3 | AG47: 3 | AH47: TRUE | AI47: TRUE | AJ47: TRUE | AK47: TRUE | AO47: 1 | AQ47: 3 | AR47: 3 | AS47: TRUE | AU47: TRUE | AV47: TRUE | AY47: ='MDA1'!M47 -> 83803 | AZ47: ='T1'!O47 -> 23671 | BA47: ='T2'!M47 -> 0 | BD47: =DISTRICT!H46:H47 -> 83803 | BE47: =DISTRICT!X47 -> 26711 | BF47: =DISTRICT!AH47 -> 23671 | BI47: 2 | BJ47: 1 | BK47: TRUE | BL47: TRUE | BM47: Larde | BN47: TRUE
A48: =IF(INTRO!$E$34<>0,INTRO!$E$34,"") -> Mozambique | B48: Nampula | C48: Liupo | D48: 88360 | E48: =IF(INTRO!$E$48="","",ROUND($D48*INTRO!$E$48,0)) -> 10250 | F48: =IF(INTRO!$E$49="","",ROUND($D48*INTRO!$E$49,0)) -> 24741 | G48: =IF(INTRO!$E$50="","",ROUND($D48*INTRO!$E$50,0)) -> 50807 | H48: 1 | I48: 4 | J48: 3 | K48: 3 | L48: =IF(INTRO!$E$38="Endemic", IF($H48>0, IF($H48=4,"Unknown", IF($H48=99,"Stopped", $D48)), 0),"Not required") -> 88360 | M48: =IF(INTRO!$E$40="Endemic", IF($I48>0, IF($I48=4,"Unknown",IF($I48=99,"Stopped", $D48)), 0),"Not required") -> Not required | N48: =IF(INTRO!$E$42="Endemic", IF(AND($J48>1,$J48<5), IF($J48=4, "Unknown", E48+F48), 0),"Not required") -> 34991 | O48: =IF(INTRO!$E$44="Endemic", IF(AND($K48>0,$K48<5), IF($K48=4,"Unknown", IF($K48=1, $F48*0.33, IF($K48=2, $F48*0.5+$G48*0.2, SUM(F48:G48)))), 0),"Not required") -> 75548 | P48: 1 | R48: 2 | S48: 1 | T48: MDA1 (IVM+ALB) | U48: T1 (PZQ+ALB/MBD) | V48: MDA 1 | W48: T1 | X48: 33177 | Y48: Liupo | AA48: TRUE | AB48: Nampula | AC48: Liupo | AD48: 1 | AE48: 4 | AF48: 3 | AG48: 3 | AH48: TRUE | AI48: TRUE | AJ48: TRUE | AK48: TRUE | AO48: 1 | AQ48: 3 | AR48: 3 | AS48: TRUE | AU48: TRUE | AV48: TRUE | AY48: ='MDA1'!M48 -> 73763 | AZ48: ='T1'!O48 -> 20543 | BA48: ='T2'!M48 -> 0 | BD48: =DISTRICT!H47:H48 -> 73763 | BE48: =DISTRICT!X48 -> 24741 | BF48: =DISTRICT!AH48 -> 20543 | BI48: 2 | BJ48: 1 | BK48: TRUE | BL48: TRUE | BM48: Liupo | BN48: TRUE
A49: =IF(INTRO!$E$34<>0,INTRO!$E$34,"") -> Mozambique | B49: Nampula | C49: Malema | D49: 205924 | E49: =IF(INTRO!$E$48="","",ROUND($D49*INTRO!$E$48,0)) -> 23887 | F49: =IF(INTRO!$E$49="","",ROUND($D49*INTRO!$E$49,0)) -> 57659 | G49: =IF(INTRO!$E$50="","",ROUND($D49*INTRO!$E$50,0)) -> 118406 | H49: 1 | I49: 4 | J49: 3 | K49: 3 | L49: =IF(INTRO!$E$38="Endemic", IF($H49>0, IF($H49=4,"Unknown", IF($H49=99,"Stopped", $D49)), 0),"Not required") -> 205924 | M49: =IF(INTRO!$E$40="Endemic", IF($I49>0, IF($I49=4,"Unknown",IF($I49=99,"Stopped", $D49)), 0),"Not required") -> Not required | N49: =IF(INTRO!$E$42="Endemic", IF(AND($J49>1,$J49<5), IF($J49=4, "Unknown", E49+F49), 0),"Not required") -> 81546 | O49: =IF(INTRO!$E$44="Endemic", IF(AND($K49>0,$K49<5), IF($K49=4,"Unknown", IF($K49=1, $F49*0.33, IF($K49=2, $F49*0.5+$G49*0.2, SUM(F49:G49)))), 0),"Not required") -> 176065 | P49: 1 | R49: 2 | S49: 1 | T49: MDA1 (IVM+ALB) | U49: T1 (PZQ+ALB/MBD) | V49: MDA 1 | W49: T1 | X49: 33178 | Y49: Malema | AA49: TRUE | AB49: Nampula | AC49: Malema | AD49: 1 | AE49: 4 | AF49: 3 | AG49: 3 | AH49: TRUE | AI49: TRUE | AJ49: TRUE | AK49: TRUE | AO49: 1 | AQ49: 3 | AR49: 3 | AS49: TRUE | AU49: TRUE | AV49: TRUE | AY49: ='MDA1'!M49 -> 182813 | AZ49: ='T1'!O49 -> 56051 | BA49: ='T2'!M49 -> 0 | BD49: =DISTRICT!H48:H49 -> 182813 | BE49: =DISTRICT!X49 -> 57659 | BF49: =DISTRICT!AH49 -> 56051 | BI49: 2 | BJ49: 1 | BK49: TRUE | BL49: TRUE | BM49: Malema | BN49: TRUE
A50: =IF(INTRO!$E$34<>0,INTRO!$E$34,"") -> Mozambique | B50: Nampula | C50: Meconta | D50: 206462 | E50: =IF(INTRO!$E$48="","",ROUND($D50*INTRO!$E$48,0)) -> 23950 | F50: =IF(INTRO!$E$49="","",ROUND($D50*INTRO!$E$49,0)) -> 57809 | G50: =IF(INTRO!$E$50="","",ROUND($D50*INTRO!$E$50,0)) -> 118716 | H50: 1 | I50: 4 | J50: 3 | K50: 3 | L50: =IF(INTRO!$E$38="Endemic", IF($H50>0, IF($H50=4,"Unknown", IF($H50=99,"Stopped", $D50)), 0),"Not required") -> 206462 | M50: =IF(INTRO!$E$40="Endemic", IF($I50>0, IF($I50=4,"Unknown",IF($I50=99,"Stopped", $D50)), 0),"Not required") -> Not required | N50: =IF(INTRO!$E$42="Endemic", IF(AND($J50>1,$J50<5), IF($J50=4, "Unknown", E50+F50), 0),"Not required") -> 81759 | O50: =IF(INTRO!$E$44="Endemic", IF(AND($K50>0,$K50<5), IF($K50=4,"Unknown", IF($K50=1, $F50*0.33, IF($K50=2, $F50*0.5+$G50*0.2, SUM(F50:G50)))), 0),"Not required") -> 176525 | P50: 1 | R50: 2 | S50: 1 | T50: MDA1 (IVM+ALB) | U50: T1 (PZQ+ALB/MBD) | V50: MDA 1 | W50: T1 | X50: 33179 | Y50: Meconta | AA50: TRUE | AB50: Nampula | AC50: Meconta | AD50: 1 | AE50: 4 | AF50: 3 | AG50: 3 | AH50: TRUE | AI50: TRUE | AJ50: TRUE | AK50: TRUE | AO50: 1 | AQ50: 3 | AR50: 3 | AS50: TRUE | AU50: TRUE | AV50: TRUE | AY50: ='MDA1'!M50 -> 169880 | AZ50: ='T1'!O50 -> 48249 | BA50: ='T2'!M50 -> 0 | BD50: =DISTRICT!H49:H50 -> 169880 | BE50: =DISTRICT!X50 -> 57809 | BF50: =DISTRICT!AH50 -> 48249 | BI50: 2 | BJ50: 1 | BK50: TRUE | BL50: TRUE | BM50: Meconta | BN50: TRUE
A51: =IF(INTRO!$E$34<>0,INTRO!$E$34,"") -> Mozambique | B51: Nampula | C51: Mecuburi | D51: 195250 | E51: =IF(INTRO!$E$48="","",ROUND($D51*INTRO!$E$48,0)) -> 22649 | F51: =IF(INTRO!$E$49="","",ROUND($D51*INTRO!$E$49,0)) -> 54670 | G51: =IF(INTRO!$E$50="","",ROUND($D51*INTRO!$E$50,0)) -> 112269 | H51: 1 | I51: 4 | J51: 3 | K51: 3 | L51: =IF(INTRO!$E$38="Endemic", IF($H51>0, IF($H51=4,"Unknown", IF($H51=99,"Stopped", $D51)), 0),"Not required") -> 195250 | M51: =IF(INTRO!$E$40="Endemic", IF($I51>0, IF($I51=4,"Unknown",IF($I51=99,"Stopped", $D51)), 0),"Not required") -> Not required | N51: =IF(INTRO!$E$42="Endemic", IF(AND($J51>1,$J51<5), IF($J51=4, "Unknown", E51+F51), 0),"Not required") -> 77319 | O51: =IF(INTRO!$E$44="Endemic", IF(AND($K51>0,$K51<5), IF($K51=4,"Unknown", IF($K51=1, $F51*0.33, IF($K51=2, $F51*0.5+$G51*0.2, SUM(F51:G51)))), 0),"Not required") -> 166939 | P51: 1 | R51: 2 | S51: 1 | T51: MDA1 (IVM+ALB) | U51: T1 (PZQ+ALB/MBD) | V51: MDA 1 | W51: T1 | X51: 33180 | Y51: Mecuburi | AA51: TRUE | AB51: Nampula | AC51: Mecuburi | AD51: 1 | AE51: 4 | AF51: 3 | AG51: 3 | AH51: TRUE | AI51: TRUE | AJ51: TRUE | AK51: TRUE | AO51: 1 | AQ51: 3 | AR51: 3 | AS51: TRUE | AU51: TRUE | AV51: TRUE | AY51: ='MDA1'!M51 -> 162135 | AZ51: ='T1'!O51 -> 44162 | BA51: ='T2'!M51 -> 0 | BD51: =DISTRICT!H50:H51 -> 162135 | BE51: =DISTRICT!X51 -> 54670 | BF51: =DISTRICT!AH51 -> 44162 | BI51: 2 | BJ51: 1 | BK51: TRUE | BL51: TRUE | BM51: Mecuburi | BN51: TRUE
A52: =IF(INTRO!$E$34<>0,INTRO!$E$34,"") -> Mozambique | B52: Nampula | C52: Memba | D52: 274409 | E52: =IF(INTRO!$E$48="","",ROUND($D52*INTRO!$E$48,0)) -> 31831 | F52: =IF(INTRO!$E$49="","",ROUND($D52*INTRO!$E$49,0)) -> 76835 | G52: =IF(INTRO!$E$50="","",ROUND($D52*INTRO!$E$50,0)) -> 157785 | H52: 1 | I52: 4 | J52: 3 | K52: 3 | L52: =IF(INTRO!$E$38="Endemic", IF($H52>0, IF($H52=4,"Unknown", IF($H52=99,"Stopped", $D52)), 0),"Not required") -> 274409 | M52: =IF(INTRO!$E$40="Endemic", IF($I52>0, IF($I52=4,"Unknown",IF($I52=99,"Stopped", $D52)), 0),"Not required") -> Not required | N52: =IF(INTRO!$E$42="Endemic", IF(AND($J52>1,$J52<5), IF($J52=4, "Unknown", E52+F52), 0),"Not required") -> 108666 | O52: =IF(INTRO!$E$44="Endemic", IF(AND($K52>0,$K52<5), IF($K52=4,"Unknown", IF($K52=1, $F52*0.33, IF($K52=2, $F52*0.5+$G52*0.2, SUM(F52:G52)))), 0),"Not required") -> 234620 | P52: 1 | R52: 2 | S52: 1 | T52: MDA1 (IVM+ALB) | U52: T1 (PZQ+ALB/MBD) | V52: MDA 1 | W52: T1 | X52: 33181 | Y52: Memba | AA52: TRUE | AB52: Nampula | AC52: Memba | AD52: 1 | AE52: 4 | AF52: 3 | AG52: 3 | AH52: TRUE | AI52: TRUE | AJ52: TRUE | AK52: TRUE | AO52: 1 | AQ52: 3 | AR52: 3 | AS52: TRUE | AU52: TRUE | AV52: TRUE | AY52: ='MDA1'!M52 -> 235848 | AZ52: ='T1'!O52 -> 63362 | BA52: ='T2'!M52 -> 0 | BD52: =DISTRICT!H51:H52 -> 235848 | BE52: =DISTRICT!X52 -> 76835 | BF52: =DISTRICT!AH52 -> 63362 | BI52: 2 | BJ52: 1 | BK52: TRUE | BL52: TRUE | BM52: Memba | BN52: TRUE
A53: =IF(INTRO!$E$34<>0,INTRO!$E$34,"") -> Mozambique | B53: Nampula | C53: Mogincual | D53: 91661.91874 | E53: =IF(INTRO!$E$48="","",ROUND($D53*INTRO!$E$48,0)) -> 10633 | F53: =IF(INTRO!$E$49="","",ROUND($D53*INTRO!$E$49,0)) -> 25665 | G53: =IF(INTRO!$E$50="","",ROUND($D53*INTRO!$E$50,0)) -> 52706 | H53: 1 | I53: 4 | J53: 3 | K53: 3 | L53: =IF(INTRO!$E$38="Endemic", IF($H53>0, IF($H53=4,"Unknown", IF($H53=99,"Stopped", $D53)), 0),"Not required") -> 91661.91874 | M53: =IF(INTRO!$E$40="Endemic", IF($I53>0, IF($I53=4,"Unknown",IF($I53=99,"Stopped", $D53)), 0),"Not required") -> Not required | N53: =IF(INTRO!$E$42="Endemic", IF(AND($J53>1,$J53<5), IF($J53=4, "Unknown", E53+F53), 0),"Not required") -> 36298 | O53: =IF(INTRO!$E$44="Endemic", IF(AND($K53>0,$K53<5), IF($K53=4,"Unknown", IF($K53=1, $F53*0.33, IF($K53=2, $F53*0.5+$G53*0.2, SUM(F53:G53)))), 0),"Not required") -> 78371 | P53: 1 | R53: 2 | S53: 1 | T53: MDA1 (IVM+ALB) | U53: T1 (PZQ+ALB/MBD) | V53: MDA 1 | W53: T1 | X53: 33182 | Y53: Mogincual | AA53: TRUE | AB53: Nampula | AC53: Mogincual | AD53: 1 | AE53: 4 | AF53: 3 | AG53: 3 | AH53: TRUE | AI53: TRUE | AJ53: TRUE | AK53: TRUE | AO53: 1 | AQ53: 3 | AR53: 3 | AS53: TRUE | AU53: TRUE | AV53: TRUE | AY53: ='MDA1'!M53 -> 80070 | AZ53: ='T1'!O53 -> 24230 | BA53: ='T2'!M53 -> 0 | BD53: =DISTRICT!H52:H53 -> 80070 | BE53: =DISTRICT!X53 -> 25665 | BF53: =DISTRICT!AH53 -> 24230 | BI53: 2 | BJ53: 1 | BK53: TRUE | BL53: TRUE | BM53: Mogincual | BN53: TRUE
A54: =IF(INTRO!$E$34<>0,INTRO!$E$34,"") -> Mozambique | B54: Nampula | C54: Mogovolas | D54: 554054.0562 | E54: =IF(INTRO!$E$48="","",ROUND($D54*INTRO!$E$48,0)) -> 64270 | F54: =IF(INTRO!$E$49="","",ROUND($D54*INTRO!$E$49,0)) -> 155135 | G54: =IF(INTRO!$E$50="","",ROUND($D54*INTRO!$E$50,0)) -> 318581 | H54: 1 | I54: 4 | J54: 3 | K54: 3 | L54: =IF(INTRO!$E$38="Endemic", IF($H54>0, IF($H54=4,"Unknown", IF($H54=99,"Stopped", $D54)), 0),"Not required") -> 554054.0562 | M54: =IF(INTRO!$E$40="Endemic", IF($I54>0, IF($I54=4,"Unknown",IF($I54=99,"Stopped", $D54)), 0),"Not required") -> Not required | N54: =IF(INTRO!$E$42="Endemic", IF(AND($J54>1,$J54<5), IF($J54=4, "Unknown", E54+F54), 0),"Not required") -> 219405 | O54: =IF(INTRO!$E$44="Endemic", IF(AND($K54>0,$K54<5), IF($K54=4,"Unknown", IF($K54=1, $F54*0.33, IF($K54=2, $F54*0.5+$G54*0.2, SUM(F54:G54)))), 0),"Not required") -> 473716 | P54: 1 | R54: 2 | S54: 1 | T54: MDA1 (IVM+ALB) | U54: T1 (PZQ+ALB/MBD) | V54: MDA 1 | W54: T1 | X54: 33183 | Y54: Mogovolas | AA54: TRUE | AB54: Nampula | AC54: Mogovolas | AD54: 1 | AE54: 4 | AF54: 3 | AG54: 3 | AH54: TRUE | AI54: TRUE | AJ54: TRUE | AK54: TRUE | AO54: 1 | AQ54: 3 | AR54: 3 | AS54: TRUE | AU54: TRUE | AV54: TRUE | AY54: ='MDA1'!M54 -> 464824 | AZ54: ='T1'!O54 -> 128218 | BA54: ='T2'!M54 -> 0 | BD54: =DISTRICT!H53:H54 -> 464824 | BE54: =DISTRICT!X54 -> 155135 | BF54: =DISTRICT!AH54 -> 128218 | BI54: 2 | BJ54: 1 | BK54: TRUE | BL54: TRUE | BM54: Mogovolas | BN54: TRUE
A55: =IF(INTRO!$E$34<>0,INTRO!$E$34,"") -> Mozambique | B55: Nampula | C55: Moma | D55: 334955.1127 | E55: =IF(INTRO!$E$48="","",ROUND($D55*INTRO!$E$48,0)) -> 38855 | F55: =IF(INTRO!$E$49="","",ROUND($D55*INTRO!$E$49,0)) -> 93787 | G55: =IF(INTRO!$E$50="","",ROUND($D55*INTRO!$E$50,0)) -> 192599 | H55: 1 | I55: 4 | J55: 3 | K55: 3 | L55: =IF(INTRO!$E$38="Endemic", IF($H55>0, IF($H55=4,"Unknown", IF($H55=99,"Stopped", $D55)), 0),"Not required") -> 334955.1127 | M55: =IF(INTRO!$E$40="Endemic", IF($I55>0, IF($I55=4,"Unknown",IF($I55=99,"Stopped", $D55)), 0),"Not required") -> Not required | N55: =IF(INTRO!$E$42="Endemic", IF(AND($J55>1,$J55<5), IF($J55=4, "Unknown", E55+F55), 0),"Not required") -> 132642 | O55: =IF(INTRO!$E$44="Endemic", IF(AND($K55>0,$K55<5), IF($K55=4,"Unknown", IF($K55=1, $F55*0.33, IF($K55=2, $F55*0.5+$G55*0.2, SUM(F55:G55)))), 0),"Not required") -> 286386 | P55: 1 | R55: 2 | S55: 1 | T55: MDA1 (IVM+ALB) | U55: T1 (PZQ+ALB/MBD) | V55: MDA 1 | W55: T1 | X55: 33184 | Y55: Moma | AA55: TRUE | AB55: Nampula | AC55: Moma | AD55: 1 | AE55: 4 | AF55: 3 | AG55: 3 | AH55: TRUE | AI55: TRUE | AJ55: TRUE | AK55: TRUE | AO55: 1 | AQ55: 3 | AR55: 3 | AS55: TRUE | AU55: TRUE | AV55: TRUE | AY55: ='MDA1'!M55 -> 290367 | AZ55: ='T1'!O55 -> 83815 | BA55: ='T2'!M55 -> 0 | BD55: =DISTRICT!H54:H55 -> 290367 | BE55: =DISTRICT!X55 -> 93787 | BF55: =DISTRICT!AH55 -> 83815 | BI55: 2 | BJ55: 1 | BK55: TRUE | BL55: TRUE | BM55: Moma | BN55: TRUE
A56: =IF(INTRO!$E$34<>0,INTRO!$E$34,"") -> Mozambique | B56: Nampula | C56: Monapo | D56: 406154.4312 | E56: =IF(INTRO!$E$48="","",ROUND($D56*INTRO!$E$48,0)) -> 47114 | F56: =IF(INTRO!$E$49="","",ROUND($D56*INTRO!$E$49,0)) -> 113723 | G56: =IF(INTRO!$E$50="","",ROUND($D56*INTRO!$E$50,0)) -> 233539 | H56: 1 | I56: 4 | J56: 3 | K56: 3 | L56: =IF(INTRO!$E$38="Endemic", IF($H56>0, IF($H56=4,"Unknown", IF($H56=99,"Stopped", $D56)), 0),"Not required") -> 406154.4312 | M56: =IF(INTRO!$E$40="Endemic", IF($I56>0, IF($I56=4,"Unknown",IF($I56=99,"Stopped", $D56)), 0),"Not required") -> Not required | N56: =IF(INTRO!$E$42="Endemic", IF(AND($J56>1,$J56<5), IF($J56=4, "Unknown", E56+F56), 0),"Not required") -> 160837 | O56: =IF(INTRO!$E$44="Endemic", IF(AND($K56>0,$K56<5), IF($K56=4,"Unknown", IF($K56=1, $F56*0.33, IF($K56=2, $F56*0.5+$G56*0.2, SUM(F56:G56)))), 0),"Not required") -> 347262 | P56: 1 | R56: 2 | S56: 1 | T56: MDA1 (IVM+ALB) | U56: T1 (PZQ+ALB/MBD) | V56: MDA 1 | W56: T1 | X56: 33185 | Y56: Monapo | AA56: TRUE | AB56: Nampula | AC56: Monapo | AD56: 1 | AE56: 4 | AF56: 3 | AG56: 3 | AH56: TRUE | AI56: TRUE | AJ56: TRUE | AK56: TRUE | AO56: 1 | AQ56: 3 | AR56: 3 | AS56: TRUE | AU56: TRUE | AV56: TRUE | AY56: ='MDA1'!M56 -> 318325 | AZ56: ='T1'!O56 -> 103915 | BA56: ='T2'!M56 -> 0 | BD56: =DISTRICT!H55:H56 -> 318325 | BE56: =DISTRICT!X56 -> 113723 | BF56: =DISTRICT!AH56 -> 103915 | BI56: 2 | BJ56: 1 | BK56: TRUE | BL56: TRUE | BM56: Monapo | BN56: TRUE
A57: =IF(INTRO!$E$34<>0,INTRO!$E$34,"") -> Mozambique | B57: Nampula | C57: Mossuril | D57: 146071.315 | E57: =IF(INTRO!$E$48="","",ROUND($D57*INTRO!$E$48,0)) -> 16944 | F57: =IF(INTRO!$E$49="","",ROUND($D57*INTRO!$E$49,0)) -> 40900 | G57: =IF(INTRO!$E$50="","",ROUND($D57*INTRO!$E$50,0)) -> 83991 | H57: 1 | I57: 4 | J57: 2 | K57: 2 | L57: =IF(INTRO!$E$38="Endemic", IF($H57>0, IF($H57=4,"Unknown", IF($H57=99,"Stopped", $D57)), 0),"Not required") -> 146071.315 | M57: =IF(INTRO!$E$40="Endemic", IF($I57>0, IF($I57=4,"Unknown",IF($I57=99,"Stopped", $D57)), 0),"Not required") -> Not required | N57: =IF(INTRO!$E$42="Endemic", IF(AND($J57>1,$J57<5), IF($J57=4, "Unknown", E57+F57), 0),"Not required") -> 57844 | O57: =IF(INTRO!$E$44="Endemic", IF(AND($K57>0,$K57<5), IF($K57=4,"Unknown", IF($K57=1, $F57*0.33, IF($K57=2, $F57*0.5+$G57*0.2, SUM(F57:G57)))), 0),"Not required") -> 37248.2 | P57: 1 | R57: 1 | S57: 0 | T57: MDA1 (IVM+ALB) | V57: MDA 1 | W57: T2 | X57: 33186 | Y57: Mossuril | AA57: TRUE | AB57: Nampula | AC57: Mossuril | AD57: 1 | AE57: 4 | AF57: 2 | AG57: 2 | AH57: TRUE | AI57: TRUE | AJ57: TRUE | AK57: TRUE | AO57: 1 | AQ57: 2 | AR57: 2 | AS57: TRUE | AU57: TRUE | AV57: TRUE | AY57: ='MDA1'!M57 -> 115158 | AZ57: ='T1'!O57 -> 0 | BA57: ='T2'!M57 -> 0 | BD57: =DISTRICT!H56:H57 -> 115158 | BE57: =DISTRICT!X57 -> 40900 | BF57: =DISTRICT!AH57 -> 0 | BI57: 1 | BJ57: 0 | BK57: TRUE | BL57: TRUE | BM57: Mossuril | BN57: TRUE
A58: =IF(INTRO!$E$34<>0,INTRO!$E$34,"") -> Mozambique | B58: Nampula | C58: Muecate | D58: 121906.2409 | E58: =IF(INTRO!$E$48="","",ROUND($D58*INTRO!$E$48,0)) -> 14141 | F58: =IF(INTRO!$E$49="","",ROUND($D58*INTRO!$E$49,0)) -> 34134 | G58: =IF(INTRO!$E$50="","",ROUND($D58*INTRO!$E$50,0)) -> 70096 | H58: 1 | I58: 4 | J58: 3 | K58: 3 | L58: =IF(INTRO!$E$38="Endemic", IF($H58>0, IF($H58=4,"Unknown", IF($H58=99,"Stopped", $D58)), 0),"Not required") -> 121906.2409 | M58: =IF(INTRO!$E$40="Endemic", IF($I58>0, IF($I58=4,"Unknown",IF($I58=99,"Stopped", $D58)), 0),"Not required") -> Not required | N58: =IF(INTRO!$E$42="Endemic", IF(AND($J58>1,$J58<5), IF($J58=4, "Unknown", E58+F58), 0),"Not required") -> 48275 | O58: =IF(INTRO!$E$44="Endemic", IF(AND($K58>0,$K58<5), IF($K58=4,"Unknown", IF($K58=1, $F58*0.33, IF($K58=2, $F58*0.5+$G58*0.2, SUM(F58:G58)))), 0),"Not required") -> 104230 | P58: 1 | R58: 2 | S58: 1 | T58: MDA1 (IVM+ALB) | U58: T1 (PZQ+ALB/MBD) | V58: MDA 1 | W58: T1 | X58: 33187 | Y58: Muecate | AA58: TRUE | AB58: Nampula | AC58: Muecate | AD58: 1 | AE58: 4 | AF58: 3 | AG58: 3 | AH58: TRUE | AI58: TRUE | AJ58: TRUE | AK58: TRUE | AO58: 1 | AQ58: 3 | AR58: 3 | AS58: TRUE | AU58: TRUE | AV58: TRUE | AY58: ='MDA1'!M58 -> 112279 | AZ58: ='T1'!O58 -> 29052 | BA58: ='T2'!M58 -> 0 | BD58: =DISTRICT!H57:H58 -> 112279 | BE58: =DISTRICT!X58 -> 34134 | BF58: =DISTRICT!AH58 -> 29052 | BI58: 2 | BJ58: 1 | BK58: TRUE | BL58: TRUE | BM58: Muecate | BN58: TRUE
A59: =IF(INTRO!$E$34<>0,INTRO!$E$34,"") -> Mozambique | B59: Nampula | C59: Murrupula | D59: 187392.2299 | E59: =IF(INTRO!$E$48="","",ROUND($D59*INTRO!$E$48,0)) -> 21737 | F59: =IF(INTRO!$E$49="","",ROUND($D59*INTRO!$E$49,0)) -> 52470 | G59: =IF(INTRO!$E$50="","",ROUND($D59*INTRO!$E$50,0)) -> 107751 | H59: 1 | I59: 4 | J59: 3 | K59: 3 | L59: =IF(INTRO!$E$38="Endemic", IF($H59>0, IF($H59=4,"Unknown", IF($H59=99,"Stopped", $D59)), 0),"Not required") -> 187392.2299 | M59: =IF(INTRO!$E$40="Endemic", IF($I59>0, IF($I59=4,"Unknown",IF($I59=99,"Stopped", $D59)), 0),"Not required") -> Not required | N59: =IF(INTRO!$E$42="Endemic", IF(AND($J59>1,$J59<5), IF($J59=4, "Unknown", E59+F59), 0),"Not required") -> 74207 | O59: =IF(INTRO!$E$44="Endemic", IF(AND($K59>0,$K59<5), IF($K59=4,"Unknown", IF($K59=1, $F59*0.33, IF($K59=2, $F59*0.5+$G59*0.2, SUM(F59:G59)))), 0),"Not required") -> 160221 | P59: 1 | R59: 2 | S59: 1 | T59: MDA1 (IVM+ALB) | U59: T1 (PZQ+ALB/MBD) | V59: MDA 1 | W59: T1 | X59: 33188 | Y59: Murrupula | AA59: TRUE | AB59: Nampula | AC59: Murrupula | AD59: 1 | AE59: 4 | AF59: 3 | AG59: 3 | AH59: TRUE | AI59: TRUE | AJ59: TRUE | AK59: TRUE | AO59: 1 | AQ59: 3 | AR59: 3 | AS59: TRUE | AU59: TRUE | AV59: TRUE | AY59: ='MDA1'!M59 -> 153979 | AZ59: ='T1'!O59 -> 42751 | BA59: ='T2'!M59 -> 0 | BD59: =DISTRICT!H58:H59 -> 153979 | BE59: =DISTRICT!X59 -> 52470 | BF59: =DISTRICT!AH59 -> 42751 | BI59: 2 | BJ59: 1 | BK59: TRUE | BL59: TRUE | BM59: Murrupula | BN59: TRUE
A60: =IF(INTRO!$E$34<>0,INTRO!$E$34,"") -> Mozambique | B60: Nampula | C60: Nacala Porto | D60: 251122.4617 | E60: =IF(INTRO!$E$48="","",ROUND($D60*INTRO!$E$48,0)) -> 29130 | F60: =IF(INTRO!$E$49="","",ROUND($D60*INTRO!$E$49,0)) -> 70314 | G60: =IF(INTRO!$E$50="","",ROUND($D60*INTRO!$E$50,0)) -> 144395 | H60: 1 | I60: 4 | J60: 3 | K60: 2 | L60: =IF(INTRO!$E$38="Endemic", IF($H60>0, IF($H60=4,"Unknown", IF($H60=99,"Stopped", $D60)), 0),"Not required") -> 251122.4617 | M60: =IF(INTRO!$E$40="Endemic", IF($I60>0, IF($I60=4,"Unknown",IF($I60=99,"Stopped", $D60)), 0),"Not required") -> Not required | N60: =IF(INTRO!$E$42="Endemic", IF(AND($J60>1,$J60<5), IF($J60=4, "Unknown", E60+F60), 0),"Not required") -> 99444 | O60: =IF(INTRO!$E$44="Endemic", IF(AND($K60>0,$K60<5), IF($K60=4,"Unknown", IF($K60=1, $F60*0.33, IF($K60=2, $F60*0.5+$G60*0.2, SUM(F60:G60)))), 0),"Not required") -> 64036 | P60: 1 | R60: 1 | S60: 0 | T60: MDA1 (IVM+ALB) | V60: MDA 1 | W60: T1 | X60: 33189 | Y60: Nacala Porto | AA60: TRUE | AB60: Nampula | AC60: Nacala Porto | AD60: 1 | AE60: 4 | AF60: 3 | AG60: 2 | AH60: TRUE | AI60: TRUE | AJ60: TRUE | AK60: TRUE | AO60: 1 | AQ60: 3 | AR60: 2 | AS60: TRUE | AU60: TRUE | AV60: TRUE | AY60: ='MDA1'!M60 -> 214281 | AZ60: ='T1'!O60 -> 0 | BA60: ='T2'!M60 -> 0 | BD60: =DISTRICT!H59:H60 -> 214281 | BE60: =DISTRICT!X60 -> 70314 | BF60: =DISTRICT!AH60 -> 0 | BI60: 2 | BJ60: 0 | BK60: FALSE | BL60: TRUE | BM60: Nacala Porto | BN60: TRUE
A61: =IF(INTRO!$E$34<>0,INTRO!$E$34,"") -> Mozambique | B61: Nampula | C61: Nacala Velha | D61: 139439.5175 | E61: =IF(INTRO!$E$48="","",ROUND($D61*INTRO!$E$48,0)) -> 16175 | F61: =IF(INTRO!$E$49="","",ROUND($D61*INTRO!$E$49,0)) -> 39043 | G61: =IF(INTRO!$E$50="","",ROUND($D61*INTRO!$E$50,0)) -> 80178 | H61: 1 | I61: 4 | J61: 3 | K61: 3 | L61: =IF(INTRO!$E$38="Endemic", IF($H61>0, IF($H61=4,"Unknown", IF($H61=99,"Stopped", $D61)), 0),"Not required") -> 139439.5175 | M61: =IF(INTRO!$E$40="Endemic", IF($I61>0, IF($I61=4,"Unknown",IF($I61=99,"Stopped", $D61)), 0),"Not required") -> Not required | N61: =IF(INTRO!$E$42="Endemic", IF(AND($J61>1,$J61<5), IF($J61=4, "Unknown", E61+F61), 0),"Not required") -> 55218 | O61: =IF(INTRO!$E$44="Endemic", IF(AND($K61>0,$K61<5), IF($K61=4,"Unknown", IF($K61=1, $F61*0.33, IF($K61=2, $F61*0.5+$G61*0.2, SUM(F61:G61)))), 0),"Not required") -> 119221 | P61: 1 | R61: 2 | S61: 1 | T61: MDA1 (IVM+ALB) | U61: T1 (PZQ+ALB/MBD) | V61: MDA 1 | W61: T1 | X61: 33190 | Y61: Nacala Velha | AA61: TRUE | AB61: Nampula | AC61: Nacala Velha | AD61: 1 | AE61: 4 | AF61: 3 | AG61: 3 | AH61: TRUE | AI61: TRUE | AJ61: TRUE | AK61: TRUE | AO61: 1 | AQ61: 3 | AR61: 3 | AS61: TRUE | AU61: TRUE | AV61: TRUE | AY61: ='MDA1'!M61 -> 122740 | AZ61: ='T1'!O61 -> 33693 | BA61: ='T2'!M61 -> 0 | BD61: =DISTRICT!H60:H61 -> 122740 | BE61: =DISTRICT!X61 -> 39043 | BF61: =DISTRICT!AH61 -> 33693 | BI61: 2 | BJ61: 1 | BK61: TRUE | BL61: TRUE | BM61: Nacala Velha | BN61: TRUE
A62: =IF(INTRO!$E$34<>0,INTRO!$E$34,"") -> Mozambique | B62: Nampula | C62: Nacaroa | D62: 131741.3848 | E62: =IF(INTRO!$E$48="","",ROUND($D62*INTRO!$E$48,0)) -> 15282 | F62: =IF(INTRO!$E$49="","",ROUND($D62*INTRO!$E$49,0)) -> 36888 | G62: =IF(INTRO!$E$50="","",ROUND($D62*INTRO!$E$50,0)) -> 75751 | H62: 1 | I62: 4 | J62: 3 | K62: 3 | L62: =IF(INTRO!$E$38="Endemic", IF($H62>0, IF($H62=4,"Unknown", IF($H62=99,"Stopped", $D62)), 0),"Not required") -> 131741.3848 | M62: =IF(INTRO!$E$40="Endemic", IF($I62>0, IF($I62=4,"Unknown",IF($I62=99,"Stopped", $D62)), 0),"Not required") -> Not required | N62: =IF(INTRO!$E$42="Endemic", IF(AND($J62>1,$J62<5), IF($J62=4, "Unknown", E62+F62), 0),"Not required") -> 52170 | O62: =IF(INTRO!$E$44="Endemic", IF(AND($K62>0,$K62<5), IF($K62=4,"Unknown", IF($K62=1, $F62*0.33, IF($K62=2, $F62*0.5+$G62*0.2, SUM(F62:G62)))), 0),"Not required") -> 112639 | P62: 1 | R62: 2 | S62: 1 | T62: MDA1 (IVM+ALB) | U62: T1 (PZQ+ALB/MBD) | V62: MDA 1 | W62: T1 | X62: 33191 | Y62: Nacaroa | AA62: TRUE | AB62: Nampula | AC62: Nacaroa | AD62: 1 | AE62: 4 | AF62: 3 | AG62: 3 | AH62: TRUE | AI62: TRUE | AJ62: TRUE | AK62: TRUE | AO62: 1 | AQ62: 3 | AR62: 3 | AS62: TRUE | AU62: TRUE | AV62: TRUE | AY62: ='MDA1'!M62 -> 112176 | AZ62: ='T1'!O62 -> 35161 | BA62: ='T2'!M62 -> 0 | BD62: =DISTRICT!H61:H62 -> 112176 | BE62: =DISTRICT!X62 -> 36888 | BF62: =DISTRICT!AH62 -> 35161 | BI62: 2 | BJ62: 1 | BK62: TRUE | BL62: TRUE | BM62: Nacaroa | BN62: TRUE
A63: =IF(INTRO!$E$34<>0,INTRO!$E$34,"") -> Mozambique | B63: Nampula | C63: Nampula Dist. | D63: 177559.7224 | E63: =IF(INTRO!$E$48="","",ROUND($D63*INTRO!$E$48,0)) -> 20597 | F63: =IF(INTRO!$E$49="","",ROUND($D63*INTRO!$E$49,0)) -> 49717 | G63: =IF(INTRO!$E$50="","",ROUND($D63*INTRO!$E$50,0)) -> 102097 | H63: 1 | I63: 4 | J63: 2 | K63: 3 | L63: =IF(INTRO!$E$38="Endemic", IF($H63>0, IF($H63=4,"Unknown", IF($H63=99,"Stopped", $D63)), 0),"Not required") -> 177559.7224 | M63: =IF(INTRO!$E$40="Endemic", IF($I63>0, IF($I63=4,"Unknown",IF($I63=99,"Stopped", $D63)), 0),"Not required") -> Not required | N63: =IF(INTRO!$E$42="Endemic", IF(AND($J63>1,$J63<5), IF($J63=4, "Unknown", E63+F63), 0),"Not required") -> 70314 | O63: =IF(INTRO!$E$44="Endemic", IF(AND($K63>0,$K63<5), IF($K63=4,"Unknown", IF($K63=1, $F63*0.33, IF($K63=2, $F63*0.5+$G63*0.2, SUM(F63:G63)))), 0),"Not required") -> 151814 | P63: 1 | R63: 1 | S63: 1 | T63: MDA1 (IVM+ALB) | U63: T2 (PZQ) | V63: MDA 1 | W63: T2 | X63: 33192 | Y63: Nampula Dist. | AA63: TRUE | AB63: Nampula | AC63: Nampula Dist. | AD63: 1 | AE63: 4 | AF63: 2 | AG63: 3 | AH63: TRUE | AI63: TRUE | AJ63: TRUE | AK63: TRUE | AO63: 1 | AQ63: 2 | AR63: 3 | AS63: TRUE | AU63: TRUE | AV63: TRUE | AY63: ='MDA1'!M63 -> 165500 | AZ63: ='T1'!O63 -> 0 | BA63: ='T2'!M63 -> 39518 | BD63: =DISTRICT!H62:H63 -> 165500 | BE63: =DISTRICT!X63 -> 49717 | BF63: =DISTRICT!AH63 -> 39518 | BI63: 1 | BJ63: 1 | BK63: TRUE | BL63: TRUE | BM63: Nampula Dist. | BN63: TRUE
A64: =IF(INTRO!$E$34<>0,INTRO!$E$34,"") -> Mozambique | B64: Nampula | C64: Ribaué | D64: 295477.596 | E64: =IF(INTRO!$E$48="","",ROUND($D64*INTRO!$E$48,0)) -> 34275 | F64: =IF(INTRO!$E$49="","",ROUND($D64*INTRO!$E$49,0)) -> 82734 | G64: =IF(INTRO!$E$50="","",ROUND($D64*INTRO!$E$50,0)) -> 169900 | H64: 1 | I64: 4 | J64: 2 | K64: 3 | L64: =IF(INTRO!$E$38="Endemic", IF($H64>0, IF($H64=4,"Unknown", IF($H64=99,"Stopped", $D64)), 0),"Not required") -> 295477.596 | M64: =IF(INTRO!$E$40="Endemic", IF($I64>0, IF($I64=4,"Unknown",IF($I64=99,"Stopped", $D64)), 0),"Not required") -> Not required | N64: =IF(INTRO!$E$42="Endemic", IF(AND($J64>1,$J64<5), IF($J64=4, "Unknown", E64+F64), 0),"Not required") -> 117009 | O64: =IF(INTRO!$E$44="Endemic", IF(AND($K64>0,$K64<5), IF($K64=4,"Unknown", IF($K64=1, $F64*0.33, IF($K64=2, $F64*0.5+$G64*0.2, SUM(F64:G64)))), 0),"Not required") -> 252634 | P64: 1 | R64: 1 | S64: 1 | T64: MDA1 (IVM+ALB) | U64: T2 (PZQ) | V64: MDA 1 | W64: T2 | X64: 33193 | Y64: Ribaué | AA64: TRUE | AB64: Nampula | AC64: Ribaué | AD64: 1 | AE64: 4 | AF64: 2 | AG64: 3 | AH64: TRUE | AI64: TRUE | AJ64: TRUE | AK64: TRUE | AO64: 1 | AQ64: 2 | AR64: 3 | AS64: TRUE | AU64: TRUE | AV64: TRUE | AY64: ='MDA1'!M64 -> 224140 | AZ64: ='T1'!O64 -> 0 | BA64: ='T2'!M64 -> 70090 | BD64: =DISTRICT!H63:H64 -> 224140 | BE64: =DISTRICT!X64 -> 82734 | BF64: =DISTRICT!AH64 -> 70090 | BI64: 1 | BJ64: 1 | BK64: TRUE | BL64: TRUE | BM64: Ribaué | BN64: TRUE
A65: =IF(INTRO!$E$34<>0,INTRO!$E$34,"") -> Mozambique | B65: Zambezia | C65: Quelimane | D65: 408480 | E65: =IF(INTRO!$E$48="","",ROUND($D65*INTRO!$E$48,0)) -> 47384 | F65: =IF(INTRO!$E$49="","",ROUND($D65*INTRO!$E$49,0)) -> 114374 | G65: =IF(INTRO!$E$50="","",ROUND($D65*INTRO!$E$50,0)) -> 234876 | H65: 1 | I65: 4 | J65: 3 | K65: 2 | L65: =IF(INTRO!$E$38="Endemic", IF($H65>0, IF($H65=4,"Unknown", IF($H65=99,"Stopped", $D65)), 0),"Not required") -> 408480 | M65: =IF(INTRO!$E$40="Endemic", IF($I65>0, IF($I65=4,"Unknown",IF($I65=99,"Stopped", $D65)), 0),"Not required") -> Not required | N65: =IF(INTRO!$E$42="Endemic", IF(AND($J65>1,$J65<5), IF($J65=4, "Unknown", E65+F65), 0),"Not required") -> 161758 | O65: =IF(INTRO!$E$44="Endemic", IF(AND($K65>0,$K65<5), IF($K65=4,"Unknown", IF($K65=1, $F65*0.33, IF($K65=2, $F65*0.5+$G65*0.2, SUM(F65:G65)))), 0),"Not required") -> 104162.2 | P65: 0 | R65: 0 | S65: 0 | V65: MDA 1 | W65: T1 | X65: 33239 | Y65: Quelimane | AA65: TRUE | AB65: Zambezia | AC65: Quelimane | AD65: 1 | AE65: 4 | AF65: 3 | AG65: 2 | AH65: TRUE | AI65: TRUE | AJ65: TRUE | AK65: TRUE | AO65: 1 | AQ65: 3 | AR65: 2 | AS65: TRUE | AU65: TRUE | AV65: TRUE | AY65: ='MDA1'!M65 -> 0 | AZ65: ='T1'!O65 -> 0 | BA65: ='T2'!M65 -> 0 | BD65: =DISTRICT!H64:H65 -> 0 | BE65: =DISTRICT!X65 -> 0 | BF65: =DISTRICT!AH65 -> 0 | BI65: 2 | BJ65: 0 | BK65: FALSE | BL65: TRUE | BM65: Quelimane | BN65: TRUE
A66: =IF(INTRO!$E$34<>0,INTRO!$E$34,"") -> Mozambique | B66: Zambezia | C66: Alto Molocué | D66: 433616 | E66: =IF(INTRO!$E$48="","",ROUND($D66*INTRO!$E$48,0)) -> 50299 | F66: =IF(INTRO!$E$49="","",ROUND($D66*INTRO!$E$49,0)) -> 121412 | G66: =IF(INTRO!$E$50="","",ROUND($D66*INTRO!$E$50,0)) -> 249329 | H66: 1 | I66: 4 | J66: 2 | K66: 3 | L66: =IF(INTRO!$E$38="Endemic", IF($H66>0, IF($H66=4,"Unknown", IF($H66=99,"Stopped", $D66)), 0),"Not required") -> 433616 | M66: =IF(INTRO!$E$40="Endemic", IF($I66>0, IF($I66=4,"Unknown",IF($I66=99,"Stopped", $D66)), 0),"Not required") -> Not required | N66: =IF(INTRO!$E$42="Endemic", IF(AND($J66>1,$J66<5), IF($J66=4, "Unknown", E66+F66), 0),"Not required") -> 171711 | O66: =IF(INTRO!$E$44="Endemic", IF(AND($K66>0,$K66<5), IF($K66=4,"Unknown", IF($K66=1, $F66*0.33, IF($K66=2, $F66*0.5+$G66*0.2, SUM(F66:G66)))), 0),"Not required") -> 370741 | P66: 0 | R66: 0 | S66: 1 | V66: MDA 1 | W66: T2 | X66: 33251 | Y66: Alto Molocué | AA66: TRUE | AB66: Zambezia | AC66: Alto Molocué | AD66: 1 | AE66: 4 | AF66: 2 | AG66: 3 | AH66: TRUE | AI66: TRUE | AJ66: TRUE | AK66: TRUE | AO66: 1 | AQ66: 2 | AR66: 3 | AS66: TRUE | AU66: TRUE | AV66: TRUE | AY66: ='MDA1'!M66 -> 0 | AZ66: ='T1'!O66 -> 0 | BA66: ='T2'!M66 -> 0 | BD66: =DISTRICT!H65:H66 -> 0 | BE66: =DISTRICT!X66 -> 0 | BF66: =DISTRICT!AH66 -> 0 | BI66: 1 | BJ66: 1 | BK66: FALSE | BL66: TRUE | BM66: Alto Molocué | BN66: TRUE
A67: =IF(INTRO!$E$34<>0,INTRO!$E$34,"") -> Mozambique | B67: Zambezia | C67: Chinde | D67: 100998 | E67: =IF(INTRO!$E$48="","",ROUND($D67*INTRO!$E$48,0)) -> 11716 | F67: =IF(INTRO!$E$49="","",ROUND($D67*INTRO!$E$49,0)) -> 28279 | G67: =IF(INTRO!$E$50="","",ROUND($D67*INTRO!$E$50,0)) -> 58074 | H67: 1 | I67: 4 | J67: 3 | K67: 2 | L67: =IF(INTRO!$E$38="Endemic", IF($H67>0, IF($H67=4,"Unknown", IF($H67=99,"Stopped", $D67)), 0),"Not required") -> 100998 | M67: =IF(INTRO!$E$40="Endemic", IF($I67>0, IF($I67=4,"Unknown",IF($I67=99,"Stopped", $D67)), 0),"Not required") -> Not required | N67: =IF(INTRO!$E$42="Endemic", IF(AND($J67>1,$J67<5), IF($J67=4, "Unknown", E67+F67), 0),"Not required") -> 39995 | O67: =IF(INTRO!$E$44="Endemic", IF(AND($K67>0,$K67<5), IF($K67=4,"Unknown", IF($K67=1, $F67*0.33, IF($K67=2, $F67*0.5+$G67*0.2, SUM(F67:G67)))), 0),"Not required") -> 25754.3 | P67: 0 | R67: 0 | S67: 0 | V67: MDA 1 | W67: T1 | X67: 33238 | Y67: Chinde | AA67: TRUE | AB67: Zambezia | AC67: Chinde | AD67: 1 | AE67: 4 | AF67: 3 | AG67: 2 | AH67: TRUE | AI67: TRUE | AJ67: TRUE | AK67: TRUE | AO67: 1 | AQ67: 3 | AR67: 2 | AS67: TRUE | AU67: TRUE | AV67: TRUE | AY67: ='MDA1'!M67 -> 0 | AZ67: ='T1'!O67 -> 0 | BA67: ='T2'!M67 -> 0 | BD67: =DISTRICT!H66:H67 -> 0 | BE67: =DISTRICT!X67 -> 0 | BF67: =DISTRICT!AH67 -> 0 | BI67: 2 | BJ67: 0 | BK67: FALSE | BL67: TRUE | BM67: Chinde | BN67: TRUE
A68: =IF(INTRO!$E$34<>0,INTRO!$E$34,"") -> Mozambique | B68: Zambezia | C68: Derre | D68: 97877 | E68: =IF(INTRO!$E$48="","",ROUND($D68*INTRO!$E$48,0)) -> 11354 | F68: =IF(INTRO!$E$49="","",ROUND($D68*INTRO!$E$49,0)) -> 27406 | G68: =IF(INTRO!$E$50="","",ROUND($D68*INTRO!$E$50,0)) -> 56279 | H68: 1 | I68: 4 | J68: 3 | K68: 3 | L68: =IF(INTRO!$E$38="Endemic", IF($H68>0, IF($H68=4,"Unknown", IF($H68=99,"Stopped", $D68)), 0),"Not required") -> 97877 | M68: =IF(INTRO!$E$40="Endemic", IF($I68>0, IF($I68=4,"Unknown",IF($I68=99,"Stopped", $D68)), 0),"Not required") -> Not required | N68: =IF(INTRO!$E$42="Endemic", IF(AND($J68>1,$J68<5), IF($J68=4, "Unknown", E68+F68), 0),"Not required") -> 38760 | O68: =IF(INTRO!$E$44="Endemic", IF(AND($K68>0,$K68<5), IF($K68=4,"Unknown", IF($K68=1, $F68*0.33, IF($K68=2, $F68*0.5+$G68*0.2, SUM(F68:G68)))), 0),"Not required") -> 83685 | P68: 0 | R68: 0 | S68: 1 | V68: MDA 1 | W68: T1 | X68: 33240 | Y68: Derre | AA68: TRUE | AB68: Zambezia | AC68: Derre | AD68: 1 | AE68: 4 | AF68: 3 | AG68: 3 | AH68: TRUE | AI68: TRUE | AJ68: TRUE | AK68: TRUE | AO68: 1 | AQ68: 3 | AR68: 3 | AS68: TRUE | AU68: TRUE | AV68: TRUE | AY68: ='MDA1'!M68 -> 0 | AZ68: ='T1'!O68 -> 0 | BA68: ='T2'!M68 -> 0 | BD68: =DISTRICT!H67:H68 -> 0 | BE68: =DISTRICT!X68 -> 0 | BF68: =DISTRICT!AH68 -> 0 | BI68: 2 | BJ68: 1 | BK68: FALSE | BL68: TRUE | BM68: Derre | BN68: TRUE
A69: =IF(INTRO!$E$34<>0,INTRO!$E$34,"") -> Mozambique | B69: Zambezia | C69: Gilé | D69: 205104 | E69: =IF(INTRO!$E$48="","",ROUND($D69*INTRO!$E$48,0)) -> 23792 | F69: =IF(INTRO!$E$49="","",ROUND($D69*INTRO!$E$49,0)) -> 57429 | G69: =IF(INTRO!$E$50="","",ROUND($D69*INTRO!$E$50,0)) -> 117935 | H69: 1 | I69: 4 | J69: 3 | K69: 3 | L69: =IF(INTRO!$E$38="Endemic", IF($H69>0, IF($H69=4,"Unknown", IF($H69=99,"Stopped", $D69)), 0),"Not required") -> 205104 | M69: =IF(INTRO!$E$40="Endemic", IF($I69>0, IF($I69=4,"Unknown",IF($I69=99,"Stopped", $D69)), 0),"Not required") -> Not required | N69: =IF(INTRO!$E$42="Endemic", IF(AND($J69>1,$J69<5), IF($J69=4, "Unknown", E69+F69), 0),"Not required") -> 81221 | O69: =IF(INTRO!$E$44="Endemic", IF(AND($K69>0,$K69<5), IF($K69=4,"Unknown", IF($K69=1, $F69*0.33, IF($K69=2, $F69*0.5+$G69*0.2, SUM(F69:G69)))), 0),"Not required") -> 175364 | P69: 0 | R69: 0 | S69: 1 | V69: MDA 1 | W69: T1 | X69: 33241 | Y69: Gilé | AA69: TRUE | AB69: Zambezia | AC69: Gilé | AD69: 1 | AE69: 4 | AF69: 3 | AG69: 3 | AH69: TRUE | AI69: TRUE | AJ69: TRUE | AK69: TRUE | AO69: 1 | AQ69: 3 | AR69: 3 | AS69: TRUE | AU69: TRUE | AV69: TRUE | AY69: ='MDA1'!M69 -> 0 | AZ69: ='T1'!O69 -> 0 | BA69: ='T2'!M69 -> 0 | BD69: =DISTRICT!H68:H69 -> 0 | BE69: =DISTRICT!X69 -> 0 | BF69: =DISTRICT!AH69 -> 0 | BI69: 2 | BJ69: 1 | BK69: FALSE | BL69: TRUE | BM69: Gilé | BN69: TRUE
A70: =IF(INTRO!$E$34<>0,INTRO!$E$34,"") -> Mozambique | B70: Zambezia | C70: Gurué | D70: 368703.0525 | E70: =IF(INTRO!$E$48="","",ROUND($D70*INTRO!$E$48,0)) -> 42770 | F70: =IF(INTRO!$E$49="","",ROUND($D70*INTRO!$E$49,0)) -> 103237 | G70: =IF(INTRO!$E$50="","",ROUND($D70*INTRO!$E$50,0)) -> 212004 | H70: 1 | I70: 4 | J70: 2 | K70: 3 | L70: =IF(INTRO!$E$38="Endemic", IF($H70>0, IF($H70=4,"Unknown", IF($H70=99,"Stopped", $D70)), 0),"Not required") -> 368703.0525 | M70: =IF(INTRO!$E$40="Endemic", IF($I70>0, IF($I70=4,"Unknown",IF($I70=99,"Stopped", $D70)), 0),"Not required") -> Not required | N70: =IF(INTRO!$E$42="Endemic", IF(AND($J70>1,$J70<5), IF($J70=4, "Unknown", E70+F70), 0),"Not required") -> 146007 | O70: =IF(INTRO!$E$44="Endemic", IF(AND($K70>0,$K70<5), IF($K70=4,"Unknown", IF($K70=1, $F70*0.33, IF($K70=2, $F70*0.5+$G70*0.2, SUM(F70:G70)))), 0),"Not required") -> 315241 | P70: 0 | R70: 0 | S70: 1 | V70: MDA 1 | W70: T2 | X70: 33242 | Y70: Gurué | AA70: TRUE | AB70: Zambezia | AC70: Gurué | AD70: 1 | AE70: 4 | AF70: 2 | AG70: 3 | AH70: TRUE | AI70: TRUE | AJ70: TRUE | AK70: TRUE | AO70: 1 | AQ70: 2 | AR70: 3 | AS70: TRUE | AU70: TRUE | AV70: TRUE | AY70: ='MDA1'!M70 -> 0 | AZ70: ='T1'!O70 -> 0 | BA70: ='T2'!M70 -> 0 | BD70: =DISTRICT!H69:H70 -> 0 | BE70: =DISTRICT!X70 -> 0 | BF70: =DISTRICT!AH70 -> 0 | BI70: 1 | BJ70: 1 | BK70: FALSE | BL70: TRUE | BM70: Gurué | BN70: TRUE
A71: =IF(INTRO!$E$34<>0,INTRO!$E$34,"") -> Mozambique | B71: Zambezia | C71: Ile | D71: 289889.3592 | E71: =IF(INTRO!$E$48="","",ROUND($D71*INTRO!$E$48,0)) -> 33627 | F71: =IF(INTRO!$E$49="","",ROUND($D71*INTRO!$E$49,0)) -> 81169 | G71: =IF(INTRO!$E$50="","",ROUND($D71*INTRO!$E$50,0)) -> 166686 | H71: 1 | I71: 4 | J71: 2 | K71: 3 | L71: =IF(INTRO!$E$38="Endemic", IF($H71>0, IF($H71=4,"Unknown", IF($H71=99,"Stopped", $D71)), 0),"Not required") -> 289889.3592 | M71: =IF(INTRO!$E$40="Endemic", IF($I71>0, IF($I71=4,"Unknown",IF($I71=99,"Stopped", $D71)), 0),"Not required") -> Not required | N71: =IF(INTRO!$E$42="Endemic", IF(AND($J71>1,$J71<5), IF($J71=4, "Unknown", E71+F71), 0),"Not required") -> 114796 | O71: =IF(INTRO!$E$44="Endemic", IF(AND($K71>0,$K71<5), IF($K71=4,"Unknown", IF($K71=1, $F71*0.33, IF($K71=2, $F71*0.5+$G71*0.2, SUM(F71:G71)))), 0),"Not required") -> 247855 | P71: 0 | R71: 0 | S71: 1 | V71: MDA 1 | W71: T2 | X71: 33243 | Y71: Ile | AA71: TRUE | AB71: Zambezia | AC71: Ile | AD71: 1 | AE71: 4 | AF71: 2 | AG71: 3 | AH71: TRUE | AI71: TRUE | AJ71: TRUE | AK71: TRUE | AO71: 1 | AQ71: 2 | AR71: 3 | AS71: TRUE | AU71: TRUE | AV71: TRUE | AY71: ='MDA1'!M71 -> 0 | AZ71: ='T1'!O71 -> 0 | BA71: ='T2'!M71 -> 0 | BD71: =DISTRICT!H70:H71 -> 0 | BE71: =DISTRICT!X71 -> 0 | BF71: =DISTRICT!AH71 -> 0 | BI71: 1 | BJ71: 1 | BK71: FALSE | BL71: TRUE | BM71: Ile | BN71: TRUE
A72: =IF(INTRO!$E$34<>0,INTRO!$E$34,"") -> Mozambique | B72: Zambezia | C72: Inhassunge | D72: 103117.6488 | E72: =IF(INTRO!$E$48="","",ROUND($D72*INTRO!$E$48,0)) -> 11962 | F72: =IF(INTRO!$E$49="","",ROUND($D72*INTRO!$E$49,0)) -> 28873 | G72: =IF(INTRO!$E$50="","",ROUND($D72*INTRO!$E$50,0)) -> 59293 | H72: 1 | I72: 4 | J72: 3 | K72: 3 | L72: =IF(INTRO!$E$38="Endemic", IF($H72>0, IF($H72=4,"Unknown", IF($H72=99,"Stopped", $D72)), 0),"Not required") -> 103117.6488 | M72: =IF(INTRO!$E$40="Endemic", IF($I72>0, IF($I72=4,"Unknown",IF($I72=99,"Stopped", $D72)), 0),"Not required") -> Not required | N72: =IF(INTRO!$E$42="Endemic", IF(AND($J72>1,$J72<5), IF($J72=4, "Unknown", E72+F72), 0),"Not required") -> 40835 | O72: =IF(INTRO!$E$44="Endemic", IF(AND($K72>0,$K72<5), IF($K72=4,"Unknown", IF($K72=1, $F72*0.33, IF($K72=2, $F72*0.5+$G72*0.2, SUM(F72:G72)))), 0),"Not required") -> 88166 | P72: 0 | R72: 0 | S72: 1 | V72: MDA 1 | W72: T1 | X72: 33244 | Y72: Inhassunge | AA72: TRUE | AB72: Zambezia | AC72: Inhassunge | AD72: 1 | AE72: 4 | AF72: 3 | AG72: 3 | AH72: TRUE | AI72: TRUE | AJ72: TRUE | AK72: TRUE | AO72: 1 | AQ72: 3 | AR72: 3 | AS72: TRUE | AU72: TRUE | AV72: TRUE | AY72: ='MDA1'!M72 -> 0 | AZ72: ='T1'!O72 -> 0 | BA72: ='T2'!M72 -> 0 | BD72: =DISTRICT!H71:H72 -> 0 | BE72: =DISTRICT!X72 -> 0 | BF72: =DISTRICT!AH72 -> 0 | BI72: 2 | BJ72: 1 | BK72: FALSE | BL72: TRUE | BM72: Inhassunge | BN72: TRUE
A73: =IF(INTRO!$E$34<>0,INTRO!$E$34,"") -> Mozambique | B73: Zambezia | C73: Luabo | D73: 59554 | E73: =IF(INTRO!$E$48="","",ROUND($D73*INTRO!$E$48,0)) -> 6908 | F73: =IF(INTRO!$E$49="","",ROUND($D73*INTRO!$E$49,0)) -> 16675 | G73: =IF(INTRO!$E$50="","",ROUND($D73*INTRO!$E$50,0)) -> 34244 | H73: 1 | I73: 4 | J73: 3 | K73: 2 | L73: =IF(INTRO!$E$38="Endemic", IF($H73>0, IF($H73=4,"Unknown", IF($H73=99,"Stopped", $D73)), 0),"Not required") -> 59554 | M73: =IF(INTRO!$E$40="Endemic", IF($I73>0, IF($I73=4,"Unknown",IF($I73=99,"Stopped", $D73)), 0),"Not required") -> Not required | N73: =IF(INTRO!$E$42="Endemic", IF(AND($J73>1,$J73<5), IF($J73=4, "Unknown", E73+F73), 0),"Not required") -> 23583 | O73: =IF(INTRO!$E$44="Endemic", IF(AND($K73>0,$K73<5), IF($K73=4,"Unknown", IF($K73=1, $F73*0.33, IF($K73=2, $F73*0.5+$G73*0.2, SUM(F73:G73)))), 0),"Not required") -> 15186.3 | P73: 0 | R73: 0 | S73: 0 | V73: MDA 1 | W73: T1 | X73: 33245 | Y73: Luabo | AA73: TRUE | AB73: Zambezia | AC73: Luabo | AD73: 1 | AE73: 4 | AF73: 3 | AG73: 2 | AH73: TRUE | AI73: TRUE | AJ73: TRUE | AK73: TRUE | AO73: 1 | AQ73: 3 | AR73: 2 | AS73: TRUE | AU73: TRUE | AV73: TRUE | AY73: ='MDA1'!M73 -> 0 | AZ73: ='T1'!O73 -> 0 | BA73: ='T2'!M73 -> 0 | BD73: =DISTRICT!H72:H73 -> 0 | BE73: =DISTRICT!X73 -> 0 | BF73: =DISTRICT!AH73 -> 0 | BI73: 2 | BJ73: 0 | BK73: FALSE | BL73: TRUE | BM73: Luabo | BN73: TRUE
A74: =IF(INTRO!$E$34<>0,INTRO!$E$34,"") -> Mozambique | B74: Zambezia | C74: Lugela | D74: 156847.9019 | E74: =IF(INTRO!$E$48="","",ROUND($D74*INTRO!$E$48,0)) -> 18194 | F74: =IF(INTRO!$E$49="","",ROUND($D74*INTRO!$E$49,0)) -> 43917 | G74: =IF(INTRO!$E$50="","",ROUND($D74*INTRO!$E$50,0)) -> 90188 | H74: 1 | I74: 4 | J74: 2 | K74: 3 | L74: =IF(INTRO!$E$38="Endemic", IF($H74>0, IF($H74=4,"Unknown", IF($H74=99,"Stopped", $D74)), 0),"Not required") -> 156847.9019 | M74: =IF(INTRO!$E$40="Endemic", IF($I74>0, IF($I74=4,"Unknown",IF($I74=99,"Stopped", $D74)), 0),"Not required") -> Not required | N74: =IF(INTRO!$E$42="Endemic", IF(AND($J74>1,$J74<5), IF($J74=4, "Unknown", E74+F74), 0),"Not required") -> 62111 | O74: =IF(INTRO!$E$44="Endemic", IF(AND($K74>0,$K74<5), IF($K74=4,"Unknown", IF($K74=1, $F74*0.33, IF($K74=2, $F74*0.5+$G74*0.2, SUM(F74:G74)))), 0),"Not required") -> 134105 | P74: 0 | R74: 0 | S74: 1 | V74: MDA 1 | W74: T2 | X74: 33246 | Y74: Lugela | AA74: =AC74=C74 -> TRUE | AB74: Zambezia | AC74: Lugela | AD74: 1 | AE74: 4 | AF74: 2 | AG74: 3 | AH74: =AD74=H74 -> TRUE | AI74: =AE74=I74 -> TRUE | AJ74: =AF74=J74 -> TRUE | AK74: =AG74=K74 -> TRUE | AO74: 1 | AQ74: 2 | AR74: 3 | AS74: =AO74=H74 -> TRUE | AU74: TRUE | AV74: TRUE | AY74: ='MDA1'!M74 -> 0 | AZ74: ='T1'!O74 -> 0 | BA74: ='T2'!M74 -> 0 | BD74: =DISTRICT!H73:H74 -> 0 | BE74: =DISTRICT!X74 -> 0 | BF74: =DISTRICT!AH74 -> 0 | BI74: 1 | BJ74: 1 | BK74: =BI74=R74 -> FALSE | BL74: =BJ74=S74 -> TRUE | BM74: Lugela | BN74: =BM74=C74 -> TRUE
A75: =IF(INTRO!$E$34<>0,INTRO!$E$34,"") -> Mozambique | B75: Zambezia | C75: Maganja da Costa | D75: 231150.1884 | E75: =IF(INTRO!$E$48="","",ROUND($D75*INTRO!$E$48,0)) -> 26813 | F75: =IF(INTRO!$E$49="","",ROUND($D75*INTRO!$E$49,0)) -> 64722 | G75: =IF(INTRO!$E$50="","",ROUND($D75*INTRO!$E$50,0)) -> 132911 | H75: 1 | I75: 4 | J75: 2 | K75: 3 | L75: =IF(INTRO!$E$38="Endemic", IF($H75>0, IF($H75=4,"Unknown", IF($H75=99,"Stopped", $D75)), 0),"Not required") -> 231150.1884 | M75: =IF(INTRO!$E$40="Endemic", IF($I75>0, IF($I75=4,"Unknown",IF($I75=99,"Stopped", $D75)), 0),"Not required") -> Not required | N75: =IF(INTRO!$E$42="Endemic", IF(AND($J75>1,$J75<5), IF($J75=4, "Unknown", E75+F75), 0),"Not required") -> 91535 | O75: =IF(INTRO!$E$44="Endemic", IF(AND($K75>0,$K75<5), IF($K75=4,"Unknown", IF($K75=1, $F75*0.33, IF($K75=2, $F75*0.5+$G75*0.2, SUM(F75:G75)))), 0),"Not required") -> 197633 | P75: 0 | R75: 0 | S75: 1 | V75: MDA 1 | W75: T2 | X75: 33247 | Y75: Maganja da Costa | AA75: TRUE | AB75: Zambezia | AC75: Maganja da Costa | AD75: 1 | AE75: 4 | AF75: 2 | AG75: 3 | AH75: TRUE | AI75: TRUE | AJ75: TRUE | AK75: TRUE | AO75: 1 | AQ75: 2 | AR75: 3 | AS75: TRUE | AU75: TRUE | AV75: TRUE | AY75: ='MDA1'!M75 -> 0 | AZ75: ='T1'!O75 -> 0 | BA75: ='T2'!M75 -> 0 | BD75: =DISTRICT!H74:H75 -> 0 | BE75: =DISTRICT!X75 -> 0 | BF75: =DISTRICT!AH75 -> 0 | BI75: 1 | BJ75: 1 | BK75: FALSE | BL75: TRUE | BM75: Maganja da Costa | BN75: TRUE
A76: =IF(INTRO!$E$34<>0,INTRO!$E$34,"") -> Mozambique | B76: Zambezia | C76: Milange | D76: 555188 | E76: =IF(INTRO!$E$48="","",ROUND($D76*INTRO!$E$48,0)) -> 64402 | F76: =IF(INTRO!$E$49="","",ROUND($D76*INTRO!$E$49,0)) -> 155453 | G76: =IF(INTRO!$E$50="","",ROUND($D76*INTRO!$E$50,0)) -> 319233 | H76: 1 | I76: 4 | J76: 2 | K76: 3 | L76: =IF(INTRO!$E$38="Endemic", IF($H76>0, IF($H76=4,"Unknown", IF($H76=99,"Stopped", $D76)), 0),"Not required") -> 555188 | M76: =IF(INTRO!$E$40="Endemic", IF($I76>0, IF($I76=4,"Unknown",IF($I76=99,"Stopped", $D76)), 0),"Not required") -> Not required | N76: =IF(INTRO!$E$42="Endemic", IF(AND($J76>1,$J76<5), IF($J76=4, "Unknown", E76+F76), 0),"Not required") -> 219855 | O76: =IF(INTRO!$E$44="Endemic", IF(AND($K76>0,$K76<5), IF($K76=4,"Unknown", IF($K76=1, $F76*0.33, IF($K76=2, $F76*0.5+$G76*0.2, SUM(F76:G76)))), 0),"Not required") -> 474686 | P76: 0 | R76: 0 | S76: 1 | V76: MDA 1 | W76: T2 | X76: 33248 | Y76: Milange | AA76: TRUE | AB76: Zambezia | AC76: Milange | AD76: 1 | AE76: 4 | AF76: 2 | AG76: 3 | AH76: TRUE | AI76: TRUE | AJ76: TRUE | AK76: TRUE | AO76: 1 | AQ76: 2 | AR76: 3 | AS76: TRUE | AU76: TRUE | AV76: TRUE | AY76: ='MDA1'!M76 -> 0 | AZ76: ='T1'!O76 -> 0 | BA76: ='T2'!M76 -> 0 | BD76: =DISTRICT!H75:H76 -> 0 | BE76: =DISTRICT!X76 -> 0 | BF76: =DISTRICT!AH76 -> 0 | BI76: 1 | BJ76: 1 | BK76: FALSE | BL76: TRUE | BM76: Milange | BN76: TRUE
A77: =IF(INTRO!$E$34<>0,INTRO!$E$34,"") -> Mozambique | B77: Zambezia | C77: Mocuba | D77: 413841 | E77: =IF(INTRO!$E$48="","",ROUND($D77*INTRO!$E$48,0)) -> 48006 | F77: =IF(INTRO!$E$49="","",ROUND($D77*INTRO!$E$49,0)) -> 115875 | G77: =IF(INTRO!$E$50="","",ROUND($D77*INTRO!$E$50,0)) -> 237959 | H77: 1 | I77: 4 | J77: 3 | K77: 3 | L77: =IF(INTRO!$E$38="Endemic", IF($H77>0, IF($H77=4,"Unknown", IF($H77=99,"Stopped", $D77)), 0),"Not required") -> 413841 | M77: =IF(INTRO!$E$40="Endemic", IF($I77>0, IF($I77=4,"Unknown",IF($I77=99,"Stopped", $D77)), 0),"Not required") -> Not required | N77: =IF(INTRO!$E$42="Endemic", IF(AND($J77>1,$J77<5), IF($J77=4, "Unknown", E77+F77), 0),"Not required") -> 163881 | O77: =IF(INTRO!$E$44="Endemic", IF(AND($K77>0,$K77<5), IF($K77=4,"Unknown", IF($K77=1, $F77*0.33, IF($K77=2, $F77*0.5+$G77*0.2, SUM(F77:G77)))), 0),"Not required") -> 353834 | P77: 0 | R77: 0 | S77: 0 | V77: MDA 1 | W77: T1 | X77: 33249 | Y77: Mocuba | AA77: TRUE | AB77: Zambezia | AC77: Mocuba | AD77: 1 | AE77: 4 | AF77: 3 | AG77: 3 | AH77: TRUE | AI77: TRUE | AJ77: TRUE | AK77: TRUE | AO77: 1 | AQ77: 3 | AR77: 3 | AS77: TRUE | AU77: TRUE | AV77: TRUE | AY77: ='MDA1'!M77 -> 0 | AZ77: ='T1'!O77 -> 0 | BA77: ='T2'!M77 -> 0 | BD77: =DISTRICT!H76:H77 -> 0 | BE77: =DISTRICT!X77 -> 0 | BF77: =DISTRICT!AH77 -> 0 | BI77: 2 | BJ77: 1 | BK77: FALSE | BL77: FALSE | BM77: Mocuba | BN77: TRUE
A78: =IF(INTRO!$E$34<>0,INTRO!$E$34,"") -> Mozambique | B78: Zambezia | C78: Mocubela | D78: 141791 | E78: =IF(INTRO!$E$48="","",ROUND($D78*INTRO!$E$48,0)) -> 16448 | F78: =IF(INTRO!$E$49="","",ROUND($D78*INTRO!$E$49,0)) -> 39701 | G78: =IF(INTRO!$E$50="","",ROUND($D78*INTRO!$E$50,0)) -> 81530 | H78: 1 | I78: 4 | J78: 2 | K78: 3 | L78: =IF(INTRO!$E$38="Endemic", IF($H78>0, IF($H78=4,"Unknown", IF($H78=99,"Stopped", $D78)), 0),"Not required") -> 141791 | M78: =IF(INTRO!$E$40="Endemic", IF($I78>0, IF($I78=4,"Unknown",IF($I78=99,"Stopped", $D78)), 0),"Not required") -> Not required | N78: =IF(INTRO!$E$42="Endemic", IF(AND($J78>1,$J78<5), IF($J78=4, "Unknown", E78+F78), 0),"Not required") -> 56149 | O78: =IF(INTRO!$E$44="Endemic", IF(AND($K78>0,$K78<5), IF($K78=4,"Unknown", IF($K78=1, $F78*0.33, IF($K78=2, $F78*0.5+$G78*0.2, SUM(F78:G78)))), 0),"Not required") -> 121231 | P78: 0 | R78: 0 | S78: 0 | V78: MDA 1 | W78: T2 | X78: 33250 | Y78: Mocubela | AA78: TRUE | AB78: Zambezia | AC78: Mocubela | AD78: 1 | AE78: 4 | AF78: 2 | AG78: 3 | AH78: TRUE | AI78: TRUE | AJ78: TRUE | AK78: TRUE | AO78: 1 | AQ78: 2 | AR78: 3 | AS78: TRUE | AU78: TRUE | AV78: TRUE | AY78: ='MDA1'!M78 -> 0 | AZ78: ='T1'!O78 -> 0 | BA78: ='T2'!M78 -> 0 | BD78: =DISTRICT!H77:H78 -> 0 | BE78: =DISTRICT!X78 -> 0 | BF78: =DISTRICT!AH78 -> 0 | BI78: 1 | BJ78: 1 | BK78: FALSE | BL78: FALSE | BM78: Mocubela | BN78: TRUE
A79: =IF(INTRO!$E$34<>0,INTRO!$E$34,"") -> Mozambique | B79: Zambezia | C79: Molumbo | D79: 149098 | E79: =IF(INTRO!$E$48="","",ROUND($D79*INTRO!$E$48,0)) -> 17295 | F79: =IF(INTRO!$E$49="","",ROUND($D79*INTRO!$E$49,0)) -> 41747 | G79: =IF(INTRO!$E$50="","",ROUND($D79*INTRO!$E$50,0)) -> 85731 | H79: 1 | I79: 4 | J79: 2 | K79: 3 | L79: =IF(INTRO!$E$38="Endemic", IF($H79>0, IF($H79=4,"Unknown", IF($H79=99,"Stopped", $D79)), 0),"Not required") -> 149098 | M79: =IF(INTRO!$E$40="Endemic", IF($I79>0, IF($I79=4,"Unknown",IF($I79=99,"Stopped", $D79)), 0),"Not required") -> Not required | N79: =IF(INTRO!$E$42="Endemic", IF(AND($J79>1,$J79<5), IF($J79=4, "Unknown", E79+F79), 0),"Not required") -> 59042 | O79: =IF(INTRO!$E$44="Endemic", IF(AND($K79>0,$K79<5), IF($K79=4,"Unknown", IF($K79=1, $F79*0.33, IF($K79=2, $F79*0.5+$G79*0.2, SUM(F79:G79)))), 0),"Not required") -> 127478 | P79: 0 | R79: 0 | S79: 0 | V79: MDA 1 | W79: T2 | X79: 33252 | Y79: Molumbo | AA79: TRUE | AB79: Zambezia | AC79: Molumbo | AD79: 1 | AE79: 4 | AF79: 2 | AG79: 3 | AH79: TRUE | AI79: TRUE | AJ79: TRUE | AK79: TRUE | AO79: 1 | AQ79: 2 | AR79: 3 | AS79: TRUE | AU79: TRUE | AV79: TRUE | AY79: ='MDA1'!M79 -> 0 | AZ79: ='T1'!O79 -> 0 | BA79: ='T2'!M79 -> 0 | BD79: =DISTRICT!H78:H79 -> 0 | BE79: =DISTRICT!X79 -> 0 | BF79: =DISTRICT!AH79 -> 0 | BI79: 1 | BJ79: 1 | BK79: FALSE | BL79: FALSE | BM79: Molumbo | BN79: TRUE
A80: =IF(INTRO!$E$34<>0,INTRO!$E$34,"") -> Mozambique | B80: Zambezia | C80: Mopeia | D80: 174763.366 | E80: =IF(INTRO!$E$48="","",ROUND($D80*INTRO!$E$48,0)) -> 20273 | F80: =IF(INTRO!$E$49="","",ROUND($D80*INTRO!$E$49,0)) -> 48934 | G80: =IF(INTRO!$E$50="","",ROUND($D80*INTRO!$E$50,0)) -> 100489 | H80: 1 | I80: 4 | J80: 2 | K80: 3 | L80: =IF(INTRO!$E$38="Endemic", IF($H80>0, IF($H80=4,"Unknown", IF($H80=99,"Stopped", $D80)), 0),"Not required") -> 174763.366 | M80: =IF(INTRO!$E$40="Endemic", IF($I80>0, IF($I80=4,"Unknown",IF($I80=99,"Stopped", $D80)), 0),"Not required") -> Not required | N80: =IF(INTRO!$E$42="Endemic", IF(AND($J80>1,$J80<5), IF($J80=4, "Unknown", E80+F80), 0),"Not required") -> 69207 | O80: =IF(INTRO!$E$44="Endemic", IF(AND($K80>0,$K80<5), IF($K80=4,"Unknown", IF($K80=1, $F80*0.33, IF($K80=2, $F80*0.5+$G80*0.2, SUM(F80:G80)))), 0),"Not required") -> 149423 | P80: 0 | R80: 0 | S80: 0 | V80: MDA 1 | W80: T2 | X80: 33253 | Y80: Mopeia | AA80: TRUE | AB80: Zambezia | AC80: Mopeia | AD80: 1 | AE80: 4 | AF80: 2 | AG80: 3 | AH80: TRUE | AI80: TRUE | AJ80: TRUE | AK80: TRUE | AO80: 1 | AQ80: 2 | AR80: 3 | AS80: TRUE | AU80: TRUE | AV80: TRUE | AY80: ='MDA1'!M80 -> 0 | AZ80: ='T1'!O80 -> 0 | BA80: ='T2'!M80 -> 0 | BD80: =DISTRICT!H79:H80 -> 0 | BE80: =DISTRICT!X80 -> 0 | BF80: =DISTRICT!AH80 -> 0 | BI80: 1 | BJ80: 1 | BK80: FALSE | BL80: FALSE | BM80: Mopeia | BN80: TRUE
A81: =IF(INTRO!$E$34<>0,INTRO!$E$34,"") -> Mozambique | B81: Zambezia | C81: Morrumbala | D81: 385582.7053 | E81: =IF(INTRO!$E$48="","",ROUND($D81*INTRO!$E$48,0)) -> 44728 | F81: =IF(INTRO!$E$49="","",ROUND($D81*INTRO!$E$49,0)) -> 107963 | G81: =IF(INTRO!$E$50="","",ROUND($D81*INTRO!$E$50,0)) -> 221710 | H81: 1 | I81: 4 | J81: 3 | K81: 3 | L81: =IF(INTRO!$E$38="Endemic", IF($H81>0, IF($H81=4,"Unknown", IF($H81=99,"Stopped", $D81)), 0),"Not required") -> 385582.7053 | M81: =IF(INTRO!$E$40="Endemic", IF($I81>0, IF($I81=4,"Unknown",IF($I81=99,"Stopped", $D81)), 0),"Not required") -> Not required | N81: =IF(INTRO!$E$42="Endemic", IF(AND($J81>1,$J81<5), IF($J81=4, "Unknown", E81+F81), 0),"Not required") -> 152691 | O81: =IF(INTRO!$E$44="Endemic", IF(AND($K81>0,$K81<5), IF($K81=4,"Unknown", IF($K81=1, $F81*0.33, IF($K81=2, $F81*0.5+$G81*0.2, SUM(F81:G81)))), 0),"Not required") -> 329673 | P81: 0 | R81: 0 | S81: 0 | V81: MDA 1 | W81: T1 | X81: 33254 | Y81: Morrumbala | AA81: TRUE | AB81: Zambezia | AC81: Morrumbala | AD81: 1 | AE81: 4 | AF81: 3 | AG81: 3 | AH81: TRUE | AI81: TRUE | AJ81: TRUE | AK81: TRUE | AO81: 1 | AQ81: 3 | AR81: 3 | AS81: TRUE | AU81: TRUE | AV81: TRUE | AY81: ='MDA1'!M81 -> 0 | AZ81: ='T1'!O81 -> 0 | BA81: ='T2'!M81 -> 0 | BD81: =DISTRICT!H80:H81 -> 0 | BE81: =DISTRICT!X81 -> 0 | BF81: =DISTRICT!AH81 -> 0 | BI81: 2 | BJ81: 1 | BK81: FALSE | BL81: FALSE | BM81: Morrumbala | BN81: TRUE
A82: =IF(INTRO!$E$34<>0,INTRO!$E$34,"") -> Mozambique | B82: Zambezia | C82: Mulevala | D82: 100572 | E82: =IF(INTRO!$E$48="","",ROUND($D82*INTRO!$E$48,0)) -> 11666 | F82: =IF(INTRO!$E$49="","",ROUND($D82*INTRO!$E$49,0)) -> 28160 | G82: =IF(INTRO!$E$50="","",ROUND($D82*INTRO!$E$50,0)) -> 57829 | H82: 1 | I82: 4 | J82: 2 | K82: 3 | L82: =IF(INTRO!$E$38="Endemic", IF($H82>0, IF($H82=4,"Unknown", IF($H82=99,"Stopped", $D82)), 0),"Not required") -> 100572 | M82: =IF(INTRO!$E$40="Endemic", IF($I82>0, IF($I82=4,"Unknown",IF($I82=99,"Stopped", $D82)), 0),"Not required") -> Not required | N82: =IF(INTRO!$E$42="Endemic", IF(AND($J82>1,$J82<5), IF($J82=4, "Unknown", E82+F82), 0),"Not required") -> 39826 | O82: =IF(INTRO!$E$44="Endemic", IF(AND($K82>0,$K82<5), IF($K82=4,"Unknown", IF($K82=1, $F82*0.33, IF($K82=2, $F82*0.5+$G82*0.2, SUM(F82:G82)))), 0),"Not required") -> 85989 | P82: 0 | R82: 0 | S82: 0 | V82: MDA 1 | W82: T2 | X82: 33255 | Y82: Mulevala | AA82: TRUE | AB82: Zambezia | AC82: Mulevala | AD82: 1 | AE82: 4 | AF82: 2 | AG82: 3 | AH82: TRUE | AI82: TRUE | AJ82: TRUE | AK82: TRUE | AO82: 1 | AQ82: 2 | AR82: 3 | AS82: TRUE | AU82: TRUE | AV82: TRUE | AY82: ='MDA1'!M82 -> 0 | AZ82: ='T1'!O82 -> 0 | BA82: ='T2'!M82 -> 0 | BD82: =DISTRICT!H81:H82 -> 0 | BE82: =DISTRICT!X82 -> 0 | BF82: =DISTRICT!AH82 -> 0 | BI82: 1 | BJ82: 1 | BK82: FALSE | BL82: FALSE | BM82: Mulevala | BN82: TRUE
A83: =IF(INTRO!$E$34<>0,INTRO!$E$34,"") -> Mozambique | B83: Zambezia | C83: Namacurra | D83: 354086.7561 | E83: =IF(INTRO!$E$48="","",ROUND($D83*INTRO!$E$48,0)) -> 41074 | F83: =IF(INTRO!$E$49="","",ROUND($D83*INTRO!$E$49,0)) -> 99144 | G83: =IF(INTRO!$E$50="","",ROUND($D83*INTRO!$E$50,0)) -> 203600 | H83: 1 | I83: 4 | J83: 2 | K83: 2 | L83: =IF(INTRO!$E$38="Endemic", IF($H83>0, IF($H83=4,"Unknown", IF($H83=99,"Stopped", $D83)), 0),"Not required") -> 354086.7561 | M83: =IF(INTRO!$E$40="Endemic", IF($I83>0, IF($I83=4,"Unknown",IF($I83=99,"Stopped", $D83)), 0),"Not required") -> Not required | N83: =IF(INTRO!$E$42="Endemic", IF(AND($J83>1,$J83<5), IF($J83=4, "Unknown", E83+F83), 0),"Not required") -> 140218 | O83: =IF(INTRO!$E$44="Endemic", IF(AND($K83>0,$K83<5), IF($K83=4,"Unknown", IF($K83=1, $F83*0.33, IF($K83=2, $F83*0.5+$G83*0.2, SUM(F83:G83)))), 0),"Not required") -> 90292 | P83: 0 | R83: 0 | S83: 0 | V83: MDA 1 | W83: T2 | X83: 33256 | Y83: Namacurra | AA83: TRUE | AB83: Zambezia | AC83: Namacurra | AD83: 1 | AE83: 4 | AF83: 2 | AG83: 2 | AH83: TRUE | AI83: TRUE | AJ83: TRUE | AK83: TRUE | AO83: 1 | AQ83: 2 | AR83: 2 | AS83: TRUE | AU83: TRUE | AV83: TRUE | AY83: ='MDA1'!M83 -> 0 | AZ83: ='T1'!O83 -> 0 | BA83: ='T2'!M83 -> 0 | BD83: =DISTRICT!H82:H83 -> 0 | BE83: =DISTRICT!X83 -> 0 | BF83: =DISTRICT!AH83 -> 0 | BI83: 1 | BJ83: 0 | BK83: FALSE | BL83: TRUE | BM83: Namacurra | BN83: TRUE
A84: =IF(INTRO!$E$34<>0,INTRO!$E$34,"") -> Mozambique | B84: Zambezia | C84: Namarrói | D84: 154489.6487 | E84: =IF(INTRO!$E$48="","",ROUND($D84*INTRO!$E$48,0)) -> 17921 | F84: =IF(INTRO!$E$49="","",ROUND($D84*INTRO!$E$49,0)) -> 43257 | G84: =IF(INTRO!$E$50="","",ROUND($D84*INTRO!$E$50,0)) -> 88832 | H84: 1 | I84: 4 | J84: 3 | K84: 3 | L84: =IF(INTRO!$E$38="Endemic", IF($H84>0, IF($H84=4,"Unknown", IF($H84=99,"Stopped", $D84)), 0),"Not required") -> 154489.6487 | M84: =IF(INTRO!$E$40="Endemic", IF($I84>0, IF($I84=4,"Unknown",IF($I84=99,"Stopped", $D84)), 0),"Not required") -> Not required | N84: =IF(INTRO!$E$42="Endemic", IF(AND($J84>1,$J84<5), IF($J84=4, "Unknown", E84+F84), 0),"Not required") -> 61178 | O84: =IF(INTRO!$E$44="Endemic", IF(AND($K84>0,$K84<5), IF($K84=4,"Unknown", IF($K84=1, $F84*0.33, IF($K84=2, $F84*0.5+$G84*0.2, SUM(F84:G84)))), 0),"Not required") -> 132089 | P84: 0 | R84: 0 | S84: 0 | V84: MDA 1 | W84: T1 | X84: 33257 | Y84: Namarrói | AA84: TRUE | AB84: Zambezia | AC84: Namarrói | AD84: 1 | AE84: 4 | AF84: 3 | AG84: 3 | AH84: TRUE | AI84: TRUE | AJ84: TRUE | AK84: TRUE | AO84: 1 | AQ84: 3 | AR84: 3 | AS84: TRUE | AU84: TRUE | AV84: TRUE | AY84: ='MDA1'!M84 -> 0 | AZ84: ='T1'!O84 -> 0 | BA84: ='T2'!M84 -> 0 | BD84: =DISTRICT!H83:H84 -> 0 | BE84: =DISTRICT!X84 -> 0 | BF84: =DISTRICT!AH84 -> 0 | BI84: 2 | BJ84: 1 | BK84: FALSE | BL84: FALSE | BM84: Namarrói | BN84: TRUE
A85: =IF(INTRO!$E$34<>0,INTRO!$E$34,"") -> Mozambique | B85: Zambezia | C85: Nicoadala | D85: 164276.6688 | E85: =IF(INTRO!$E$48="","",ROUND($D85*INTRO!$E$48,0)) -> 19056 | F85: =IF(INTRO!$E$49="","",ROUND($D85*INTRO!$E$49,0)) -> 45997 | G85: =IF(INTRO!$E$50="","",ROUND($D85*INTRO!$E$50,0)) -> 94459 | H85: 1 | I85: 4 | J85: 3 | K85: 2 | L85: =IF(INTRO!$E$38="Endemic", IF($H85>0, IF($H85=4,"Unknown", IF($H85=99,"Stopped", $D85)), 0),"Not required") -> 164276.6688 | M85: =IF(INTRO!$E$40="Endemic", IF($I85>0, IF($I85=4,"Unknown",IF($I85=99,"Stopped", $D85)), 0),"Not required") -> Not required | N85: =IF(INTRO!$E$42="Endemic", IF(AND($J85>1,$J85<5), IF($J85=4, "Unknown", E85+F85), 0),"Not required") -> 65053 | O85: =IF(INTRO!$E$44="Endemic", IF(AND($K85>0,$K85<5), IF($K85=4,"Unknown", IF($K85=1, $F85*0.33, IF($K85=2, $F85*0.5+$G85*0.2, SUM(F85:G85)))), 0),"Not required") -> 41890.3 | P85: 0 | R85: 0 | S85: 0 | V85: MDA 1 | W85: T1 | X85: 33258 | Y85: Nicoadala | AA85: TRUE | AB85: Zambezia | AC85: Nicoadala | AD85: 1 | AE85: 4 | AF85: 3 | AG85: 2 | AH85: TRUE | AI85: TRUE | AJ85: TRUE | AK85: TRUE | AO85: 1 | AQ85: 3 | AR85: 2 | AS85: TRUE | AU85: TRUE | AV85: TRUE | AY85: ='MDA1'!M85 -> 0 | AZ85: ='T1'!O85 -> 0 | BA85: ='T2'!M85 -> 0 | BD85: =DISTRICT!H84:H85 -> 0 | BE85: =DISTRICT!X85 -> 0 | BF85: =DISTRICT!AH85 -> 0 | BI85: 2 | BJ85: 0 | BK85: FALSE | BL85: TRUE | BM85: Nicoadala | BN85: TRUE
A86: =IF(INTRO!$E$34<>0,INTRO!$E$34,"") -> Mozambique | B86: Zambezia | C86: Pebane | D86: 235976.2387 | E86: =IF(INTRO!$E$48="","",ROUND($D86*INTRO!$E$48,0)) -> 27373 | F86: =IF(INTRO!$E$49="","",ROUND($D86*INTRO!$E$49,0)) -> 66073 | G86: =IF(INTRO!$E$50="","",ROUND($D86*INTRO!$E$50,0)) -> 135686 | H86: 1 | I86: 4 | J86: 3 | K86: 3 | L86: =IF(INTRO!$E$38="Endemic", IF($H86>0, IF($H86=4,"Unknown", IF($H86=99,"Stopped", $D86)), 0),"Not required") -> 235976.2387 | M86: =IF(INTRO!$E$40="Endemic", IF($I86>0, IF($I86=4,"Unknown",IF($I86=99,"Stopped", $D86)), 0),"Not required") -> Not required | N86: =IF(INTRO!$E$42="Endemic", IF(AND($J86>1,$J86<5), IF($J86=4, "Unknown", E86+F86), 0),"Not required") -> 93446 | O86: =IF(INTRO!$E$44="Endemic", IF(AND($K86>0,$K86<5), IF($K86=4,"Unknown", IF($K86=1, $F86*0.33, IF($K86=2, $F86*0.5+$G86*0.2, SUM(F86:G86)))), 0),"Not required") -> 201759 | P86: 0 | R86: 0 | S86: 0 | V86: MDA 1 | W86: T1 | X86: 33259 | Y86: Pebane | AA86: TRUE | AB86: Zambezia | AC86: Pebane | AD86: 1 | AE86: 4 | AF86: 3 | AG86: 3 | AH86: TRUE | AI86: TRUE | AJ86: TRUE | AK86: TRUE | AO86: 1 | AQ86: 3 | AR86: 3 | AS86: TRUE | AU86: TRUE | AV86: TRUE | AY86: ='MDA1'!M86 -> 0 | AZ86: ='T1'!O86 -> 0 | BA86: ='T2'!M86 -> 0 | BD86: =DISTRICT!H85:H86 -> 0 | BE86: =DISTRICT!X86 -> 0 | BF86: =DISTRICT!AH86 -> 0 | BI86: 2 | BJ86: 1 | BK86: FALSE | BL86: FALSE | BM86: Pebane | BN86: TRUE
A87: =IF(INTRO!$E$34<>0,INTRO!$E$34,"") -> Mozambique | B87: Tete | C87: Cid Tete | D87: 241374.4285 | E87: =IF(INTRO!$E$48="","",ROUND($D87*INTRO!$E$48,0)) -> 27999 | F87: =IF(INTRO!$E$49="","",ROUND($D87*INTRO!$E$49,0)) -> 67585 | G87: =IF(INTRO!$E$50="","",ROUND($D87*INTRO!$E$50,0)) -> 138790 | H87: 99 | I87: 4 | J87: 2 | K87: 2 | L87: =IF(INTRO!$E$38="Endemic", IF($H87>0, IF($H87=4,"Unknown", IF($H87=99,"Stopped", $D87)), 0),"Not required") -> Stopped | M87: =IF(INTRO!$E$40="Endemic", IF($I87>0, IF($I87=4,"Unknown",IF($I87=99,"Stopped", $D87)), 0),"Not required") -> Not required | N87: =IF(INTRO!$E$42="Endemic", IF(AND($J87>1,$J87<5), IF($J87=4, "Unknown", E87+F87), 0),"Not required") -> 95584 | O87: =IF(INTRO!$E$44="Endemic", IF(AND($K87>0,$K87<5), IF($K87=4,"Unknown", IF($K87=1, $F87*0.33, IF($K87=2, $F87*0.5+$G87*0.2, SUM(F87:G87)))), 0),"Not required") -> 61550.5 | P87: 0 | R87: 1 | S87: 1 | T87: T1 (PZQ+ALB/MBD) | W87: T1 | X87: 33228 | Y87: Cid Tete | AA87: TRUE | AB87: Tete | AC87: Cid Tete | AD87: 99 | AE87: 4 | AF87: 2 | AG87: 2 | AH87: TRUE | AI87: TRUE | AJ87: TRUE | AK87: TRUE | AO87: 1 | AQ87: 2 | AR87: 2 | AS87: FALSE | AU87: TRUE | AV87: TRUE | AY87: ='MDA1'!M87 -> 0 | AZ87: ='T1'!O87 -> 75520 | BA87: ='T2'!M87 -> 0 | BD87: =DISTRICT!H86:H87 -> 0 | BE87: =DISTRICT!X87 -> 67585 | BF87: =DISTRICT!AH87 -> 33792.5 | BI87: 1 | BJ87: 0 | BK87: TRUE | BL87: FALSE | BM87: Cid Tete | BN87: TRUE
A88: =IF(INTRO!$E$34<>0,INTRO!$E$34,"") -> Mozambique | B88: Tete | C88: Angónia | D88: 413741.7597 | E88: =IF(INTRO!$E$48="","",ROUND($D88*INTRO!$E$48,0)) -> 47994 | F88: =IF(INTRO!$E$49="","",ROUND($D88*INTRO!$E$49,0)) -> 115848 | G88: =IF(INTRO!$E$50="","",ROUND($D88*INTRO!$E$50,0)) -> 237902 | H88: 99 | I88: 4 | J88: 2 | K88: 2 | L88: =IF(INTRO!$E$38="Endemic", IF($H88>0, IF($H88=4,"Unknown", IF($H88=99,"Stopped", $D88)), 0),"Not required") -> Stopped | M88: =IF(INTRO!$E$40="Endemic", IF($I88>0, IF($I88=4,"Unknown",IF($I88=99,"Stopped", $D88)), 0),"Not required") -> Not required | N88: =IF(INTRO!$E$42="Endemic", IF(AND($J88>1,$J88<5), IF($J88=4, "Unknown", E88+F88), 0),"Not required") -> 163842 | O88: =IF(INTRO!$E$44="Endemic", IF(AND($K88>0,$K88<5), IF($K88=4,"Unknown", IF($K88=1, $F88*0.33, IF($K88=2, $F88*0.5+$G88*0.2, SUM(F88:G88)))), 0),"Not required") -> 105504.4 | P88: 0 | R88: 1 | S88: 1 | T88: T1 (PZQ+ALB/MBD) | W88: T1 | X88: 33223 | Y88: Angónia | AA88: TRUE | AB88: Tete | AC88: Angónia | AD88: 99 | AE88: 4 | AF88: 2 | AG88: 2 | AH88: TRUE | AI88: TRUE | AJ88: TRUE | AK88: TRUE | AO88: 1 | AQ88: 2 | AR88: 2 | AS88: FALSE | AU88: TRUE | AV88: TRUE | AY88: ='MDA1'!M88 -> 0 | AZ88: ='T1'!O88 -> 111154 | BA88: ='T2'!M88 -> 0 | BD88: =DISTRICT!H87:H88 -> 0 | BE88: =DISTRICT!X88 -> 111154 | BF88: =DISTRICT!AH88 -> 57924 | BI88: 1 | BJ88: 0 | BK88: TRUE | BL88: FALSE | BM88: Angónia | BN88: TRUE
A89: =IF(INTRO!$E$34<>0,INTRO!$E$34,"") -> Mozambique | B89: Tete | C89: Cahora Bassa | D89: 145357.2911 | E89: =IF(INTRO!$E$48="","",ROUND($D89*INTRO!$E$48,0)) -> 16861 | F89: =IF(INTRO!$E$49="","",ROUND($D89*INTRO!$E$49,0)) -> 40700 | G89: =IF(INTRO!$E$50="","",ROUND($D89*INTRO!$E$50,0)) -> 83580 | H89: 99 | I89: 4 | J89: 2 | K89: 2 | L89: =IF(INTRO!$E$38="Endemic", IF($H89>0, IF($H89=4,"Unknown", IF($H89=99,"Stopped", $D89)), 0),"Not required") -> Stopped | M89: =IF(INTRO!$E$40="Endemic", IF($I89>0, IF($I89=4,"Unknown",IF($I89=99,"Stopped", $D89)), 0),"Not required") -> Not required | N89: =IF(INTRO!$E$42="Endemic", IF(AND($J89>1,$J89<5), IF($J89=4, "Unknown", E89+F89), 0),"Not required") -> 57561 | O89: =IF(INTRO!$E$44="Endemic", IF(AND($K89>0,$K89<5), IF($K89=4,"Unknown", IF($K89=1, $F89*0.33, IF($K89=2, $F89*0.5+$G89*0.2, SUM(F89:G89)))), 0),"Not required") -> 37066 | P89: 0 | R89: 1 | S89: 1 | T89: T1 (PZQ+ALB/MBD) | W89: T1 | X89: 33224 | Y89: Cahora Bassa | AA89: TRUE | AB89: Tete | AC89: Cahora Bassa | AD89: 99 | AE89: 4 | AF89: 2 | AG89: 2 | AH89: TRUE | AI89: TRUE | AJ89: TRUE | AK89: TRUE | AO89: 1 | AQ89: 2 | AR89: 2 | AS89: FALSE | AU89: =AQ89=J89 -> TRUE | AV89: =AR89=K89 -> TRUE | AY89: ='MDA1'!M89 -> 0 | AZ89: ='T1'!O89 -> 38619.5 | BA89: ='T2'!M89 -> 0 | BD89: =DISTRICT!H88:H89 -> 0 | BE89: =DISTRICT!X89 -> 38619.5 | BF89: =DISTRICT!AH89 -> 20350 | BI89: 1 | BJ89: 0 | BK89: TRUE | BL89: FALSE | BM89: Cahora Bassa | BN89: TRUE
A90: =IF(INTRO!$E$34<>0,INTRO!$E$34,"") -> Mozambique | B90: Tete | C90: Changara | D90: 149032.743 | E90: =IF(INTRO!$E$48="","",ROUND($D90*INTRO!$E$48,0)) -> 17288 | F90: =IF(INTRO!$E$49="","",ROUND($D90*INTRO!$E$49,0)) -> 41729 | G90: =IF(INTRO!$E$50="","",ROUND($D90*INTRO!$E$50,0)) -> 85694 | H90: 99 | I90: 4 | J90: 2 | K90: 2 | L90: =IF(INTRO!$E$38="Endemic", IF($H90>0, IF($H90=4,"Unknown", IF($H90=99,"Stopped", $D90)), 0),"Not required") -> Stopped | M90: =IF(INTRO!$E$40="Endemic", IF($I90>0, IF($I90=4,"Unknown",IF($I90=99,"Stopped", $D90)), 0),"Not required") -> Not required | N90: =IF(INTRO!$E$42="Endemic", IF(AND($J90>1,$J90<5), IF($J90=4, "Unknown", E90+F90), 0),"Not required") -> 59017 | O90: =IF(INTRO!$E$44="Endemic", IF(AND($K90>0,$K90<5), IF($K90=4,"Unknown", IF($K90=1, $F90*0.33, IF($K90=2, $F90*0.5+$G90*0.2, SUM(F90:G90)))), 0),"Not required") -> 38003.3 | P90: 0 | R90: 1 | S90: 1 | T90: T1 (PZQ+ALB/MBD) | W90: T1 | X90: 33225 | Y90: Changara | AA90: TRUE | AB90: Tete | AC90: Changara | AD90: 99 | AE90: 4 | AF90: 2 | AG90: 2 | AH90: TRUE | AI90: TRUE | AJ90: TRUE | AK90: TRUE | AO90: 1 | AQ90: 2 | AR90: 2 | AS90: FALSE | AU90: TRUE | AV90: TRUE | AY90: ='MDA1'!M90 -> 0 | AZ90: ='T1'!O90 -> 39780 | BA90: ='T2'!M90 -> 0 | BD90: =DISTRICT!H89:H90 -> 0 | BE90: =DISTRICT!X90 -> 39780 | BF90: =DISTRICT!AH90 -> 20864.5 | BI90: 1 | BJ90: 0 | BK90: TRUE | BL90: FALSE | BM90: Changara | BN90: TRUE
A91: =IF(INTRO!$E$34<>0,INTRO!$E$34,"") -> Mozambique | B91: Tete | C91: Chifunde | D91: 199377.3208 | E91: =IF(INTRO!$E$48="","",ROUND($D91*INTRO!$E$48,0)) -> 23128 | F91: =IF(INTRO!$E$49="","",ROUND($D91*INTRO!$E$49,0)) -> 55826 | G91: =IF(INTRO!$E$50="","",ROUND($D91*INTRO!$E$50,0)) -> 114642 | H91: 1 | I91: 4 | J91: 3 | K91: 2 | L91: =IF(INTRO!$E$38="Endemic", IF($H91>0, IF($H91=4,"Unknown", IF($H91=99,"Stopped", $D91)), 0),"Not required") -> 199377.3208 | M91: =IF(INTRO!$E$40="Endemic", IF($I91>0, IF($I91=4,"Unknown",IF($I91=99,"Stopped", $D91)), 0),"Not required") -> Not required | N91: =IF(INTRO!$E$42="Endemic", IF(AND($J91>1,$J91<5), IF($J91=4, "Unknown", E91+F91), 0),"Not required") -> 78954 | O91: =IF(INTRO!$E$44="Endemic", IF(AND($K91>0,$K91<5), IF($K91=4,"Unknown", IF($K91=1, $F91*0.33, IF($K91=2, $F91*0.5+$G91*0.2, SUM(F91:G91)))), 0),"Not required") -> 50841.4 | P91: 1 | R91: 1 | S91: 1 | T91: MDA1 (IVM+ALB) | U91: T2 (PZQ) | V91: MDA 1 | W91: T1 | X91: 33226 | Y91: Chifunde | AA91: TRUE | AB91: Tete | AC91: Chifunde | AD91: 99 | AE91: 4 | AF91: 3 | AG91: 2 | AH91: FALSE | AI91: TRUE | AJ91: TRUE | AK91: TRUE | AO91: 1 | AQ91: 3 | AR91: 2 | AS91: TRUE | AU91: TRUE | AV91: TRUE | AY91: ='MDA1'!M91 -> 131460 | AZ91: ='T1'!O91 -> 0 | BA91: ='T2'!M91 -> 63974 | BD91: =DISTRICT!H90:H91 -> 131460 | BE91: =DISTRICT!X91 -> 55826 | BF91: =DISTRICT!AH91 -> 27913 | BI91: 2 | BJ91: 0 | BK91: FALSE | BL91: FALSE | BM91: Chifunde | BN91: TRUE
A92: =IF(INTRO!$E$34<>0,INTRO!$E$34,"") -> Mozambique | B92: Tete | C92: Chiúta | D92: 106260.7195 | E92: =IF(INTRO!$E$48="","",ROUND($D92*INTRO!$E$48,0)) -> 12326 | F92: =IF(INTRO!$E$49="","",ROUND($D92*INTRO!$E$49,0)) -> 29753 | G92: =IF(INTRO!$E$50="","",ROUND($D92*INTRO!$E$50,0)) -> 61100 | H92: 99 | I92: 4 | J92: 2 | K92: 2 | L92: =IF(INTRO!$E$38="Endemic", IF($H92>0, IF($H92=4,"Unknown", IF($H92=99,"Stopped", $D92)), 0),"Not required") -> Stopped | M92: =IF(INTRO!$E$40="Endemic", IF($I92>0, IF($I92=4,"Unknown",IF($I92=99,"Stopped", $D92)), 0),"Not required") -> Not required | N92: =IF(INTRO!$E$42="Endemic", IF(AND($J92>1,$J92<5), IF($J92=4, "Unknown", E92+F92), 0),"Not required") -> 42079 | O92: =IF(INTRO!$E$44="Endemic", IF(AND($K92>0,$K92<5), IF($K92=4,"Unknown", IF($K92=1, $F92*0.33, IF($K92=2, $F92*0.5+$G92*0.2, SUM(F92:G92)))), 0),"Not required") -> 27096.5 | P92: 0 | R92: 1 | S92: 1 | T92: T1 (PZQ+ALB/MBD) | W92: T1 | X92: 33227 | Y92: Chiúta | AA92: TRUE | AB92: Tete | AC92: Chiúta | AD92: 99 | AE92: 4 | AF92: 2 | AG92: 2 | AH92: TRUE | AI92: TRUE | AJ92: TRUE | AK92: TRUE | AO92: 1 | AQ92: 2 | AR92: 2 | AS92: FALSE | AU92: TRUE | AV92: TRUE | AY92: ='MDA1'!M92 -> 0 | AZ92: ='T1'!O92 -> 27342 | BA92: ='T2'!M92 -> 0 | BD92: =DISTRICT!H91:H92 -> 0 | BE92: =DISTRICT!X92 -> 27342 | BF92: =DISTRICT!AH92 -> 14876.5 | BI92: 1 | BJ92: 0 | BK92: TRUE | BL92: FALSE | BM92: Chiúta | BN92: TRUE
A93: =IF(INTRO!$E$34<>0,INTRO!$E$34,"") -> Mozambique | B93: Tete | C93: Doa | D93: 108912.8258 | E93: =IF(INTRO!$E$48="","",ROUND($D93*INTRO!$E$48,0)) -> 12634 | F93: =IF(INTRO!$E$49="","",ROUND($D93*INTRO!$E$49,0)) -> 30496 | G93: =IF(INTRO!$E$50="","",ROUND($D93*INTRO!$E$50,0)) -> 62625 | H93: 1 | I93: 4 | J93: 2 | K93: 3 | L93: =IF(INTRO!$E$38="Endemic", IF($H93>0, IF($H93=4,"Unknown", IF($H93=99,"Stopped", $D93)), 0),"Not required") -> 108912.8258 | M93: =IF(INTRO!$E$40="Endemic", IF($I93>0, IF($I93=4,"Unknown",IF($I93=99,"Stopped", $D93)), 0),"Not required") -> Not required | N93: =IF(INTRO!$E$42="Endemic", IF(AND($J93>1,$J93<5), IF($J93=4, "Unknown", E93+F93), 0),"Not required") -> 43130 | O93: =IF(INTRO!$E$44="Endemic", IF(AND($K93>0,$K93<5), IF($K93=4,"Unknown", IF($K93=1, $F93*0.33, IF($K93=2, $F93*0.5+$G93*0.2, SUM(F93:G93)))), 0),"Not required") -> 93121 | P93: 1 | R93: 1 | S93: 1 | T93: MDA1 (IVM+ALB) | U93: T2 (PZQ) | V93: MDA 1 | W93: T2 | X93: 33229 | Y93: Doa | AA93: TRUE | AB93: Tete | AC93: Doa | AD93: 99 | AE93: 4 | AF93: 2 | AG93: 3 | AH93: FALSE | AI93: TRUE | AJ93: TRUE | AK93: TRUE | AO93: 1 | AQ93: 2 | AR93: 3 | AS93: TRUE | AU93: TRUE | AV93: TRUE | AY93: ='MDA1'!M93 -> 80041 | AZ93: ='T1'!O93 -> 0 | BA93: ='T2'!M93 -> 28234 | BD93: =DISTRICT!H92:H93 -> 80041 | BE93: =DISTRICT!X93 -> 28253 | BF93: =DISTRICT!AH93 -> 28234 | BI93: 1 | BJ93: 1 | BK93: TRUE | BL93: TRUE | BM93: Doa | BN93: TRUE
A94: =IF(INTRO!$E$34<>0,INTRO!$E$34,"") -> Mozambique | B94: Tete | C94: Macanga | D94: 258714.6186 | E94: =IF(INTRO!$E$48="","",ROUND($D94*INTRO!$E$48,0)) -> 30011 | F94: =IF(INTRO!$E$49="","",ROUND($D94*INTRO!$E$49,0)) -> 72440 | G94: =IF(INTRO!$E$50="","",ROUND($D94*INTRO!$E$50,0)) -> 148761 | H94: 99 | I94: 4 | J94: 3 | K94: 2 | L94: =IF(INTRO!$E$38="Endemic", IF($H94>0, IF($H94=4,"Unknown", IF($H94=99,"Stopped", $D94)), 0),"Not required") -> Stopped | M94: =IF(INTRO!$E$40="Endemic", IF($I94>0, IF($I94=4,"Unknown",IF($I94=99,"Stopped", $D94)), 0),"Not required") -> Not required | N94: =IF(INTRO!$E$42="Endemic", IF(AND($J94>1,$J94<5), IF($J94=4, "Unknown", E94+F94), 0),"Not required") -> 102451 | O94: =IF(INTRO!$E$44="Endemic", IF(AND($K94>0,$K94<5), IF($K94=4,"Unknown", IF($K94=1, $F94*0.33, IF($K94=2, $F94*0.5+$G94*0.2, SUM(F94:G94)))), 0),"Not required") -> 65972.2 | P94: 0 | R94: 1 | S94: 1 | T94: T1 (PZQ+ALB/MBD) | V94: T1 | W94: T3 | X94: 33230 | Y94: Macanga | AA94: TRUE | AB94: Tete | AC94: Macanga | AD94: 99 | AE94: 4 | AF94: 3 | AG94: 2 | AH94: TRUE | AI94: TRUE | AJ94: TRUE | AK94: TRUE | AO94: 1 | AQ94: 3 | AR94: 2 | AS94: FALSE | AU94: TRUE | AV94: TRUE | AY94: ='MDA1'!M94 -> 0 | AZ94: ='T1'!O94 -> 68701 | BA94: ='T2'!M94 -> 0 | BD94: =DISTRICT!H93:H94 -> 0 | BE94: =DISTRICT!X94 -> 68701 | BF94: =DISTRICT!AH94 -> 36220 | BI94: 2 | BJ94: 0 | BK94: FALSE | BL94: FALSE | BM94: Macanga | BN94: TRUE
A95: =IF(INTRO!$E$34<>0,INTRO!$E$34,"") -> Mozambique | B95: Tete | C95: Magoe | D95: 113268.9099 | E95: =IF(INTRO!$E$48="","",ROUND($D95*INTRO!$E$48,0)) -> 13139 | F95: =IF(INTRO!$E$49="","",ROUND($D95*INTRO!$E$49,0)) -> 31715 | G95: =IF(INTRO!$E$50="","",ROUND($D95*INTRO!$E$50,0)) -> 65130 | H95: 99 | I95: 4 | J95: 2 | K95: 2 | L95: =IF(INTRO!$E$38="Endemic", IF($H95>0, IF($H95=4,"Unknown", IF($H95=99,"Stopped", $D95)), 0),"Not required") -> Stopped | M95: =IF(INTRO!$E$40="Endemic", IF($I95>0, IF($I95=4,"Unknown",IF($I95=99,"Stopped", $D95)), 0),"Not required") -> Not required | N95: =IF(INTRO!$E$42="Endemic", IF(AND($J95>1,$J95<5), IF($J95=4, "Unknown", E95+F95), 0),"Not required") -> 44854 | O95: =IF(INTRO!$E$44="Endemic", IF(AND($K95>0,$K95<5), IF($K95=4,"Unknown", IF($K95=1, $F95*0.33, IF($K95=2, $F95*0.5+$G95*0.2, SUM(F95:G95)))), 0),"Not required") -> 28883.5 | P95: 0 | R95: 1 | S95: 1 | T95: T1 (PZQ+ALB/MBD) | W95: T1 | X95: 33231 | Y95: Magoe | AA95: TRUE | AB95: Tete | AC95: Magoe | AD95: 99 | AE95: 4 | AF95: 2 | AG95: 2 | AH95: TRUE | AI95: TRUE | AJ95: TRUE | AK95: TRUE | AO95: 1 | AQ95: 2 | AR95: 2 | AS95: FALSE | AU95: TRUE | AV95: TRUE | AY95: ='MDA1'!M95 -> 0 | AZ95: ='T1'!O95 -> 34144 | BA95: ='T2'!M95 -> 0 | BD95: =DISTRICT!H94:H95 -> 0 | BE95: =DISTRICT!X95 -> 31715 | BF95: =DISTRICT!AH95 -> 15857.5 | BI95: 1 | BJ95: 0 | BK95: TRUE | BL95: FALSE | BM95: Magoe | BN95: TRUE
A96: =IF(INTRO!$E$34<>0,INTRO!$E$34,"") -> Mozambique | B96: Tete | C96: Marávia | D96: 119154.489 | E96: =IF(INTRO!$E$48="","",ROUND($D96*INTRO!$E$48,0)) -> 13822 | F96: =IF(INTRO!$E$49="","",ROUND($D96*INTRO!$E$49,0)) -> 33363 | G96: =IF(INTRO!$E$50="","",ROUND($D96*INTRO!$E$50,0)) -> 68514 | H96: 0 | I96: 4 | J96: 3 | K96: 2 | L96: =IF(INTRO!$E$38="Endemic", IF($H96>0, IF($H96=4,"Unknown", IF($H96=99,"Stopped", $D96)), 0),"Not required") -> 0 | M96: =IF(INTRO!$E$40="Endemic", IF($I96>0, IF($I96=4,"Unknown",IF($I96=99,"Stopped", $D96)), 0),"Not required") -> Not required | N96: =IF(INTRO!$E$42="Endemic", IF(AND($J96>1,$J96<5), IF($J96=4, "Unknown", E96+F96), 0),"Not required") -> 47185 | O96: =IF(INTRO!$E$44="Endemic", IF(AND($K96>0,$K96<5), IF($K96=4,"Unknown", IF($K96=1, $F96*0.33, IF($K96=2, $F96*0.5+$G96*0.2, SUM(F96:G96)))), 0),"Not required") -> 30384.3 | P96: 0 | R96: 1 | S96: 1 | T96: T1 (PZQ+ALB/MBD) | V96: T1 | W96: T3 | X96: 33233 | Y96: Marávia | AA96: TRUE | AB96: Tete | AC96: Marávia | AD96: 0 | AE96: 4 | AF96: 3 | AG96: 2 | AH96: TRUE | AI96: TRUE | AJ96: TRUE | AK96: TRUE | AO96: 0 | AQ96: 3 | AR96: 2 | AS96: TRUE | AU96: TRUE | AV96: TRUE | AY96: ='MDA1'!M96 -> 0 | AZ96: ='T1'!O96 -> 29667 | BA96: ='T2'!M96 -> 0 | BD96: =DISTRICT!H95:H96 -> 0 | BE96: =DISTRICT!X96 -> 29667 | BF96: =DISTRICT!AH96 -> 16681.5 | BI96: 2 | BJ96: 0 | BK96: FALSE | BL96: FALSE | BM96: Marávia | BN96: TRUE
A97: =IF(INTRO!$E$34<>0,INTRO!$E$34,"") -> Mozambique | B97: Tete | C97: Marara | D97: 103112.4341 | E97: =IF(INTRO!$E$48="","",ROUND($D97*INTRO!$E$48,0)) -> 11961 | F97: =IF(INTRO!$E$49="","",ROUND($D97*INTRO!$E$49,0)) -> 28871 | G97: =IF(INTRO!$E$50="","",ROUND($D97*INTRO!$E$50,0)) -> 59290 | H97: 99 | I97: 4 | J97: 2 | K97: 2 | L97: =IF(INTRO!$E$38="Endemic", IF($H97>0, IF($H97=4,"Unknown", IF($H97=99,"Stopped", $D97)), 0),"Not required") -> Stopped | M97: =IF(INTRO!$E$40="Endemic", IF($I97>0, IF($I97=4,"Unknown",IF($I97=99,"Stopped", $D97)), 0),"Not required") -> Not required | N97: =IF(INTRO!$E$42="Endemic", IF(AND($J97>1,$J97<5), IF($J97=4, "Unknown", E97+F97), 0),"Not required") -> 40832 | O97: =IF(INTRO!$E$44="Endemic", IF(AND($K97>0,$K97<5), IF($K97=4,"Unknown", IF($K97=1, $F97*0.33, IF($K97=2, $F97*0.5+$G97*0.2, SUM(F97:G97)))), 0),"Not required") -> 26293.5 | P97: 0 | R97: 1 | S97: 1 | T97: T1 (PZQ+ALB/MBD) | W97: T1 | X97: 33232 | Y97: Marara | AA97: TRUE | AB97: Tete | AC97: Marara | AD97: 99 | AE97: 4 | AF97: 2 | AG97: 2 | AH97: TRUE | AI97: TRUE | AJ97: TRUE | AK97: TRUE | AO97: 1 | AQ97: 2 | AR97: 2 | AS97: FALSE | AU97: TRUE | AV97: TRUE | AY97: ='MDA1'!M97 -> 0 | AZ97: ='T1'!O97 -> 32860 | BA97: ='T2'!M97 -> 0 | BD97: =DISTRICT!H96:H97 -> 0 | BE97: =DISTRICT!X97 -> 28871 | BF97: =DISTRICT!AH97 -> 14435.5 | BI97: 1 | BJ97: 0 | BK97: TRUE | BL97: FALSE | BM97: Marara | BN97: TRUE
A98: =IF(INTRO!$E$34<>0,INTRO!$E$34,"") -> Mozambique | B98: Tete | C98: Moatize | D98: 418663.1374 | E98: =IF(INTRO!$E$48="","",ROUND($D98*INTRO!$E$48,0)) -> 48565 | F98: =IF(INTRO!$E$49="","",ROUND($D98*INTRO!$E$49,0)) -> 117226 | G98: =IF(INTRO!$E$50="","",ROUND($D98*INTRO!$E$50,0)) -> 240731 | H98: 99 | I98: 4 | J98: 2 | K98: 2 | L98: =IF(INTRO!$E$38="Endemic", IF($H98>0, IF($H98=4,"Unknown", IF($H98=99,"Stopped", $D98)), 0),"Not required") -> Stopped | M98: =IF(INTRO!$E$40="Endemic", IF($I98>0, IF($I98=4,"Unknown",IF($I98=99,"Stopped", $D98)), 0),"Not required") -> Not required | N98: =IF(INTRO!$E$42="Endemic", IF(AND($J98>1,$J98<5), IF($J98=4, "Unknown", E98+F98), 0),"Not required") -> 165791 | O98: =IF(INTRO!$E$44="Endemic", IF(AND($K98>0,$K98<5), IF($K98=4,"Unknown", IF($K98=1, $F98*0.33, IF($K98=2, $F98*0.5+$G98*0.2, SUM(F98:G98)))), 0),"Not required") -> 106759.2 | P98: 0 | R98: 1 | S98: 1 | T98: T1 (PZQ+ALB/MBD) | W98: T1 | X98: 33234 | Y98: Moatize | AA98: TRUE | AB98: Tete | AC98: Moatize | AD98: 99 | AE98: 4 | AF98: 2 | AG98: 2 | AH98: TRUE | AI98: TRUE | AJ98: TRUE | AK98: TRUE | AO98: 1 | AQ98: 2 | AR98: 2 | AS98: FALSE | AU98: TRUE | AV98: TRUE | AY98: ='MDA1'!M98 -> 0 | AZ98: ='T1'!O98 -> 108851 | BA98: ='T2'!M98 -> 0 | BD98: =DISTRICT!H97:H98 -> 0 | BE98: =DISTRICT!X98 -> 108851 | BF98: =DISTRICT!AH98 -> 58613 | BI98: 1 | BJ98: 0 | BK98: TRUE | BL98: FALSE | BM98: Moatize | BN98: TRUE
A99: =IF(INTRO!$E$34<>0,INTRO!$E$34,"") -> Mozambique | B99: Tete | C99: Mutarara | D99: 224516.7454 | E99: =IF(INTRO!$E$48="","",ROUND($D99*INTRO!$E$48,0)) -> 26044 | F99: =IF(INTRO!$E$49="","",ROUND($D99*INTRO!$E$49,0)) -> 62865 | G99: =IF(INTRO!$E$50="","",ROUND($D99*INTRO!$E$50,0)) -> 129097 | H99: 1 | I99: 4 | J99: 2 | K99: 3 | L99: =IF(INTRO!$E$38="Endemic", IF($H99>0, IF($H99=4,"Unknown", IF($H99=99,"Stopped", $D99)), 0),"Not required") -> 224516.7454 | M99: =IF(INTRO!$E$40="Endemic", IF($I99>0, IF($I99=4,"Unknown",IF($I99=99,"Stopped", $D99)), 0),"Not required") -> Not required | N99: =IF(INTRO!$E$42="Endemic", IF(AND($J99>1,$J99<5), IF($J99=4, "Unknown", E99+F99), 0),"Not required") -> 88909 | O99: =IF(INTRO!$E$44="Endemic", IF(AND($K99>0,$K99<5), IF($K99=4,"Unknown", IF($K99=1, $F99*0.33, IF($K99=2, $F99*0.5+$G99*0.2, SUM(F99:G99)))), 0),"Not required") -> 191962 | P99: 1 | R99: 1 | S99: 1 | T99: MDA1 (IVM+ALB) | U99: T2 (PZQ) | V99: MDA 1 | W99: T2 | X99: 33235 | Y99: Mutarara | AA99: TRUE | AB99: Tete | AC99: Mutarara | AD99: 99 | AE99: 4 | AF99: 2 | AG99: 3 | AH99: FALSE | AI99: TRUE | AJ99: TRUE | AK99: TRUE | AO99: 1 | AQ99: 2 | AR99: 3 | AS99: TRUE | AU99: TRUE | AV99: TRUE | AY99: ='MDA1'!M99 -> 180751 | AZ99: ='T1'!O99 -> 0 | BA99: ='T2'!M99 -> 64230 | BD99: =DISTRICT!H98:H99 -> 180751 | BE99: =DISTRICT!X99 -> 62865 | BF99: =DISTRICT!AH99 -> 62865 | BI99: 1 | BJ99: 1 | BK99: TRUE | BL99: TRUE | BM99: Mutarara | BN99: TRUE
A100: =IF(INTRO!$E$34<>0,INTRO!$E$34,"") -> Mozambique | B100: Tete | C100: Tsangano | D100: 248062.7256 | E100: =IF(INTRO!$E$48="","",ROUND($D100*INTRO!$E$48,0)) -> 28775 | F100: =IF(INTRO!$E$49="","",ROUND($D100*INTRO!$E$49,0)) -> 69458 | G100: =IF(INTRO!$E$50="","",ROUND($D100*INTRO!$E$50,0)) -> 142636 | H100: 99 | I100: 4 | J100: 3 | K100: 2 | L100: =IF(INTRO!$E$38="Endemic", IF($H100>0, IF($H100=4,"Unknown", IF($H100=99,"Stopped", $D100)), 0),"Not required") -> Stopped | M100: =IF(INTRO!$E$40="Endemic", IF($I100>0, IF($I100=4,"Unknown",IF($I100=99,"Stopped", $D100)), 0),"Not required") -> Not required | N100: =IF(INTRO!$E$42="Endemic", IF(AND($J100>1,$J100<5), IF($J100=4, "Unknown", E100+F100), 0),"Not required") -> 98233 | O100: =IF(INTRO!$E$44="Endemic", IF(AND($K100>0,$K100<5), IF($K100=4,"Unknown", IF($K100=1, $F100*0.33, IF($K100=2, $F100*0.5+$G100*0.2, SUM(F100:G100)))), 0),"Not required") -> 63256.2 | P100: 0 | R100: 1 | S100: 1 | T100: T1 (PZQ+ALB/MBD) | V100: T1 | W100: T3 | X100: 33236 | Y100: Tsangano | AA100: TRUE | AB100: Tete | AC100: Tsangano | AD100: 99 | AE100: 4 | AF100: 3 | AG100: 2 | AH100: TRUE | AI100: TRUE | AJ100: TRUE | AK100: TRUE | AO100: 1 | AQ100: 3 | AR100: 2 | AS100: FALSE | AU100: TRUE | AV100: TRUE | AY100: ='MDA1'!M100 -> 0 | AZ100: ='T1'!O100 -> 69432 | BA100: ='T2'!M100 -> 0 | BD100: =DISTRICT!H99:H100 -> 0 | BE100: =DISTRICT!X100 -> 69432 | BF100: =DISTRICT!AH100 -> 34729 | BI100: 2 | BJ100: 0 | BK100: FALSE | BL100: FALSE | BM100: Tsangano | BN100: TRUE
A101: =IF(INTRO!$E$34<>0,INTRO!$E$34,"") -> Mozambique | B101: Tete | C101: Zumbu | D101: 88971.85175 | E101: =IF(INTRO!$E$48="","",ROUND($D101*INTRO!$E$48,0)) -> 10321 | F101: =IF(INTRO!$E$49="","",ROUND($D101*INTRO!$E$49,0)) -> 24912 | G101: =IF(INTRO!$E$50="","",ROUND($D101*INTRO!$E$50,0)) -> 51159 | H101: 99 | I101: 4 | J101: 2 | K101: 2 | L101: =IF(INTRO!$E$38="Endemic", IF($H101>0, IF($H101=4,"Unknown", IF($H101=99,"Stopped", $D101)), 0),"Not required") -> Stopped | M101: =IF(INTRO!$E$40="Endemic", IF($I101>0, IF($I101=4,"Unknown",IF($I101=99,"Stopped", $D101)), 0),"Not required") -> Not required | N101: =IF(INTRO!$E$42="Endemic", IF(AND($J101>1,$J101<5), IF($J101=4, "Unknown", E101+F101), 0),"Not required") -> 35233 | O101: =IF(INTRO!$E$44="Endemic", IF(AND($K101>0,$K101<5), IF($K101=4,"Unknown", IF($K101=1, $F101*0.33, IF($K101=2, $F101*0.5+$G101*0.2, SUM(F101:G101)))), 0),"Not required") -> 22687.8 | P101: 0 | R101: 1 | S101: 1 | T101: T1 (PZQ+ALB/MBD) | W101: T1 | X101: 33237 | Y101: Zumbu | AA101: TRUE | AB101: Tete | AC101: Zumbu | AD101: 99 | AE101: 4 | AF101: 2 | AG101: 2 | AH101: TRUE | AI101: TRUE | AJ101: TRUE | AK101: TRUE | AO101: 1 | AQ101: 2 | AR101: 2 | AS101: FALSE | AU101: TRUE | AV101: TRUE | AY101: ='MDA1'!M101 -> 0 | AZ101: ='T1'!O101 -> 22676 | BA101: ='T2'!M101 -> 0 | BD101: =DISTRICT!H100:H101 -> 0 | BE101: =DISTRICT!X101 -> 22676 | BF101: =DISTRICT!AH101 -> 12456 | BI101: 1 | BJ101: 0 | BK101: TRUE | BL101: FALSE | BM101: Zumbu | BN101: TRUE
A102: =IF(INTRO!$E$34<>0,INTRO!$E$34,"") -> Mozambique | B102: Sofala | C102: Cid Beira | D102: 465917.9542 | E102: =IF(INTRO!$E$48="","",ROUND($D102*INTRO!$E$48,0)) -> 54046 | F102: =IF(INTRO!$E$49="","",ROUND($D102*INTRO!$E$49,0)) -> 130457 | G102: =IF(INTRO!$E$50="","",ROUND($D102*INTRO!$E$50,0)) -> 267903 | H102: 1 | I102: 4 | J102: 2 | K102: 3 | L102: =IF(INTRO!$E$38="Endemic", IF($H102>0, IF($H102=4,"Unknown", IF($H102=99,"Stopped", $D102)), 0),"Not required") -> 465917.9542 | M102: =IF(INTRO!$E$40="Endemic", IF($I102>0, IF($I102=4,"Unknown",IF($I102=99,"Stopped", $D102)), 0),"Not required") -> Not required | N102: =IF(INTRO!$E$42="Endemic", IF(AND($J102>1,$J102<5), IF($J102=4, "Unknown", E102+F102), 0),"Not required") -> 184503 | O102: =IF(INTRO!$E$44="Endemic", IF(AND($K102>0,$K102<5), IF($K102=4,"Unknown", IF($K102=1, $F102*0.33, IF($K102=2, $F102*0.5+$G102*0.2, SUM(F102:G102)))), 0),"Not required") -> 398360 | P102: 1 | R102: 1 | S102: 1 | T102: MDA1 (IVM+ALB) | U102: T2 (PZQ) | V102: MDA 1 | W102: T2 | X102: 33215 | Y102: Cid Beira | AA102: TRUE | AB102: Sofala | AC102: Cid Beira | AD102: 1 | AE102: 4 | AF102: 2 | AG102: 3 | AH102: TRUE | AI102: TRUE | AJ102: TRUE | AK102: TRUE | AO102: 1 | AQ102: 2 | AR102: 3 | AS102: TRUE | AU102: TRUE | AV102: TRUE | AY102: ='MDA1'!M102 -> 303768 | AZ102: ='T1'!O102 -> 0 | BA102: ='T2'!M102 -> 158912 | BD102: =DISTRICT!H101:H102 -> 303768 | BE102: =DISTRICT!X102 -> 130457 | BF102: =DISTRICT!AH102 -> 130457 | BI102: 1 | BJ102: 1 | BK102: TRUE | BL102: TRUE | BM102: Cid Beira | BN102: TRUE
A103: =IF(INTRO!$E$34<>0,INTRO!$E$34,"") -> Mozambique | B103: Sofala | C103: Buzi | D103: 207630.9317 | E103: =IF(INTRO!$E$48="","",ROUND($D103*INTRO!$E$48,0)) -> 24085 | F103: =IF(INTRO!$E$49="","",ROUND($D103*INTRO!$E$49,0)) -> 58137 | G103: =IF(INTRO!$E$50="","",ROUND($D103*INTRO!$E$50,0)) -> 119388 | H103: 0 | I103: 4 | J103: 2 | K103: 2 | L103: =IF(INTRO!$E$38="Endemic", IF($H103>0, IF($H103=4,"Unknown", IF($H103=99,"Stopped", $D103)), 0),"Not required") -> 0 | M103: =IF(INTRO!$E$40="Endemic", IF($I103>0, IF($I103=4,"Unknown",IF($I103=99,"Stopped", $D103)), 0),"Not required") -> Not required | N103: =IF(INTRO!$E$42="Endemic", IF(AND($J103>1,$J103<5), IF($J103=4, "Unknown", E103+F103), 0),"Not required") -> 82222 | O103: =IF(INTRO!$E$44="Endemic", IF(AND($K103>0,$K103<5), IF($K103=4,"Unknown", IF($K103=1, $F103*0.33, IF($K103=2, $F103*0.5+$G103*0.2, SUM(F103:G103)))), 0),"Not required") -> 52946.1 | P103: 0 | R103: 1 | S103: 1 | T103: T1 (PZQ+ALB/MBD) | W103: T1 | X103: 33210 | Y103: Buzi | AA103: TRUE | AB103: Sofala | AC103: Buzi | AD103: 0 | AE103: 4 | AF103: 2 | AG103: 2 | AH103: TRUE | AI103: TRUE | AJ103: TRUE | AK103: TRUE | AO103: 0 | AQ103: 2 | AR103: 2 | AS103: TRUE | AU103: TRUE | AV103: TRUE | AY103: ='MDA1'!M103 -> 0 | AZ103: ='T1'!O103 -> 37218 | BA103: ='T2'!M103 -> 0 | BD103: =DISTRICT!H102:H103 -> 0 | BE103: =DISTRICT!X103 -> 37218 | BF103: =DISTRICT!AH103 -> 29068.5 | BI103: 1 | BJ103: 1 | BK103: TRUE | BL103: TRUE | BM103: Buzi | BN103: TRUE
A104: =IF(INTRO!$E$34<>0,INTRO!$E$34,"") -> Mozambique | B104: Sofala | C104: Caia | D104: 163881.1574 | E104: =IF(INTRO!$E$48="","",ROUND($D104*INTRO!$E$48,0)) -> 19010 | F104: =IF(INTRO!$E$49="","",ROUND($D104*INTRO!$E$49,0)) -> 45887 | G104: =IF(INTRO!$E$50="","",ROUND($D104*INTRO!$E$50,0)) -> 94232 | H104: 1 | I104: 4 | J104: 2 | K104: 2 | L104: =IF(INTRO!$E$38="Endemic", IF($H104>0, IF($H104=4,"Unknown", IF($H104=99,"Stopped", $D104)), 0),"Not required") -> 163881.1574 | M104: =IF(INTRO!$E$40="Endemic", IF($I104>0, IF($I104=4,"Unknown",IF($I104=99,"Stopped", $D104)), 0),"Not required") -> Not required | N104: =IF(INTRO!$E$42="Endemic", IF(AND($J104>1,$J104<5), IF($J104=4, "Unknown", E104+F104), 0),"Not required") -> 64897 | O104: =IF(INTRO!$E$44="Endemic", IF(AND($K104>0,$K104<5), IF($K104=4,"Unknown", IF($K104=1, $F104*0.33, IF($K104=2, $F104*0.5+$G104*0.2, SUM(F104:G104)))), 0),"Not required") -> 41789.9 | P104: 1 | R104: 1 | S104: 1 | T104: MDA1 (IVM+ALB) | U104: T2 (PZQ) | V104: MDA 1 | W104: T2 | X104: 33211 | Y104: Caia | AA104: TRUE | AB104: Sofala | AC104: Caia | AD104: 1 | AE104: 4 | AF104: 2 | AG104: 2 | AH104: TRUE | AI104: TRUE | AJ104: TRUE | AK104: TRUE | AO104: 1 | AQ104: 2 | AR104: 2 | AS104: TRUE | AU104: TRUE | AV104: TRUE | AY104: ='MDA1'!M104 -> 151584 | AZ104: ='T1'!O104 -> 0 | BA104: ='T2'!M104 -> 74026 | BD104: =DISTRICT!H103:H104 -> 151584 | BE104: =DISTRICT!X104 -> 45887 | BF104: =DISTRICT!AH104 -> 22943.5 | BI104: 1 | BJ104: 1 | BK104: TRUE | BL104: TRUE | BM104: Caia | BN104: TRUE
A105: =IF(INTRO!$E$34<>0,INTRO!$E$34,"") -> Mozambique | B105: Sofala | C105: Chemba | D105: 85725.98687 | E105: =IF(INTRO!$E$48="","",ROUND($D105*INTRO!$E$48,0)) -> 9944 | F105: =IF(INTRO!$E$49="","",ROUND($D105*INTRO!$E$49,0)) -> 24003 | G105: =IF(INTRO!$E$50="","",ROUND($D105*INTRO!$E$50,0)) -> 49292 | H105: 1 | I105: 4 | J105: 2 | K105: 3 | L105: =IF(INTRO!$E$38="Endemic", IF($H105>0, IF($H105=4,"Unknown", IF($H105=99,"Stopped", $D105)), 0),"Not required") -> 85725.98687 | M105: =IF(INTRO!$E$40="Endemic", IF($I105>0, IF($I105=4,"Unknown",IF($I105=99,"Stopped", $D105)), 0),"Not required") -> Not required | N105: =IF(INTRO!$E$42="Endemic", IF(AND($J105>1,$J105<5), IF($J105=4, "Unknown", E105+F105), 0),"Not required") -> 33947 | O105: =IF(INTRO!$E$44="Endemic", IF(AND($K105>0,$K105<5), IF($K105=4,"Unknown", IF($K105=1, $F105*0.33, IF($K105=2, $F105*0.5+$G105*0.2, SUM(F105:G105)))), 0),"Not required") -> 73295 | P105: 1 | R105: 1 | S105: 1 | T105: MDA1 (IVM+ALB) | U105: T2 (PZQ) | V105: MDA 1 | W105: T2 | X105: 33212 | Y105: Chemba | AA105: TRUE | AB105: Sofala | AC105: Chemba | AD105: 1 | AE105: 4 | AF105: 2 | AG105: 3 | AH105: TRUE | AI105: TRUE | AJ105: TRUE | AK105: TRUE | AO105: 1 | AQ105: 2 | AR105: 3 | AS105: TRUE | AU105: TRUE | AV105: TRUE | AY105: ='MDA1'!M105 -> 72871 | AZ105: ='T1'!O105 -> 0 | BA105: ='T2'!M105 -> 24225 | BD105: =DISTRICT!H104:H105 -> 72871 | BE105: =DISTRICT!X105 -> 24003 | BF105: =DISTRICT!AH105 -> 24003 | BI105: 1 | BJ105: 1 | BK105: TRUE | BL105: TRUE | BM105: Chemba | BN105: TRUE
A106: =IF(INTRO!$E$34<>0,INTRO!$E$34,"") -> Mozambique | B106: Sofala | C106: Cheringoma | D106: 82934.65172 | E106: =IF(INTRO!$E$48="","",ROUND($D106*INTRO!$E$48,0)) -> 9620 | F106: =IF(INTRO!$E$49="","",ROUND($D106*INTRO!$E$49,0)) -> 23222 | G106: =IF(INTRO!$E$50="","",ROUND($D106*INTRO!$E$50,0)) -> 47687 | H106: 1 | I106: 4 | J106: 2 | K106: 3 | L106: =IF(INTRO!$E$38="Endemic", IF($H106>0, IF($H106=4,"Unknown", IF($H106=99,"Stopped", $D106)), 0),"Not required") -> 82934.65172 | M106: =IF(INTRO!$E$40="Endemic", IF($I106>0, IF($I106=4,"Unknown",IF($I106=99,"Stopped", $D106)), 0),"Not required") -> Not required | N106: =IF(INTRO!$E$42="Endemic", IF(AND($J106>1,$J106<5), IF($J106=4, "Unknown", E106+F106), 0),"Not required") -> 32842 | O106: =IF(INTRO!$E$44="Endemic", IF(AND($K106>0,$K106<5), IF($K106=4,"Unknown", IF($K106=1, $F106*0.33, IF($K106=2, $F106*0.5+$G106*0.2, SUM(F106:G106)))), 0),"Not required") -> 70909 | P106: 1 | R106: 1 | S106: 1 | T106: MDA1 (IVM+ALB) | U106: T2 (PZQ) | V106: MDA 1 | W106: T2 | X106: 33213 | Y106: Cheringoma | AA106: TRUE | AB106: Sofala | AC106: Cheringoma | AD106: 1 | AE106: 4 | AF106: 2 | AG106: 3 | AH106: TRUE | AI106: TRUE | AJ106: TRUE | AK106: TRUE | AO106: 1 | AQ106: 2 | AR106: 3 | AS106: TRUE | AU106: TRUE | AV106: TRUE | AY106: ='MDA1'!M106 -> 65987 | AZ106: ='T1'!O106 -> 0 | BA106: ='T2'!M106 -> 23098 | BD106: =DISTRICT!H105:H106 -> 65987 | BE106: =DISTRICT!X106 -> 23099 | BF106: =DISTRICT!AH106 -> 23098 | BI106: 1 | BJ106: 1 | BK106: TRUE | BL106: TRUE | BM106: Cheringoma | BN106: TRUE
A107: =IF(INTRO!$E$34<>0,INTRO!$E$34,"") -> Mozambique | B107: Sofala | C107: Chibabava | D107: 147715.9612 | E107: =IF(INTRO!$E$48="","",ROUND($D107*INTRO!$E$48,0)) -> 17135 | F107: =IF(INTRO!$E$49="","",ROUND($D107*INTRO!$E$49,0)) -> 41360 | G107: =IF(INTRO!$E$50="","",ROUND($D107*INTRO!$E$50,0)) -> 84937 | H107: 1 | I107: 4 | J107: 2 | K107: 3 | L107: =IF(INTRO!$E$38="Endemic", IF($H107>0, IF($H107=4,"Unknown", IF($H107=99,"Stopped", $D107)), 0),"Not required") -> 147715.9612 | M107: =IF(INTRO!$E$40="Endemic", IF($I107>0, IF($I107=4,"Unknown",IF($I107=99,"Stopped", $D107)), 0),"Not required") -> Not required | N107: =IF(INTRO!$E$42="Endemic", IF(AND($J107>1,$J107<5), IF($J107=4, "Unknown", E107+F107), 0),"Not required") -> 58495 | O107: =IF(INTRO!$E$44="Endemic", IF(AND($K107>0,$K107<5), IF($K107=4,"Unknown", IF($K107=1, $F107*0.33, IF($K107=2, $F107*0.5+$G107*0.2, SUM(F107:G107)))), 0),"Not required") -> 126297 | P107: 1 | R107: 1 | S107: 1 | T107: MDA1 (IVM+ALB) | U107: T2 (PZQ) | V107: MDA 1 | W107: T2 | X107: 33214 | Y107: Chibabava | AA107: TRUE | AB107: Sofala | AC107: Chibabava | AD107: 1 | AE107: 4 | AF107: 2 | AG107: 3 | AH107: TRUE | AI107: TRUE | AJ107: TRUE | AK107: TRUE | AO107: 1 | AQ107: 2 | AR107: 3 | AS107: TRUE | AU107: TRUE | AV107: TRUE | AY107: ='MDA1'!M107 -> 77230 | AZ107: ='T1'!O107 -> 0 | BA107: ='T2'!M107 -> 39066 | BD107: =DISTRICT!H106:H107 -> 77230 | BE107: =DISTRICT!X107 -> 38948 | BF107: =DISTRICT!AH107 -> 39066 | BI107: 1 | BJ107: 1 | BK107: TRUE | BL107: TRUE | BM107: Chibabava | BN107: TRUE
A108: =IF(INTRO!$E$34<>0,INTRO!$E$34,"") -> Mozambique | B108: Sofala | C108: Dondo | D108: 189259.4491 | E108: =IF(INTRO!$E$48="","",ROUND($D108*INTRO!$E$48,0)) -> 21954 | F108: =IF(INTRO!$E$49="","",ROUND($D108*INTRO!$E$49,0)) -> 52993 | G108: =IF(INTRO!$E$50="","",ROUND($D108*INTRO!$E$50,0)) -> 108824 | H108: 1 | I108: 4 | J108: 1 | K108: 2 | L108: =IF(INTRO!$E$38="Endemic", IF($H108>0, IF($H108=4,"Unknown", IF($H108=99,"Stopped", $D108)), 0),"Not required") -> 189259.4491 | M108: =IF(INTRO!$E$40="Endemic", IF($I108>0, IF($I108=4,"Unknown",IF($I108=99,"Stopped", $D108)), 0),"Not required") -> Not required | N108: =IF(INTRO!$E$42="Endemic", IF(AND($J108>1,$J108<5), IF($J108=4, "Unknown", E108+F108), 0),"Not required") -> 0 | O108: =IF(INTRO!$E$44="Endemic", IF(AND($K108>0,$K108<5), IF($K108=4,"Unknown", IF($K108=1, $F108*0.33, IF($K108=2, $F108*0.5+$G108*0.2, SUM(F108:G108)))), 0),"Not required") -> 48261.3 | P108: 1 | R108: 0 | S108: 1 | T108: MDA1 (IVM+ALB) | U108: T2 (PZQ) | V108: MDA 1 | W108: T2 | X108: 33216 | Y108: Dondo | AA108: TRUE | AB108: Sofala | AC108: Dondo | AD108: 1 | AE108: 4 | AF108: 1 | AG108: 2 | AH108: TRUE | AI108: TRUE | AJ108: TRUE | AK108: TRUE | AO108: 1 | AQ108: 1 | AR108: 2 | AS108: TRUE | AU108: TRUE | AV108: TRUE | AY108: ='MDA1'!M108 -> 135302.2321 | AZ108: ='T1'!O108 -> 0 | BA108: ='T2'!M108 -> 44031 | BD108: =DISTRICT!H107:H108 -> 135302.2321 | BE108: =DISTRICT!X108 -> 0 | BF108: =DISTRICT!AH108 -> 26496.5 | BI108: 0 | BJ108: 1 | BK108: TRUE | BL108: TRUE | BM108: Dondo | BN108: TRUE
A109: =IF(INTRO!$E$34<>0,INTRO!$E$34,"") -> Mozambique | B109: Sofala | C109: Gorongosa | D109: 182189.2557 | E109: =IF(INTRO!$E$48="","",ROUND($D109*INTRO!$E$48,0)) -> 21134 | F109: =IF(INTRO!$E$49="","",ROUND($D109*INTRO!$E$49,0)) -> 51013 | G109: =IF(INTRO!$E$50="","",ROUND($D109*INTRO!$E$50,0)) -> 104759 | H109: 1 | I109: 4 | J109: 2 | K109: 3 | L109: =IF(INTRO!$E$38="Endemic", IF($H109>0, IF($H109=4,"Unknown", IF($H109=99,"Stopped", $D109)), 0),"Not required") -> 182189.2557 | M109: =IF(INTRO!$E$40="Endemic", IF($I109>0, IF($I109=4,"Unknown",IF($I109=99,"Stopped", $D109)), 0),"Not required") -> Not required | N109: =IF(INTRO!$E$42="Endemic", IF(AND($J109>1,$J109<5), IF($J109=4, "Unknown", E109+F109), 0),"Not required") -> 72147 | O109: =IF(INTRO!$E$44="Endemic", IF(AND($K109>0,$K109<5), IF($K109=4,"Unknown", IF($K109=1, $F109*0.33, IF($K109=2, $F109*0.5+$G109*0.2, SUM(F109:G109)))), 0),"Not required") -> 155772 | P109: 1 | R109: 1 | S109: 1 | T109: MDA1 (IVM+ALB) | U109: T2 (PZQ) | V109: MDA 1 | W109: T2 | X109: 33217 | Y109: Gorongosa | AA109: TRUE | AB109: Sofala | AC109: Gorongosa | AD109: 1 | AE109: 4 | AF109: 2 | AG109: 3 | AH109: TRUE | AI109: TRUE | AJ109: TRUE | AK109: TRUE | AO109: 1 | AQ109: 2 | AR109: 3 | AS109: TRUE | AU109: TRUE | AV109: TRUE | AY109: ='MDA1'!M109 -> 153297 | AZ109: ='T1'!O109 -> 0 | BA109: ='T2'!M109 -> 63175 | BD109: =DISTRICT!H108:H109 -> 153297 | BE109: =DISTRICT!X109 -> 51013 | BF109: =DISTRICT!AH109 -> 51013 | BI109: 1 | BJ109: 1 | BK109: TRUE | BL109: TRUE | BM109: Gorongosa | BN109: TRUE
A110: =IF(INTRO!$E$34<>0,INTRO!$E$34,"") -> Mozambique | B110: Sofala | C110: Machanga | D110: 68633.36218 | E110: =IF(INTRO!$E$48="","",ROUND($D110*INTRO!$E$48,0)) -> 7961 | F110: =IF(INTRO!$E$49="","",ROUND($D110*INTRO!$E$49,0)) -> 19217 | G110: =IF(INTRO!$E$50="","",ROUND($D110*INTRO!$E$50,0)) -> 39464 | H110: 1 | I110: 4 | J110: 2 | K110: 2 | L110: =IF(INTRO!$E$38="Endemic", IF($H110>0, IF($H110=4,"Unknown", IF($H110=99,"Stopped", $D110)), 0),"Not required") -> 68633.36218 | M110: =IF(INTRO!$E$40="Endemic", IF($I110>0, IF($I110=4,"Unknown",IF($I110=99,"Stopped", $D110)), 0),"Not required") -> Not required | N110: =IF(INTRO!$E$42="Endemic", IF(AND($J110>1,$J110<5), IF($J110=4, "Unknown", E110+F110), 0),"Not required") -> 27178 | O110: =IF(INTRO!$E$44="Endemic", IF(AND($K110>0,$K110<5), IF($K110=4,"Unknown", IF($K110=1, $F110*0.33, IF($K110=2, $F110*0.5+$G110*0.2, SUM(F110:G110)))), 0),"Not required") -> 17501.3 | P110: 1 | R110: 1 | S110: 1 | T110: MDA1 (IVM+ALB) | U110: T2 (PZQ) | V110: MDA 1 | W110: T2 | X110: 33218 | Y110: Machanga | AA110: TRUE | AB110: Sofala | AC110: Machanga | AD110: 1 | AE110: 4 | AF110: 2 | AG110: 2 | AH110: TRUE | AI110: TRUE | AJ110: TRUE | AK110: TRUE | AO110: 1 | AQ110: 2 | AR110: 2 | AS110: TRUE | AU110: TRUE | AV110: TRUE | AY110: ='MDA1'!M110 -> 56362 | AZ110: ='T1'!O110 -> 0 | BA110: ='T2'!M110 -> 19682 | BD110: =DISTRICT!H109:H110 -> 56362 | BE110: =DISTRICT!X110 -> 19217 | BF110: =DISTRICT!AH110 -> 9608.5 | BI110: 1 | BJ110: 1 | BK110: TRUE | BL110: TRUE | BM110: Machanga | BN110: TRUE
A111: =IF(INTRO!$E$34<>0,INTRO!$E$34,"") -> Mozambique | B111: Sofala | C111: Maringue | D111: 101762.0028 | E111: =IF(INTRO!$E$48="","",ROUND($D111*INTRO!$E$48,0)) -> 11804 | F111: =IF(INTRO!$E$49="","",ROUND($D111*INTRO!$E$49,0)) -> 28493 | G111: =IF(INTRO!$E$50="","",ROUND($D111*INTRO!$E$50,0)) -> 58513 | H111: 1 | I111: 4 | J111: 2 | K111: 2 | L111: =IF(INTRO!$E$38="Endemic", IF($H111>0, IF($H111=4,"Unknown", IF($H111=99,"Stopped", $D111)), 0),"Not required") -> 101762.0028 | M111: =IF(INTRO!$E$40="Endemic", IF($I111>0, IF($I111=4,"Unknown",IF($I111=99,"Stopped", $D111)), 0),"Not required") -> Not required | N111: =IF(INTRO!$E$42="Endemic", IF(AND($J111>1,$J111<5), IF($J111=4, "Unknown", E111+F111), 0),"Not required") -> 40297 | O111: =IF(INTRO!$E$44="Endemic", IF(AND($K111>0,$K111<5), IF($K111=4,"Unknown", IF($K111=1, $F111*0.33, IF($K111=2, $F111*0.5+$G111*0.2, SUM(F111:G111)))), 0),"Not required") -> 25949.1 | P111: 1 | R111: 1 | S111: 1 | T111: MDA1 (IVM+ALB) | U111: T2 (PZQ) | V111: MDA 1 | W111: T2 | X111: 33219 | Y111: Maringue | AA111: TRUE | AB111: Sofala | AC111: Maringue | AD111: 1 | AE111: 4 | AF111: 2 | AG111: 2 | AH111: TRUE | AI111: TRUE | AJ111: TRUE | AK111: TRUE | AO111: 1 | AQ111: 2 | AR111: 2 | AS111: TRUE | AU111: TRUE | AV111: TRUE | AY111: ='MDA1'!M111 -> 95833 | AZ111: ='T1'!O111 -> 0 | BA111: ='T2'!M111 -> 30948 | BD111: =DISTRICT!H110:H111 -> 95833 | BE111: =DISTRICT!X111 -> 28493 | BF111: =DISTRICT!AH111 -> 14246.5 | BI111: 1 | BJ111: 1 | BK111: TRUE | BL111: TRUE | BM111: Maringue | BN111: TRUE
A112: =IF(INTRO!$E$34<>0,INTRO!$E$34,"") -> Mozambique | B112: Sofala | C112: Marromeu | D112: 196403.0204 | E112: =IF(INTRO!$E$48="","",ROUND($D112*INTRO!$E$48,0)) -> 22783 | F112: =IF(INTRO!$E$49="","",ROUND($D112*INTRO!$E$49,0)) -> 54993 | G112: =IF(INTRO!$E$50="","",ROUND($D112*INTRO!$E$50,0)) -> 112932 | H112: 1 | I112: 4 | J112: 2 | K112: 3 | L112: =IF(INTRO!$E$38="Endemic", IF($H112>0, IF($H112=4,"Unknown", IF($H112=99,"Stopped", $D112)), 0),"Not required") -> 196403.0204 | M112: =IF(INTRO!$E$40="Endemic", IF($I112>0, IF($I112=4,"Unknown",IF($I112=99,"Stopped", $D112)), 0),"Not required") -> Not required | N112: =IF(INTRO!$E$42="Endemic", IF(AND($J112>1,$J112<5), IF($J112=4, "Unknown", E112+F112), 0),"Not required") -> 77776 | O112: =IF(INTRO!$E$44="Endemic", IF(AND($K112>0,$K112<5), IF($K112=4,"Unknown", IF($K112=1, $F112*0.33, IF($K112=2, $F112*0.5+$G112*0.2, SUM(F112:G112)))), 0),"Not required") -> 167925 | P112: 1 | R112: 1 | S112: 1 | T112: MDA1 (IVM+ALB) | U112: T2 (PZQ) | V112: MDA 1 | W112: T2 | X112: 33220 | Y112: Marromeu | AA112: TRUE | AB112: Sofala | AC112: Marromeu | AD112: 1 | AE112: 4 | AF112: 2 | AG112: 3 | AH112: TRUE | AI112: TRUE | AJ112: TRUE | AK112: TRUE | AO112: 1 | AQ112: 2 | AR112: 3 | AS112: TRUE | AU112: TRUE | AV112: TRUE | AY112: ='MDA1'!M112 -> 152208 | AZ112: ='T1'!O112 -> 0 | BA112: ='T2'!M112 -> 59413 | BD112: =DISTRICT!H111:H112 -> 152208 | BE112: =DISTRICT!X112 -> 54993 | BF112: =DISTRICT!AH112 -> 54993 | BI112: 1 | BJ112: 1 | BK112: TRUE | BL112: TRUE | BM112: Marromeu | BN112: TRUE
A113: =IF(INTRO!$E$34<>0,INTRO!$E$34,"") -> Mozambique | B113: Sofala | C113: Muanza | D113: 43785.42707 | E113: =IF(INTRO!$E$48="","",ROUND($D113*INTRO!$E$48,0)) -> 5079 | F113: =IF(INTRO!$E$49="","",ROUND($D113*INTRO!$E$49,0)) -> 12260 | G113: =IF(INTRO!$E$50="","",ROUND($D113*INTRO!$E$50,0)) -> 25177 | H113: 1 | I113: 4 | J113: 3 | K113: 2 | L113: =IF(INTRO!$E$38="Endemic", IF($H113>0, IF($H113=4,"Unknown", IF($H113=99,"Stopped", $D113)), 0),"Not required") -> 43785.42707 | M113: =IF(INTRO!$E$40="Endemic", IF($I113>0, IF($I113=4,"Unknown",IF($I113=99,"Stopped", $D113)), 0),"Not required") -> Not required | N113: =IF(INTRO!$E$42="Endemic", IF(AND($J113>1,$J113<5), IF($J113=4, "Unknown", E113+F113), 0),"Not required") -> 17339 | O113: =IF(INTRO!$E$44="Endemic", IF(AND($K113>0,$K113<5), IF($K113=4,"Unknown", IF($K113=1, $F113*0.33, IF($K113=2, $F113*0.5+$G113*0.2, SUM(F113:G113)))), 0),"Not required") -> 11165.4 | P113: 1 | R113: 1 | S113: 1 | T113: MDA1 (IVM+ALB) | U113: T2 (PZQ) | V113: MDA 1 | W113: T1 | X113: 33221 | Y113: Muanza | AA113: TRUE | AB113: Sofala | AC113: Muanza | AD113: 1 | AE113: 4 | AF113: 3 | AG113: 2 | AH113: TRUE | AI113: TRUE | AJ113: TRUE | AK113: TRUE | AO113: 1 | AQ113: 3 | AR113: 2 | AS113: TRUE | AU113: TRUE | AV113: TRUE | AY113: ='MDA1'!M113 -> 28460 | AZ113: ='T1'!O113 -> 0 | BA113: ='T2'!M113 -> 13420 | BD113: =DISTRICT!H112:H113 -> 28460 | BE113: =DISTRICT!X113 -> 12260 | BF113: =DISTRICT!AH113 -> 6130 | BI113: 2 | BJ113: 0 | BK113: FALSE | BL113: FALSE | BM113: Muanza | BN113: TRUE
A114: =IF(INTRO!$E$34<>0,INTRO!$E$34,"") -> Mozambique | B114: Sofala | C114: Nhamatanda | D114: 322510.8397 | E114: =IF(INTRO!$E$48="","",ROUND($D114*INTRO!$E$48,0)) -> 37411 | F114: =IF(INTRO!$E$49="","",ROUND($D114*INTRO!$E$49,0)) -> 90303 | G114: =IF(INTRO!$E$50="","",ROUND($D114*INTRO!$E$50,0)) -> 185444 | H114: 1 | I114: 4 | J114: 2 | K114: 2 | L114: =IF(INTRO!$E$38="Endemic", IF($H114>0, IF($H114=4,"Unknown", IF($H114=99,"Stopped", $D114)), 0),"Not required") -> 322510.8397 | M114: =IF(INTRO!$E$40="Endemic", IF($I114>0, IF($I114=4,"Unknown",IF($I114=99,"Stopped", $D114)), 0),"Not required") -> Not required | N114: =IF(INTRO!$E$42="Endemic", IF(AND($J114>1,$J114<5), IF($J114=4, "Unknown", E114+F114), 0),"Not required") -> 127714 | O114: =IF(INTRO!$E$44="Endemic", IF(AND($K114>0,$K114<5), IF($K114=4,"Unknown", IF($K114=1, $F114*0.33, IF($K114=2, $F114*0.5+$G114*0.2, SUM(F114:G114)))), 0),"Not required") -> 82240.3 | P114: 1 | R114: 1 | S114: 1 | T114: MDA1 (IVM+ALB) | U114: T2 (PZQ) | V114: MDA 1 | W114: T2 | X114: 33222 | Y114: Nhamatanda | AA114: TRUE | AB114: Sofala | AC114: Nhamatanda | AD114: 1 | AE114: 4 | AF114: 2 | AG114: 2 | AH114: TRUE | AI114: TRUE | AJ114: TRUE | AK114: TRUE | AO114: 1 | AQ114: 2 | AR114: 2 | AS114: TRUE | AU114: TRUE | AV114: TRUE | AY114: ='MDA1'!M114 -> 215548 | AZ114: ='T1'!O114 -> 0 | BA114: ='T2'!M114 -> 113214 | BD114: =DISTRICT!H113:H114 -> 215548 | BE114: =DISTRICT!X114 -> 90303 | BF114: =DISTRICT!AH114 -> 45151.5 | BI114: 1 | BJ114: 0 | BK114: TRUE | BL114: FALSE | BM114: Nhamatanda | BN114: TRUE
A115: =IF(INTRO!$E$34<>0,INTRO!$E$34,"") -> Mozambique | B115: Manica | C115: Cid. Chimoio | D115: 348778.7483 | E115: =IF(INTRO!$E$48="","",ROUND($D115*INTRO!$E$48,0)) -> 40458 | F115: =IF(INTRO!$E$49="","",ROUND($D115*INTRO!$E$49,0)) -> 97658 | G115: =IF(INTRO!$E$50="","",ROUND($D115*INTRO!$E$50,0)) -> 200548 | H115: 0 | I115: 4 | J115: 3 | K115: 3 | L115: =IF(INTRO!$E$38="Endemic", IF($H115>0, IF($H115=4,"Unknown", IF($H115=99,"Stopped", $D115)), 0),"Not required") -> 0 | M115: =IF(INTRO!$E$40="Endemic", IF($I115>0, IF($I115=4,"Unknown",IF($I115=99,"Stopped", $D115)), 0),"Not required") -> Not required | N115: =IF(INTRO!$E$42="Endemic", IF(AND($J115>1,$J115<5), IF($J115=4, "Unknown", E115+F115), 0),"Not required") -> 138116 | O115: =IF(INTRO!$E$44="Endemic", IF(AND($K115>0,$K115<5), IF($K115=4,"Unknown", IF($K115=1, $F115*0.33, IF($K115=2, $F115*0.5+$G115*0.2, SUM(F115:G115)))), 0),"Not required") -> 298206 | P115: 0 | R115: 1 | S115: 1 | T115: T1 (PZQ+ALB/MBD) | V115: T1 | W115: T3 | X115: 33151 | Y115: Cid. Chimoio | AA115: TRUE | AB115: Manica | AC115: Cid. Chimoio | AD115: 0 | AE115: 4 | AF115: 3 | AG115: 3 | AH115: TRUE | AI115: TRUE | AJ115: TRUE | AK115: TRUE | AO115: 0 | AQ115: 3 | AR115: 3 | AS115: TRUE | AU115: TRUE | AV115: TRUE | AY115: ='MDA1'!M115 -> 0 | AZ115: ='T1'!O115 -> 106092 | BA115: ='T2'!M115 -> 0 | BD115: =DISTRICT!H114:H115 -> 0 | BE115: =DISTRICT!X115 -> 97658 | BF115: =DISTRICT!AH115 -> 97658 | BI115: 2 | BJ115: 1 | BK115: FALSE | BL115: TRUE | BM115: Cid. Chimoio | BN115: TRUE
A116: =IF(INTRO!$E$34<>0,INTRO!$E$34,"") -> Mozambique | B116: Manica | C116: Barué | D116: 276038.7523 | E116: =IF(INTRO!$E$48="","",ROUND($D116*INTRO!$E$48,0)) -> 32020 | F116: =IF(INTRO!$E$49="","",ROUND($D116*INTRO!$E$49,0)) -> 77291 | G116: =IF(INTRO!$E$50="","",ROUND($D116*INTRO!$E$50,0)) -> 158722 | H116: 1 | I116: 4 | J116: 2 | K116: 3 | L116: =IF(INTRO!$E$38="Endemic", IF($H116>0, IF($H116=4,"Unknown", IF($H116=99,"Stopped", $D116)), 0),"Not required") -> 276038.7523 | M116: =IF(INTRO!$E$40="Endemic", IF($I116>0, IF($I116=4,"Unknown",IF($I116=99,"Stopped", $D116)), 0),"Not required") -> Not required | N116: =IF(INTRO!$E$42="Endemic", IF(AND($J116>1,$J116<5), IF($J116=4, "Unknown", E116+F116), 0),"Not required") -> 109311 | O116: =IF(INTRO!$E$44="Endemic", IF(AND($K116>0,$K116<5), IF($K116=4,"Unknown", IF($K116=1, $F116*0.33, IF($K116=2, $F116*0.5+$G116*0.2, SUM(F116:G116)))), 0),"Not required") -> 236013 | P116: 1 | R116: 1 | S116: 1 | T116: MDA1 (IVM+ALB) | U116: T2 (PZQ) | V116: MDA 1 | W116: T2 | X116: 33150 | Y116: Barué | AA116: TRUE | AB116: Manica | AC116: Barué | AD116: 1 | AE116: 4 | AF116: 2 | AG116: 3 | AH116: TRUE | AI116: TRUE | AJ116: TRUE | AK116: TRUE | AO116: 1 | AQ116: 2 | AR116: 3 | AS116: TRUE | AU116: TRUE | AV116: TRUE | AY116: ='MDA1'!M116 -> 205500 | AZ116: ='T1'!O116 -> 0 | BA116: ='T2'!M116 -> 73628 | BD116: =DISTRICT!H115:H116 -> 205500 | BE116: =DISTRICT!X116 -> 77291 | BF116: =DISTRICT!AH116 -> 73628 | BI116: 1 | BJ116: 1 | BK116: TRUE | BL116: TRUE | BM116: Barué | BN116: TRUE
A117: =IF(INTRO!$E$34<>0,INTRO!$E$34,"") -> Mozambique | B117: Manica | C117: Gondola | D117: 226961.1285 | E117: =IF(INTRO!$E$48="","",ROUND($D117*INTRO!$E$48,0)) -> 26327 | F117: =IF(INTRO!$E$49="","",ROUND($D117*INTRO!$E$49,0)) -> 63549 | G117: =IF(INTRO!$E$50="","",ROUND($D117*INTRO!$E$50,0)) -> 130503 | H117: 0 | I117: 4 | J117: 2 | K117: 2 | L117: =IF(INTRO!$E$38="Endemic", IF($H117>0, IF($H117=4,"Unknown", IF($H117=99,"Stopped", $D117)), 0),"Not required") -> 0 | M117: =IF(INTRO!$E$40="Endemic", IF($I117>0, IF($I117=4,"Unknown",IF($I117=99,"Stopped", $D117)), 0),"Not required") -> Not required | N117: =IF(INTRO!$E$42="Endemic", IF(AND($J117>1,$J117<5), IF($J117=4, "Unknown", E117+F117), 0),"Not required") -> 89876 | O117: =IF(INTRO!$E$44="Endemic", IF(AND($K117>0,$K117<5), IF($K117=4,"Unknown", IF($K117=1, $F117*0.33, IF($K117=2, $F117*0.5+$G117*0.2, SUM(F117:G117)))), 0),"Not required") -> 57875.1 | P117: 0 | R117: 1 | S117: 1 | T117: T1 (PZQ+ALB/MBD) | W117: T1 | X117: 33152 | Y117: Gondola | AA117: TRUE | AB117: Manica | AC117: Gondola | AD117: 0 | AE117: 4 | AF117: 2 | AG117: 2 | AH117: TRUE | AI117: TRUE | AJ117: TRUE | AK117: TRUE | AO117: 0 | AQ117: 2 | AR117: 2 | AS117: TRUE | AU117: TRUE | AV117: TRUE | AY117: ='MDA1'!M117 -> 0 | AZ117: ='T1'!O117 -> 61590 | BA117: ='T2'!M117 -> 0 | BD117: =DISTRICT!H116:H117 -> 0 | BE117: =DISTRICT!X117 -> 61590 | BF117: =DISTRICT!AH117 -> 31774.5 | BI117: 1 | BJ117: 0 | BK117: TRUE | BL117: FALSE | BM117: Gondola | BN117: TRUE
A118: =IF(INTRO!$E$34<>0,INTRO!$E$34,"") -> Mozambique | B118: Manica | C118: Guro | D118: 103497.5136 | E118: =IF(INTRO!$E$48="","",ROUND($D118*INTRO!$E$48,0)) -> 12006 | F118: =IF(INTRO!$E$49="","",ROUND($D118*INTRO!$E$49,0)) -> 28979 | G118: =IF(INTRO!$E$50="","",ROUND($D118*INTRO!$E$50,0)) -> 59511 | H118: 1 | I118: 4 | J118: 1 | K118: 2 | L118: =IF(INTRO!$E$38="Endemic", IF($H118>0, IF($H118=4,"Unknown", IF($H118=99,"Stopped", $D118)), 0),"Not required") -> 103497.5136 | M118: =IF(INTRO!$E$40="Endemic", IF($I118>0, IF($I118=4,"Unknown",IF($I118=99,"Stopped", $D118)), 0),"Not required") -> Not required | N118: =IF(INTRO!$E$42="Endemic", IF(AND($J118>1,$J118<5), IF($J118=4, "Unknown", E118+F118), 0),"Not required") -> 0 | O118: =IF(INTRO!$E$44="Endemic", IF(AND($K118>0,$K118<5), IF($K118=4,"Unknown", IF($K118=1, $F118*0.33, IF($K118=2, $F118*0.5+$G118*0.2, SUM(F118:G118)))), 0),"Not required") -> 26391.7 | P118: 1 | R118: 0 | S118: 1 | T118: MDA1 (IVM+ALB) | U118: T2 (PZQ) | V118: MDA 1 | W118: T2 | X118: 33153 | Y118: Guro | AA118: TRUE | AB118: Manica | AC118: Guro | AD118: 1 | AE118: 4 | AF118: 1 | AG118: 2 | AH118: TRUE | AI118: TRUE | AJ118: TRUE | AK118: TRUE | AO118: 1 | AQ118: 1 | AR118: 2 | AS118: TRUE | AU118: TRUE | AV118: TRUE | AY118: ='MDA1'!M118 -> 85959 | AZ118: ='T1'!O118 -> 0 | BA118: ='T2'!M118 -> 29822 | BD118: =DISTRICT!H117:H118 -> 85959 | BE118: =DISTRICT!X118 -> 0 | BF118: =DISTRICT!AH118 -> 14489.5 | BI118: 0 | BJ118: 0 | BK118: TRUE | BL118: FALSE | BM118: Guro | BN118: TRUE
A119: =IF(INTRO!$E$34<>0,INTRO!$E$34,"") -> Mozambique | B119: Manica | C119: Macate | D119: 113323.3257 | E119: =IF(INTRO!$E$48="","",ROUND($D119*INTRO!$E$48,0)) -> 13146 | F119: =IF(INTRO!$E$49="","",ROUND($D119*INTRO!$E$49,0)) -> 31731 | G119: =IF(INTRO!$E$50="","",ROUND($D119*INTRO!$E$50,0)) -> 65161 | H119: 0 | I119: 4 | J119: 2 | K119: 2 | L119: =IF(INTRO!$E$38="Endemic", IF($H119>0, IF($H119=4,"Unknown", IF($H119=99,"Stopped", $D119)), 0),"Not required") -> 0 | M119: =IF(INTRO!$E$40="Endemic", IF($I119>0, IF($I119=4,"Unknown",IF($I119=99,"Stopped", $D119)), 0),"Not required") -> Not required | N119: =IF(INTRO!$E$42="Endemic", IF(AND($J119>1,$J119<5), IF($J119=4, "Unknown", E119+F119), 0),"Not required") -> 44877 | O119: =IF(INTRO!$E$44="Endemic", IF(AND($K119>0,$K119<5), IF($K119=4,"Unknown", IF($K119=1, $F119*0.33, IF($K119=2, $F119*0.5+$G119*0.2, SUM(F119:G119)))), 0),"Not required") -> 28897.7 | P119: 0 | R119: 1 | S119: 1 | T119: T1 (PZQ+ALB/MBD) | W119: T1 | X119: 33154 | Y119: Macate | AA119: TRUE | AB119: Manica | AC119: Macate | AD119: 0 | AE119: 4 | AF119: 2 | AG119: 2 | AH119: TRUE | AI119: TRUE | AJ119: TRUE | AK119: TRUE | AO119: 0 | AQ119: 2 | AR119: 2 | AS119: TRUE | AU119: TRUE | AV119: TRUE | AY119: ='MDA1'!M119 -> 0 | AZ119: ='T1'!O119 -> 33938 | BA119: ='T2'!M119 -> 0 | BD119: =DISTRICT!H118:H119 -> 0 | BE119: =DISTRICT!X119 -> 31731 | BF119: =DISTRICT!AH119 -> 15865.5 | BI119: 1 | BJ119: 0 | BK119: TRUE | BL119: FALSE | BM119: Macate | BN119: TRUE
A120: =IF(INTRO!$E$34<>0,INTRO!$E$34,"") -> Mozambique | B120: Manica | C120: Machaze | D120: 147422.8877 | E120: =IF(INTRO!$E$48="","",ROUND($D120*INTRO!$E$48,0)) -> 17101 | F120: =IF(INTRO!$E$49="","",ROUND($D120*INTRO!$E$49,0)) -> 41278 | G120: =IF(INTRO!$E$50="","",ROUND($D120*INTRO!$E$50,0)) -> 84768 | H120: 0 | I120: 4 | J120: 2 | K120: 2 | L120: =IF(INTRO!$E$38="Endemic", IF($H120>0, IF($H120=4,"Unknown", IF($H120=99,"Stopped", $D120)), 0),"Not required") -> 0 | M120: =IF(INTRO!$E$40="Endemic", IF($I120>0, IF($I120=4,"Unknown",IF($I120=99,"Stopped", $D120)), 0),"Not required") -> Not required | N120: =IF(INTRO!$E$42="Endemic", IF(AND($J120>1,$J120<5), IF($J120=4, "Unknown", E120+F120), 0),"Not required") -> 58379 | O120: =IF(INTRO!$E$44="Endemic", IF(AND($K120>0,$K120<5), IF($K120=4,"Unknown", IF($K120=1, $F120*0.33, IF($K120=2, $F120*0.5+$G120*0.2, SUM(F120:G120)))), 0),"Not required") -> 37592.6 | P120: 0 | R120: 1 | S120: 1 | T120: T1 (PZQ+ALB/MBD) | W120: T1 | X120: 33155 | Y120: Machaze | AA120: TRUE | AB120: Manica | AC120: Machaze | AD120: 0 | AE120: 4 | AF120: 2 | AG120: 2 | AH120: TRUE | AI120: TRUE | AJ120: TRUE | AK120: TRUE | AO120: 0 | AQ120: 2 | AR120: 2 | AS120: TRUE | AU120: TRUE | AV120: TRUE | AY120: ='MDA1'!M120 -> 0 | AZ120: ='T1'!O120 -> 41134 | BA120: ='T2'!M120 -> 0 | BD120: =DISTRICT!H119:H120 -> 0 | BE120: =DISTRICT!X120 -> 41134 | BF120: =DISTRICT!AH120 -> 20639 | BI120: 1 | BJ120: 0 | BK120: TRUE | BL120: FALSE | BM120: Machaze | BN120: TRUE
A121: =IF(INTRO!$E$34<>0,INTRO!$E$34,"") -> Mozambique | B121: Manica | C121: Macossa | D121: 56139.06766 | E121: =IF(INTRO!$E$48="","",ROUND($D121*INTRO!$E$48,0)) -> 6512 | F121: =IF(INTRO!$E$49="","",ROUND($D121*INTRO!$E$49,0)) -> 15719 | G121: =IF(INTRO!$E$50="","",ROUND($D121*INTRO!$E$50,0)) -> 32280 | H121: 1 | I121: 4 | J121: 2 | K121: 3 | L121: =IF(INTRO!$E$38="Endemic", IF($H121>0, IF($H121=4,"Unknown", IF($H121=99,"Stopped", $D121)), 0),"Not required") -> 56139.06766 | M121: =IF(INTRO!$E$40="Endemic", IF($I121>0, IF($I121=4,"Unknown",IF($I121=99,"Stopped", $D121)), 0),"Not required") -> Not required | N121: =IF(INTRO!$E$42="Endemic", IF(AND($J121>1,$J121<5), IF($J121=4, "Unknown", E121+F121), 0),"Not required") -> 22231 | O121: =IF(INTRO!$E$44="Endemic", IF(AND($K121>0,$K121<5), IF($K121=4,"Unknown", IF($K121=1, $F121*0.33, IF($K121=2, $F121*0.5+$G121*0.2, SUM(F121:G121)))), 0),"Not required") -> 47999 | P121: 1 | R121: 1 | S121: 1 | T121: MDA1 (IVM+ALB) | U121: T2 (PZQ) | V121: MDA 1 | W121: T2 | X121: 33156 | Y121: Macossa | AA121: TRUE | AB121: Manica | AC121: Macossa | AD121: 1 | AE121: 4 | AF121: 2 | AG121: 3 | AH121: TRUE | AI121: TRUE | AJ121: TRUE | AK121: TRUE | AO121: 1 | AQ121: 2 | AR121: 3 | AS121: TRUE | AU121: TRUE | AV121: TRUE | AY121: ='MDA1'!M121 -> 46456 | AZ121: ='T1'!O121 -> 0 | BA121: ='T2'!M121 -> 15252 | BD121: =DISTRICT!H120:H121 -> 46456 | BE121: =DISTRICT!X121 -> 15719 | BF121: =DISTRICT!AH121 -> 15252 | BI121: 1 | BJ121: 1 | BK121: TRUE | BL121: TRUE | BM121: Macossa | BN121: TRUE
A122: =IF(INTRO!$E$34<>0,INTRO!$E$34,"") -> Mozambique | B122: Manica | C122: Manica | D122: 237845.1057 | E122: =IF(INTRO!$E$48="","",ROUND($D122*INTRO!$E$48,0)) -> 27590 | F122: =IF(INTRO!$E$49="","",ROUND($D122*INTRO!$E$49,0)) -> 66597 | G122: =IF(INTRO!$E$50="","",ROUND($D122*INTRO!$E$50,0)) -> 136761 | H122: 0 | I122: 4 | J122: 3 | K122: 2 | L122: =IF(INTRO!$E$38="Endemic", IF($H122>0, IF($H122=4,"Unknown", IF($H122=99,"Stopped", $D122)), 0),"Not required") -> 0 | M122: =IF(INTRO!$E$40="Endemic", IF($I122>0, IF($I122=4,"Unknown",IF($I122=99,"Stopped", $D122)), 0),"Not required") -> Not required | N122: =IF(INTRO!$E$42="Endemic", IF(AND($J122>1,$J122<5), IF($J122=4, "Unknown", E122+F122), 0),"Not required") -> 94187 | O122: =IF(INTRO!$E$44="Endemic", IF(AND($K122>0,$K122<5), IF($K122=4,"Unknown", IF($K122=1, $F122*0.33, IF($K122=2, $F122*0.5+$G122*0.2, SUM(F122:G122)))), 0),"Not required") -> 60650.7 | P122: 0 | R122: 1 | S122: 1 | T122: T1 (PZQ+ALB/MBD) | V122: T1 | W122: T3 | X122: 33157 | Y122: Manica | AA122: TRUE | AB122: Manica | AC122: Manica | AD122: 0 | AE122: 4 | AF122: 3 | AG122: 2 | AH122: TRUE | AI122: TRUE | AJ122: TRUE | AK122: TRUE | AO122: 0 | AQ122: 3 | AR122: 2 | AS122: TRUE | AU122: TRUE | AV122: TRUE | AY122: ='MDA1'!M122 -> 0 | AZ122: ='T1'!O122 -> 69122 | BA122: ='T2'!M122 -> 0 | BD122: =DISTRICT!H121:H122 -> 0 | BE122: =DISTRICT!X122 -> 66597 | BF122: =DISTRICT!AH122 -> 33298.5 | BI122: 2 | BJ122: 0 | BK122: FALSE | BL122: FALSE | BM122: Manica | BN122: TRUE
A123: =IF(INTRO!$E$34<>0,INTRO!$E$34,"") -> Mozambique | B123: Manica | C123: Mossurize | D123: 316201.0003 | E123: =IF(INTRO!$E$48="","",ROUND($D123*INTRO!$E$48,0)) -> 36679 | F123: =IF(INTRO!$E$49="","",ROUND($D123*INTRO!$E$49,0)) -> 88536 | G123: =IF(INTRO!$E$50="","",ROUND($D123*INTRO!$E$50,0)) -> 181816 | H123: 0 | I123: 4 | J123: 2 | K123: 3 | L123: =IF(INTRO!$E$38="Endemic", IF($H123>0, IF($H123=4,"Unknown", IF($H123=99,"Stopped", $D123)), 0),"Not required") -> 0 | M123: =IF(INTRO!$E$40="Endemic", IF($I123>0, IF($I123=4,"Unknown",IF($I123=99,"Stopped", $D123)), 0),"Not required") -> Not required | N123: =IF(INTRO!$E$42="Endemic", IF(AND($J123>1,$J123<5), IF($J123=4, "Unknown", E123+F123), 0),"Not required") -> 125215 | O123: =IF(INTRO!$E$44="Endemic", IF(AND($K123>0,$K123<5), IF($K123=4,"Unknown", IF($K123=1, $F123*0.33, IF($K123=2, $F123*0.5+$G123*0.2, SUM(F123:G123)))), 0),"Not required") -> 270352 | P123: 0 | R123: 1 | S123: 1 | T123: T1 (PZQ+ALB/MBD) | W123: T1 | X123: 33158 | Y123: Mossurize | AA123: TRUE | AB123: Manica | AC123: Mossurize | AD123: 0 | AE123: 4 | AF123: 2 | AG123: 3 | AH123: TRUE | AI123: TRUE | AJ123: TRUE | AK123: TRUE | AO123: 0 | AQ123: 2 | AR123: 3 | AS123: TRUE | AU123: TRUE | AV123: TRUE | AY123: ='MDA1'!M123 -> 0 | AZ123: ='T1'!O123 -> 85726 | BA123: ='T2'!M123 -> 0 | BD123: =DISTRICT!H122:H123 -> 0 | BE123: =DISTRICT!X123 -> 85726 | BF123: =DISTRICT!AH123 -> 85726 | BI123: 1 | BJ123: 1 | BK123: TRUE | BL123: TRUE | BM123: Mossurize | BN123: TRUE
A124: =IF(INTRO!$E$34<>0,INTRO!$E$34,"") -> Mozambique | B124: Manica | C124: Sussundenga | D124: 178436.8677 | E124: =IF(INTRO!$E$48="","",ROUND($D124*INTRO!$E$48,0)) -> 20699 | F124: =IF(INTRO!$E$49="","",ROUND($D124*INTRO!$E$49,0)) -> 49962 | G124: =IF(INTRO!$E$50="","",ROUND($D124*INTRO!$E$50,0)) -> 102601 | H124: 1 | I124: 4 | J124: 3 | K124: 3 | L124: =IF(INTRO!$E$38="Endemic", IF($H124>0, IF($H124=4,"Unknown", IF($H124=99,"Stopped", $D124)), 0),"Not required") -> 178436.8677 | M124: =IF(INTRO!$E$40="Endemic", IF($I124>0, IF($I124=4,"Unknown",IF($I124=99,"Stopped", $D124)), 0),"Not required") -> Not required | N124: =IF(INTRO!$E$42="Endemic", IF(AND($J124>1,$J124<5), IF($J124=4, "Unknown", E124+F124), 0),"Not required") -> 70661 | O124: =IF(INTRO!$E$44="Endemic", IF(AND($K124>0,$K124<5), IF($K124=4,"Unknown", IF($K124=1, $F124*0.33, IF($K124=2, $F124*0.5+$G124*0.2, SUM(F124:G124)))), 0),"Not required") -> 152563 | P124: 1 | R124: 1 | S124: 1 | T124: MDA1 (IVM+ALB) | U124: T2 (PZQ) | V124: MDA 1 | W124: T1 | X124: 33159 | Y124: Sussundenga | AA124: TRUE | AB124: Manica | AC124: Sussundenga | AD124: 1 | AE124: 4 | AF124: 3 | AG124: 3 | AH124: TRUE | AI124: TRUE | AJ124: TRUE | AK124: TRUE | AO124: 1 | AQ124: 3 | AR124: 3 | AS124: TRUE | AU124: TRUE | AV124: TRUE | AY124: ='MDA1'!M124 -> 147374 | AZ124: ='T1'!O124 -> 0 | BA124: ='T2'!M124 -> 47289 | BD124: =DISTRICT!H123:H124 -> 147374 | BE124: =DISTRICT!X124 -> 47289 | BF124: =DISTRICT!AH124 -> 47289 | BI124: 2 | BJ124: 1 | BK124: FALSE | BL124: TRUE | BM124: Sussundenga | BN124: TRUE
A125: =IF(INTRO!$E$34<>0,INTRO!$E$34,"") -> Mozambique | B125: Manica | C125: Tambara | D125: 59631.99358 | E125: =IF(INTRO!$E$48="","",ROUND($D125*INTRO!$E$48,0)) -> 6917 | F125: =IF(INTRO!$E$49="","",ROUND($D125*INTRO!$E$49,0)) -> 16697 | G125: =IF(INTRO!$E$50="","",ROUND($D125*INTRO!$E$50,0)) -> 34288 | H125: 1 | I125: 4 | J125: 2 | K125: 2 | L125: =IF(INTRO!$E$38="Endemic", IF($H125>0, IF($H125=4,"Unknown", IF($H125=99,"Stopped", $D125)), 0),"Not required") -> 59631.99358 | M125: =IF(INTRO!$E$40="Endemic", IF($I125>0, IF($I125=4,"Unknown",IF($I125=99,"Stopped", $D125)), 0),"Not required") -> Not required | N125: =IF(INTRO!$E$42="Endemic", IF(AND($J125>1,$J125<5), IF($J125=4, "Unknown", E125+F125), 0),"Not required") -> 23614 | O125: =IF(INTRO!$E$44="Endemic", IF(AND($K125>0,$K125<5), IF($K125=4,"Unknown", IF($K125=1, $F125*0.33, IF($K125=2, $F125*0.5+$G125*0.2, SUM(F125:G125)))), 0),"Not required") -> 15206.1 | P125: 1 | R125: 1 | S125: 1 | T125: MDA1 (IVM+ALB) | U125: T2 (PZQ) | V125: MDA 1 | W125: T2 | X125: 33160 | Y125: Tambara | AA125: TRUE | AB125: Manica | AC125: Tambara | AD125: 1 | AE125: 4 | AF125: 2 | AG125: 2 | AH125: TRUE | AI125: TRUE | AJ125: TRUE | AK125: TRUE | AO125: 1 | AQ125: 2 | AR125: 2 | AS125: TRUE | AU125: TRUE | AV125: TRUE | AY125: ='MDA1'!M125 -> 47685 | AZ125: ='T1'!O125 -> 0 | BA125: ='T2'!M125 -> 15994 | BD125: =DISTRICT!H124:H125 -> 47685 | BE125: =DISTRICT!X125 -> 15733 | BF125: =DISTRICT!AH125 -> 8348.5 | BI125: 1 | BJ125: 1 | BK125: TRUE | BL125: TRUE | BM125: Tambara | BN125: TRUE
A126: =IF(INTRO!$E$34<>0,INTRO!$E$34,"") -> Mozambique | B126: Manica | C126: Vanduze | D126: 149605.6089 | E126: =IF(INTRO!$E$48="","",ROUND($D126*INTRO!$E$48,0)) -> 17354 | F126: =IF(INTRO!$E$49="","",ROUND($D126*INTRO!$E$49,0)) -> 41890 | G126: =IF(INTRO!$E$50="","",ROUND($D126*INTRO!$E$50,0)) -> 86023 | H126: 0 | I126: 4 | J126: 3 | K126: 2 | L126: =IF(INTRO!$E$38="Endemic", IF($H126>0, IF($H126=4,"Unknown", IF($H126=99,"Stopped", $D126)), 0),"Not required") -> 0 | M126: =IF(INTRO!$E$40="Endemic", IF($I126>0, IF($I126=4,"Unknown",IF($I126=99,"Stopped", $D126)), 0),"Not required") -> Not required | N126: =IF(INTRO!$E$42="Endemic", IF(AND($J126>1,$J126<5), IF($J126=4, "Unknown", E126+F126), 0),"Not required") -> 59244 | O126: =IF(INTRO!$E$44="Endemic", IF(AND($K126>0,$K126<5), IF($K126=4,"Unknown", IF($K126=1, $F126*0.33, IF($K126=2, $F126*0.5+$G126*0.2, SUM(F126:G126)))), 0),"Not required") -> 38149.6 | P126: 0 | R126: 1 | S126: 1 | T126: T1 (PZQ+ALB/MBD) | V126: T1 | W126: T3 | X126: 33161 | Y126: Vanduze | AA126: TRUE | AB126: Manica | AC126: Vanduze | AD126: 0 | AE126: 4 | AF126: 3 | AG126: 2 | AH126: TRUE | AI126: TRUE | AJ126: TRUE | AK126: TRUE | AO126: 0 | AQ126: 3 | AR126: 2 | AS126: TRUE | AU126: TRUE | AV126: TRUE | AY126: ='MDA1'!M126 -> 0 | AZ126: ='T1'!O126 -> 41363 | BA126: ='T2'!M126 -> 0 | BD126: =DISTRICT!H125:H126 -> 0 | BE126: =DISTRICT!X126 -> 41363 | BF126: =DISTRICT!AH126 -> 20945 | BI126: 2 | BJ126: 0 | BK126: FALSE | BL126: FALSE | BM126: Vanduze | BN126: TRUE
A127: =IF(INTRO!$E$34<>0,INTRO!$E$34,"") -> Mozambique | B127: Inhambane | C127: Cid. I'bane | D127: 84842.12359 | E127: =IF(INTRO!$E$48="","",ROUND($D127*INTRO!$E$48,0)) -> 9842 | F127: =IF(INTRO!$E$49="","",ROUND($D127*INTRO!$E$49,0)) -> 23756 | G127: =IF(INTRO!$E$50="","",ROUND($D127*INTRO!$E$50,0)) -> 48784 | H127: 1 | I127: 4 | J127: 2 | K127: 1 | L127: =IF(INTRO!$E$38="Endemic", IF($H127>0, IF($H127=4,"Unknown", IF($H127=99,"Stopped", $D127)), 0),"Not required") -> 84842.12359 | M127: =IF(INTRO!$E$40="Endemic", IF($I127>0, IF($I127=4,"Unknown",IF($I127=99,"Stopped", $D127)), 0),"Not required") -> Not required | N127: =IF(INTRO!$E$42="Endemic", IF(AND($J127>1,$J127<5), IF($J127=4, "Unknown", E127+F127), 0),"Not required") -> 33598 | O127: =IF(INTRO!$E$44="Endemic", IF(AND($K127>0,$K127<5), IF($K127=4,"Unknown", IF($K127=1, $F127*0.33, IF($K127=2, $F127*0.5+$G127*0.2, SUM(F127:G127)))), 0),"Not required") -> 7839.48 | P127: 1 | R127: 1 | S127: 1 | T127: MDA1 (IVM+ALB) | U127: T2 (PZQ) | V127: MDA 1 | W127: T2 | X127: 33139 | Y127: Cid. I'bane | AA127: TRUE | AB127: Inhambane | AC127: Cid. I'bane | AD127: 1 | AE127: 4 | AF127: 2 | AG127: 1 | AH127: TRUE | AI127: TRUE | AJ127: TRUE | AK127: TRUE | AO127: 1 | AQ127: 2 | AR127: 1 | AS127: TRUE | AU127: TRUE | AV127: TRUE | AY127: ='MDA1'!M127 -> 62038 | AZ127: ='T1'!O127 -> 0 | BA127: ='T2'!M127 -> 23138 | BD127: =DISTRICT!H126:H127 -> 62038 | BE127: =DISTRICT!X127 -> 23756 | BF127: =DISTRICT!AH127 -> 7839.48 | BI127: 1 | BJ127: 1 | BK127: TRUE | BL127: TRUE | BM127: Cid. I'bane | BN127: TRUE
A128: =IF(INTRO!$E$34<>0,INTRO!$E$34,"") -> Mozambique | B128: Inhambane | C128: Funhalouro | D128: 52070.59619 | E128: =IF(INTRO!$E$48="","",ROUND($D128*INTRO!$E$48,0)) -> 6040 | F128: =IF(INTRO!$E$49="","",ROUND($D128*INTRO!$E$49,0)) -> 14580 | G128: =IF(INTRO!$E$50="","",ROUND($D128*INTRO!$E$50,0)) -> 29941 | H128: 0 | I128: 4 | J128: 2 | K128: 2 | L128: =IF(INTRO!$E$38="Endemic", IF($H128>0, IF($H128=4,"Unknown", IF($H128=99,"Stopped", $D128)), 0),"Not required") -> 0 | M128: =IF(INTRO!$E$40="Endemic", IF($I128>0, IF($I128=4,"Unknown",IF($I128=99,"Stopped", $D128)), 0),"Not required") -> Not required | N128: =IF(INTRO!$E$42="Endemic", IF(AND($J128>1,$J128<5), IF($J128=4, "Unknown", E128+F128), 0),"Not required") -> 20620 | O128: =IF(INTRO!$E$44="Endemic", IF(AND($K128>0,$K128<5), IF($K128=4,"Unknown", IF($K128=1, $F128*0.33, IF($K128=2, $F128*0.5+$G128*0.2, SUM(F128:G128)))), 0),"Not required") -> 13278.2 | P128: 0 | R128: 1 | S128: 1 | T128: T1 (PZQ+ALB/MBD) | W128: T1 | X128: 33136 | Y128: Funhalouro | AA128: TRUE | AB128: Inhambane | AC128: Funhalouro | AD128: 0 | AE128: 4 | AF128: 2 | AG128: 2 | AH128: TRUE | AI128: TRUE | AJ128: TRUE | AK128: TRUE | AO128: 0 | AQ128: 2 | AR128: 2 | AS128: TRUE | AU128: TRUE | AV128: TRUE | AY128: ='MDA1'!M128 -> 0 | AZ128: ='T1'!O128 -> 15272 | BA128: ='T2'!M128 -> 0 | BD128: =DISTRICT!H127:H128 -> 0 | BE128: =DISTRICT!X128 -> 14580 | BF128: =DISTRICT!AH128 -> 7290 | BI128: 1 | BJ128: 0 | BK128: TRUE | BL128: FALSE | BM128: Funhalouro | BN128: TRUE
A129: =IF(INTRO!$E$34<>0,INTRO!$E$34,"") -> Mozambique | B129: Inhambane | C129: Govuro | D129: 44596.66914 | E129: =IF(INTRO!$E$48="","",ROUND($D129*INTRO!$E$48,0)) -> 5173 | F129: =IF(INTRO!$E$49="","",ROUND($D129*INTRO!$E$49,0)) -> 12487 | G129: =IF(INTRO!$E$50="","",ROUND($D129*INTRO!$E$50,0)) -> 25643 | H129: 1 | I129: 4 | J129: 3 | K129: 3 | L129: =IF(INTRO!$E$38="Endemic", IF($H129>0, IF($H129=4,"Unknown", IF($H129=99,"Stopped", $D129)), 0),"Not required") -> 44596.66914 | M129: =IF(INTRO!$E$40="Endemic", IF($I129>0, IF($I129=4,"Unknown",IF($I129=99,"Stopped", $D129)), 0),"Not required") -> Not required | N129: =IF(INTRO!$E$42="Endemic", IF(AND($J129>1,$J129<5), IF($J129=4, "Unknown", E129+F129), 0),"Not required") -> 17660 | O129: =IF(INTRO!$E$44="Endemic", IF(AND($K129>0,$K129<5), IF($K129=4,"Unknown", IF($K129=1, $F129*0.33, IF($K129=2, $F129*0.5+$G129*0.2, SUM(F129:G129)))), 0),"Not required") -> 38130 | P129: 1 | R129: 1 | S129: 1 | T129: MDA1 (IVM+ALB) | U129: T2 (PZQ) | V129: MDA 1 | W129: T1 | X129: 33137 | Y129: Govuro | AA129: TRUE | AB129: Inhambane | AC129: Govuro | AD129: 1 | AE129: 4 | AF129: 3 | AG129: 3 | AH129: TRUE | AI129: TRUE | AJ129: TRUE | AK129: TRUE | AO129: 1 | AQ129: 3 | AR129: 3 | AS129: TRUE | AU129: TRUE | AV129: TRUE | AY129: ='MDA1'!M129 -> 35846 | AZ129: ='T1'!O129 -> 0 | BA129: ='T2'!M129 -> 11712 | BD129: =DISTRICT!H128:H129 -> 35846 | BE129: =DISTRICT!X129 -> 11765 | BF129: =DISTRICT!AH129 -> 11712 | BI129: 2 | BJ129: 1 | BK129: FALSE | BL129: TRUE | BM129: Govuro | BN129: TRUE
A130: =IF(INTRO!$E$34<>0,INTRO!$E$34,"") -> Mozambique | B130: Inhambane | C130: Homoíne | D130: 135610.1347 | E130: =IF(INTRO!$E$48="","",ROUND($D130*INTRO!$E$48,0)) -> 15731 | F130: =IF(INTRO!$E$49="","",ROUND($D130*INTRO!$E$49,0)) -> 37971 | G130: =IF(INTRO!$E$50="","",ROUND($D130*INTRO!$E$50,0)) -> 77976 | H130: 1 | I130: 4 | J130: 2 | K130: 1 | L130: =IF(INTRO!$E$38="Endemic", IF($H130>0, IF($H130=4,"Unknown", IF($H130=99,"Stopped", $D130)), 0),"Not required") -> 135610.1347 | M130: =IF(INTRO!$E$40="Endemic", IF($I130>0, IF($I130=4,"Unknown",IF($I130=99,"Stopped", $D130)), 0),"Not required") -> Not required | N130: =IF(INTRO!$E$42="Endemic", IF(AND($J130>1,$J130<5), IF($J130=4, "Unknown", E130+F130), 0),"Not required") -> 53702 | O130: =IF(INTRO!$E$44="Endemic", IF(AND($K130>0,$K130<5), IF($K130=4,"Unknown", IF($K130=1, $F130*0.33, IF($K130=2, $F130*0.5+$G130*0.2, SUM(F130:G130)))), 0),"Not required") -> 12530.43 | P130: 1 | R130: 1 | S130: 1 | T130: MDA1 (IVM+ALB) | U130: T2 (PZQ) | V130: MDA 1 | W130: T2 | X130: 33138 | Y130: Homoíne | AA130: TRUE | AB130: Inhambane | AC130: Homoíne | AD130: 1 | AE130: 4 | AF130: 2 | AG130: 1 | AH130: TRUE | AI130: TRUE | AJ130: TRUE | AK130: TRUE | AO130: 1 | AQ130: 2 | AR130: 1 | AS130: TRUE | AU130: TRUE | AV130: TRUE | AY130: ='MDA1'!M130 -> 119311 | AZ130: ='T1'!O130 -> 0 | BA130: ='T2'!M130 -> 42255 | BD130: =DISTRICT!H129:H130 -> 119311 | BE130: =DISTRICT!X130 -> 37971 | BF130: =DISTRICT!AH130 -> 12530.43 | BI130: 1 | BJ130: 1 | BK130: TRUE | BL130: TRUE | BM130: Homoíne | BN130: TRUE
A131: =IF(INTRO!$E$34<>0,INTRO!$E$34,"") -> Mozambique | B131: Inhambane | C131: Inharrime | D131: 140201.5898 | E131: =IF(INTRO!$E$48="","",ROUND($D131*INTRO!$E$48,0)) -> 16263 | F131: =IF(INTRO!$E$49="","",ROUND($D131*INTRO!$E$49,0)) -> 39256 | G131: =IF(INTRO!$E$50="","",ROUND($D131*INTRO!$E$50,0)) -> 80616 | H131: 0 | I131: 4 | J131: 1 | K131: 2 | L131: =IF(INTRO!$E$38="Endemic", IF($H131>0, IF($H131=4,"Unknown", IF($H131=99,"Stopped", $D131)), 0),"Not required") -> 0 | M131: =IF(INTRO!$E$40="Endemic", IF($I131>0, IF($I131=4,"Unknown",IF($I131=99,"Stopped", $D131)), 0),"Not required") -> Not required | N131: =IF(INTRO!$E$42="Endemic", IF(AND($J131>1,$J131<5), IF($J131=4, "Unknown", E131+F131), 0),"Not required") -> 0 | O131: =IF(INTRO!$E$44="Endemic", IF(AND($K131>0,$K131<5), IF($K131=4,"Unknown", IF($K131=1, $F131*0.33, IF($K131=2, $F131*0.5+$G131*0.2, SUM(F131:G131)))), 0),"Not required") -> 35751.2 | P131: 0 | R131: 0 | S131: 1 | T131: T2 (PZQ) | W131: T2 | X131: 33140 | Y131: Inharrime | AA131: TRUE | AB131: Inhambane | AC131: Inharrime | AD131: 0 | AE131: 4 | AF131: 1 | AG131: 2 | AH131: TRUE | AI131: TRUE | AJ131: TRUE | AK131: TRUE | AO131: 0 | AQ131: 1 | AR131: 2 | AS131: TRUE | AU131: TRUE | AV131: TRUE | AY131: ='MDA1'!M131 -> 0 | AZ131: ='T1'!O131 -> 0 | BA131: ='T2'!M131 -> 39923 | BD131: =DISTRICT!H130:H131 -> 0 | BE131: =DISTRICT!X131 -> 0 | BF131: =DISTRICT!AH131 -> 19628 | BI131: 0 | BJ131: 0 | BK131: TRUE | BL131: FALSE | BM131: Inharrime | BN131: TRUE
A132: =IF(INTRO!$E$34<>0,INTRO!$E$34,"") -> Mozambique | B132: Inhambane | C132: Inhassoro | D132: 67976.48839 | E132: =IF(INTRO!$E$48="","",ROUND($D132*INTRO!$E$48,0)) -> 7885 | F132: =IF(INTRO!$E$49="","",ROUND($D132*INTRO!$E$49,0)) -> 19033 | G132: =IF(INTRO!$E$50="","",ROUND($D132*INTRO!$E$50,0)) -> 39086 | H132: 1 | I132: 4 | J132: 3 | K132: 2 | L132: =IF(INTRO!$E$38="Endemic", IF($H132>0, IF($H132=4,"Unknown", IF($H132=99,"Stopped", $D132)), 0),"Not required") -> 67976.48839 | M132: =IF(INTRO!$E$40="Endemic", IF($I132>0, IF($I132=4,"Unknown",IF($I132=99,"Stopped", $D132)), 0),"Not required") -> Not required | N132: =IF(INTRO!$E$42="Endemic", IF(AND($J132>1,$J132<5), IF($J132=4, "Unknown", E132+F132), 0),"Not required") -> 26918 | O132: =IF(INTRO!$E$44="Endemic", IF(AND($K132>0,$K132<5), IF($K132=4,"Unknown", IF($K132=1, $F132*0.33, IF($K132=2, $F132*0.5+$G132*0.2, SUM(F132:G132)))), 0),"Not required") -> 17333.7 | P132: 1 | R132: 1 | S132: 1 | T132: MDA1 (IVM+ALB) | U132: T2 (PZQ) | V132: MDA 1 | W132: T1 | X132: 33141 | Y132: Inhassoro | AA132: TRUE | AB132: Inhambane | AC132: Inhassoro | AD132: 1 | AE132: 4 | AF132: 3 | AG132: 2 | AH132: TRUE | AI132: TRUE | AJ132: TRUE | AK132: TRUE | AO132: 1 | AQ132: 3 | AR132: 2 | AS132: TRUE | AU132: TRUE | AV132: TRUE | AY132: ='MDA1'!M132 -> 53894 | AZ132: ='T1'!O132 -> 0 | BA132: ='T2'!M132 -> 18182 | BD132: =DISTRICT!H131:H132 -> 53894 | BE132: =DISTRICT!X132 -> 19033 | BF132: =DISTRICT!AH132 -> 9516.5 | BI132: 2 | BJ132: 0 | BK132: FALSE | BL132: FALSE | BM132: Inhassoro | BN132: TRUE
A133: =IF(INTRO!$E$34<>0,INTRO!$E$34,"") -> Mozambique | B133: Inhambane | C133: Jangamo | D133: 116529.407 | E133: =IF(INTRO!$E$48="","",ROUND($D133*INTRO!$E$48,0)) -> 13517 | F133: =IF(INTRO!$E$49="","",ROUND($D133*INTRO!$E$49,0)) -> 32628 | G133: =IF(INTRO!$E$50="","",ROUND($D133*INTRO!$E$50,0)) -> 67004 | H133: 1 | I133: 4 | J133: 1 | K133: 2 | L133: =IF(INTRO!$E$38="Endemic", IF($H133>0, IF($H133=4,"Unknown", IF($H133=99,"Stopped", $D133)), 0),"Not required") -> 116529.407 | M133: =IF(INTRO!$E$40="Endemic", IF($I133>0, IF($I133=4,"Unknown",IF($I133=99,"Stopped", $D133)), 0),"Not required") -> Not required | N133: =IF(INTRO!$E$42="Endemic", IF(AND($J133>1,$J133<5), IF($J133=4, "Unknown", E133+F133), 0),"Not required") -> 0 | O133: =IF(INTRO!$E$44="Endemic", IF(AND($K133>0,$K133<5), IF($K133=4,"Unknown", IF($K133=1, $F133*0.33, IF($K133=2, $F133*0.5+$G133*0.2, SUM(F133:G133)))), 0),"Not required") -> 29714.8 | P133: 1 | R133: 0 | S133: 1 | T133: MDA1 (IVM+ALB) | U133: T2 (PZQ) | V133: MDA 1 | W133: T2 | X133: 33142 | Y133: Jangamo | AA133: TRUE | AB133: Inhambane | AC133: Jangamo | AD133: 1 | AE133: 4 | AF133: 1 | AG133: 2 | AH133: TRUE | AI133: TRUE | AJ133: TRUE | AK133: TRUE | AO133: 1 | AQ133: 1 | AR133: 2 | AS133: TRUE | AU133: TRUE | AV133: TRUE | AY133: ='MDA1'!M133 -> 96228 | AZ133: ='T1'!O133 -> 0 | BA133: ='T2'!M133 -> 42927 | BD133: =DISTRICT!H132:H133 -> 96228 | BE133: =DISTRICT!X133 -> 0 | BF133: =DISTRICT!AH133 -> 16314 | BI133: 0 | BJ133: 0 | BK133: TRUE | BL133: FALSE | BM133: Jangamo | BN133: TRUE
A134: =IF(INTRO!$E$34<>0,INTRO!$E$34,"") -> Mozambique | B134: Inhambane | C134: Mabote | D134: 54703.57047 | E134: =IF(INTRO!$E$48="","",ROUND($D134*INTRO!$E$48,0)) -> 6346 | F134: =IF(INTRO!$E$49="","",ROUND($D134*INTRO!$E$49,0)) -> 15317 | G134: =IF(INTRO!$E$50="","",ROUND($D134*INTRO!$E$50,0)) -> 31455 | H134: 1 | I134: 4 | J134: 2 | K134: 2 | L134: =IF(INTRO!$E$38="Endemic", IF($H134>0, IF($H134=4,"Unknown", IF($H134=99,"Stopped", $D134)), 0),"Not required") -> 54703.57047 | M134: =IF(INTRO!$E$40="Endemic", IF($I134>0, IF($I134=4,"Unknown",IF($I134=99,"Stopped", $D134)), 0),"Not required") -> Not required | N134: =IF(INTRO!$E$42="Endemic", IF(AND($J134>1,$J134<5), IF($J134=4, "Unknown", E134+F134), 0),"Not required") -> 21663 | O134: =IF(INTRO!$E$44="Endemic", IF(AND($K134>0,$K134<5), IF($K134=4,"Unknown", IF($K134=1, $F134*0.33, IF($K134=2, $F134*0.5+$G134*0.2, SUM(F134:G134)))), 0),"Not required") -> 13949.5 | P134: 1 | R134: 1 | S134: 1 | T134: MDA1 (IVM+ALB) | U134: T2 (PZQ) | V134: MDA 1 | W134: T2 | X134: 33143 | Y134: Mabote | AA134: TRUE | AB134: Inhambane | AC134: Mabote | AD134: 1 | AE134: 4 | AF134: 2 | AG134: 2 | AH134: TRUE | AI134: TRUE | AJ134: TRUE | AK134: TRUE | AO134: 1 | AQ134: 2 | AR134: 2 | AS134: TRUE | AU134: TRUE | AV134: TRUE | AY134: ='MDA1'!M134 -> 53074 | AZ134: ='T1'!O134 -> 0 | BA134: ='T2'!M134 -> 21465 | BD134: =DISTRICT!H133:H134 -> 53074 | BE134: =DISTRICT!X134 -> 15317 | BF134: =DISTRICT!AH134 -> 7658.5 | BI134: 1 | BJ134: 0 | BK134: TRUE | BL134: FALSE | BM134: Mabote | BN134: TRUE
A135: =IF(INTRO!$E$34<>0,INTRO!$E$34,"") -> Mozambique | B135: Inhambane | C135: Massinga | D135: 209467.7896 | E135: =IF(INTRO!$E$48="","",ROUND($D135*INTRO!$E$48,0)) -> 24298 | F135: =IF(INTRO!$E$49="","",ROUND($D135*INTRO!$E$49,0)) -> 58651 | G135: =IF(INTRO!$E$50="","",ROUND($D135*INTRO!$E$50,0)) -> 120444 | H135: 1 | I135: 4 | J135: 3 | K135: 2 | L135: =IF(INTRO!$E$38="Endemic", IF($H135>0, IF($H135=4,"Unknown", IF($H135=99,"Stopped", $D135)), 0),"Not required") -> 209467.7896 | M135: =IF(INTRO!$E$40="Endemic", IF($I135>0, IF($I135=4,"Unknown",IF($I135=99,"Stopped", $D135)), 0),"Not required") -> Not required | N135: =IF(INTRO!$E$42="Endemic", IF(AND($J135>1,$J135<5), IF($J135=4, "Unknown", E135+F135), 0),"Not required") -> 82949 | O135: =IF(INTRO!$E$44="Endemic", IF(AND($K135>0,$K135<5), IF($K135=4,"Unknown", IF($K135=1, $F135*0.33, IF($K135=2, $F135*0.5+$G135*0.2, SUM(F135:G135)))), 0),"Not required") -> 53414.3 | P135: 1 | R135: 1 | S135: 1 | T135: MDA1 (IVM+ALB) | U135: T2 (PZQ) | V135: MDA 1 | W135: T1 | X135: 33144 | Y135: Massinga | AA135: TRUE | AB135: Inhambane | AC135: Massinga | AD135: 1 | AE135: 4 | AF135: 3 | AG135: 2 | AH135: TRUE | AI135: TRUE | AJ135: TRUE | AK135: TRUE | AO135: 1 | AQ135: 3 | AR135: 2 | AS135: TRUE | AU135: TRUE | AV135: TRUE | AY135: ='MDA1'!M135 -> 180483 | AZ135: ='T1'!O135 -> 0 | BA135: ='T2'!M135 -> 57253 | BD135: =DISTRICT!H134:H135 -> 180483 | BE135: =DISTRICT!X135 -> 58651 | BF135: =DISTRICT!AH135 -> 29325.5 | BI135: 2 | BJ135: 0 | BK135: FALSE | BL135: FALSE | BM135: Massinga | BN135: TRUE
A136: =IF(INTRO!$E$34<>0,INTRO!$E$34,"") -> Mozambique | B136: Inhambane | C136: Maxixe | D136: 136685.6481 | E136: =IF(INTRO!$E$48="","",ROUND($D136*INTRO!$E$48,0)) -> 15856 | F136: =IF(INTRO!$E$49="","",ROUND($D136*INTRO!$E$49,0)) -> 38272 | G136: =IF(INTRO!$E$50="","",ROUND($D136*INTRO!$E$50,0)) -> 78594 | H136: 1 | I136: 4 | J136: 1 | K136: 2 | L136: =IF(INTRO!$E$38="Endemic", IF($H136>0, IF($H136=4,"Unknown", IF($H136=99,"Stopped", $D136)), 0),"Not required") -> 136685.6481 | M136: =IF(INTRO!$E$40="Endemic", IF($I136>0, IF($I136=4,"Unknown",IF($I136=99,"Stopped", $D136)), 0),"Not required") -> Not required | N136: =IF(INTRO!$E$42="Endemic", IF(AND($J136>1,$J136<5), IF($J136=4, "Unknown", E136+F136), 0),"Not required") -> 0 | O136: =IF(INTRO!$E$44="Endemic", IF(AND($K136>0,$K136<5), IF($K136=4,"Unknown", IF($K136=1, $F136*0.33, IF($K136=2, $F136*0.5+$G136*0.2, SUM(F136:G136)))), 0),"Not required") -> 34854.8 | P136: 1 | R136: 0 | S136: 1 | T136: MDA1 (IVM+ALB) | U136: T2 (PZQ) | V136: MDA 1 | W136: T2 | X136: 33145 | Y136: Maxixe | AA136: TRUE | AB136: Inhambane | AC136: Maxixe | AD136: 1 | AE136: 4 | AF136: 1 | AG136: 2 | AH136: TRUE | AI136: TRUE | AJ136: TRUE | AK136: TRUE | AO136: 1 | AQ136: 1 | AR136: 2 | AS136: TRUE | AU136: TRUE | AV136: TRUE | AY136: ='MDA1'!M136 -> 142044 | AZ136: ='T1'!O136 -> 0 | BA136: ='T2'!M136 -> 57329 | BD136: =DISTRICT!H135:H136 -> 136685.6481 | BE136: =DISTRICT!X136 -> 0 | BF136: =DISTRICT!AH136 -> 19136 | BI136: 0 | BJ136: 0 | BK136: TRUE | BL136: FALSE | BM136: Maxixe | BN136: TRUE
A137: =IF(INTRO!$E$34<>0,INTRO!$E$34,"") -> Mozambique | B137: Inhambane | C137: Morrumbene | D137: 157307.8938 | E137: =IF(INTRO!$E$48="","",ROUND($D137*INTRO!$E$48,0)) -> 18248 | F137: =IF(INTRO!$E$49="","",ROUND($D137*INTRO!$E$49,0)) -> 44046 | G137: =IF(INTRO!$E$50="","",ROUND($D137*INTRO!$E$50,0)) -> 90452 | H137: 1 | I137: 4 | J137: 1 | K137: 1 | L137: =IF(INTRO!$E$38="Endemic", IF($H137>0, IF($H137=4,"Unknown", IF($H137=99,"Stopped", $D137)), 0),"Not required") -> 157307.8938 | M137: =IF(INTRO!$E$40="Endemic", IF($I137>0, IF($I137=4,"Unknown",IF($I137=99,"Stopped", $D137)), 0),"Not required") -> Not required | N137: =IF(INTRO!$E$42="Endemic", IF(AND($J137>1,$J137<5), IF($J137=4, "Unknown", E137+F137), 0),"Not required") -> 0 | O137: =IF(INTRO!$E$44="Endemic", IF(AND($K137>0,$K137<5), IF($K137=4,"Unknown", IF($K137=1, $F137*0.33, IF($K137=2, $F137*0.5+$G137*0.2, SUM(F137:G137)))), 0),"Not required") -> 14535.18 | P137: 1 | R137: 0 | S137: 0 | T137: MDA1 (IVM+ALB) | V137: MDA 1 | W137: T2 | X137: 33146 | Y137: Morrumbene | AA137: TRUE | AB137: Inhambane | AC137: Morrumbene | AD137: 1 | AE137: 4 | AF137: 1 | AG137: 1 | AH137: TRUE | AI137: TRUE | AJ137: TRUE | AK137: TRUE | AO137: 1 | AQ137: 1 | AR137: 1 | AS137: TRUE | AU137: TRUE | AV137: TRUE | AY137: ='MDA1'!M137 -> 140611 | AZ137: ='T1'!O137 -> 0 | BA137: ='T2'!M137 -> 0 | BD137: =DISTRICT!H136:H137 -> 140611 | BE137: =DISTRICT!X137 -> 0 | BF137: =DISTRICT!AH137 -> 0 | BI137: 0 | BJ137: 1 | BK137: TRUE | BL137: FALSE | BM137: Morrumbene | BN137: TRUE
A138: =IF(INTRO!$E$34<>0,INTRO!$E$34,"") -> Mozambique | B138: Inhambane | C138: Panda | D138: 53731.98452 | E138: =IF(INTRO!$E$48="","",ROUND($D138*INTRO!$E$48,0)) -> 6233 | F138: =IF(INTRO!$E$49="","",ROUND($D138*INTRO!$E$49,0)) -> 15045 | G138: =IF(INTRO!$E$50="","",ROUND($D138*INTRO!$E$50,0)) -> 30896 | H138: 0 | I138: 4 | J138: 1 | K138: 2 | L138: =IF(INTRO!$E$38="Endemic", IF($H138>0, IF($H138=4,"Unknown", IF($H138=99,"Stopped", $D138)), 0),"Not required") -> 0 | M138: =IF(INTRO!$E$40="Endemic", IF($I138>0, IF($I138=4,"Unknown",IF($I138=99,"Stopped", $D138)), 0),"Not required") -> Not required | N138: =IF(INTRO!$E$42="Endemic", IF(AND($J138>1,$J138<5), IF($J138=4, "Unknown", E138+F138), 0),"Not required") -> 0 | O138: =IF(INTRO!$E$44="Endemic", IF(AND($K138>0,$K138<5), IF($K138=4,"Unknown", IF($K138=1, $F138*0.33, IF($K138=2, $F138*0.5+$G138*0.2, SUM(F138:G138)))), 0),"Not required") -> 13701.7 | P138: 0 | R138: 0 | S138: 1 | T138: T2 (PZQ) | W138: T2 | X138: 33147 | Y138: Panda | AA138: =AC138=C138 -> TRUE | AB138: Inhambane | AC138: Panda | AD138: 0 | AE138: 4 | AF138: 1 | AG138: 2 | AH138: =AD138=H138 -> TRUE | AI138: =AE138=I138 -> TRUE | AJ138: =AF138=J138 -> TRUE | AK138: =AG138=K138 -> TRUE | AO138: 0 | AQ138: 1 | AR138: 2 | AS138: =AO138=H138 -> TRUE | AU138: TRUE | AV138: TRUE | AY138: ='MDA1'!M138 -> 0 | AZ138: ='T1'!O138 -> 0 | BA138: ='T2'!M138 -> 14179 | BD138: =DISTRICT!H137:H138 -> 0 | BE138: =DISTRICT!X138 -> 0 | BF138: =DISTRICT!AH138 -> 7522.5 | BI138: 0 | BJ138: 0 | BK138: =BI138=R138 -> TRUE | BL138: =BJ138=S138 -> FALSE | BM138: Panda | BN138: =BM138=C138 -> TRUE
A139: =IF(INTRO!$E$34<>0,INTRO!$E$34,"") -> Mozambique | B139: Inhambane | C139: Vilanculos | D139: 176050.4153 | E139: =IF(INTRO!$E$48="","",ROUND($D139*INTRO!$E$48,0)) -> 20422 | F139: =IF(INTRO!$E$49="","",ROUND($D139*INTRO!$E$49,0)) -> 49294 | G139: =IF(INTRO!$E$50="","",ROUND($D139*INTRO!$E$50,0)) -> 101229 | H139: 1 | I139: 4 | J139: 2 | K139: 2 | L139: =IF(INTRO!$E$38="Endemic", IF($H139>0, IF($H139=4,"Unknown", IF($H139=99,"Stopped", $D139)), 0),"Not required") -> 176050.4153 | M139: =IF(INTRO!$E$40="Endemic", IF($I139>0, IF($I139=4,"Unknown",IF($I139=99,"Stopped", $D139)), 0),"Not required") -> Not required | N139: =IF(INTRO!$E$42="Endemic", IF(AND($J139>1,$J139<5), IF($J139=4, "Unknown", E139+F139), 0),"Not required") -> 69716 | O139: =IF(INTRO!$E$44="Endemic", IF(AND($K139>0,$K139<5), IF($K139=4,"Unknown", IF($K139=1, $F139*0.33, IF($K139=2, $F139*0.5+$G139*0.2, SUM(F139:G139)))), 0),"Not required") -> 44892.8 | P139: 1 | R139: 1 | S139: 1 | T139: MDA1 (IVM+ALB) | U139: T2 (PZQ) | V139: MDA 1 | W139: T2 | X139: 33148 | Y139: Vilanculos | AA139: TRUE | AB139: Inhambane | AC139: Vilanculos | AD139: 1 | AE139: 4 | AF139: 2 | AG139: 2 | AH139: TRUE | AI139: TRUE | AJ139: TRUE | AK139: TRUE | AO139: 1 | AQ139: 2 | AR139: 2 | AS139: TRUE | AU139: TRUE | AV139: TRUE | AY139: ='MDA1'!M139 -> 138739 | AZ139: ='T1'!O139 -> 0 | BA139: ='T2'!M139 -> 85347 | BD139: =DISTRICT!H138:H139 -> 138739 | BE139: =DISTRICT!X139 -> 49294 | BF139: =DISTRICT!AH139 -> 24647 | BI139: 1 | BJ139: 0 | BK139: TRUE | BL139: FALSE | BM139: Vilanculos | BN139: TRUE
A140: =IF(INTRO!$E$34<>0,INTRO!$E$34,"") -> Mozambique | B140: Inhambane | C140: Zavala | D140: 167597.6894 | E140: =IF(INTRO!$E$48="","",ROUND($D140*INTRO!$E$48,0)) -> 19441 | F140: =IF(INTRO!$E$49="","",ROUND($D140*INTRO!$E$49,0)) -> 46927 | G140: =IF(INTRO!$E$50="","",ROUND($D140*INTRO!$E$50,0)) -> 96369 | H140: 0 | I140: 4 | J140: 3 | K140: 1 | L140: =IF(INTRO!$E$38="Endemic", IF($H140>0, IF($H140=4,"Unknown", IF($H140=99,"Stopped", $D140)), 0),"Not required") -> 0 | M140: =IF(INTRO!$E$40="Endemic", IF($I140>0, IF($I140=4,"Unknown",IF($I140=99,"Stopped", $D140)), 0),"Not required") -> Not required | N140: =IF(INTRO!$E$42="Endemic", IF(AND($J140>1,$J140<5), IF($J140=4, "Unknown", E140+F140), 0),"Not required") -> 66368 | O140: =IF(INTRO!$E$44="Endemic", IF(AND($K140>0,$K140<5), IF($K140=4,"Unknown", IF($K140=1, $F140*0.33, IF($K140=2, $F140*0.5+$G140*0.2, SUM(F140:G140)))), 0),"Not required") -> 15485.91 | P140: 0 | R140: 1 | S140: 1 | T140: T1 (PZQ+ALB/MBD) | V140: T1 | W140: T3 | X140: 33149 | Y140: Zavala | AA140: TRUE | AB140: Inhambane | AC140: Zavala | AD140: 0 | AE140: 4 | AF140: 3 | AG140: 1 | AH140: TRUE | AI140: TRUE | AJ140: TRUE | AK140: TRUE | AO140: 0 | AQ140: 3 | AR140: 1 | AS140: TRUE | AU140: TRUE | AV140: TRUE | AY140: ='MDA1'!M140 -> 0 | AZ140: ='T1'!O140 -> 46711 | BA140: ='T2'!M140 -> 0 | BD140: =DISTRICT!H139:H140 -> 0 | BE140: =DISTRICT!X140 -> 46711 | BF140: =DISTRICT!AH140 -> 15485.91 | BI140: 2 | BJ140: 1 | BK140: FALSE | BL140: TRUE | BM140: Zavala | BN140: TRUE
A141: =IF(INTRO!$E$34<>0,INTRO!$E$34,"") -> Mozambique | B141: Gaza | C141: Cid Xai Xai | D141: 151847.1106 | E141: =IF(INTRO!$E$48="","",ROUND($D141*INTRO!$E$48,0)) -> 17614 | F141: =IF(INTRO!$E$49="","",ROUND($D141*INTRO!$E$49,0)) -> 42517 | G141: =IF(INTRO!$E$50="","",ROUND($D141*INTRO!$E$50,0)) -> 87312 | H141: 0 | I141: 4 | J141: 2 | K141: 1 | L141: =IF(INTRO!$E$38="Endemic", IF($H141>0, IF($H141=4,"Unknown", IF($H141=99,"Stopped", $D141)), 0),"Not required") -> 0 | M141: =IF(INTRO!$E$40="Endemic", IF($I141>0, IF($I141=4,"Unknown",IF($I141=99,"Stopped", $D141)), 0),"Not required") -> Not required | N141: =IF(INTRO!$E$42="Endemic", IF(AND($J141>1,$J141<5), IF($J141=4, "Unknown", E141+F141), 0),"Not required") -> 60131 | O141: =IF(INTRO!$E$44="Endemic", IF(AND($K141>0,$K141<5), IF($K141=4,"Unknown", IF($K141=1, $F141*0.33, IF($K141=2, $F141*0.5+$G141*0.2, SUM(F141:G141)))), 0),"Not required") -> 14030.61 | P141: 0 | R141: 1 | S141: 1 | T141: T1 (PZQ+ALB/MBD) | W141: T1 | X141: 33128 | Y141: Cid Xai Xai | AA141: TRUE | AB141: Gaza | AC141: Cid Xai Xai | AD141: 0 | AE141: 4 | AF141: 2 | AG141: 1 | AH141: TRUE | AI141: TRUE | AJ141: TRUE | AK141: TRUE | AO141: 0 | AQ141: 2 | AR141: 1 | AS141: TRUE | AU141: TRUE | AV141: TRUE | AY141: ='MDA1'!M141 -> 0 | AZ141: ='T1'!O141 -> 42345 | BA141: ='T2'!M141 -> 0 | BD141: =DISTRICT!H140:H141 -> 0 | BE141: =DISTRICT!X141 -> 42345 | BF141: =DISTRICT!AH141 -> 14030.61 | BI141: 1 | BJ141: 1 | BK141: TRUE | BL141: TRUE | BM141: Cid Xai Xai | BN141: TRUE
A142: =IF(INTRO!$E$34<>0,INTRO!$E$34,"") -> Mozambique | B142: Gaza | C142: Bilene Macia | D142: 159725.4897 | E142: =IF(INTRO!$E$48="","",ROUND($D142*INTRO!$E$48,0)) -> 18528 | F142: =IF(INTRO!$E$49="","",ROUND($D142*INTRO!$E$49,0)) -> 44723 | G142: =IF(INTRO!$E$50="","",ROUND($D142*INTRO!$E$50,0)) -> 91842 | H142: 0 | I142: 0 | J142: 3 | K142: 2 | L142: =IF(INTRO!$E$38="Endemic", IF($H142>0, IF($H142=4,"Unknown", IF($H142=99,"Stopped", $D142)), 0),"Not required") -> 0 | M142: =IF(INTRO!$E$40="Endemic", IF($I142>0, IF($I142=4,"Unknown",IF($I142=99,"Stopped", $D142)), 0),"Not required") -> Not required | N142: =IF(INTRO!$E$42="Endemic", IF(AND($J142>1,$J142<5), IF($J142=4, "Unknown", E142+F142), 0),"Not required") -> 63251 | O142: =IF(INTRO!$E$44="Endemic", IF(AND($K142>0,$K142<5), IF($K142=4,"Unknown", IF($K142=1, $F142*0.33, IF($K142=2, $F142*0.5+$G142*0.2, SUM(F142:G142)))), 0),"Not required") -> 40729.9 | P142: 0 | R142: 1 | S142: 1 | T142: T1 (PZQ+ALB/MBD) | V142: T1 | W142: T3 | X142: 33131 | Y142: Bilene Macia | AA142: TRUE | AB142: Gaza | AC142: Bilene Macia | AD142: 0 | AE142: 0 | AF142: 3 | AG142: 2 | AH142: TRUE | AI142: TRUE | AJ142: TRUE | AK142: TRUE | AO142: 0 | AQ142: 3 | AR142: 2 | AS142: TRUE | AU142: TRUE | AV142: TRUE | AY142: ='MDA1'!M142 -> 0 | AZ142: ='T1'!O142 -> 42613 | BA142: ='T2'!M142 -> 0 | BD142: =DISTRICT!H141:H142 -> 0 | BE142: =DISTRICT!X142 -> 42613 | BF142: =DISTRICT!AH142 -> 22361.5 | BI142: 2 | BJ142: 0 | BK142: FALSE | BL142: FALSE | BM142: Bilene Macia | BN142: TRUE
A143: =IF(INTRO!$E$34<>0,INTRO!$E$34,"") -> Mozambique | B143: Gaza | C143: Chibuto | D143: 234441.7201 | E143: =IF(INTRO!$E$48="","",ROUND($D143*INTRO!$E$48,0)) -> 27195 | F143: =IF(INTRO!$E$49="","",ROUND($D143*INTRO!$E$49,0)) -> 65644 | G143: =IF(INTRO!$E$50="","",ROUND($D143*INTRO!$E$50,0)) -> 134804 | H143: 0 | I143: 0 | J143: 2 | K143: 2 | L143: =IF(INTRO!$E$38="Endemic", IF($H143>0, IF($H143=4,"Unknown", IF($H143=99,"Stopped", $D143)), 0),"Not required") -> 0 | M143: =IF(INTRO!$E$40="Endemic", IF($I143>0, IF($I143=4,"Unknown",IF($I143=99,"Stopped", $D143)), 0),"Not required") -> Not required | N143: =IF(INTRO!$E$42="Endemic", IF(AND($J143>1,$J143<5), IF($J143=4, "Unknown", E143+F143), 0),"Not required") -> 92839 | O143: =IF(INTRO!$E$44="Endemic", IF(AND($K143>0,$K143<5), IF($K143=4,"Unknown", IF($K143=1, $F143*0.33, IF($K143=2, $F143*0.5+$G143*0.2, SUM(F143:G143)))), 0),"Not required") -> 59782.8 | P143: 0 | R143: 1 | S143: 1 | T143: T1 (PZQ+ALB/MBD) | W143: T1 | X143: 33124 | Y143: Chibuto | AA143: TRUE | AB143: Gaza | AC143: Chibuto | AD143: 0 | AE143: 0 | AF143: 2 | AG143: 2 | AH143: TRUE | AI143: TRUE | AJ143: TRUE | AK143: TRUE | AO143: 0 | AQ143: 2 | AR143: 2 | AS143: TRUE | AU143: TRUE | AV143: TRUE | AY143: ='MDA1'!M143 -> 0 | AZ143: ='T1'!O143 -> 59262 | BA143: ='T2'!M143 -> 0 | BD143: =DISTRICT!H142:H143 -> 0 | BE143: =DISTRICT!X143 -> 59262 | BF143: =DISTRICT!AH143 -> 32822 | BI143: 1 | BJ143: 0 | BK143: TRUE | BL143: FALSE | BM143: Chibuto | BN143: TRUE
A144: =IF(INTRO!$E$34<>0,INTRO!$E$34,"") -> Mozambique | B144: Gaza | C144: Chicualacuala | D144: 29128.57212 | E144: =IF(INTRO!$E$48="","",ROUND($D144*INTRO!$E$48,0)) -> 3379 | F144: =IF(INTRO!$E$49="","",ROUND($D144*INTRO!$E$49,0)) -> 8156 | G144: =IF(INTRO!$E$50="","",ROUND($D144*INTRO!$E$50,0)) -> 16749 | H144: 1 | I144: 0 | J144: 3 | K144: 2 | L144: =IF(INTRO!$E$38="Endemic", IF($H144>0, IF($H144=4,"Unknown", IF($H144=99,"Stopped", $D144)), 0),"Not required") -> 29128.57212 | M144: =IF(INTRO!$E$40="Endemic", IF($I144>0, IF($I144=4,"Unknown",IF($I144=99,"Stopped", $D144)), 0),"Not required") -> Not required | N144: =IF(INTRO!$E$42="Endemic", IF(AND($J144>1,$J144<5), IF($J144=4, "Unknown", E144+F144), 0),"Not required") -> 11535 | O144: =IF(INTRO!$E$44="Endemic", IF(AND($K144>0,$K144<5), IF($K144=4,"Unknown", IF($K144=1, $F144*0.33, IF($K144=2, $F144*0.5+$G144*0.2, SUM(F144:G144)))), 0),"Not required") -> 7427.8 | P144: 1 | R144: 1 | S144: 1 | T144: MDA1 (IVM+ALB) | U144: T2 (PZQ) | V144: MDA 1 | W144: T1 | X144: 33125 | Y144: Chicualacuala | AA144: TRUE | AB144: Gaza | AC144: Chicualacuala | AD144: 1 | AE144: 0 | AF144: 3 | AG144: 2 | AH144: TRUE | AI144: TRUE | AJ144: TRUE | AK144: TRUE | AO144: 1 | AQ144: 3 | AR144: 2 | AS144: TRUE | AU144: TRUE | AV144: TRUE | AY144: ='MDA1'!M144 -> 22031 | AZ144: ='T1'!O144 -> 0 | BA144: ='T2'!M144 -> 7936 | BD144: =DISTRICT!H143:H144 -> 22031 | BE144: =DISTRICT!X144 -> 7919 | BF144: =DISTRICT!AH144 -> 4078 | BI144: 2 | BJ144: 0 | BK144: FALSE | BL144: FALSE | BM144: Chicualacuala | BN144: TRUE
A145: =IF(INTRO!$E$34<>0,INTRO!$E$34,"") -> Mozambique | B145: Gaza | C145: Chigubo | D145: 24663.1671 | E145: =IF(INTRO!$E$48="","",ROUND($D145*INTRO!$E$48,0)) -> 2861 | F145: =IF(INTRO!$E$49="","",ROUND($D145*INTRO!$E$49,0)) -> 6906 | G145: =IF(INTRO!$E$50="","",ROUND($D145*INTRO!$E$50,0)) -> 14181 | H145: 0 | I145: 0 | J145: 2 | K145: 2 | L145: =IF(INTRO!$E$38="Endemic", IF($H145>0, IF($H145=4,"Unknown", IF($H145=99,"Stopped", $D145)), 0),"Not required") -> 0 | M145: =IF(INTRO!$E$40="Endemic", IF($I145>0, IF($I145=4,"Unknown",IF($I145=99,"Stopped", $D145)), 0),"Not required") -> Not required | N145: =IF(INTRO!$E$42="Endemic", IF(AND($J145>1,$J145<5), IF($J145=4, "Unknown", E145+F145), 0),"Not required") -> 9767 | O145: =IF(INTRO!$E$44="Endemic", IF(AND($K145>0,$K145<5), IF($K145=4,"Unknown", IF($K145=1, $F145*0.33, IF($K145=2, $F145*0.5+$G145*0.2, SUM(F145:G145)))), 0),"Not required") -> 6289.2 | P145: 0 | R145: 1 | S145: 1 | T145: T1 (PZQ+ALB/MBD) | W145: T1 | X145: 33126 | Y145: Chigubo | AA145: TRUE | AB145: Gaza | AC145: Chigubo | AD145: 0 | AE145: 0 | AF145: 2 | AG145: 2 | AH145: TRUE | AI145: TRUE | AJ145: TRUE | AK145: TRUE | AO145: 0 | AQ145: 2 | AR145: 2 | AS145: TRUE | AU145: TRUE | AV145: TRUE | AY145: ='MDA1'!M145 -> 0 | AZ145: ='T1'!O145 -> 6264 | BA145: ='T2'!M145 -> 0 | BD145: =DISTRICT!H144:H145 -> 0 | BE145: =DISTRICT!X145 -> 6264 | BF145: =DISTRICT!AH145 -> 3453 | BI145: 1 | BJ145: 0 | BK145: TRUE | BL145: FALSE | BM145: Chigubo | BN145: TRUE
A146: =IF(INTRO!$E$34<>0,INTRO!$E$34,"") -> Mozambique | B146: Gaza | C146: Chokwé | D146: 254879.2497 | E146: =IF(INTRO!$E$48="","",ROUND($D146*INTRO!$E$48,0)) -> 29566 | F146: =IF(INTRO!$E$49="","",ROUND($D146*INTRO!$E$49,0)) -> 71366 | G146: =IF(INTRO!$E$50="","",ROUND($D146*INTRO!$E$50,0)) -> 146556 | H146: 0 | I146: 0 | J146: 2 | K146: 2 | L146: =IF(INTRO!$E$38="Endemic", IF($H146>0, IF($H146=4,"Unknown", IF($H146=99,"Stopped", $D146)), 0),"Not required") -> 0 | M146: =IF(INTRO!$E$40="Endemic", IF($I146>0, IF($I146=4,"Unknown",IF($I146=99,"Stopped", $D146)), 0),"Not required") -> Not required | N146: =IF(INTRO!$E$42="Endemic", IF(AND($J146>1,$J146<5), IF($J146=4, "Unknown", E146+F146), 0),"Not required") -> 100932 | O146: =IF(INTRO!$E$44="Endemic", IF(AND($K146>0,$K146<5), IF($K146=4,"Unknown", IF($K146=1, $F146*0.33, IF($K146=2, $F146*0.5+$G146*0.2, SUM(F146:G146)))), 0),"Not required") -> 64994.2 | P146: 0 | R146: 1 | S146: 1 | T146: T1 (PZQ+ALB/MBD) | W146: T1 | X146: 33127 | Y146: Chokwé | AA146: TRUE | AB146: Gaza | AC146: Chokwé | AD146: 0 | AE146: 0 | AF146: 2 | AG146: 2 | AH146: TRUE | AI146: TRUE | AJ146: TRUE | AK146: TRUE | AO146: 0 | AQ146: 2 | AR146: 2 | AS146: TRUE | AU146: TRUE | AV146: TRUE | AY146: ='MDA1'!M146 -> 0 | AZ146: ='T1'!O146 -> 57027 | BA146: ='T2'!M146 -> 0 | BD146: =DISTRICT!H145:H146 -> 0 | BE146: =DISTRICT!X146 -> 57027 | BF146: =DISTRICT!AH146 -> 35683 | BI146: 1 | BJ146: 0 | BK146: TRUE | BL146: FALSE | BM146: Chokwé | BN146: TRUE
A147: =IF(INTRO!$E$34<>0,INTRO!$E$34,"") -> Mozambique | B147: Gaza | C147: Chongoene | D147: 128896 | E147: =IF(INTRO!$E$48="","",ROUND($D147*INTRO!$E$48,0)) -> 14952 | F147: =IF(INTRO!$E$49="","",ROUND($D147*INTRO!$E$49,0)) -> 36091 | G147: =IF(INTRO!$E$50="","",ROUND($D147*INTRO!$E$50,0)) -> 74115 | H147: 0 | I147: 0 | J147: 2 | K147: 1 | L147: =IF(INTRO!$E$38="Endemic", IF($H147>0, IF($H147=4,"Unknown", IF($H147=99,"Stopped", $D147)), 0),"Not required") -> 0 | M147: =IF(INTRO!$E$40="Endemic", IF($I147>0, IF($I147=4,"Unknown",IF($I147=99,"Stopped", $D147)), 0),"Not required") -> Not required | N147: =IF(INTRO!$E$42="Endemic", IF(AND($J147>1,$J147<5), IF($J147=4, "Unknown", E147+F147), 0),"Not required") -> 51043 | O147: =IF(INTRO!$E$44="Endemic", IF(AND($K147>0,$K147<5), IF($K147=4,"Unknown", IF($K147=1, $F147*0.33, IF($K147=2, $F147*0.5+$G147*0.2, SUM(F147:G147)))), 0),"Not required") -> 11910.03 | P147: 0 | R147: 1 | S147: 1 | T147: T1 (PZQ+ALB/MBD) | W147: T1 | X147: 33260 | Y147: Chongoene (Distrito de Xai Xai | AA147: FALSE | AB147: Gaza | AC147: Chongoene (Distrito de Xai Xai | AD147: 0 | AE147: 0 | AF147: 2 | AG147: 1 | AH147: TRUE | AI147: TRUE | AJ147: TRUE | AK147: TRUE | AO147: 0 | AQ147: 2 | AR147: 1 | AS147: TRUE | AU147: TRUE | AV147: TRUE | AY147: ='MDA1'!M147 -> 0 | AZ147: ='T1'!O147 -> 33961 | BA147: ='T2'!M147 -> 0 | BD147: =DISTRICT!H146:H147 -> 0 | BE147: =DISTRICT!X147 -> 33961 | BF147: =DISTRICT!AH147 -> 11910.03 | BI147: 1 | BJ147: 1 | BK147: TRUE | BL147: TRUE | BM147: Chongoene (Distrito de Xai Xai | BN147: FALSE
A148: =IF(INTRO!$E$34<>0,INTRO!$E$34,"") -> Mozambique | B148: Gaza | C148: Guijá | D148: 99650 | E148: =IF(INTRO!$E$48="","",ROUND($D148*INTRO!$E$48,0)) -> 11559 | F148: =IF(INTRO!$E$49="","",ROUND($D148*INTRO!$E$49,0)) -> 27902 | G148: =IF(INTRO!$E$50="","",ROUND($D148*INTRO!$E$50,0)) -> 57299 | H148: 0 | I148: 0 | J148: 2 | K148: 2 | L148: =IF(INTRO!$E$38="Endemic", IF($H148>0, IF($H148=4,"Unknown", IF($H148=99,"Stopped", $D148)), 0),"Not required") -> 0 | M148: =IF(INTRO!$E$40="Endemic", IF($I148>0, IF($I148=4,"Unknown",IF($I148=99,"Stopped", $D148)), 0),"Not required") -> Not required | N148: =IF(INTRO!$E$42="Endemic", IF(AND($J148>1,$J148<5), IF($J148=4, "Unknown", E148+F148), 0),"Not required") -> 39461 | O148: =IF(INTRO!$E$44="Endemic", IF(AND($K148>0,$K148<5), IF($K148=4,"Unknown", IF($K148=1, $F148*0.33, IF($K148=2, $F148*0.5+$G148*0.2, SUM(F148:G148)))), 0),"Not required") -> 25410.8 | P148: 0 | R148: 1 | S148: 1 | T148: T1 (PZQ+ALB/MBD) | W148: T1 | X148: 33129 | Y148: Guijá | AA148: TRUE | AB148: Gaza | AC148: Guijá | AD148: 0 | AE148: 0 | AF148: 2 | AG148: 2 | AH148: TRUE | AI148: TRUE | AJ148: TRUE | AK148: TRUE | AO148: 0 | AQ148: 2 | AR148: 2 | AS148: TRUE | AU148: TRUE | AV148: TRUE | AY148: ='MDA1'!M148 -> 0 | AZ148: ='T1'!O148 -> 27499 | BA148: ='T2'!M148 -> 0 | BD148: =DISTRICT!H147:H148 -> 0 | BE148: =DISTRICT!X148 -> 27499 | BF148: =DISTRICT!AH148 -> 13951 | BI148: 1 | BJ148: 0 | BK148: TRUE | BL148: FALSE | BM148: Guijá | BN148: TRUE
A149: =IF(INTRO!$E$34<>0,INTRO!$E$34,"") -> Mozambique | B149: Gaza | C149: Limpopo | D149: 161316 | E149: =IF(INTRO!$E$48="","",ROUND($D149*INTRO!$E$48,0)) -> 18713 | F149: =IF(INTRO!$E$49="","",ROUND($D149*INTRO!$E$49,0)) -> 45168 | G149: =IF(INTRO!$E$50="","",ROUND($D149*INTRO!$E$50,0)) -> 92757 | H149: 0 | I149: 0 | J149: 2 | K149: 1 | L149: =IF(INTRO!$E$38="Endemic", IF($H149>0, IF($H149=4,"Unknown", IF($H149=99,"Stopped", $D149)), 0),"Not required") -> 0 | M149: =IF(INTRO!$E$40="Endemic", IF($I149>0, IF($I149=4,"Unknown",IF($I149=99,"Stopped", $D149)), 0),"Not required") -> Not required | N149: =IF(INTRO!$E$42="Endemic", IF(AND($J149>1,$J149<5), IF($J149=4, "Unknown", E149+F149), 0),"Not required") -> 63881 | O149: =IF(INTRO!$E$44="Endemic", IF(AND($K149>0,$K149<5), IF($K149=4,"Unknown", IF($K149=1, $F149*0.33, IF($K149=2, $F149*0.5+$G149*0.2, SUM(F149:G149)))), 0),"Not required") -> 14905.44 | P149: 0 | R149: 1 | S149: 1 | T149: T1 (PZQ+ALB/MBD) | W149: T1 | X149: 33261 | Y149: Limpopo (Distrito de Xai Xai) | AA149: FALSE | AB149: Gaza | AC149: Limpopo (Distrito de Xai Xai) | AD149: 0 | AE149: 0 | AF149: 2 | AG149: 1 | AH149: TRUE | AI149: TRUE | AJ149: TRUE | AK149: TRUE | AO149: 0 | AQ149: 2 | AR149: 1 | AS149: TRUE | AU149: TRUE | AV149: TRUE | AY149: ='MDA1'!M149 -> 0 | AZ149: ='T1'!O149 -> 39484 | BA149: ='T2'!M149 -> 0 | BD149: =DISTRICT!H148:H149 -> 0 | BE149: =DISTRICT!X149 -> 39484 | BF149: =DISTRICT!AH149 -> 14905.44 | BI149: 1 | BJ149: 1 | BK149: TRUE | BL149: TRUE | BM149: Limpopo (Distrito de Xai Xai) | BN149: FALSE
A150: =IF(INTRO!$E$34<>0,INTRO!$E$34,"") -> Mozambique | B150: Gaza | C150: Mabalane | D150: 46556 | E150: =IF(INTRO!$E$48="","",ROUND($D150*INTRO!$E$48,0)) -> 5400 | F150: =IF(INTRO!$E$49="","",ROUND($D150*INTRO!$E$49,0)) -> 13036 | G150: =IF(INTRO!$E$50="","",ROUND($D150*INTRO!$E$50,0)) -> 26770 | H150: 1 | I150: 0 | J150: 3 | K150: 2 | L150: =IF(INTRO!$E$38="Endemic", IF($H150>0, IF($H150=4,"Unknown", IF($H150=99,"Stopped", $D150)), 0),"Not required") -> 46556 | M150: =IF(INTRO!$E$40="Endemic", IF($I150>0, IF($I150=4,"Unknown",IF($I150=99,"Stopped", $D150)), 0),"Not required") -> Not required | N150: =IF(INTRO!$E$42="Endemic", IF(AND($J150>1,$J150<5), IF($J150=4, "Unknown", E150+F150), 0),"Not required") -> 18436 | O150: =IF(INTRO!$E$44="Endemic", IF(AND($K150>0,$K150<5), IF($K150=4,"Unknown", IF($K150=1, $F150*0.33, IF($K150=2, $F150*0.5+$G150*0.2, SUM(F150:G150)))), 0),"Not required") -> 11872 | P150: 1 | R150: 1 | S150: 1 | T150: MDA1 (IVM+ALB) | U150: T2 (PZQ) | V150: MDA 1 | W150: T1 | X150: 33130 | Y150: Mabalane | AA150: TRUE | AB150: Gaza | AC150: Mabalane | AD150: 1 | AE150: 0 | AF150: 3 | AG150: 2 | AH150: TRUE | AI150: TRUE | AJ150: TRUE | AK150: TRUE | AO150: 1 | AQ150: 3 | AR150: 2 | AS150: TRUE | AU150: TRUE | AV150: TRUE | AY150: ='MDA1'!M150 -> 38088 | AZ150: ='T1'!O150 -> 0 | BA150: ='T2'!M150 -> 13085 | BD150: =DISTRICT!H149:H150 -> 38088 | BE150: =DISTRICT!X150 -> 13036 | BF150: =DISTRICT!AH150 -> 6518 | BI150: 1 | BJ150: 0 | BK150: TRUE | BL150: FALSE | BM150: Mabalane | BN150: TRUE
A151: =IF(INTRO!$E$34<>0,INTRO!$E$34,"") -> Mozambique | B151: Gaza | C151: Manjacaze | D151: 149152 | E151: =IF(INTRO!$E$48="","",ROUND($D151*INTRO!$E$48,0)) -> 17302 | F151: =IF(INTRO!$E$49="","",ROUND($D151*INTRO!$E$49,0)) -> 41763 | G151: =IF(INTRO!$E$50="","",ROUND($D151*INTRO!$E$50,0)) -> 85762 | H151: 0 | I151: 4 | J151: 2 | K151: 2 | L151: =IF(INTRO!$E$38="Endemic", IF($H151>0, IF($H151=4,"Unknown", IF($H151=99,"Stopped", $D151)), 0),"Not required") -> 0 | M151: =IF(INTRO!$E$40="Endemic", IF($I151>0, IF($I151=4,"Unknown",IF($I151=99,"Stopped", $D151)), 0),"Not required") -> Not required | N151: =IF(INTRO!$E$42="Endemic", IF(AND($J151>1,$J151<5), IF($J151=4, "Unknown", E151+F151), 0),"Not required") -> 59065 | O151: =IF(INTRO!$E$44="Endemic", IF(AND($K151>0,$K151<5), IF($K151=4,"Unknown", IF($K151=1, $F151*0.33, IF($K151=2, $F151*0.5+$G151*0.2, SUM(F151:G151)))), 0),"Not required") -> 38033.9 | P151: 0 | R151: 1 | S151: 1 | T151: T1 (PZQ+ALB/MBD) | W151: T1 | X151: 33132 | Y151: Manjacaze | AA151: TRUE | AB151: Gaza | AC151: Manjacaze | AD151: 0 | AE151: 4 | AF151: 2 | AG151: 2 | AH151: TRUE | AI151: TRUE | AJ151: TRUE | AK151: TRUE | AO151: 0 | AQ151: 2 | AR151: 2 | AS151: TRUE | AU151: TRUE | AV151: TRUE | AY151: ='MDA1'!M151 -> 0 | AZ151: ='T1'!O151 -> 39045 | BA151: ='T2'!M151 -> 0 | BD151: =DISTRICT!H150:H151 -> 0 | BE151: =DISTRICT!X151 -> 39045 | BF151: =DISTRICT!AH151 -> 20881.5 | BI151: 1 | BJ151: 0 | BK151: TRUE | BL151: FALSE | BM151: Manjacaze | BN151: TRUE
A152: =IF(INTRO!$E$34<>0,INTRO!$E$34,"") -> Mozambique | B152: Gaza | C152: Mapai | D152: 31650.37485 | E152: =IF(INTRO!$E$48="","",ROUND($D152*INTRO!$E$48,0)) -> 3671 | F152: =IF(INTRO!$E$49="","",ROUND($D152*INTRO!$E$49,0)) -> 8862 | G152: =IF(INTRO!$E$50="","",ROUND($D152*INTRO!$E$50,0)) -> 18199 | H152: 1 | I152: 4 | J152: 3 | K152: 2 | L152: =IF(INTRO!$E$38="Endemic", IF($H152>0, IF($H152=4,"Unknown", IF($H152=99,"Stopped", $D152)), 0),"Not required") -> 31650.37485 | M152: =IF(INTRO!$E$40="Endemic", IF($I152>0, IF($I152=4,"Unknown",IF($I152=99,"Stopped", $D152)), 0),"Not required") -> Not required | N152: =IF(INTRO!$E$42="Endemic", IF(AND($J152>1,$J152<5), IF($J152=4, "Unknown", E152+F152), 0),"Not required") -> 12533 | O152: =IF(INTRO!$E$44="Endemic", IF(AND($K152>0,$K152<5), IF($K152=4,"Unknown", IF($K152=1, $F152*0.33, IF($K152=2, $F152*0.5+$G152*0.2, SUM(F152:G152)))), 0),"Not required") -> 8070.8 | P152: 1 | R152: 1 | S152: 1 | T152: MDA1 (IVM+ALB) | U152: T2 (PZQ) | V152: MDA 1 | W152: T1 | X152: 33262 | Y152: Mapai (Chicualacuala) | AA152: FALSE | AB152: Gaza | AC152: Mapai (Chicualacuala) | AD152: 1 | AE152: 4 | AF152: 3 | AG152: 2 | AH152: TRUE | AI152: TRUE | AJ152: TRUE | AK152: TRUE | AO152: 1 | AQ152: 3 | AR152: 2 | AS152: TRUE | AU152: TRUE | AV152: TRUE | AY152: ='MDA1'!M152 -> 24253 | AZ152: ='T1'!O152 -> 0 | BA152: ='T2'!M152 -> 8172 | BD152: =DISTRICT!H151:H152 -> 24253 | BE152: =DISTRICT!X152 -> 7128 | BF152: =DISTRICT!AH152 -> 4431 | BI152: 1 | BJ152: 0 | BK152: TRUE | BL152: FALSE | BM152: Mapai (Chicualacuala) | BN152: FALSE
A153: =IF(INTRO!$E$34<>0,INTRO!$E$34,"") -> Mozambique | B153: Gaza | C153: Massangena | D153: 23303 | E153: =IF(INTRO!$E$48="","",ROUND($D153*INTRO!$E$48,0)) -> 2703 | F153: =IF(INTRO!$E$49="","",ROUND($D153*INTRO!$E$49,0)) -> 6525 | G153: =IF(INTRO!$E$50="","",ROUND($D153*INTRO!$E$50,0)) -> 13399 | H153: 0 | I153: 0 | J153: 2 | K153: 2 | L153: =IF(INTRO!$E$38="Endemic", IF($H153>0, IF($H153=4,"Unknown", IF($H153=99,"Stopped", $D153)), 0),"Not required") -> 0 | M153: =IF(INTRO!$E$40="Endemic", IF($I153>0, IF($I153=4,"Unknown",IF($I153=99,"Stopped", $D153)), 0),"Not required") -> Not required | N153: =IF(INTRO!$E$42="Endemic", IF(AND($J153>1,$J153<5), IF($J153=4, "Unknown", E153+F153), 0),"Not required") -> 9228 | O153: =IF(INTRO!$E$44="Endemic", IF(AND($K153>0,$K153<5), IF($K153=4,"Unknown", IF($K153=1, $F153*0.33, IF($K153=2, $F153*0.5+$G153*0.2, SUM(F153:G153)))), 0),"Not required") -> 5942.3 | P153: 0 | R153: 1 | S153: 1 | T153: T1 (PZQ+ALB/MBD) | W153: T1 | X153: 33133 | Y153: Massangena | AA153: TRUE | AB153: Gaza | AC153: Massangena | AD153: 0 | AE153: 0 | AF153: 2 | AG153: 2 | AH153: TRUE | AI153: TRUE | AJ153: TRUE | AK153: TRUE | AO153: 0 | AQ153: 2 | AR153: 2 | AS153: TRUE | AU153: =AQ153=J153 -> TRUE | AV153: =AR153=K153 -> TRUE | AY153: ='MDA1'!M153 -> 0 | AZ153: ='T1'!O153 -> 6580 | BA153: ='T2'!M153 -> 0 | BD153: =DISTRICT!H152:H153 -> 0 | BE153: =DISTRICT!X153 -> 6525 | BF153: =DISTRICT!AH153 -> 3262.5 | BI153: 1 | BJ153: 1 | BK153: TRUE | BL153: TRUE | BM153: Massangena | BN153: TRUE
A154: =IF(INTRO!$E$34<>0,INTRO!$E$34,"") -> Mozambique | B154: Gaza | C154: Massingir | D154: 39572 | E154: =IF(INTRO!$E$48="","",ROUND($D154*INTRO!$E$48,0)) -> 4590 | F154: =IF(INTRO!$E$49="","",ROUND($D154*INTRO!$E$49,0)) -> 11080 | G154: =IF(INTRO!$E$50="","",ROUND($D154*INTRO!$E$50,0)) -> 22754 | H154: 0 | I154: 0 | J154: 2 | K154: 2 | L154: =IF(INTRO!$E$38="Endemic", IF($H154>0, IF($H154=4,"Unknown", IF($H154=99,"Stopped", $D154)), 0),"Not required") -> 0 | M154: =IF(INTRO!$E$40="Endemic", IF($I154>0, IF($I154=4,"Unknown",IF($I154=99,"Stopped", $D154)), 0),"Not required") -> Not required | N154: =IF(INTRO!$E$42="Endemic", IF(AND($J154>1,$J154<5), IF($J154=4, "Unknown", E154+F154), 0),"Not required") -> 15670 | O154: =IF(INTRO!$E$44="Endemic", IF(AND($K154>0,$K154<5), IF($K154=4,"Unknown", IF($K154=1, $F154*0.33, IF($K154=2, $F154*0.5+$G154*0.2, SUM(F154:G154)))), 0),"Not required") -> 10090.8 | P154: 0 | R154: 1 | S154: 1 | T154: T1 (PZQ+ALB/MBD) | W154: T1 | X154: 33134 | Y154: Massingir | AA154: TRUE | AB154: Gaza | AC154: Massingir | AD154: 0 | AE154: 0 | AF154: 2 | AG154: 2 | AH154: TRUE | AI154: TRUE | AJ154: TRUE | AK154: TRUE | AO154: 0 | AQ154: 2 | AR154: 2 | AS154: TRUE | AU154: TRUE | AV154: TRUE | AY154: ='MDA1'!M154 -> 0 | AZ154: ='T1'!O154 -> 10735 | BA154: ='T2'!M154 -> 0 | BD154: =DISTRICT!H153:H154 -> 0 | BE154: =DISTRICT!X154 -> 10735 | BF154: =DISTRICT!AH154 -> 5540 | BI154: 1 | BJ154: 0 | BK154: TRUE | BL154: FALSE | BM154: Massingir | BN154: TRUE
A155: =IF(INTRO!$E$34<>0,INTRO!$E$34,"") -> Mozambique | B155: Maputo Provincia | C155: Matola | D155: 1071099.901 | E155: =IF(INTRO!$E$48="","",ROUND($D155*INTRO!$E$48,0)) -> 124248 | F155: =IF(INTRO!$E$49="","",ROUND($D155*INTRO!$E$49,0)) -> 299908 | G155: =IF(INTRO!$E$50="","",ROUND($D155*INTRO!$E$50,0)) -> 615882 | H155: 0 | I155: 0 | J155: 2 | K155: 2 | L155: =IF(INTRO!$E$38="Endemic", IF($H155>0, IF($H155=4,"Unknown", IF($H155=99,"Stopped", $D155)), 0),"Not required") -> 0 | M155: =IF(INTRO!$E$40="Endemic", IF($I155>0, IF($I155=4,"Unknown",IF($I155=99,"Stopped", $D155)), 0),"Not required") -> Not required | N155: =IF(INTRO!$E$42="Endemic", IF(AND($J155>1,$J155<5), IF($J155=4, "Unknown", E155+F155), 0),"Not required") -> 424156 | O155: =IF(INTRO!$E$44="Endemic", IF(AND($K155>0,$K155<5), IF($K155=4,"Unknown", IF($K155=1, $F155*0.33, IF($K155=2, $F155*0.5+$G155*0.2, SUM(F155:G155)))), 0),"Not required") -> 273130.4 | P155: 0 | R155: 1 | S155: 1 | T155: T1 (PZQ+ALB/MBD) | W155: T1 | X155: 33163 | Y155: Matola | AA155: TRUE | AB155: Maputo Provincia | AC155: Matola | AD155: 0 | AE155: 0 | AF155: 2 | AG155: 2 | AH155: TRUE | AI155: TRUE | AJ155: TRUE | AK155: TRUE | AO155: 0 | AQ155: 2 | AR155: 2 | AS155: TRUE | AU155: TRUE | AV155: TRUE | AY155: ='MDA1'!M155 -> 0 | AZ155: ='T1'!O155 -> 331562 | BA155: ='T2'!M155 -> 0 | BD155: =DISTRICT!H154:H155 -> 0 | BE155: =DISTRICT!X155 -> 299908 | BF155: =DISTRICT!AH155 -> 149954 | BI155: 1 | BJ155: 1 | BK155: TRUE | BL155: TRUE | BM155: Matola | BN155: TRUE
A156: =IF(INTRO!$E$34<>0,INTRO!$E$34,"") -> Mozambique | B156: Maputo Provincia | C156: Boane | D156: 182403.099 | E156: =IF(INTRO!$E$48="","",ROUND($D156*INTRO!$E$48,0)) -> 21159 | F156: =IF(INTRO!$E$49="","",ROUND($D156*INTRO!$E$49,0)) -> 51073 | G156: =IF(INTRO!$E$50="","",ROUND($D156*INTRO!$E$50,0)) -> 104882 | H156: 0 | I156: 0 | J156: 2 | K156: 2 | L156: =IF(INTRO!$E$38="Endemic", IF($H156>0, IF($H156=4,"Unknown", IF($H156=99,"Stopped", $D156)), 0),"Not required") -> 0 | M156: =IF(INTRO!$E$40="Endemic", IF($I156>0, IF($I156=4,"Unknown",IF($I156=99,"Stopped", $D156)), 0),"Not required") -> Not required | N156: =IF(INTRO!$E$42="Endemic", IF(AND($J156>1,$J156<5), IF($J156=4, "Unknown", E156+F156), 0),"Not required") -> 72232 | O156: =IF(INTRO!$E$44="Endemic", IF(AND($K156>0,$K156<5), IF($K156=4,"Unknown", IF($K156=1, $F156*0.33, IF($K156=2, $F156*0.5+$G156*0.2, SUM(F156:G156)))), 0),"Not required") -> 46512.9 | P156: 0 | R156: 1 | S156: 1 | T156: T1 (PZQ+ALB/MBD) | W156: T1 | X156: 33162 | Y156: Boane | AA156: TRUE | AB156: Maputo Provincia | AC156: Boane | AD156: 0 | AE156: 0 | AF156: 2 | AG156: 2 | AH156: TRUE | AI156: TRUE | AJ156: TRUE | AK156: TRUE | AO156: 0 | AQ156: 2 | AR156: 2 | AS156: TRUE | AU156: TRUE | AV156: TRUE | AY156: ='MDA1'!M156 -> 0 | AZ156: ='T1'!O156 -> 53758 | BA156: ='T2'!M156 -> 0 | BD156: =DISTRICT!H155:H156 -> 0 | BE156: =DISTRICT!X156 -> 51073 | BF156: =DISTRICT!AH156 -> 25536.5 | BI156: 1 | BJ156: 0 | BK156: TRUE | BL156: FALSE | BM156: Boane | BN156: TRUE
A157: =IF(INTRO!$E$34<>0,INTRO!$E$34,"") -> Mozambique | B157: Maputo Provincia | C157: Magude | D157: 65674.26193 | E157: =IF(INTRO!$E$48="","",ROUND($D157*INTRO!$E$48,0)) -> 7618 | F157: =IF(INTRO!$E$49="","",ROUND($D157*INTRO!$E$49,0)) -> 18389 | G157: =IF(INTRO!$E$50="","",ROUND($D157*INTRO!$E$50,0)) -> 37763 | H157: 0 | I157: 0 | J157: 2 | K157: 3 | L157: =IF(INTRO!$E$38="Endemic", IF($H157>0, IF($H157=4,"Unknown", IF($H157=99,"Stopped", $D157)), 0),"Not required") -> 0 | M157: =IF(INTRO!$E$40="Endemic", IF($I157>0, IF($I157=4,"Unknown",IF($I157=99,"Stopped", $D157)), 0),"Not required") -> Not required | N157: =IF(INTRO!$E$42="Endemic", IF(AND($J157>1,$J157<5), IF($J157=4, "Unknown", E157+F157), 0),"Not required") -> 26007 | O157: =IF(INTRO!$E$44="Endemic", IF(AND($K157>0,$K157<5), IF($K157=4,"Unknown", IF($K157=1, $F157*0.33, IF($K157=2, $F157*0.5+$G157*0.2, SUM(F157:G157)))), 0),"Not required") -> 56152 | P157: 0 | R157: 1 | S157: 1 | T157: T1 (PZQ+ALB/MBD) | W157: T1 | X157: 33164 | Y157: Magude | AA157: TRUE | AB157: Maputo Provincia | AC157: Magude | AD157: 0 | AE157: 0 | AF157: 2 | AG157: 3 | AH157: TRUE | AI157: TRUE | AJ157: TRUE | AK157: TRUE | AO157: 0 | AQ157: 2 | AR157: 3 | AS157: TRUE | AU157: TRUE | AV157: TRUE | AY157: ='MDA1'!M157 -> 0 | AZ157: ='T1'!O157 -> 18283 | BA157: ='T2'!M157 -> 0 | BD157: =DISTRICT!H156:H157 -> 0 | BE157: =DISTRICT!X157 -> 18283 | BF157: =DISTRICT!AH157 -> 18283 | BI157: 1 | BJ157: 1 | BK157: TRUE | BL157: TRUE | BM157: Magude | BN157: TRUE
A158: =IF(INTRO!$E$34<>0,INTRO!$E$34,"") -> Mozambique | B158: Maputo Provincia | C158: Manhica | D158: 354030.9971 | E158: =IF(INTRO!$E$48="","",ROUND($D158*INTRO!$E$48,0)) -> 41068 | F158: =IF(INTRO!$E$49="","",ROUND($D158*INTRO!$E$49,0)) -> 99129 | G158: =IF(INTRO!$E$50="","",ROUND($D158*INTRO!$E$50,0)) -> 203568 | H158: 0 | I158: 0 | J158: 2 | K158: 2 | L158: =IF(INTRO!$E$38="Endemic", IF($H158>0, IF($H158=4,"Unknown", IF($H158=99,"Stopped", $D158)), 0),"Not required") -> 0 | M158: =IF(INTRO!$E$40="Endemic", IF($I158>0, IF($I158=4,"Unknown",IF($I158=99,"Stopped", $D158)), 0),"Not required") -> Not required | N158: =IF(INTRO!$E$42="Endemic", IF(AND($J158>1,$J158<5), IF($J158=4, "Unknown", E158+F158), 0),"Not required") -> 140197 | O158: =IF(INTRO!$E$44="Endemic", IF(AND($K158>0,$K158<5), IF($K158=4,"Unknown", IF($K158=1, $F158*0.33, IF($K158=2, $F158*0.5+$G158*0.2, SUM(F158:G158)))), 0),"Not required") -> 90278.1 | P158: 0 | R158: 1 | S158: 1 | T158: T1 (PZQ+ALB/MBD) | W158: T1 | X158: 33165 | Y158: Manhica | AA158: TRUE | AB158: Maputo Provincia | AC158: Manhica | AD158: 0 | AE158: 0 | AF158: 2 | AG158: 2 | AH158: TRUE | AI158: TRUE | AJ158: TRUE | AK158: TRUE | AO158: 0 | AQ158: 2 | AR158: 2 | AS158: TRUE | AU158: TRUE | AV158: TRUE | AY158: ='MDA1'!M158 -> 0 | AZ158: ='T1'!O158 -> 99655 | BA158: ='T2'!M158 -> 0 | BD158: =DISTRICT!H157:H158 -> 0 | BE158: =DISTRICT!X158 -> 99129 | BF158: =DISTRICT!AH158 -> 49564.5 | BI158: 1 | BJ158: 0 | BK158: TRUE | BL158: FALSE | BM158: Manhica | BN158: TRUE
A159: =IF(INTRO!$E$34<>0,INTRO!$E$34,"") -> Mozambique | B159: Maputo Provincia | C159: Marracuene | D159: 175395.893 | E159: =IF(INTRO!$E$48="","",ROUND($D159*INTRO!$E$48,0)) -> 20346 | F159: =IF(INTRO!$E$49="","",ROUND($D159*INTRO!$E$49,0)) -> 49111 | G159: =IF(INTRO!$E$50="","",ROUND($D159*INTRO!$E$50,0)) -> 100853 | H159: 0 | I159: 0 | J159: 3 | K159: 2 | L159: =IF(INTRO!$E$38="Endemic", IF($H159>0, IF($H159=4,"Unknown", IF($H159=99,"Stopped", $D159)), 0),"Not required") -> 0 | M159: =IF(INTRO!$E$40="Endemic", IF($I159>0, IF($I159=4,"Unknown",IF($I159=99,"Stopped", $D159)), 0),"Not required") -> Not required | N159: =IF(INTRO!$E$42="Endemic", IF(AND($J159>1,$J159<5), IF($J159=4, "Unknown", E159+F159), 0),"Not required") -> 69457 | O159: =IF(INTRO!$E$44="Endemic", IF(AND($K159>0,$K159<5), IF($K159=4,"Unknown", IF($K159=1, $F159*0.33, IF($K159=2, $F159*0.5+$G159*0.2, SUM(F159:G159)))), 0),"Not required") -> 44726.1 | P159: 0 | R159: 1 | S159: 1 | T159: T1 (PZQ+ALB/MBD) | V159: T1 | W159: T3 | X159: 33166 | Y159: Marracuene | AA159: TRUE | AB159: Maputo Provincia | AC159: Marracuene | AD159: 0 | AE159: 0 | AF159: 3 | AG159: 2 | AH159: TRUE | AI159: TRUE | AJ159: TRUE | AK159: TRUE | AO159: 0 | AQ159: 3 | AR159: 2 | AS159: TRUE | AU159: TRUE | AV159: TRUE | AY159: ='MDA1'!M159 -> 0 | AZ159: ='T1'!O159 -> 52711 | BA159: ='T2'!M159 -> 0 | BD159: =DISTRICT!H158:H159 -> 0 | BE159: =DISTRICT!X159 -> 49111 | BF159: =DISTRICT!AH159 -> 24555.5 | BI159: 1 | BJ159: 0 | BK159: TRUE | BL159: FALSE | BM159: Marracuene | BN159: TRUE
A160: =IF(INTRO!$E$34<>0,INTRO!$E$34,"") -> Mozambique | B160: Maputo Provincia | C160: Matutuíne | D160: 42485.96599 | E160: =IF(INTRO!$E$48="","",ROUND($D160*INTRO!$E$48,0)) -> 4928 | F160: =IF(INTRO!$E$49="","",ROUND($D160*INTRO!$E$49,0)) -> 11896 | G160: =IF(INTRO!$E$50="","",ROUND($D160*INTRO!$E$50,0)) -> 24429 | H160: 0 | I160: 0 | J160: 3 | K160: 2 | L160: =IF(INTRO!$E$38="Endemic", IF($H160>0, IF($H160=4,"Unknown", IF($H160=99,"Stopped", $D160)), 0),"Not required") -> 0 | M160: =IF(INTRO!$E$40="Endemic", IF($I160>0, IF($I160=4,"Unknown",IF($I160=99,"Stopped", $D160)), 0),"Not required") -> Not required | N160: =IF(INTRO!$E$42="Endemic", IF(AND($J160>1,$J160<5), IF($J160=4, "Unknown", E160+F160), 0),"Not required") -> 16824 | O160: =IF(INTRO!$E$44="Endemic", IF(AND($K160>0,$K160<5), IF($K160=4,"Unknown", IF($K160=1, $F160*0.33, IF($K160=2, $F160*0.5+$G160*0.2, SUM(F160:G160)))), 0),"Not required") -> 10833.8 | P160: 0 | R160: 1 | S160: 1 | T160: T1 (PZQ+ALB/MBD) | V160: T1 | W160: T3 | X160: 33167 | Y160: Matutuíne | AA160: TRUE | AB160: Maputo Provincia | AC160: Matutuíne | AD160: 0 | AE160: 0 | AF160: 3 | AG160: 2 | AH160: TRUE | AI160: TRUE | AJ160: TRUE | AK160: TRUE | AO160: 0 | AQ160: 3 | AR160: 2 | AS160: TRUE | AU160: TRUE | AV160: TRUE | AY160: ='MDA1'!M160 -> 0 | AZ160: ='T1'!O160 -> 13821 | BA160: ='T2'!M160 -> 0 | BD160: =DISTRICT!H159:H160 -> 0 | BE160: =DISTRICT!X160 -> 11896 | BF160: =DISTRICT!AH160 -> 5948 | BI160: 1 | BJ160: 0 | BK160: TRUE | BL160: FALSE | BM160: Matutuíne | BN160: TRUE
A161: =IF(INTRO!$E$34<>0,INTRO!$E$34,"") -> Mozambique | B161: Maputo Provincia | C161: Moamba | D161: 73838.3984 | E161: =IF(INTRO!$E$48="","",ROUND($D161*INTRO!$E$48,0)) -> 8565 | F161: =IF(INTRO!$E$49="","",ROUND($D161*INTRO!$E$49,0)) -> 20675 | G161: =IF(INTRO!$E$50="","",ROUND($D161*INTRO!$E$50,0)) -> 42457 | H161: 0 | I161: 0 | J161: 2 | K161: 2 | L161: =IF(INTRO!$E$38="Endemic", IF($H161>0, IF($H161=4,"Unknown", IF($H161=99,"Stopped", $D161)), 0),"Not required") -> 0 | M161: =IF(INTRO!$E$40="Endemic", IF($I161>0, IF($I161=4,"Unknown",IF($I161=99,"Stopped", $D161)), 0),"Not required") -> Not required | N161: =IF(INTRO!$E$42="Endemic", IF(AND($J161>1,$J161<5), IF($J161=4, "Unknown", E161+F161), 0),"Not required") -> 29240 | O161: =IF(INTRO!$E$44="Endemic", IF(AND($K161>0,$K161<5), IF($K161=4,"Unknown", IF($K161=1, $F161*0.33, IF($K161=2, $F161*0.5+$G161*0.2, SUM(F161:G161)))), 0),"Not required") -> 18828.9 | P161: 0 | R161: 1 | S161: 1 | T161: T1 (PZQ+ALB/MBD) | W161: T1 | X161: 33168 | Y161: Moamba | AA161: TRUE | AB161: Maputo Provincia | AC161: Moamba | AD161: 0 | AE161: 0 | AF161: 2 | AG161: 2 | AH161: TRUE | AI161: TRUE | AJ161: TRUE | AK161: TRUE | AO161: 0 | AQ161: 2 | AR161: 2 | AS161: TRUE | AU161: TRUE | AV161: TRUE | AY161: ='MDA1'!M161 -> 0 | AZ161: ='T1'!O161 -> 22749 | BA161: ='T2'!M161 -> 0 | BD161: =DISTRICT!H160:H161 -> 0 | BE161: =DISTRICT!X161 -> 20675 | BF161: =DISTRICT!AH161 -> 10337.5 | BI161: 1 | BJ161: 0 | BK161: TRUE | BL161: FALSE | BM161: Moamba | BN161: TRUE
A162: =IF(INTRO!$E$34<>0,INTRO!$E$34,"") -> Mozambique | B162: Maputo Provincia | C162: Namaacha | D162: 55631.48363 | E162: =IF(INTRO!$E$48="","",ROUND($D162*INTRO!$E$48,0)) -> 6453 | F162: =IF(INTRO!$E$49="","",ROUND($D162*INTRO!$E$49,0)) -> 15577 | G162: =IF(INTRO!$E$50="","",ROUND($D162*INTRO!$E$50,0)) -> 31988 | H162: 0 | I162: 0 | J162: 2 | K162: 3 | L162: =IF(INTRO!$E$38="Endemic", IF($H162>0, IF($H162=4,"Unknown", IF($H162=99,"Stopped", $D162)), 0),"Not required") -> 0 | M162: =IF(INTRO!$E$40="Endemic", IF($I162>0, IF($I162=4,"Unknown",IF($I162=99,"Stopped", $D162)), 0),"Not required") -> Not required | N162: =IF(INTRO!$E$42="Endemic", IF(AND($J162>1,$J162<5), IF($J162=4, "Unknown", E162+F162), 0),"Not required") -> 22030 | O162: =IF(INTRO!$E$44="Endemic", IF(AND($K162>0,$K162<5), IF($K162=4,"Unknown", IF($K162=1, $F162*0.33, IF($K162=2, $F162*0.5+$G162*0.2, SUM(F162:G162)))), 0),"Not required") -> 47565 | P162: 0 | R162: 1 | S162: 1 | T162: T1 (PZQ+ALB/MBD) | W162: T1 | X162: 33169 | Y162: Namaacha | AA162: TRUE | AB162: Maputo Provincia | AC162: Namaacha | AD162: 0 | AE162: 0 | AF162: 2 | AG162: 3 | AH162: TRUE | AI162: TRUE | AJ162: TRUE | AK162: TRUE | AO162: 0 | AQ162: 2 | AR162: 3 | AS162: TRUE | AU162: TRUE | AV162: TRUE | AY162: ='MDA1'!M162 -> 0 | AZ162: ='T1'!O162 -> 15537 | BA162: ='T2'!M162 -> 0 | BD162: =DISTRICT!H161:H162 -> 0 | BE162: =DISTRICT!X162 -> 15537 | BF162: =DISTRICT!AH162 -> 15537 | BI162: 1 | BJ162: 1 | BK162: TRUE | BL162: TRUE | BM162: Namaacha | BN162: TRUE
A163: =IF(INTRO!$E$34<>0,INTRO!$E$34,"") -> Mozambique | B163: Cidade de Maputo | C163: Kampfumu | D163: 112944.5864 | E163: =IF(INTRO!$E$48="","",ROUND($D163*INTRO!$E$48,0)) -> 13102 | F163: =IF(INTRO!$E$49="","",ROUND($D163*INTRO!$E$49,0)) -> 31624 | G163: =IF(INTRO!$E$50="","",ROUND($D163*INTRO!$E$50,0)) -> 64943 | H163: 0 | I163: 0 | J163: 2 | K163: 2 | L163: =IF(INTRO!$E$38="Endemic", IF($H163>0, IF($H163=4,"Unknown", IF($H163=99,"Stopped", $D163)), 0),"Not required") -> 0 | M163: =IF(INTRO!$E$40="Endemic", IF($I163>0, IF($I163=4,"Unknown",IF($I163=99,"Stopped", $D163)), 0),"Not required") -> Not required | N163: =IF(INTRO!$E$42="Endemic", IF(AND($J163>1,$J163<5), IF($J163=4, "Unknown", E163+F163), 0),"Not required") -> 44726 | O163: =IF(INTRO!$E$44="Endemic", IF(AND($K163>0,$K163<5), IF($K163=4,"Unknown", IF($K163=1, $F163*0.33, IF($K163=2, $F163*0.5+$G163*0.2, SUM(F163:G163)))), 0),"Not required") -> 28800.6 | P163: 0 | R163: 1 | S163: 1 | T163: T1 (PZQ+ALB/MBD) | W163: T1 | X163: 33119 | Y163: Kampfumu | AA163: TRUE | AB163: Cidade de Maputo | AC163: Kampfumu | AD163: 0 | AE163: 0 | AF163: 2 | AG163: 2 | AH163: TRUE | AI163: TRUE | AJ163: TRUE | AK163: TRUE | AO163: 0 | AQ163: 2 | AR163: 2 | AS163: TRUE | AU163: TRUE | AV163: TRUE | AY163: ='MDA1'!M163 -> 0 | AZ163: ='T1'!O163 -> 31898 | BA163: ='T2'!M163 -> 0 | BD163: =DISTRICT!H162:H163 -> 0 | BE163: =DISTRICT!X163 -> 31624 | BF163: =DISTRICT!AH163 -> 15812 | BI163: 1 | BJ163: 0 | BK163: TRUE | BL163: FALSE | BM163: Kampfumu | BN163: TRUE
A164: =IF(INTRO!$E$34<>0,INTRO!$E$34,"") -> Mozambique | B164: Cidade de Maputo | C164: Nhlamankulu | D164: 161823.1957 | E164: =IF(INTRO!$E$48="","",ROUND($D164*INTRO!$E$48,0)) -> 18771 | F164: =IF(INTRO!$E$49="","",ROUND($D164*INTRO!$E$49,0)) -> 45310 | G164: =IF(INTRO!$E$50="","",ROUND($D164*INTRO!$E$50,0)) -> 93048 | H164: 0 | I164: 0 | J164: 2 | K164: 2 | L164: =IF(INTRO!$E$38="Endemic", IF($H164>0, IF($H164=4,"Unknown", IF($H164=99,"Stopped", $D164)), 0),"Not required") -> 0 | M164: =IF(INTRO!$E$40="Endemic", IF($I164>0, IF($I164=4,"Unknown",IF($I164=99,"Stopped", $D164)), 0),"Not required") -> Not required | N164: =IF(INTRO!$E$42="Endemic", IF(AND($J164>1,$J164<5), IF($J164=4, "Unknown", E164+F164), 0),"Not required") -> 64081 | O164: =IF(INTRO!$E$44="Endemic", IF(AND($K164>0,$K164<5), IF($K164=4,"Unknown", IF($K164=1, $F164*0.33, IF($K164=2, $F164*0.5+$G164*0.2, SUM(F164:G164)))), 0),"Not required") -> 41264.6 | P164: 0 | R164: 1 | S164: 1 | T164: T1 (PZQ+ALB/MBD) | W164: T1 | X164: 33123 | Y164: Nhlamankulu | AA164: TRUE | AB164: Cidade de Maputo | AC164: Nhlamankulu | AD164: 0 | AE164: 0 | AF164: 2 | AG164: 2 | AH164: TRUE | AI164: TRUE | AJ164: TRUE | AK164: TRUE | AO164: 0 | AQ164: 2 | AR164: 2 | AS164: TRUE | AU164: TRUE | AV164: TRUE | AY164: ='MDA1'!M164 -> 0 | AZ164: ='T1'!O164 -> 49752 | BA164: ='T2'!M164 -> 0 | BD164: =DISTRICT!H163:H164 -> 0 | BE164: =DISTRICT!X164 -> 45310 | BF164: =DISTRICT!AH164 -> 22655 | BI164: 1 | BJ164: 0 | BK164: TRUE | BL164: FALSE | BM164: Nhlamankulu | BN164: TRUE
A165: =IF(INTRO!$E$34<>0,INTRO!$E$34,"") -> Mozambique | B165: Cidade de Maputo | C165: Kamaxakani | D165: 233892.7805 | E165: =IF(INTRO!$E$48="","",ROUND($D165*INTRO!$E$48,0)) -> 27132 | F165: =IF(INTRO!$E$49="","",ROUND($D165*INTRO!$E$49,0)) -> 65490 | G165: =IF(INTRO!$E$50="","",ROUND($D165*INTRO!$E$50,0)) -> 134488 | H165: 0 | I165: 0 | J165: 2 | K165: 2 | L165: =IF(INTRO!$E$38="Endemic", IF($H165>0, IF($H165=4,"Unknown", IF($H165=99,"Stopped", $D165)), 0),"Not required") -> 0 | M165: =IF(INTRO!$E$40="Endemic", IF($I165>0, IF($I165=4,"Unknown",IF($I165=99,"Stopped", $D165)), 0),"Not required") -> Not required | N165: =IF(INTRO!$E$42="Endemic", IF(AND($J165>1,$J165<5), IF($J165=4, "Unknown", E165+F165), 0),"Not required") -> 92622 | O165: =IF(INTRO!$E$44="Endemic", IF(AND($K165>0,$K165<5), IF($K165=4,"Unknown", IF($K165=1, $F165*0.33, IF($K165=2, $F165*0.5+$G165*0.2, SUM(F165:G165)))), 0),"Not required") -> 59642.6 | P165: 0 | R165: 1 | S165: 1 | T165: T1 (PZQ+ALB/MBD) | W165: T1 | X165: 33118 | Y165: Kamaxakani | AA165: TRUE | AB165: Cidade de Maputo | AC165: Kamaxakani | AD165: 0 | AE165: 0 | AF165: 2 | AG165: 2 | AH165: TRUE | AI165: TRUE | AJ165: TRUE | AK165: TRUE | AO165: 0 | AQ165: 2 | AR165: 2 | AS165: TRUE | AU165: TRUE | AV165: TRUE | AY165: ='MDA1'!M165 -> 0 | AZ165: ='T1'!O165 -> 65128 | BA165: ='T2'!M165 -> 0 | BD165: =DISTRICT!H164:H165 -> 0 | BE165: =DISTRICT!X165 -> 65128 | BF165: =DISTRICT!AH165 -> 32745 | BI165: 1 | BJ165: 0 | BK165: TRUE | BL165: FALSE | BM165: Kamaxakani | BN165: TRUE
A166: =IF(INTRO!$E$34<>0,INTRO!$E$34,"") -> Mozambique | B166: Cidade de Maputo | C166: Kamavota | D166: 370986.0288 | E166: =IF(INTRO!$E$48="","",ROUND($D166*INTRO!$E$48,0)) -> 43034 | F166: =IF(INTRO!$E$49="","",ROUND($D166*INTRO!$E$49,0)) -> 103876 | G166: =IF(INTRO!$E$50="","",ROUND($D166*INTRO!$E$50,0)) -> 213317 | H166: 0 | I166: 0 | J166: 2 | K166: 2 | L166: =IF(INTRO!$E$38="Endemic", IF($H166>0, IF($H166=4,"Unknown", IF($H166=99,"Stopped", $D166)), 0),"Not required") -> 0 | M166: =IF(INTRO!$E$40="Endemic", IF($I166>0, IF($I166=4,"Unknown",IF($I166=99,"Stopped", $D166)), 0),"Not required") -> Not required | N166: =IF(INTRO!$E$42="Endemic", IF(AND($J166>1,$J166<5), IF($J166=4, "Unknown", E166+F166), 0),"Not required") -> 146910 | O166: =IF(INTRO!$E$44="Endemic", IF(AND($K166>0,$K166<5), IF($K166=4,"Unknown", IF($K166=1, $F166*0.33, IF($K166=2, $F166*0.5+$G166*0.2, SUM(F166:G166)))), 0),"Not required") -> 94601.4 | P166: 0 | R166: 1 | S166: 1 | T166: T1 (PZQ+ALB/MBD) | W166: T1 | X166: 33117 | Y166: Kamavota | AA166: TRUE | AB166: Cidade de Maputo | AC166: Kamavota | AD166: 0 | AE166: 0 | AF166: 2 | AG166: 2 | AH166: TRUE | AI166: TRUE | AJ166: TRUE | AK166: TRUE | AO166: 0 | AQ166: 2 | AR166: 2 | AS166: TRUE | AU166: TRUE | AV166: TRUE | AY166: ='MDA1'!M166 -> 0 | AZ166: ='T1'!O166 -> 111934 | BA166: ='T2'!M166 -> 0 | BD166: =DISTRICT!H165:H166 -> 0 | BE166: =DISTRICT!X166 -> 103876 | BF166: =DISTRICT!AH166 -> 51938 | BI166: 1 | BJ166: 0 | BK166: TRUE | BL166: FALSE | BM166: Kamavota | BN166: TRUE
A167: =IF(INTRO!$E$34<>0,INTRO!$E$34,"") -> Mozambique | B167: Cidade de Maputo | C167: Kamubukwana | D167: 395927.5328 | E167: =IF(INTRO!$E$48="","",ROUND($D167*INTRO!$E$48,0)) -> 45928 | F167: =IF(INTRO!$E$49="","",ROUND($D167*INTRO!$E$49,0)) -> 110860 | G167: =IF(INTRO!$E$50="","",ROUND($D167*INTRO!$E$50,0)) -> 227658 | H167: 0 | I167: 0 | J167: 2 | K167: 2 | L167: =IF(INTRO!$E$38="Endemic", IF($H167>0, IF($H167=4,"Unknown", IF($H167=99,"Stopped", $D167)), 0),"Not required") -> 0 | M167: =IF(INTRO!$E$40="Endemic", IF($I167>0, IF($I167=4,"Unknown",IF($I167=99,"Stopped", $D167)), 0),"Not required") -> Not required | N167: =IF(INTRO!$E$42="Endemic", IF(AND($J167>1,$J167<5), IF($J167=4, "Unknown", E167+F167), 0),"Not required") -> 156788 | O167: =IF(INTRO!$E$44="Endemic", IF(AND($K167>0,$K167<5), IF($K167=4,"Unknown", IF($K167=1, $F167*0.33, IF($K167=2, $F167*0.5+$G167*0.2, SUM(F167:G167)))), 0),"Not required") -> 100961.6 | P167: 0 | R167: 1 | S167: 1 | T167: T1 (PZQ+ALB/MBD) | W167: T1 | X167: 33120 | Y167: Kamubukwana | AA167: TRUE | AB167: Cidade de Maputo | AC167: Kamubukwana | AD167: 0 | AE167: 0 | AF167: 2 | AG167: 2 | AH167: TRUE | AI167: TRUE | AJ167: TRUE | AK167: TRUE | AO167: 0 | AQ167: 2 | AR167: 2 | AS167: TRUE | AU167: TRUE | AV167: TRUE | AY167: ='MDA1'!M167 -> 0 | AZ167: ='T1'!O167 -> 108495 | BA167: ='T2'!M167 -> 0 | BD167: =DISTRICT!H166:H167 -> 0 | BE167: =DISTRICT!X167 -> 108495 | BF167: =DISTRICT!AH167 -> 55430 | BI167: 1 | BJ167: 0 | BK167: TRUE | BL167: FALSE | BM167: Kamubukwana | BN167: TRUE
A168: =IF(INTRO!$E$34<>0,INTRO!$E$34,"") -> Mozambique | B168: Cidade de Maputo | C168: Katembe | D168: 23245.87054 | E168: =IF(INTRO!$E$48="","",ROUND($D168*INTRO!$E$48,0)) -> 2697 | F168: =IF(INTRO!$E$49="","",ROUND($D168*INTRO!$E$49,0)) -> 6509 | G168: =IF(INTRO!$E$50="","",ROUND($D168*INTRO!$E$50,0)) -> 13366 | H168: 0 | I168: 0 | J168: 2 | K168: 2 | L168: =IF(INTRO!$E$38="Endemic", IF($H168>0, IF($H168=4,"Unknown", IF($H168=99,"Stopped", $D168)), 0),"Not required") -> 0 | M168: =IF(INTRO!$E$40="Endemic", IF($I168>0, IF($I168=4,"Unknown",IF($I168=99,"Stopped", $D168)), 0),"Not required") -> Not required | N168: =IF(INTRO!$E$42="Endemic", IF(AND($J168>1,$J168<5), IF($J168=4, "Unknown", E168+F168), 0),"Not required") -> 9206 | O168: =IF(INTRO!$E$44="Endemic", IF(AND($K168>0,$K168<5), IF($K168=4,"Unknown", IF($K168=1, $F168*0.33, IF($K168=2, $F168*0.5+$G168*0.2, SUM(F168:G168)))), 0),"Not required") -> 5927.7 | P168: 0 | R168: 1 | S168: 1 | T168: T1 (PZQ+ALB/MBD) | W168: T1 | X168: 33122 | Y168: Katembe | AA168: TRUE | AB168: Cidade de Maputo | AC168: Katembe | AD168: 0 | AE168: 0 | AF168: 2 | AG168: 2 | AH168: TRUE | AI168: TRUE | AJ168: TRUE | AK168: TRUE | AO168: 0 | AQ168: 2 | AR168: 2 | AS168: TRUE | AU168: TRUE | AV168: TRUE | AY168: ='MDA1'!M168 -> 0 | AZ168: ='T1'!O168 -> 6657 | BA168: ='T2'!M168 -> 0 | BD168: =DISTRICT!H167:H168 -> 0 | BE168: =DISTRICT!X168 -> 6509 | BF168: =DISTRICT!AH168 -> 3254.5 | BI168: 1 | BJ168: 0 | BK168: TRUE | BL168: FALSE | BM168: Katembe | BN168: TRUE
A169: =IF(INTRO!$E$34<>0,INTRO!$E$34,"") -> Mozambique | B169: Cidade de Maputo | C169: Kanyaca | D169: 5716.005238 | E169: =IF(INTRO!$E$48="","",ROUND($D169*INTRO!$E$48,0)) -> 663 | F169: =IF(INTRO!$E$49="","",ROUND($D169*INTRO!$E$49,0)) -> 1600 | G169: =IF(INTRO!$E$50="","",ROUND($D169*INTRO!$E$50,0)) -> 3287 | H169: 0 | I169: 0 | J169: 2 | K169: 2 | L169: =IF(INTRO!$E$38="Endemic", IF($H169>0, IF($H169=4,"Unknown", IF($H169=99,"Stopped", $D169)), 0),"Not required") -> 0 | M169: =IF(INTRO!$E$40="Endemic", IF($I169>0, IF($I169=4,"Unknown",IF($I169=99,"Stopped", $D169)), 0),"Not required") -> Not required | N169: =IF(INTRO!$E$42="Endemic", IF(AND($J169>1,$J169<5), IF($J169=4, "Unknown", E169+F169), 0),"Not required") -> 2263 | O169: =IF(INTRO!$E$44="Endemic", IF(AND($K169>0,$K169<5), IF($K169=4,"Unknown", IF($K169=1, $F169*0.33, IF($K169=2, $F169*0.5+$G169*0.2, SUM(F169:G169)))), 0),"Not required") -> 1457.4 | P169: 0 | R169: 1 | S169: 1 | T169: T1 (PZQ+ALB/MBD) | W169: T1 | X169: 33121 | Y169: Kanyaca | AA169: TRUE | AB169: Cidade de Maputo | AC169: Kanyaca | AD169: 0 | AE169: 0 | AF169: 2 | AG169: 2 | AH169: TRUE | AI169: TRUE | AJ169: TRUE | AK169: TRUE | AO169: 0 | AQ169: 2 | AR169: 2 | AS169: TRUE | AU169: TRUE | AV169: TRUE | AY169: ='MDA1'!M169 -> 0 | AZ169: ='T1'!O169 -> 1804 | BA169: ='T2'!M169 -> 0 | BD169: =DISTRICT!H168:H169 -> 0 | BE169: =DISTRICT!X169 -> 1600 | BF169: =DISTRICT!AH169 -> 800 | BI169: 1 | BJ169: 0 | BK169: TRUE | BL169: FALSE | BM169: Kanyaca | BN169: TRUE

Sheet MDA1
A1: MDA 1 - Ivermectin (IVM) and Albendazole (ALB)
A2: Administrative structure, population requiring PC by age group, population treated by age group and coverage
A4: TOTAL | G4: =SUM(G$9:G$1000) -> 3014382 | H4: =SUM(H$9:H$1000) -> 6190249 | I4: =SUM(I$9:I$1000) -> 9204631 | K4: =SUM(K$9:K$1000) -> 4126666 | L4: =SUM(L$9:L$1000) -> 4655210.232 | M4: =SUM(M$9:M$1000) -> 8781876.232 | O4: =IF(G4<>0, IF(K4/G4*100=0, "-", K4/G4*100), " ") -> 136.8992384 | P4: =IF(H4<>0, IF(L4/H4*100=0, "-", L4/H4*100), " ") -> 75.20230983 | Q4: =IF(I4<>0, IF(M4/I4*100=0, "-", M4/I4*100), " ") -> 95.40715138
D6: PC implemented | E6: Date | F6: Population targeted for MDA 1 | J6: Population treated | N6: Programme coverage (%)
A7: Country | B7: Province/State | C7: District | F7: PreSAC | G7: SAC | H7: Adults | I7: Total | J7: PreSAC | K7: SAC | L7: Adults | M7: Total | N7: PreSAC | O7: SAC | P7: Adults | Q7: Total
A9: =IF(COUNTRY_INFO!A9=0," ",COUNTRY_INFO!A9) -> Mozambique | B9: =IF(COUNTRY_INFO!B9=0," ",COUNTRY_INFO!B9) -> Cabo Delgado | C9: =IF(COUNTRY_INFO!C9=0," ",COUNTRY_INFO!C9) -> Cid. Pemba | D9: =IF(COUNTRY_INFO!$T$9:$T$1000="MDA1 (IVM+ALB)", COUNTRY_INFO!$T$9:$T$1000, " ") ->  | I9: =SUM(F9:H9) -> 0 | M9: =SUM(J9:L9) -> 0 | O9: =IF(G9<>0, IF(K9/G9*100=0, "-", K9/G9*100), " ") ->  | P9: =IF(H9<>0, IF(L9/H9*100=0, "-", L9/H9*100), " ") -> 
A10: =IF(COUNTRY_INFO!A10=0," ",COUNTRY_INFO!A10) -> Mozambique | B10: =IF(COUNTRY_INFO!B10=0," ",COUNTRY_INFO!B10) -> Cabo Delgado | C10: =IF(COUNTRY_INFO!C10=0," ",COUNTRY_INFO!C10) -> Ancuabe | D10: =IF(COUNTRY_INFO!$T$9:$T$1000="MDA1 (IVM+ALB)", COUNTRY_INFO!$T$9:$T$1000, " ") ->  | I10: =SUM(F10:H10) -> 0 | M10: =SUM(J10:L10) -> 0 | O10: =IF(G10<>0, IF(K10/G10*100=0, "-", K10/G10*100), " ") ->  | P10: =IF(H10<>0, IF(L10/H10*100=0, "-", L10/H10*100), " ") ->  | Q10: =IF(I10<>0, IF(M10/I10*100=0, "-", M10/I10*100), " ") -> 
A11: =IF(COUNTRY_INFO!A11=0," ",COUNTRY_INFO!A11) -> Mozambique | B11: =IF(COUNTRY_INFO!B11=0," ",COUNTRY_INFO!B11) -> Cabo Delgado | C11: =IF(COUNTRY_INFO!C11=0," ",COUNTRY_INFO!C11) -> Balama | D11: =IF(COUNTRY_INFO!$T$9:$T$1000="MDA1 (IVM+ALB)", COUNTRY_INFO!$T$9:$T$1000, " ") ->  | I11: 0 | M11: 0
A12: =IF(COUNTRY_INFO!A12=0," ",COUNTRY_INFO!A12) -> Mozambique | B12: =IF(COUNTRY_INFO!B12=0," ",COUNTRY_INFO!B12) -> Cabo Delgado | C12: =IF(COUNTRY_INFO!C12=0," ",COUNTRY_INFO!C12) -> Chiure | D12: =IF(COUNTRY_INFO!$T$9:$T$1000="MDA1 (IVM+ALB)", COUNTRY_INFO!$T$9:$T$1000, " ") ->  | I12: 0 | M12: 0
A13: =IF(COUNTRY_INFO!A13=0," ",COUNTRY_INFO!A13) -> Mozambique | B13: =IF(COUNTRY_INFO!B13=0," ",COUNTRY_INFO!B13) -> Cabo Delgado | C13: =IF(COUNTRY_INFO!C13=0," ",COUNTRY_INFO!C13) -> Ibo | D13: =IF(COUNTRY_INFO!$T$9:$T$1000="MDA1 (IVM+ALB)", COUNTRY_INFO!$T$9:$T$1000, " ") ->  | I13: 0 | M13: 0
A14: =IF(COUNTRY_INFO!A14=0," ",COUNTRY_INFO!A14) -> Mozambique | B14: =IF(COUNTRY_INFO!B14=0," ",COUNTRY_INFO!B14) -> Cabo Delgado | C14: =IF(COUNTRY_INFO!C14=0," ",COUNTRY_INFO!C14) -> Macomia | D14: =IF(COUNTRY_INFO!$T$9:$T$1000="MDA1 (IVM+ALB)", COUNTRY_INFO!$T$9:$T$1000, " ") ->  | I14: 0 | M14: 0
A15: =IF(COUNTRY_INFO!A15=0," ",COUNTRY_INFO!A15) -> Mozambique | B15: =IF(COUNTRY_INFO!B15=0," ",COUNTRY_INFO!B15) -> Cabo Delgado | C15: =IF(COUNTRY_INFO!C15=0," ",COUNTRY_INFO!C15) -> Mecufi | D15: =IF(COUNTRY_INFO!$T$9:$T$1000="MDA1 (IVM+ALB)", COUNTRY_INFO!$T$9:$T$1000, " ") ->  | I15: 0 | M15: 0
A16: =IF(COUNTRY_INFO!A16=0," ",COUNTRY_INFO!A16) -> Mozambique | B16: =IF(COUNTRY_INFO!B16=0," ",COUNTRY_INFO!B16) -> Cabo Delgado | C16: =IF(COUNTRY_INFO!C16=0," ",COUNTRY_INFO!C16) -> Meluco | D16: =IF(COUNTRY_INFO!$T$9:$T$1000="MDA1 (IVM+ALB)", COUNTRY_INFO!$T$9:$T$1000, " ") ->  | I16: 0 | M16: 0
A17: =IF(COUNTRY_INFO!A17=0," ",COUNTRY_INFO!A17) -> Mozambique | B17: =IF(COUNTRY_INFO!B17=0," ",COUNTRY_INFO!B17) -> Cabo Delgado | C17: =IF(COUNTRY_INFO!C17=0," ",COUNTRY_INFO!C17) -> Moc Praia | D17: =IF(COUNTRY_INFO!$T$9:$T$1000="MDA1 (IVM+ALB)", COUNTRY_INFO!$T$9:$T$1000, " ") ->  | I17: 0 | M17: 0
A18: =IF(COUNTRY_INFO!A18=0," ",COUNTRY_INFO!A18) -> Mozambique | B18: =IF(COUNTRY_INFO!B18=0," ",COUNTRY_INFO!B18) -> Cabo Delgado | C18: =IF(COUNTRY_INFO!C18=0," ",COUNTRY_INFO!C18) -> Montepuez | D18: =IF(COUNTRY_INFO!$T$9:$T$1000="MDA1 (IVM+ALB)", COUNTRY_INFO!$T$9:$T$1000, " ") ->  | I18: 0 | M18: 0
A19: =IF(COUNTRY_INFO!A19=0," ",COUNTRY_INFO!A19) -> Mozambique | B19: =IF(COUNTRY_INFO!B19=0," ",COUNTRY_INFO!B19) -> Cabo Delgado | C19: =IF(COUNTRY_INFO!C19=0," ",COUNTRY_INFO!C19) -> Mueda | D19: =IF(COUNTRY_INFO!$T$9:$T$1000="MDA1 (IVM+ALB)", COUNTRY_INFO!$T$9:$T$1000, " ") ->  | I19: 0 | M19: 0
A20: =IF(COUNTRY_INFO!A20=0," ",COUNTRY_INFO!A20) -> Mozambique | B20: =IF(COUNTRY_INFO!B20=0," ",COUNTRY_INFO!B20) -> Cabo Delgado | C20: =IF(COUNTRY_INFO!C20=0," ",COUNTRY_INFO!C20) -> Muidumbe | D20: =IF(COUNTRY_INFO!$T$9:$T$1000="MDA1 (IVM+ALB)", COUNTRY_INFO!$T$9:$T$1000, " ") ->  | I20: 0 | M20: 0
A21: =IF(COUNTRY_INFO!A21=0," ",COUNTRY_INFO!A21) -> Mozambique | B21: =IF(COUNTRY_INFO!B21=0," ",COUNTRY_INFO!B21) -> Cabo Delgado | C21: =IF(COUNTRY_INFO!C21=0," ",COUNTRY_INFO!C21) -> Namuno | D21: =IF(COUNTRY_INFO!$T$9:$T$1000="MDA1 (IVM+ALB)", COUNTRY_INFO!$T$9:$T$1000, " ") ->  | I21: 0 | M21: 0
A22: =IF(COUNTRY_INFO!A22=0," ",COUNTRY_INFO!A22) -> Mozambique | B22: =IF(COUNTRY_INFO!B22=0," ",COUNTRY_INFO!B22) -> Cabo Delgado | C22: =IF(COUNTRY_INFO!C22=0," ",COUNTRY_INFO!C22) -> Nangade | D22: =IF(COUNTRY_INFO!$T$9:$T$1000="MDA1 (IVM+ALB)", COUNTRY_INFO!$T$9:$T$1000, " ") ->  | I22: 0 | M22: 0
A23: =IF(COUNTRY_INFO!A23=0," ",COUNTRY_INFO!A23) -> Mozambique | B23: =IF(COUNTRY_INFO!B23=0," ",COUNTRY_INFO!B23) -> Cabo Delgado | C23: =IF(COUNTRY_INFO!C23=0," ",COUNTRY_INFO!C23) -> Palma | D23: =IF(COUNTRY_INFO!$T$9:$T$1000="MDA1 (IVM+ALB)", COUNTRY_INFO!$T$9:$T$1000, " ") ->  | I23: 0 | M23: 0
A24: =IF(COUNTRY_INFO!A24=0," ",COUNTRY_INFO!A24) -> Mozambique | B24: =IF(COUNTRY_INFO!B24=0," ",COUNTRY_INFO!B24) -> Cabo Delgado | C24: =IF(COUNTRY_INFO!C24=0," ",COUNTRY_INFO!C24) -> Pemba Metuge | D24: =IF(COUNTRY_INFO!$T$9:$T$1000="MDA1 (IVM+ALB)", COUNTRY_INFO!$T$9:$T$1000, " ") ->  | I24: 0 | M24: 0
A25: =IF(COUNTRY_INFO!A25=0," ",COUNTRY_INFO!A25) -> Mozambique | B25: =IF(COUNTRY_INFO!B25=0," ",COUNTRY_INFO!B25) -> Cabo Delgado | C25: =IF(COUNTRY_INFO!C25=0," ",COUNTRY_INFO!C25) -> Quissanga | D25: =IF(COUNTRY_INFO!$T$9:$T$1000="MDA1 (IVM+ALB)", COUNTRY_INFO!$T$9:$T$1000, " ") ->  | I25: 0 | M25: 0
A26: =IF(COUNTRY_INFO!A26=0," ",COUNTRY_INFO!A26) -> Mozambique | B26: =IF(COUNTRY_INFO!B26=0," ",COUNTRY_INFO!B26) -> Niassa | C26: =IF(COUNTRY_INFO!C26=0," ",COUNTRY_INFO!C26) -> Cidade de Lichinga | D26: =IF(COUNTRY_INFO!$T$9:$T$1000="MDA1 (IVM+ALB)", COUNTRY_INFO!$T$9:$T$1000, " ") ->  | I26: 0 | M26: 0
A27: =IF(COUNTRY_INFO!A27=0," ",COUNTRY_INFO!A27) -> Mozambique | B27: =IF(COUNTRY_INFO!B27=0," ",COUNTRY_INFO!B27) -> Niassa | C27: =IF(COUNTRY_INFO!C27=0," ",COUNTRY_INFO!C27) -> Cuamba | D27: =IF(COUNTRY_INFO!$T$9:$T$1000="MDA1 (IVM+ALB)", COUNTRY_INFO!$T$9:$T$1000, " ") -> MDA1 (IVM+ALB) | E27: March 2019 | G27: 76357 | H27: 156806 | I27: 233163 | K27: 103971 | L27: 105948 | M27: 209919 | O27: 136.1643333 | P27: 67.56629211 | Q27: 90.03100835
A28: =IF(COUNTRY_INFO!A28=0," ",COUNTRY_INFO!A28) -> Mozambique | B28: =IF(COUNTRY_INFO!B28=0," ",COUNTRY_INFO!B28) -> Niassa | C28: =IF(COUNTRY_INFO!C28=0," ",COUNTRY_INFO!C28) -> Chimbonila | D28: =IF(COUNTRY_INFO!$T$9:$T$1000="MDA1 (IVM+ALB)", COUNTRY_INFO!$T$9:$T$1000, " ") ->  | I28: 0 | M28: 0
A29: =IF(COUNTRY_INFO!A29=0," ",COUNTRY_INFO!A29) -> Mozambique | B29: =IF(COUNTRY_INFO!B29=0," ",COUNTRY_INFO!B29) -> Niassa | C29: =IF(COUNTRY_INFO!C29=0," ",COUNTRY_INFO!C29) -> Lago | D29: =IF(COUNTRY_INFO!$T$9:$T$1000="MDA1 (IVM+ALB)", COUNTRY_INFO!$T$9:$T$1000, " ") ->  | I29: 0 | M29: 0
A30: =IF(COUNTRY_INFO!A30=0," ",COUNTRY_INFO!A30) -> Mozambique | B30: =IF(COUNTRY_INFO!B30=0," ",COUNTRY_INFO!B30) -> Niassa | C30: =IF(COUNTRY_INFO!C30=0," ",COUNTRY_INFO!C30) -> Majune | D30: =IF(COUNTRY_INFO!$T$9:$T$1000="MDA1 (IVM+ALB)", COUNTRY_INFO!$T$9:$T$1000, " ") ->  | I30: 0 | M30: 0
A31: =IF(COUNTRY_INFO!A31=0," ",COUNTRY_INFO!A31) -> Mozambique | B31: =IF(COUNTRY_INFO!B31=0," ",COUNTRY_INFO!B31) -> Niassa | C31: =IF(COUNTRY_INFO!C31=0," ",COUNTRY_INFO!C31) -> Mandimba | D31: =IF(COUNTRY_INFO!$T$9:$T$1000="MDA1 (IVM+ALB)", COUNTRY_INFO!$T$9:$T$1000, " ") ->  | I31: 0 | M31: 0
A32: =IF(COUNTRY_INFO!A32=0," ",COUNTRY_INFO!A32) -> Mozambique | B32: =IF(COUNTRY_INFO!B32=0," ",COUNTRY_INFO!B32) -> Niassa | C32: =IF(COUNTRY_INFO!C32=0," ",COUNTRY_INFO!C32) -> Marrupa | D32: =IF(COUNTRY_INFO!$T$9:$T$1000="MDA1 (IVM+ALB)", COUNTRY_INFO!$T$9:$T$1000, " ") ->  | I32: 0 | M32: 0
A33: =IF(COUNTRY_INFO!A33=0," ",COUNTRY_INFO!A33) -> Mozambique | B33: =IF(COUNTRY_INFO!B33=0," ",COUNTRY_INFO!B33) -> Niassa | C33: =IF(COUNTRY_INFO!C33=0," ",COUNTRY_INFO!C33) -> Maúa | D33: =IF(COUNTRY_INFO!$T$9:$T$1000="MDA1 (IVM+ALB)", COUNTRY_INFO!$T$9:$T$1000, " ") ->  | I33: 0 | M33: 0
A34: =IF(COUNTRY_INFO!A34=0," ",COUNTRY_INFO!A34) -> Mozambique | B34: =IF(COUNTRY_INFO!B34=0," ",COUNTRY_INFO!B34) -> Niassa | C34: =IF(COUNTRY_INFO!C34=0," ",COUNTRY_INFO!C34) -> Mavago | D34: =IF(COUNTRY_INFO!$T$9:$T$1000="MDA1 (IVM+ALB)", COUNTRY_INFO!$T$9:$T$1000, " ") ->  | I34: 0 | M34: 0
A35: =IF(COUNTRY_INFO!A35=0," ",COUNTRY_INFO!A35) -> Mozambique | B35: =IF(COUNTRY_INFO!B35=0," ",COUNTRY_INFO!B35) -> Niassa | C35: =IF(COUNTRY_INFO!C35=0," ",COUNTRY_INFO!C35) -> Mecanhelas | D35: =IF(COUNTRY_INFO!$T$9:$T$1000="MDA1 (IVM+ALB)", COUNTRY_INFO!$T$9:$T$1000, " ") -> MDA1 (IVM+ALB) | E35: March 2019 | G35: 91194 | H35: 187273 | I35: 278467 | K35: 98652 | L35: 172764 | M35: 271416 | O35: 108.1781696 | P35: 92.25248701 | Q35: 97.46792259
A36: =IF(COUNTRY_INFO!A36=0," ",COUNTRY_INFO!A36) -> Mozambique | B36: =IF(COUNTRY_INFO!B36=0," ",COUNTRY_INFO!B36) -> Niassa | C36: =IF(COUNTRY_INFO!C36=0," ",COUNTRY_INFO!C36) -> Mecula | D36: =IF(COUNTRY_INFO!$T$9:$T$1000="MDA1 (IVM+ALB)", COUNTRY_INFO!$T$9:$T$1000, " ") ->  | I36: 0 | M36: 0
A37: =IF(COUNTRY_INFO!A37=0," ",COUNTRY_INFO!A37) -> Mozambique | B37: =IF(COUNTRY_INFO!B37=0," ",COUNTRY_INFO!B37) -> Niassa | C37: =IF(COUNTRY_INFO!C37=0," ",COUNTRY_INFO!C37) -> Metarica | D37: =IF(COUNTRY_INFO!$T$9:$T$1000="MDA1 (IVM+ALB)", COUNTRY_INFO!$T$9:$T$1000, " ") -> MDA1 (IVM+ALB) | E37: March 2019 | G37: 23036 | H37: 47307 | I37: 70343 | K37: 29521 | L37: 27005 | M37: 56526 | O37: 128.1515888 | P37: 57.08457522 | Q37: 80.35767596
A38: =IF(COUNTRY_INFO!A38=0," ",COUNTRY_INFO!A38) -> Mozambique | B38: =IF(COUNTRY_INFO!B38=0," ",COUNTRY_INFO!B38) -> Niassa | C38: =IF(COUNTRY_INFO!C38=0," ",COUNTRY_INFO!C38) -> Muembe | D38: =IF(COUNTRY_INFO!$T$9:$T$1000="MDA1 (IVM+ALB)", COUNTRY_INFO!$T$9:$T$1000, " ") ->  | I38: 0 | M38: 0
A39: =IF(COUNTRY_INFO!A39=0," ",COUNTRY_INFO!A39) -> Mozambique | B39: =IF(COUNTRY_INFO!B39=0," ",COUNTRY_INFO!B39) -> Niassa | C39: =IF(COUNTRY_INFO!C39=0," ",COUNTRY_INFO!C39) -> N'Gaúma | D39: =IF(COUNTRY_INFO!$T$9:$T$1000="MDA1 (IVM+ALB)", COUNTRY_INFO!$T$9:$T$1000, " ") ->  | I39: 0 | M39: 0
A40: =IF(COUNTRY_INFO!A40=0," ",COUNTRY_INFO!A40) -> Mozambique | B40: =IF(COUNTRY_INFO!B40=0," ",COUNTRY_INFO!B40) -> Niassa | C40: =IF(COUNTRY_INFO!C40=0," ",COUNTRY_INFO!C40) -> Nipepe | D40: =IF(COUNTRY_INFO!$T$9:$T$1000="MDA1 (IVM+ALB)", COUNTRY_INFO!$T$9:$T$1000, " ") -> MDA1 (IVM+ALB) | E40: March 2019 | G40: 11572 | H40: 23764 | I40: 35336 | K40: 12808 | L40: 19719 | M40: 32527 | O40: 110.680954 | P40: 82.97845481 | Q40: 92.05059995
A41: =IF(COUNTRY_INFO!A41=0," ",COUNTRY_INFO!A41) -> Mozambique | B41: =IF(COUNTRY_INFO!B41=0," ",COUNTRY_INFO!B41) -> Niassa | C41: =IF(COUNTRY_INFO!C41=0," ",COUNTRY_INFO!C41) -> Sanga | D41: =IF(COUNTRY_INFO!$T$9:$T$1000="MDA1 (IVM+ALB)", COUNTRY_INFO!$T$9:$T$1000, " ") ->  | I41: 0 | M41: 0
A42: =IF(COUNTRY_INFO!A42=0," ",COUNTRY_INFO!A42) -> Mozambique | B42: =IF(COUNTRY_INFO!B42=0," ",COUNTRY_INFO!B42) -> Nampula | C42: =IF(COUNTRY_INFO!C42=0," ",COUNTRY_INFO!C42) -> Cid. Nampula | D42: =IF(COUNTRY_INFO!$T$9:$T$1000="MDA1 (IVM+ALB)", COUNTRY_INFO!$T$9:$T$1000, " ") -> MDA1 (IVM+ALB) | E42: March 2019 | G42: 212253 | H42: 435877 | I42: 648130 | K42: 365462 | L42: 322718 | M42: 688180 | O42: 172.1822542 | P42: 74.03877699 | Q42: 106.1793159
A43: =IF(COUNTRY_INFO!A43=0," ",COUNTRY_INFO!A43) -> Mozambique | B43: =IF(COUNTRY_INFO!B43=0," ",COUNTRY_INFO!B43) -> Nampula | C43: =IF(COUNTRY_INFO!C43=0," ",COUNTRY_INFO!C43) -> Angoche | D43: =IF(COUNTRY_INFO!$T$9:$T$1000="MDA1 (IVM+ALB)", COUNTRY_INFO!$T$9:$T$1000, " ") -> MDA1 (IVM+ALB) | E43: March 2019 | G43: 97074 | H43: 199349 | I43: 296423 | K43: 111533 | L43: 162858 | M43: 274391 | O43: 114.8948225 | P43: 81.69491695 | Q43: 92.56737837
A44: =IF(COUNTRY_INFO!A44=0," ",COUNTRY_INFO!A44) -> Mozambique | B44: =IF(COUNTRY_INFO!B44=0," ",COUNTRY_INFO!B44) -> Nampula | C44: =IF(COUNTRY_INFO!C44=0," ",COUNTRY_INFO!C44) -> Erati | D44: =IF(COUNTRY_INFO!$T$9:$T$1000="MDA1 (IVM+ALB)", COUNTRY_INFO!$T$9:$T$1000, " ") -> MDA1 (IVM+ALB) | E44: March 2019 | G44: 94246 | H44: 193540 | I44: 287786 | K44: 158269 | L44: 136218 | M44: 294487 | O44: 167.9317955 | P44: 70.3823499 | Q44: 102.3284663
A45: =IF(COUNTRY_INFO!A45=0," ",COUNTRY_INFO!A45) -> Mozambique | B45: =IF(COUNTRY_INFO!B45=0," ",COUNTRY_INFO!B45) -> Nampula | C45: =IF(COUNTRY_INFO!C45=0," ",COUNTRY_INFO!C45) -> Ilha Moc. | D45: =IF(COUNTRY_INFO!$T$9:$T$1000="MDA1 (IVM+ALB)", COUNTRY_INFO!$T$9:$T$1000, " ") -> MDA1 (IVM+ALB) | E45: March 2019 | G45: 16231 | H45: 33332 | I45: 49563 | K45: 28936 | L45: 22239 | M45: 51175 | O45: 178.2761383 | P45: 66.71966879 | Q45: 103.2524262
A46: =IF(COUNTRY_INFO!A46=0," ",COUNTRY_INFO!A46) -> Mozambique | B46: =IF(COUNTRY_INFO!B46=0," ",COUNTRY_INFO!B46) -> Nampula | C46: =IF(COUNTRY_INFO!C46=0," ",COUNTRY_INFO!C46) -> Lalaua | D46: =IF(COUNTRY_INFO!$T$9:$T$1000="MDA1 (IVM+ALB)", COUNTRY_INFO!$T$9:$T$1000, " ") -> MDA1 (IVM+ALB) | E46: March 2019 | G46: 25939 | H46: 53267 | I46: 79206 | K46: 41340 | L46: 39518 | M46: 80858 | O46: 159.3739157 | P46: 74.18852197 | Q46: 102.0857006
A47: =IF(COUNTRY_INFO!A47=0," ",COUNTRY_INFO!A47) -> Mozambique | B47: =IF(COUNTRY_INFO!B47=0," ",COUNTRY_INFO!B47) -> Nampula | C47: =IF(COUNTRY_INFO!C47=0," ",COUNTRY_INFO!C47) -> Larde | D47: =IF(COUNTRY_INFO!$T$9:$T$1000="MDA1 (IVM+ALB)", COUNTRY_INFO!$T$9:$T$1000, " ") -> MDA1 (IVM+ALB) | E47: March 2019 | G47: 26711 | H47: 54852 | I47: 81563 | K47: 40116 | L47: 43687 | M47: 83803 | O47: 150.1853169 | P47: 79.64522716 | Q47: 102.7463433
A48: =IF(COUNTRY_INFO!A48=0," ",COUNTRY_INFO!A48) -> Mozambique | B48: =IF(COUNTRY_INFO!B48=0," ",COUNTRY_INFO!B48) -> Nampula | C48: =IF(COUNTRY_INFO!C48=0," ",COUNTRY_INFO!C48) -> Liupo | D48: =IF(COUNTRY_INFO!$T$9:$T$1000="MDA1 (IVM+ALB)", COUNTRY_INFO!$T$9:$T$1000, " ") -> MDA1 (IVM+ALB) | E48: March 2019 | G48: 24741 | H48: 50807 | I48: 75548 | K48: 36267 | L48: 37496 | M48: 73763 | O48: 146.5866376 | P48: 73.80085421 | Q48: 97.63726373
A49: =IF(COUNTRY_INFO!A49=0," ",COUNTRY_INFO!A49) -> Mozambique | B49: =IF(COUNTRY_INFO!B49=0," ",COUNTRY_INFO!B49) -> Nampula | C49: =IF(COUNTRY_INFO!C49=0," ",COUNTRY_INFO!C49) -> Malema | D49: =IF(COUNTRY_INFO!$T$9:$T$1000="MDA1 (IVM+ALB)", COUNTRY_INFO!$T$9:$T$1000, " ") -> MDA1 (IVM+ALB) | E49: March 2019 | G49: 57659 | H49: 118406 | I49: 176065 | K49: 97905 | L49: 84908 | M49: 182813 | O49: 169.8000312 | P49: 71.70920393 | Q49: 103.8326754
A50: =IF(COUNTRY_INFO!A50=0," ",COUNTRY_INFO!A50) -> Mozambique | B50: =IF(COUNTRY_INFO!B50=0," ",COUNTRY_INFO!B50) -> Nampula | C50: =IF(COUNTRY_INFO!C50=0," ",COUNTRY_INFO!C50) -> Meconta | D50: =IF(COUNTRY_INFO!$T$9:$T$1000="MDA1 (IVM+ALB)", COUNTRY_INFO!$T$9:$T$1000, " ") -> MDA1 (IVM+ALB) | E50: March 2019 | G50: 57809 | H50: 118716 | I50: 176525 | K50: 77824 | L50: 92056 | M50: 169880 | O50: 134.6226366 | P50: 77.5430439 | Q50: 96.23566067
A51: =IF(COUNTRY_INFO!A51=0," ",COUNTRY_INFO!A51) -> Mozambique | B51: =IF(COUNTRY_INFO!B51=0," ",COUNTRY_INFO!B51) -> Nampula | C51: =IF(COUNTRY_INFO!C51=0," ",COUNTRY_INFO!C51) -> Mecuburi | D51: =IF(COUNTRY_INFO!$T$9:$T$1000="MDA1 (IVM+ALB)", COUNTRY_INFO!$T$9:$T$1000, " ") -> MDA1 (IVM+ALB) | E51: March 2019 | G51: 54670 | H51: 112269 | I51: 166939 | K51: 82256 | L51: 79879 | M51: 162135 | O51: 150.4591183 | P51: 71.1496495 | Q51: 97.12230216
A52: =IF(COUNTRY_INFO!A52=0," ",COUNTRY_INFO!A52) -> Mozambique | B52: =IF(COUNTRY_INFO!B52=0," ",COUNTRY_INFO!B52) -> Nampula | C52: =IF(COUNTRY_INFO!C52=0," ",COUNTRY_INFO!C52) -> Memba | D52: =IF(COUNTRY_INFO!$T$9:$T$1000="MDA1 (IVM+ALB)", COUNTRY_INFO!$T$9:$T$1000, " ") -> MDA1 (IVM+ALB) | E52: March 2019 | G52: 76835 | H52: 157785 | I52: 234620 | K52: 109664 | L52: 126184 | M52: 235848 | O52: 142.726622 | P52: 79.97211395 | Q52: 100.5233995
A53: =IF(COUNTRY_INFO!A53=0," ",COUNTRY_INFO!A53) -> Mozambique | B53: =IF(COUNTRY_INFO!B53=0," ",COUNTRY_INFO!B53) -> Nampula | C53: =IF(COUNTRY_INFO!C53=0," ",COUNTRY_INFO!C53) -> Mogincual | D53: =IF(COUNTRY_INFO!$T$9:$T$1000="MDA1 (IVM+ALB)", COUNTRY_INFO!$T$9:$T$1000, " ") -> MDA1 (IVM+ALB) | E53: March 2019 | G53: 25665 | H53: 52706 | I53: 78371 | K53: 41114 | L53: 38956 | M53: 80070 | O53: 160.1948178 | P53: 73.91188859 | Q53: 102.1678937
A54: =IF(COUNTRY_INFO!A54=0," ",COUNTRY_INFO!A54) -> Mozambique | B54: =IF(COUNTRY_INFO!B54=0," ",COUNTRY_INFO!B54) -> Nampula | C54: =IF(COUNTRY_INFO!C54=0," ",COUNTRY_INFO!C54) -> Mogovolas | D54: =IF(COUNTRY_INFO!$T$9:$T$1000="MDA1 (IVM+ALB)", COUNTRY_INFO!$T$9:$T$1000, " ") -> MDA1 (IVM+ALB) | E54: March 2019 | G54: 155135 | H54: 318581 | I54: 473716 | K54: 230594 | L54: 234230 | M54: 464824 | O54: 148.6408612 | P54: 73.52290312 | Q54: 98.12292597
A55: =IF(COUNTRY_INFO!A55=0," ",COUNTRY_INFO!A55) -> Mozambique | B55: =IF(COUNTRY_INFO!B55=0," ",COUNTRY_INFO!B55) -> Nampula | C55: =IF(COUNTRY_INFO!C55=0," ",COUNTRY_INFO!C55) -> Moma | D55: =IF(COUNTRY_INFO!$T$9:$T$1000="MDA1 (IVM+ALB)", COUNTRY_INFO!$T$9:$T$1000, " ") -> MDA1 (IVM+ALB) | E55: March 2019 | G55: 93787 | H55: 192599 | I55: 286386 | K55: 148443 | L55: 141924 | M55: 290367 | O55: 158.2767334 | P55: 73.68885612 | Q55: 101.3900819
A56: =IF(COUNTRY_INFO!A56=0," ",COUNTRY_INFO!A56) -> Mozambique | B56: =IF(COUNTRY_INFO!B56=0," ",COUNTRY_INFO!B56) -> Nampula | C56: =IF(COUNTRY_INFO!C56=0," ",COUNTRY_INFO!C56) -> Monapo | D56: =IF(COUNTRY_INFO!$T$9:$T$1000="MDA1 (IVM+ALB)", COUNTRY_INFO!$T$9:$T$1000, " ") -> MDA1 (IVM+ALB) | E56: March 2019 | G56: 113723 | H56: 233539 | I56: 347262 | K56: 181157 | L56: 137168 | M56: 318325 | O56: 159.2967122 | P56: 58.73451543 | Q56: 91.66709862
A57: =IF(COUNTRY_INFO!A57=0," ",COUNTRY_INFO!A57) -> Mozambique | B57: =IF(COUNTRY_INFO!B57=0," ",COUNTRY_INFO!B57) -> Nampula | C57: =IF(COUNTRY_INFO!C57=0," ",COUNTRY_INFO!C57) -> Mossuril | D57: =IF(COUNTRY_INFO!$T$9:$T$1000="MDA1 (IVM+ALB)", COUNTRY_INFO!$T$9:$T$1000, " ") -> MDA1 (IVM+ALB) | E57: March 2019 | G57: 40900 | H57: 83991 | I57: 124891 | K57: 47623 | L57: 67535 | M57: 115158 | O57: 116.4376528 | P57: 80.40742461 | Q57: 92.20680433
A58: =IF(COUNTRY_INFO!A58=0," ",COUNTRY_INFO!A58) -> Mozambique | B58: =IF(COUNTRY_INFO!B58=0," ",COUNTRY_INFO!B58) -> Nampula | C58: =IF(COUNTRY_INFO!C58=0," ",COUNTRY_INFO!C58) -> Muecate | D58: =IF(COUNTRY_INFO!$T$9:$T$1000="MDA1 (IVM+ALB)", COUNTRY_INFO!$T$9:$T$1000, " ") -> MDA1 (IVM+ALB) | E58: March 2019 | G58: 34134 | H58: 70096 | I58: 104230 | K58: 59993 | L58: 52286 | M58: 112279 | O58: 175.7573094 | P58: 74.59198813 | Q58: 107.7223448
A59: =IF(COUNTRY_INFO!A59=0," ",COUNTRY_INFO!A59) -> Mozambique | B59: =IF(COUNTRY_INFO!B59=0," ",COUNTRY_INFO!B59) -> Nampula | C59: =IF(COUNTRY_INFO!C59=0," ",COUNTRY_INFO!C59) -> Murrupula | D59: =IF(COUNTRY_INFO!$T$9:$T$1000="MDA1 (IVM+ALB)", COUNTRY_INFO!$T$9:$T$1000, " ") -> MDA1 (IVM+ALB) | E59: March 2019 | G59: 52470 | H59: 107751 | I59: 160221 | K59: 80990 | L59: 72989 | M59: 153979 | O59: 154.3548694 | P59: 67.73858247 | Q59: 96.10413117
A60: =IF(COUNTRY_INFO!A60=0," ",COUNTRY_INFO!A60) -> Mozambique | B60: =IF(COUNTRY_INFO!B60=0," ",COUNTRY_INFO!B60) -> Nampula | C60: =IF(COUNTRY_INFO!C60=0," ",COUNTRY_INFO!C60) -> Nacala Porto | D60: =IF(COUNTRY_INFO!$T$9:$T$1000="MDA1 (IVM+ALB)", COUNTRY_INFO!$T$9:$T$1000, " ") -> MDA1 (IVM+ALB) | E60: March 2019 | G60: 70314 | H60: 144395 | I60: 214709 | K60: 140519 | L60: 73762 | M60: 214281 | O60: 199.8449811 | P60: 51.08348627 | Q60: 99.80066043
A61: =IF(COUNTRY_INFO!A61=0," ",COUNTRY_INFO!A61) -> Mozambique | B61: =IF(COUNTRY_INFO!B61=0," ",COUNTRY_INFO!B61) -> Nampula | C61: =IF(COUNTRY_INFO!C61=0," ",COUNTRY_INFO!C61) -> Nacala Velha | D61: =IF(COUNTRY_INFO!$T$9:$T$1000="MDA1 (IVM+ALB)", COUNTRY_INFO!$T$9:$T$1000, " ") -> MDA1 (IVM+ALB) | E61: March 2019 | G61: 39043 | H61: 80178 | I61: 119221 | K61: 61427 | L61: 61313 | M61: 122740 | O61: 157.33166 | P61: 76.4711018 | Q61: 102.9516612
A62: =IF(COUNTRY_INFO!A62=0," ",COUNTRY_INFO!A62) -> Mozambique | B62: =IF(COUNTRY_INFO!B62=0," ",COUNTRY_INFO!B62) -> Nampula | C62: =IF(COUNTRY_INFO!C62=0," ",COUNTRY_INFO!C62) -> Nacaroa | D62: =IF(COUNTRY_INFO!$T$9:$T$1000="MDA1 (IVM+ALB)", COUNTRY_INFO!$T$9:$T$1000, " ") -> MDA1 (IVM+ALB) | E62: March 2019 | G62: 36888 | H62: 75751 | I62: 112639 | K62: 60785 | L62: 51391 | M62: 112176 | O62: 164.7825851 | P62: 67.84200869 | Q62: 99.58895232
A63: =IF(COUNTRY_INFO!A63=0," ",COUNTRY_INFO!A63) -> Mozambique | B63: =IF(COUNTRY_INFO!B63=0," ",COUNTRY_INFO!B63) -> Nampula | C63: =IF(COUNTRY_INFO!C63=0," ",COUNTRY_INFO!C63) -> Nampula Dist. | D63: =IF(COUNTRY_INFO!$T$9:$T$1000="MDA1 (IVM+ALB)", COUNTRY_INFO!$T$9:$T$1000, " ") -> MDA1 (IVM+ALB) | E63: March 2019 | G63: 49717 | H63: 102097 | I63: 151814 | K63: 72858 | L63: 92642 | M63: 165500 | O63: 146.5454472 | P63: 90.739199 | Q63: 109.0149789
A64: =IF(COUNTRY_INFO!A64=0," ",COUNTRY_INFO!A64) -> Mozambique | B64: =IF(COUNTRY_INFO!B64=0," ",COUNTRY_INFO!B64) -> Nampula | C64: =IF(COUNTRY_INFO!C64=0," ",COUNTRY_INFO!C64) -> Ribaué | D64: =IF(COUNTRY_INFO!$T$9:$T$1000="MDA1 (IVM+ALB)", COUNTRY_INFO!$T$9:$T$1000, " ") -> MDA1 (IVM+ALB) | E64: March 2019 | G64: 82734 | H64: 169900 | I64: 252634 | K64: 107792 | L64: 116348 | M64: 224140 | O64: 130.2874272 | P64: 68.48028252 | Q64: 88.72123309
A65: =IF(COUNTRY_INFO!A65=0," ",COUNTRY_INFO!A65) -> Mozambique | B65: =IF(COUNTRY_INFO!B65=0," ",COUNTRY_INFO!B65) -> Zambezia | C65: =IF(COUNTRY_INFO!C65=0," ",COUNTRY_INFO!C65) -> Quelimane | D65: =IF(COUNTRY_INFO!$T$9:$T$1000="MDA1 (IVM+ALB)", COUNTRY_INFO!$T$9:$T$1000, " ") ->  | I65: 0 | M65: 0
A66: =IF(COUNTRY_INFO!A66=0," ",COUNTRY_INFO!A66) -> Mozambique | B66: =IF(COUNTRY_INFO!B66=0," ",COUNTRY_INFO!B66) -> Zambezia | C66: =IF(COUNTRY_INFO!C66=0," ",COUNTRY_INFO!C66) -> Alto Molocué | D66: =IF(COUNTRY_INFO!$T$9:$T$1000="MDA1 (IVM+ALB)", COUNTRY_INFO!$T$9:$T$1000, " ") ->  | I66: 0 | M66: 0
A67: =IF(COUNTRY_INFO!A67=0," ",COUNTRY_INFO!A67) -> Mozambique | B67: =IF(COUNTRY_INFO!B67=0," ",COUNTRY_INFO!B67) -> Zambezia | C67: =IF(COUNTRY_INFO!C67=0," ",COUNTRY_INFO!C67) -> Chinde | D67: =IF(COUNTRY_INFO!$T$9:$T$1000="MDA1 (IVM+ALB)", COUNTRY_INFO!$T$9:$T$1000, " ") ->  | I67: 0 | M67: 0
A68: =IF(COUNTRY_INFO!A68=0," ",COUNTRY_INFO!A68) -> Mozambique | B68: =IF(COUNTRY_INFO!B68=0," ",COUNTRY_INFO!B68) -> Zambezia | C68: =IF(COUNTRY_INFO!C68=0," ",COUNTRY_INFO!C68) -> Derre | D68: =IF(COUNTRY_INFO!$T$9:$T$1000="MDA1 (IVM+ALB)", COUNTRY_INFO!$T$9:$T$1000, " ") ->  | I68: 0 | M68: 0
A69: =IF(COUNTRY_INFO!A69=0," ",COUNTRY_INFO!A69) -> Mozambique | B69: =IF(COUNTRY_INFO!B69=0," ",COUNTRY_INFO!B69) -> Zambezia | C69: =IF(COUNTRY_INFO!C69=0," ",COUNTRY_INFO!C69) -> Gilé | D69: =IF(COUNTRY_INFO!$T$9:$T$1000="MDA1 (IVM+ALB)", COUNTRY_INFO!$T$9:$T$1000, " ") ->  | I69: 0 | M69: 0
A70: =IF(COUNTRY_INFO!A70=0," ",COUNTRY_INFO!A70) -> Mozambique | B70: =IF(COUNTRY_INFO!B70=0," ",COUNTRY_INFO!B70) -> Zambezia | C70: =IF(COUNTRY_INFO!C70=0," ",COUNTRY_INFO!C70) -> Gurué | D70: =IF(COUNTRY_INFO!$T$9:$T$1000="MDA1 (IVM+ALB)", COUNTRY_INFO!$T$9:$T$1000, " ") ->  | I70: 0 | M70: 0
A71: =IF(COUNTRY_INFO!A71=0," ",COUNTRY_INFO!A71) -> Mozambique | B71: =IF(COUNTRY_INFO!B71=0," ",COUNTRY_INFO!B71) -> Zambezia | C71: =IF(COUNTRY_INFO!C71=0," ",COUNTRY_INFO!C71) -> Ile | D71: =IF(COUNTRY_INFO!$T$9:$T$1000="MDA1 (IVM+ALB)", COUNTRY_INFO!$T$9:$T$1000, " ") ->  | I71: 0 | M71: 0
A72: =IF(COUNTRY_INFO!A72=0," ",COUNTRY_INFO!A72) -> Mozambique | B72: =IF(COUNTRY_INFO!B72=0," ",COUNTRY_INFO!B72) -> Zambezia | C72: =IF(COUNTRY_INFO!C72=0," ",COUNTRY_INFO!C72) -> Inhassunge | D72: =IF(COUNTRY_INFO!$T$9:$T$1000="MDA1 (IVM+ALB)", COUNTRY_INFO!$T$9:$T$1000, " ") ->  | I72: 0 | M72: 0
A73: =IF(COUNTRY_INFO!A73=0," ",COUNTRY_INFO!A73) -> Mozambique | B73: =IF(COUNTRY_INFO!B73=0," ",COUNTRY_INFO!B73) -> Zambezia | C73: =IF(COUNTRY_INFO!C73=0," ",COUNTRY_INFO!C73) -> Luabo | D73: =IF(COUNTRY_INFO!$T$9:$T$1000="MDA1 (IVM+ALB)", COUNTRY_INFO!$T$9:$T$1000, " ") ->  | I73: 0 | M73: 0
A74: =IF(COUNTRY_INFO!A74=0," ",COUNTRY_INFO!A74) -> Mozambique | B74: =IF(COUNTRY_INFO!B74=0," ",COUNTRY_INFO!B74) -> Zambezia | C74: =IF(COUNTRY_INFO!C74=0," ",COUNTRY_INFO!C74) -> Lugela | D74: =IF(COUNTRY_INFO!$T$9:$T$1000="MDA1 (IVM+ALB)", COUNTRY_INFO!$T$9:$T$1000, " ") ->  | I74: =SUM(F74:H74) -> 0 | M74: =SUM(J74:L74) -> 0 | O74: =IF(G74<>0, IF(K74/G74*100=0, "-", K74/G74*100), " ") ->  | P74: =IF(H74<>0, IF(L74/H74*100=0, "-", L74/H74*100), " ") ->  | Q74: =IF(I74<>0, IF(M74/I74*100=0, "-", M74/I74*100), " ") -> 
A75: =IF(COUNTRY_INFO!A75=0," ",COUNTRY_INFO!A75) -> Mozambique | B75: =IF(COUNTRY_INFO!B75=0," ",COUNTRY_INFO!B75) -> Zambezia | C75: =IF(COUNTRY_INFO!C75=0," ",COUNTRY_INFO!C75) -> Maganja da Costa | D75: =IF(COUNTRY_INFO!$T$9:$T$1000="MDA1 (IVM+ALB)", COUNTRY_INFO!$T$9:$T$1000, " ") ->  | I75: 0 | M75: 0
A76: =IF(COUNTRY_INFO!A76=0," ",COUNTRY_INFO!A76) -> Mozambique | B76: =IF(COUNTRY_INFO!B76=0," ",COUNTRY_INFO!B76) -> Zambezia | C76: =IF(COUNTRY_INFO!C76=0," ",COUNTRY_INFO!C76) -> Milange | D76: =IF(COUNTRY_INFO!$T$9:$T$1000="MDA1 (IVM+ALB)", COUNTRY_INFO!$T$9:$T$1000, " ") ->  | I76: 0 | M76: 0
A77: =IF(COUNTRY_INFO!A77=0," ",COUNTRY_INFO!A77) -> Mozambique | B77: =IF(COUNTRY_INFO!B77=0," ",COUNTRY_INFO!B77) -> Zambezia | C77: =IF(COUNTRY_INFO!C77=0," ",COUNTRY_INFO!C77) -> Mocuba | D77: =IF(COUNTRY_INFO!$T$9:$T$1000="MDA1 (IVM+ALB)", COUNTRY_INFO!$T$9:$T$1000, " ") ->  | I77: 0 | M77: 0
A78: =IF(COUNTRY_INFO!A78=0," ",COUNTRY_INFO!A78) -> Mozambique | B78: =IF(COUNTRY_INFO!B78=0," ",COUNTRY_INFO!B78) -> Zambezia | C78: =IF(COUNTRY_INFO!C78=0," ",COUNTRY_INFO!C78) -> Mocubela | D78: =IF(COUNTRY_INFO!$T$9:$T$1000="MDA1 (IVM+ALB)", COUNTRY_INFO!$T$9:$T$1000, " ") ->  | I78: 0 | M78: 0
A79: =IF(COUNTRY_INFO!A79=0," ",COUNTRY_INFO!A79) -> Mozambique | B79: =IF(COUNTRY_INFO!B79=0," ",COUNTRY_INFO!B79) -> Zambezia | C79: =IF(COUNTRY_INFO!C79=0," ",COUNTRY_INFO!C79) -> Molumbo | D79: =IF(COUNTRY_INFO!$T$9:$T$1000="MDA1 (IVM+ALB)", COUNTRY_INFO!$T$9:$T$1000, " ") ->  | I79: 0 | M79: 0
A80: =IF(COUNTRY_INFO!A80=0," ",COUNTRY_INFO!A80) -> Mozambique | B80: =IF(COUNTRY_INFO!B80=0," ",COUNTRY_INFO!B80) -> Zambezia | C80: =IF(COUNTRY_INFO!C80=0," ",COUNTRY_INFO!C80) -> Mopeia | D80: =IF(COUNTRY_INFO!$T$9:$T$1000="MDA1 (IVM+ALB)", COUNTRY_INFO!$T$9:$T$1000, " ") ->  | I80: 0 | M80: 0
A81: =IF(COUNTRY_INFO!A81=0," ",COUNTRY_INFO!A81) -> Mozambique | B81: =IF(COUNTRY_INFO!B81=0," ",COUNTRY_INFO!B81) -> Zambezia | C81: =IF(COUNTRY_INFO!C81=0," ",COUNTRY_INFO!C81) -> Morrumbala | D81: =IF(COUNTRY_INFO!$T$9:$T$1000="MDA1 (IVM+ALB)", COUNTRY_INFO!$T$9:$T$1000, " ") ->  | I81: 0 | M81: 0
A82: =IF(COUNTRY_INFO!A82=0," ",COUNTRY_INFO!A82) -> Mozambique | B82: =IF(COUNTRY_INFO!B82=0," ",COUNTRY_INFO!B82) -> Zambezia | C82: =IF(COUNTRY_INFO!C82=0," ",COUNTRY_INFO!C82) -> Mulevala | D82: =IF(COUNTRY_INFO!$T$9:$T$1000="MDA1 (IVM+ALB)", COUNTRY_INFO!$T$9:$T$1000, " ") ->  | I82: 0 | M82: 0
A83: =IF(COUNTRY_INFO!A83=0," ",COUNTRY_INFO!A83) -> Mozambique | B83: =IF(COUNTRY_INFO!B83=0," ",COUNTRY_INFO!B83) -> Zambezia | C83: =IF(COUNTRY_INFO!C83=0," ",COUNTRY_INFO!C83) -> Namacurra | D83: =IF(COUNTRY_INFO!$T$9:$T$1000="MDA1 (IVM+ALB)", COUNTRY_INFO!$T$9:$T$1000, " ") ->  | I83: 0 | M83: 0
A84: =IF(COUNTRY_INFO!A84=0," ",COUNTRY_INFO!A84) -> Mozambique | B84: =IF(COUNTRY_INFO!B84=0," ",COUNTRY_INFO!B84) -> Zambezia | C84: =IF(COUNTRY_INFO!C84=0," ",COUNTRY_INFO!C84) -> Namarrói | D84: =IF(COUNTRY_INFO!$T$9:$T$1000="MDA1 (IVM+ALB)", COUNTRY_INFO!$T$9:$T$1000, " ") ->  | I84: 0 | M84: 0
A85: =IF(COUNTRY_INFO!A85=0," ",COUNTRY_INFO!A85) -> Mozambique | B85: =IF(COUNTRY_INFO!B85=0," ",COUNTRY_INFO!B85) -> Zambezia | C85: =IF(COUNTRY_INFO!C85=0," ",COUNTRY_INFO!C85) -> Nicoadala | D85: =IF(COUNTRY_INFO!$T$9:$T$1000="MDA1 (IVM+ALB)", COUNTRY_INFO!$T$9:$T$1000, " ") ->  | I85: 0 | M85: 0
A86: =IF(COUNTRY_INFO!A86=0," ",COUNTRY_INFO!A86) -> Mozambique | B86: =IF(COUNTRY_INFO!B86=0," ",COUNTRY_INFO!B86) -> Zambezia | C86: =IF(COUNTRY_INFO!C86=0," ",COUNTRY_INFO!C86) -> Pebane | D86: =IF(COUNTRY_INFO!$T$9:$T$1000="MDA1 (IVM+ALB)", COUNTRY_INFO!$T$9:$T$1000, " ") ->  | I86: 0 | M86: 0
A87: =IF(COUNTRY_INFO!A87=0," ",COUNTRY_INFO!A87) -> Mozambique | B87: =IF(COUNTRY_INFO!B87=0," ",COUNTRY_INFO!B87) -> Tete | C87: =IF(COUNTRY_INFO!C87=0," ",COUNTRY_INFO!C87) -> Cid Tete | D87: =IF(COUNTRY_INFO!$T$9:$T$1000="MDA1 (IVM+ALB)", COUNTRY_INFO!$T$9:$T$1000, " ") ->  | I87: 0 | M87: 0
A88: =IF(COUNTRY_INFO!A88=0," ",COUNTRY_INFO!A88) -> Mozambique | B88: =IF(COUNTRY_INFO!B88=0," ",COUNTRY_INFO!B88) -> Tete | C88: =IF(COUNTRY_INFO!C88=0," ",COUNTRY_INFO!C88) -> Angónia | D88: =IF(COUNTRY_INFO!$T$9:$T$1000="MDA1 (IVM+ALB)", COUNTRY_INFO!$T$9:$T$1000, " ") ->  | I88: 0 | M88: 0
A89: =IF(COUNTRY_INFO!A89=0," ",COUNTRY_INFO!A89) -> Mozambique | B89: =IF(COUNTRY_INFO!B89=0," ",COUNTRY_INFO!B89) -> Tete | C89: =IF(COUNTRY_INFO!C89=0," ",COUNTRY_INFO!C89) -> Cahora Bassa | D89: =IF(COUNTRY_INFO!$T$9:$T$1000="MDA1 (IVM+ALB)", COUNTRY_INFO!$T$9:$T$1000, " ") ->  | I89: 0 | M89: 0
A90: =IF(COUNTRY_INFO!A90=0," ",COUNTRY_INFO!A90) -> Mozambique | B90: =IF(COUNTRY_INFO!B90=0," ",COUNTRY_INFO!B90) -> Tete | C90: =IF(COUNTRY_INFO!C90=0," ",COUNTRY_INFO!C90) -> Changara | D90: =IF(COUNTRY_INFO!$T$9:$T$1000="MDA1 (IVM+ALB)", COUNTRY_INFO!$T$9:$T$1000, " ") ->  | I90: 0 | M90: 0
A91: =IF(COUNTRY_INFO!A91=0," ",COUNTRY_INFO!A91) -> Mozambique | B91: =IF(COUNTRY_INFO!B91=0," ",COUNTRY_INFO!B91) -> Tete | C91: =IF(COUNTRY_INFO!C91=0," ",COUNTRY_INFO!C91) -> Chifunde | D91: =IF(COUNTRY_INFO!$T$9:$T$1000="MDA1 (IVM+ALB)", COUNTRY_INFO!$T$9:$T$1000, " ") -> MDA1 (IVM+ALB) | E91: April 2019 | G91: 55826 | H91: 114642 | I91: 170468 | K91: 63334 | L91: 68126 | M91: 131460 | O91: 113.4489306 | P91: 59.42499259 | Q91: 77.11711289
A92: =IF(COUNTRY_INFO!A92=0," ",COUNTRY_INFO!A92) -> Mozambique | B92: =IF(COUNTRY_INFO!B92=0," ",COUNTRY_INFO!B92) -> Tete | C92: =IF(COUNTRY_INFO!C92=0," ",COUNTRY_INFO!C92) -> Chiúta | D92: =IF(COUNTRY_INFO!$T$9:$T$1000="MDA1 (IVM+ALB)", COUNTRY_INFO!$T$9:$T$1000, " ") ->  | I92: 0 | M92: 0
A93: =IF(COUNTRY_INFO!A93=0," ",COUNTRY_INFO!A93) -> Mozambique | B93: =IF(COUNTRY_INFO!B93=0," ",COUNTRY_INFO!B93) -> Tete | C93: =IF(COUNTRY_INFO!C93=0," ",COUNTRY_INFO!C93) -> Doa | D93: =IF(COUNTRY_INFO!$T$9:$T$1000="MDA1 (IVM+ALB)", COUNTRY_INFO!$T$9:$T$1000, " ") -> MDA1 (IVM+ALB) | E93: April 2019 | G93: 30496 | H93: 62625 | I93: 93121 | K93: 28253 | L93: 51788 | M93: 80041 | O93: 92.64493704 | P93: 82.69540918 | Q93: 85.95375909
A94: =IF(COUNTRY_INFO!A94=0," ",COUNTRY_INFO!A94) -> Mozambique | B94: =IF(COUNTRY_INFO!B94=0," ",COUNTRY_INFO!B94) -> Tete | C94: =IF(COUNTRY_INFO!C94=0," ",COUNTRY_INFO!C94) -> Macanga | D94: =IF(COUNTRY_INFO!$T$9:$T$1000="MDA1 (IVM+ALB)", COUNTRY_INFO!$T$9:$T$1000, " ") ->  | I94: 0 | M94: 0
A95: =IF(COUNTRY_INFO!A95=0," ",COUNTRY_INFO!A95) -> Mozambique | B95: =IF(COUNTRY_INFO!B95=0," ",COUNTRY_INFO!B95) -> Tete | C95: =IF(COUNTRY_INFO!C95=0," ",COUNTRY_INFO!C95) -> Magoe | D95: =IF(COUNTRY_INFO!$T$9:$T$1000="MDA1 (IVM+ALB)", COUNTRY_INFO!$T$9:$T$1000, " ") ->  | I95: 0 | M95: 0
A96: =IF(COUNTRY_INFO!A96=0," ",COUNTRY_INFO!A96) -> Mozambique | B96: =IF(COUNTRY_INFO!B96=0," ",COUNTRY_INFO!B96) -> Tete | C96: =IF(COUNTRY_INFO!C96=0," ",COUNTRY_INFO!C96) -> Marávia | D96: =IF(COUNTRY_INFO!$T$9:$T$1000="MDA1 (IVM+ALB)", COUNTRY_INFO!$T$9:$T$1000, " ") ->  | I96: 0 | M96: 0
A97: =IF(COUNTRY_INFO!A97=0," ",COUNTRY_INFO!A97) -> Mozambique | B97: =IF(COUNTRY_INFO!B97=0," ",COUNTRY_INFO!B97) -> Tete | C97: =IF(COUNTRY_INFO!C97=0," ",COUNTRY_INFO!C97) -> Marara | D97: =IF(COUNTRY_INFO!$T$9:$T$1000="MDA1 (IVM+ALB)", COUNTRY_INFO!$T$9:$T$1000, " ") ->  | I97: 0 | M97: 0
A98: =IF(COUNTRY_INFO!A98=0," ",COUNTRY_INFO!A98) -> Mozambique | B98: =IF(COUNTRY_INFO!B98=0," ",COUNTRY_INFO!B98) -> Tete | C98: =IF(COUNTRY_INFO!C98=0," ",COUNTRY_INFO!C98) -> Moatize | D98: =IF(COUNTRY_INFO!$T$9:$T$1000="MDA1 (IVM+ALB)", COUNTRY_INFO!$T$9:$T$1000, " ") ->  | I98: 0 | M98: 0
A99: =IF(COUNTRY_INFO!A99=0," ",COUNTRY_INFO!A99) -> Mozambique | B99: =IF(COUNTRY_INFO!B99=0," ",COUNTRY_INFO!B99) -> Tete | C99: =IF(COUNTRY_INFO!C99=0," ",COUNTRY_INFO!C99) -> Mutarara | D99: =IF(COUNTRY_INFO!$T$9:$T$1000="MDA1 (IVM+ALB)", COUNTRY_INFO!$T$9:$T$1000, " ") -> MDA1 (IVM+ALB) | E99: April 2019 | G99: 62865 | H99: 129097 | I99: 191962 | K99: 64230 | L99: 116521 | M99: 180751 | O99: 102.1713195 | P99: 90.2584878 | Q99: 94.15978162
A100: =IF(COUNTRY_INFO!A100=0," ",COUNTRY_INFO!A100) -> Mozambique | B100: =IF(COUNTRY_INFO!B100=0," ",COUNTRY_INFO!B100) -> Tete | C100: =IF(COUNTRY_INFO!C100=0," ",COUNTRY_INFO!C100) -> Tsangano | D100: =IF(COUNTRY_INFO!$T$9:$T$1000="MDA1 (IVM+ALB)", COUNTRY_INFO!$T$9:$T$1000, " ") ->  | I100: 0 | M100: 0
A101: =IF(COUNTRY_INFO!A101=0," ",COUNTRY_INFO!A101) -> Mozambique | B101: =IF(COUNTRY_INFO!B101=0," ",COUNTRY_INFO!B101) -> Tete | C101: =IF(COUNTRY_INFO!C101=0," ",COUNTRY_INFO!C101) -> Zumbu | D101: =IF(COUNTRY_INFO!$T$9:$T$1000="MDA1 (IVM+ALB)", COUNTRY_INFO!$T$9:$T$1000, " ") ->  | I101: 0 | M101: 0
A102: =IF(COUNTRY_INFO!A102=0," ",COUNTRY_INFO!A102) -> Mozambique | B102: =IF(COUNTRY_INFO!B102=0," ",COUNTRY_INFO!B102) -> Sofala | C102: =IF(COUNTRY_INFO!C102=0," ",COUNTRY_INFO!C102) -> Cid Beira | D102: =IF(COUNTRY_INFO!$T$9:$T$1000="MDA1 (IVM+ALB)", COUNTRY_INFO!$T$9:$T$1000, " ") -> MDA1 (IVM+ALB) | E102: May 2019 | G102: 130457 | H102: 267903 | I102: 398360 | K102: 159219 | L102: 144549 | M102: 303768 | O102: 122.0471113 | P102: 53.95572278 | Q102: 76.25464404
A103: =IF(COUNTRY_INFO!A103=0," ",COUNTRY_INFO!A103) -> Mozambique | B103: =IF(COUNTRY_INFO!B103=0," ",COUNTRY_INFO!B103) -> Sofala | C103: =IF(COUNTRY_INFO!C103=0," ",COUNTRY_INFO!C103) -> Buzi | D103: =IF(COUNTRY_INFO!$T$9:$T$1000="MDA1 (IVM+ALB)", COUNTRY_INFO!$T$9:$T$1000, " ") ->  | I103: 0 | M103: 0
A104: =IF(COUNTRY_INFO!A104=0," ",COUNTRY_INFO!A104) -> Mozambique | B104: =IF(COUNTRY_INFO!B104=0," ",COUNTRY_INFO!B104) -> Sofala | C104: =IF(COUNTRY_INFO!C104=0," ",COUNTRY_INFO!C104) -> Caia | D104: =IF(COUNTRY_INFO!$T$9:$T$1000="MDA1 (IVM+ALB)", COUNTRY_INFO!$T$9:$T$1000, " ") -> MDA1 (IVM+ALB) | E104: May 2019 | G104: 45887 | H104: 94232 | I104: 140119 | K104: 72617 | L104: 78967 | M104: 151584 | O104: 158.2517924 | P104: 83.80061975 | Q104: 108.1823307
A105: =IF(COUNTRY_INFO!A105=0," ",COUNTRY_INFO!A105) -> Mozambique | B105: =IF(COUNTRY_INFO!B105=0," ",COUNTRY_INFO!B105) -> Sofala | C105: =IF(COUNTRY_INFO!C105=0," ",COUNTRY_INFO!C105) -> Chemba | D105: =IF(COUNTRY_INFO!$T$9:$T$1000="MDA1 (IVM+ALB)", COUNTRY_INFO!$T$9:$T$1000, " ") -> MDA1 (IVM+ALB) | E105: May 2019 | G105: 24003 | H105: 49292 | I105: 73295 | K105: 24225 | L105: 48646 | M105: 72871 | O105: 100.9248844 | P105: 98.68944251 | Q105: 99.42151579
A106: =IF(COUNTRY_INFO!A106=0," ",COUNTRY_INFO!A106) -> Mozambique | B106: =IF(COUNTRY_INFO!B106=0," ",COUNTRY_INFO!B106) -> Sofala | C106: =IF(COUNTRY_INFO!C106=0," ",COUNTRY_INFO!C106) -> Cheringoma | D106: =IF(COUNTRY_INFO!$T$9:$T$1000="MDA1 (IVM+ALB)", COUNTRY_INFO!$T$9:$T$1000, " ") -> MDA1 (IVM+ALB) | E106: May 2019 | G106: 23222 | H106: 47687 | I106: 70909 | K106: 23099 | L106: 42888 | M106: 65987 | O106: 99.47032986 | P106: 89.93646067 | Q106: 93.05870905
A107: =IF(COUNTRY_INFO!A107=0," ",COUNTRY_INFO!A107) -> Mozambique | B107: =IF(COUNTRY_INFO!B107=0," ",COUNTRY_INFO!B107) -> Sofala | C107: =IF(COUNTRY_INFO!C107=0," ",COUNTRY_INFO!C107) -> Chibabava | D107: =IF(COUNTRY_INFO!$T$9:$T$1000="MDA1 (IVM+ALB)", COUNTRY_INFO!$T$9:$T$1000, " ") -> MDA1 (IVM+ALB) | E107: May 2019 | G107: 41360 | H107: 84937 | I107: 126297 | K107: 38948 | L107: 38282 | M107: 77230 | O107: 94.16827853 | P107: 45.07105266 | Q107: 61.14951266
A108: =IF(COUNTRY_INFO!A108=0," ",COUNTRY_INFO!A108) -> Mozambique | B108: =IF(COUNTRY_INFO!B108=0," ",COUNTRY_INFO!B108) -> Sofala | C108: =IF(COUNTRY_INFO!C108=0," ",COUNTRY_INFO!C108) -> Dondo | D108: =IF(COUNTRY_INFO!$T$9:$T$1000="MDA1 (IVM+ALB)", COUNTRY_INFO!$T$9:$T$1000, " ") -> MDA1 (IVM+ALB) | E108: May 2019 | G108: 52993 | H108: 108824 | I108: 161817 | K108: 42585 | L108: 92717.23205 | M108: 135302.2321 | O108: 80.35967015 | P108: 85.19925021 | Q108: 83.61434958
A109: =IF(COUNTRY_INFO!A109=0," ",COUNTRY_INFO!A109) -> Mozambique | B109: =IF(COUNTRY_INFO!B109=0," ",COUNTRY_INFO!B109) -> Sofala | C109: =IF(COUNTRY_INFO!C109=0," ",COUNTRY_INFO!C109) -> Gorongosa | D109: =IF(COUNTRY_INFO!$T$9:$T$1000="MDA1 (IVM+ALB)", COUNTRY_INFO!$T$9:$T$1000, " ") -> MDA1 (IVM+ALB) | E109: May 2019 | G109: 51013 | H109: 104759 | I109: 155772 | K109: 63175 | L109: 90122 | M109: 153297 | O109: 123.8409817 | P109: 86.02793077 | Q109: 98.41113936
A110: =IF(COUNTRY_INFO!A110=0," ",COUNTRY_INFO!A110) -> Mozambique | B110: =IF(COUNTRY_INFO!B110=0," ",COUNTRY_INFO!B110) -> Sofala | C110: =IF(COUNTRY_INFO!C110=0," ",COUNTRY_INFO!C110) -> Machanga | D110: =IF(COUNTRY_INFO!$T$9:$T$1000="MDA1 (IVM+ALB)", COUNTRY_INFO!$T$9:$T$1000, " ") -> MDA1 (IVM+ALB) | E110: May 2019 | G110: 19217 | H110: 39464 | I110: 58681 | K110: 25576 | L110: 30786 | M110: 56362 | O110: 133.0904928 | P110: 78.01033854 | Q110: 96.04812461
A111: =IF(COUNTRY_INFO!A111=0," ",COUNTRY_INFO!A111) -> Mozambique | B111: =IF(COUNTRY_INFO!B111=0," ",COUNTRY_INFO!B111) -> Sofala | C111: =IF(COUNTRY_INFO!C111=0," ",COUNTRY_INFO!C111) -> Maringue | D111: =IF(COUNTRY_INFO!$T$9:$T$1000="MDA1 (IVM+ALB)", COUNTRY_INFO!$T$9:$T$1000, " ") -> MDA1 (IVM+ALB) | E111: May 2019 | G111: 28493 | H111: 58513 | I111: 87006 | K111: 31221 | L111: 64612 | M111: 95833 | O111: 109.5742814 | P111: 110.4233247 | Q111: 110.1452773
A112: =IF(COUNTRY_INFO!A112=0," ",COUNTRY_INFO!A112) -> Mozambique | B112: =IF(COUNTRY_INFO!B112=0," ",COUNTRY_INFO!B112) -> Sofala | C112: =IF(COUNTRY_INFO!C112=0," ",COUNTRY_INFO!C112) -> Marromeu | D112: =IF(COUNTRY_INFO!$T$9:$T$1000="MDA1 (IVM+ALB)", COUNTRY_INFO!$T$9:$T$1000, " ") -> MDA1 (IVM+ALB) | E112: May 2019 | G112: 54993 | H112: 112932 | I112: 167925 | K112: 59413 | L112: 92795 | M112: 152208 | O112: 108.0373866 | P112: 82.16891581 | Q112: 90.64046449
A113: =IF(COUNTRY_INFO!A113=0," ",COUNTRY_INFO!A113) -> Mozambique | B113: =IF(COUNTRY_INFO!B113=0," ",COUNTRY_INFO!B113) -> Sofala | C113: =IF(COUNTRY_INFO!C113=0," ",COUNTRY_INFO!C113) -> Muanza | D113: =IF(COUNTRY_INFO!$T$9:$T$1000="MDA1 (IVM+ALB)", COUNTRY_INFO!$T$9:$T$1000, " ") -> MDA1 (IVM+ALB) | E113: May 2019 | G113: 12260 | H113: 25177 | I113: 37437 | K113: 13423 | L113: 15037 | M113: 28460 | O113: 109.4861338 | P113: 59.72514597 | Q113: 76.0210487
A114: =IF(COUNTRY_INFO!A114=0," ",COUNTRY_INFO!A114) -> Mozambique | B114: =IF(COUNTRY_INFO!B114=0," ",COUNTRY_INFO!B114) -> Sofala | C114: =IF(COUNTRY_INFO!C114=0," ",COUNTRY_INFO!C114) -> Nhamatanda | D114: =IF(COUNTRY_INFO!$T$9:$T$1000="MDA1 (IVM+ALB)", COUNTRY_INFO!$T$9:$T$1000, " ") -> MDA1 (IVM+ALB) | E114: May 2019 | G114: 90303 | H114: 185444 | I114: 275747 | K114: 113214 | L114: 102334 | M114: 215548 | O114: 125.3712501 | P114: 55.18323591 | Q114: 78.16875614
A115: =IF(COUNTRY_INFO!A115=0," ",COUNTRY_INFO!A115) -> Mozambique | B115: =IF(COUNTRY_INFO!B115=0," ",COUNTRY_INFO!B115) -> Manica | C115: =IF(COUNTRY_INFO!C115=0," ",COUNTRY_INFO!C115) -> Cid. Chimoio | D115: =IF(COUNTRY_INFO!$T$9:$T$1000="MDA1 (IVM+ALB)", COUNTRY_INFO!$T$9:$T$1000, " ") ->  | I115: 0 | M115: 0
A116: =IF(COUNTRY_INFO!A116=0," ",COUNTRY_INFO!A116) -> Mozambique | B116: =IF(COUNTRY_INFO!B116=0," ",COUNTRY_INFO!B116) -> Manica | C116: =IF(COUNTRY_INFO!C116=0," ",COUNTRY_INFO!C116) -> Barué | D116: =IF(COUNTRY_INFO!$T$9:$T$1000="MDA1 (IVM+ALB)", COUNTRY_INFO!$T$9:$T$1000, " ") -> MDA1 (IVM+ALB) | E116: April 2019 | G116: 77291 | H116: 158722 | I116: 236013 | K116: 102479 | L116: 103021 | M116: 205500 | O116: 132.5885291 | P116: 64.9065662 | Q116: 87.07147488
A117: =IF(COUNTRY_INFO!A117=0," ",COUNTRY_INFO!A117) -> Mozambique | B117: =IF(COUNTRY_INFO!B117=0," ",COUNTRY_INFO!B117) -> Manica | C117: =IF(COUNTRY_INFO!C117=0," ",COUNTRY_INFO!C117) -> Gondola | D117: =IF(COUNTRY_INFO!$T$9:$T$1000="MDA1 (IVM+ALB)", COUNTRY_INFO!$T$9:$T$1000, " ") ->  | I117: 0 | M117: 0
A118: =IF(COUNTRY_INFO!A118=0," ",COUNTRY_INFO!A118) -> Mozambique | B118: =IF(COUNTRY_INFO!B118=0," ",COUNTRY_INFO!B118) -> Manica | C118: =IF(COUNTRY_INFO!C118=0," ",COUNTRY_INFO!C118) -> Guro | D118: =IF(COUNTRY_INFO!$T$9:$T$1000="MDA1 (IVM+ALB)", COUNTRY_INFO!$T$9:$T$1000, " ") -> MDA1 (IVM+ALB) | E118: April 2019 | G118: 28979 | H118: 59511 | I118: 88490 | K118: 29822 | L118: 56137 | M118: 85959 | O118: 102.9090031 | P118: 94.33045991 | Q118: 97.13978981
A119: =IF(COUNTRY_INFO!A119=0," ",COUNTRY_INFO!A119) -> Mozambique | B119: =IF(COUNTRY_INFO!B119=0," ",COUNTRY_INFO!B119) -> Manica | C119: =IF(COUNTRY_INFO!C119=0," ",COUNTRY_INFO!C119) -> Macate | D119: =IF(COUNTRY_INFO!$T$9:$T$1000="MDA1 (IVM+ALB)", COUNTRY_INFO!$T$9:$T$1000, " ") ->  | I119: 0 | M119: 0
A120: =IF(COUNTRY_INFO!A120=0," ",COUNTRY_INFO!A120) -> Mozambique | B120: =IF(COUNTRY_INFO!B120=0," ",COUNTRY_INFO!B120) -> Manica | C120: =IF(COUNTRY_INFO!C120=0," ",COUNTRY_INFO!C120) -> Machaze | D120: =IF(COUNTRY_INFO!$T$9:$T$1000="MDA1 (IVM+ALB)", COUNTRY_INFO!$T$9:$T$1000, " ") ->  | I120: 0 | M120: 0
A121: =IF(COUNTRY_INFO!A121=0," ",COUNTRY_INFO!A121) -> Mozambique | B121: =IF(COUNTRY_INFO!B121=0," ",COUNTRY_INFO!B121) -> Manica | C121: =IF(COUNTRY_INFO!C121=0," ",COUNTRY_INFO!C121) -> Macossa | D121: =IF(COUNTRY_INFO!$T$9:$T$1000="MDA1 (IVM+ALB)", COUNTRY_INFO!$T$9:$T$1000, " ") -> MDA1 (IVM+ALB) | E121: April 2019 | G121: 15719 | H121: 32280 | I121: 47999 | K121: 16165 | L121: 30291 | M121: 46456 | O121: 102.8373306 | P121: 93.83828996 | Q121: 96.78534969
A122: =IF(COUNTRY_INFO!A122=0," ",COUNTRY_INFO!A122) -> Mozambique | B122: =IF(COUNTRY_INFO!B122=0," ",COUNTRY_INFO!B122) -> Manica | C122: =IF(COUNTRY_INFO!C122=0," ",COUNTRY_INFO!C122) -> Manica | D122: =IF(COUNTRY_INFO!$T$9:$T$1000="MDA1 (IVM+ALB)", COUNTRY_INFO!$T$9:$T$1000, " ") ->  | I122: 0 | M122: 0
A123: =IF(COUNTRY_INFO!A123=0," ",COUNTRY_INFO!A123) -> Mozambique | B123: =IF(COUNTRY_INFO!B123=0," ",COUNTRY_INFO!B123) -> Manica | C123: =IF(COUNTRY_INFO!C123=0," ",COUNTRY_INFO!C123) -> Mossurize | D123: =IF(COUNTRY_INFO!$T$9:$T$1000="MDA1 (IVM+ALB)", COUNTRY_INFO!$T$9:$T$1000, " ") ->  | I123: 0 | M123: 0
A124: =IF(COUNTRY_INFO!A124=0," ",COUNTRY_INFO!A124) -> Mozambique | B124: =IF(COUNTRY_INFO!B124=0," ",COUNTRY_INFO!B124) -> Manica | C124: =IF(COUNTRY_INFO!C124=0," ",COUNTRY_INFO!C124) -> Sussundenga | D124: =IF(COUNTRY_INFO!$T$9:$T$1000="MDA1 (IVM+ALB)", COUNTRY_INFO!$T$9:$T$1000, " ") -> MDA1 (IVM+ALB) | E124: April 2019 | G124: 49962 | H124: 102601 | I124: 152563 | K124: 47289 | L124: 100085 | M124: 147374 | O124: 94.64993395 | P124: 97.54778219 | Q124: 96.59878214
A125: =IF(COUNTRY_INFO!A125=0," ",COUNTRY_INFO!A125) -> Mozambique | B125: =IF(COUNTRY_INFO!B125=0," ",COUNTRY_INFO!B125) -> Manica | C125: =IF(COUNTRY_INFO!C125=0," ",COUNTRY_INFO!C125) -> Tambara | D125: =IF(COUNTRY_INFO!$T$9:$T$1000="MDA1 (IVM+ALB)", COUNTRY_INFO!$T$9:$T$1000, " ") -> MDA1 (IVM+ALB) | E125: April 2019 | G125: 16697 | H125: 34288 | I125: 50985 | K125: 15733 | L125: 31952 | M125: 47685 | O125: 94.22650776 | P125: 93.18712086 | Q125: 93.52750809
A126: =IF(COUNTRY_INFO!A126=0," ",COUNTRY_INFO!A126) -> Mozambique | B126: =IF(COUNTRY_INFO!B126=0," ",COUNTRY_INFO!B126) -> Manica | C126: =IF(COUNTRY_INFO!C126=0," ",COUNTRY_INFO!C126) -> Vanduze | D126: =IF(COUNTRY_INFO!$T$9:$T$1000="MDA1 (IVM+ALB)", COUNTRY_INFO!$T$9:$T$1000, " ") ->  | I126: 0 | M126: 0
A127: =IF(COUNTRY_INFO!A127=0," ",COUNTRY_INFO!A127) -> Mozambique | B127: =IF(COUNTRY_INFO!B127=0," ",COUNTRY_INFO!B127) -> Inhambane | C127: =IF(COUNTRY_INFO!C127=0," ",COUNTRY_INFO!C127) -> Cid. I'bane | D127: =IF(COUNTRY_INFO!$T$9:$T$1000="MDA1 (IVM+ALB)", COUNTRY_INFO!$T$9:$T$1000, " ") -> MDA1 (IVM+ALB) | E127: March 2019 | G127: 23756 | H127: 48784 | I127: 72540 | K127: 24610 | L127: 37428 | M127: 62038 | O127: 103.5948813 | P127: 76.72187602 | Q127: 85.52247036
A128: =IF(COUNTRY_INFO!A128=0," ",COUNTRY_INFO!A128) -> Mozambique | B128: =IF(COUNTRY_INFO!B128=0," ",COUNTRY_INFO!B128) -> Inhambane | C128: =IF(COUNTRY_INFO!C128=0," ",COUNTRY_INFO!C128) -> Funhalouro | D128: =IF(COUNTRY_INFO!$T$9:$T$1000="MDA1 (IVM+ALB)", COUNTRY_INFO!$T$9:$T$1000, " ") ->  | I128: 0 | M128: 0
A129: =IF(COUNTRY_INFO!A129=0," ",COUNTRY_INFO!A129) -> Mozambique | B129: =IF(COUNTRY_INFO!B129=0," ",COUNTRY_INFO!B129) -> Inhambane | C129: =IF(COUNTRY_INFO!C129=0," ",COUNTRY_INFO!C129) -> Govuro | D129: =IF(COUNTRY_INFO!$T$9:$T$1000="MDA1 (IVM+ALB)", COUNTRY_INFO!$T$9:$T$1000, " ") -> MDA1 (IVM+ALB) | E129: March 2019 | G129: 12487 | H129: 25643 | I129: 38130 | K129: 11765 | L129: 24081 | M129: 35846 | O129: 94.21798671 | P129: 93.90866903 | Q129: 94.00996591
A130: =IF(COUNTRY_INFO!A130=0," ",COUNTRY_INFO!A130) -> Mozambique | B130: =IF(COUNTRY_INFO!B130=0," ",COUNTRY_INFO!B130) -> Inhambane | C130: =IF(COUNTRY_INFO!C130=0," ",COUNTRY_INFO!C130) -> Homoíne | D130: =IF(COUNTRY_INFO!$T$9:$T$1000="MDA1 (IVM+ALB)", COUNTRY_INFO!$T$9:$T$1000, " ") -> MDA1 (IVM+ALB) | E130: March 2019 | G130: 37971 | H130: 77976 | I130: 115947 | K130: 44097 | L130: 75214 | M130: 119311 | O130: 116.1333649 | P130: 96.45788448 | Q130: 102.9013256
A131: =IF(COUNTRY_INFO!A131=0," ",COUNTRY_INFO!A131) -> Mozambique | B131: =IF(COUNTRY_INFO!B131=0," ",COUNTRY_INFO!B131) -> Inhambane | C131: =IF(COUNTRY_INFO!C131=0," ",COUNTRY_INFO!C131) -> Inharrime | D131: =IF(COUNTRY_INFO!$T$9:$T$1000="MDA1 (IVM+ALB)", COUNTRY_INFO!$T$9:$T$1000, " ") ->  | I131: 0 | M131: 0
A132: =IF(COUNTRY_INFO!A132=0," ",COUNTRY_INFO!A132) -> Mozambique | B132: =IF(COUNTRY_INFO!B132=0," ",COUNTRY_INFO!B132) -> Inhambane | C132: =IF(COUNTRY_INFO!C132=0," ",COUNTRY_INFO!C132) -> Inhassoro | D132: =IF(COUNTRY_INFO!$T$9:$T$1000="MDA1 (IVM+ALB)", COUNTRY_INFO!$T$9:$T$1000, " ") -> MDA1 (IVM+ALB) | E132: March 2019 | G132: 19033 | H132: 39086 | I132: 58119 | K132: 19243 | L132: 34651 | M132: 53894 | O132: 101.1033468 | P132: 88.65322622 | Q132: 92.73043239
A133: =IF(COUNTRY_INFO!A133=0," ",COUNTRY_INFO!A133) -> Mozambique | B133: =IF(COUNTRY_INFO!B133=0," ",COUNTRY_INFO!B133) -> Inhambane | C133: =IF(COUNTRY_INFO!C133=0," ",COUNTRY_INFO!C133) -> Jangamo | D133: =IF(COUNTRY_INFO!$T$9:$T$1000="MDA1 (IVM+ALB)", COUNTRY_INFO!$T$9:$T$1000, " ") -> MDA1 (IVM+ALB) | E133: March 2019 | G133: 32628 | H133: 67004 | I133: 99632 | K133: 42036 | L133: 54192 | M133: 96228 | O133: 128.8341302 | P133: 80.87875351 | Q133: 96.58342701
A134: =IF(COUNTRY_INFO!A134=0," ",COUNTRY_INFO!A134) -> Mozambique | B134: =IF(COUNTRY_INFO!B134=0," ",COUNTRY_INFO!B134) -> Inhambane | C134: =IF(COUNTRY_INFO!C134=0," ",COUNTRY_INFO!C134) -> Mabote | D134: =IF(COUNTRY_INFO!$T$9:$T$1000="MDA1 (IVM+ALB)", COUNTRY_INFO!$T$9:$T$1000, " ") -> MDA1 (IVM+ALB) | E134: March 2019 | G134: 15317 | H134: 31455 | I134: 46772 | K134: 20477 | L134: 32597 | M134: 53074 | O134: 133.688059 | P134: 103.6305834 | Q134: 113.4738733
A135: =IF(COUNTRY_INFO!A135=0," ",COUNTRY_INFO!A135) -> Mozambique | B135: =IF(COUNTRY_INFO!B135=0," ",COUNTRY_INFO!B135) -> Inhambane | C135: =IF(COUNTRY_INFO!C135=0," ",COUNTRY_INFO!C135) -> Massinga | D135: =IF(COUNTRY_INFO!$T$9:$T$1000="MDA1 (IVM+ALB)", COUNTRY_INFO!$T$9:$T$1000, " ") -> MDA1 (IVM+ALB) | E135: March 2019 | G135: 58651 | H135: 120444 | I135: 179095 | K135: 95735 | L135: 84748 | M135: 180483 | O135: 163.2282485 | P135: 70.36299027 | Q135: 100.7750077
A136: =IF(COUNTRY_INFO!A136=0," ",COUNTRY_INFO!A136) -> Mozambique | B136: =IF(COUNTRY_INFO!B136=0," ",COUNTRY_INFO!B136) -> Inhambane | C136: =IF(COUNTRY_INFO!C136=0," ",COUNTRY_INFO!C136) -> Maxixe | D136: =IF(COUNTRY_INFO!$T$9:$T$1000="MDA1 (IVM+ALB)", COUNTRY_INFO!$T$9:$T$1000, " ") -> MDA1 (IVM+ALB) | E136: March 2019 | G136: 38272 | H136: 78594 | I136: 116866 | K136: 55540 | L136: 86504 | M136: 142044 | O136: 145.1191472 | P136: 110.0643815 | Q136: 121.5443328
A137: =IF(COUNTRY_INFO!A137=0," ",COUNTRY_INFO!A137) -> Mozambique | B137: =IF(COUNTRY_INFO!B137=0," ",COUNTRY_INFO!B137) -> Inhambane | C137: =IF(COUNTRY_INFO!C137=0," ",COUNTRY_INFO!C137) -> Morrumbene | D137: =IF(COUNTRY_INFO!$T$9:$T$1000="MDA1 (IVM+ALB)", COUNTRY_INFO!$T$9:$T$1000, " ") -> MDA1 (IVM+ALB) | E137: March 2019 | G137: 44046 | H137: 90452 | I137: 134498 | K137: 68306 | L137: 72305 | M137: 140611 | O137: 155.0787813 | P137: 79.93742537 | Q137: 104.545049
A138: =IF(COUNTRY_INFO!A138=0," ",COUNTRY_INFO!A138) -> Mozambique | B138: =IF(COUNTRY_INFO!B138=0," ",COUNTRY_INFO!B138) -> Inhambane | C138: =IF(COUNTRY_INFO!C138=0," ",COUNTRY_INFO!C138) -> Panda | D138: =IF(COUNTRY_INFO!$T$9:$T$1000="MDA1 (IVM+ALB)", COUNTRY_INFO!$T$9:$T$1000, " ") ->  | I138: =SUM(F138:H138) -> 0 | M138: =SUM(J138:L138) -> 0 | O138: =IF(G138<>0, IF(K138/G138*100=0, "-", K138/G138*100), " ") ->  | P138: =IF(H138<>0, IF(L138/H138*100=0, "-", L138/H138*100), " ") ->  | Q138: =IF(I138<>0, IF(M138/I138*100=0, "-", M138/I138*100), " ") -> 
A139: =IF(COUNTRY_INFO!A139=0," ",COUNTRY_INFO!A139) -> Mozambique | B139: =IF(COUNTRY_INFO!B139=0," ",COUNTRY_INFO!B139) -> Inhambane | C139: =IF(COUNTRY_INFO!C139=0," ",COUNTRY_INFO!C139) -> Vilanculos | D139: =IF(COUNTRY_INFO!$T$9:$T$1000="MDA1 (IVM+ALB)", COUNTRY_INFO!$T$9:$T$1000, " ") -> MDA1 (IVM+ALB) | E139: March 2019 | G139: 49294 | H139: 101229 | I139: 150523 | K139: 54886 | L139: 83853 | M139: 138739 | O139: 111.3441798 | P139: 82.83495836 | Q139: 92.17129608
A140: =IF(COUNTRY_INFO!A140=0," ",COUNTRY_INFO!A140) -> Mozambique | B140: =IF(COUNTRY_INFO!B140=0," ",COUNTRY_INFO!B140) -> Inhambane | C140: =IF(COUNTRY_INFO!C140=0," ",COUNTRY_INFO!C140) -> Zavala | D140: =IF(COUNTRY_INFO!$T$9:$T$1000="MDA1 (IVM+ALB)", COUNTRY_INFO!$T$9:$T$1000, " ") ->  | I140: 0 | M140: 0
A141: =IF(COUNTRY_INFO!A141=0," ",COUNTRY_INFO!A141) -> Mozambique | B141: =IF(COUNTRY_INFO!B141=0," ",COUNTRY_INFO!B141) -> Gaza | C141: =IF(COUNTRY_INFO!C141=0," ",COUNTRY_INFO!C141) -> Cid Xai Xai | D141: =IF(COUNTRY_INFO!$T$9:$T$1000="MDA1 (IVM+ALB)", COUNTRY_INFO!$T$9:$T$1000, " ") ->  | I141: 0 | M141: 0
A142: =IF(COUNTRY_INFO!A142=0," ",COUNTRY_INFO!A142) -> Mozambique | B142: =IF(COUNTRY_INFO!B142=0," ",COUNTRY_INFO!B142) -> Gaza | C142: =IF(COUNTRY_INFO!C142=0," ",COUNTRY_INFO!C142) -> Bilene Macia | D142: =IF(COUNTRY_INFO!$T$9:$T$1000="MDA1 (IVM+ALB)", COUNTRY_INFO!$T$9:$T$1000, " ") ->  | I142: 0 | M142: 0
A143: =IF(COUNTRY_INFO!A143=0," ",COUNTRY_INFO!A143) -> Mozambique | B143: =IF(COUNTRY_INFO!B143=0," ",COUNTRY_INFO!B143) -> Gaza | C143: =IF(COUNTRY_INFO!C143=0," ",COUNTRY_INFO!C143) -> Chibuto | D143: =IF(COUNTRY_INFO!$T$9:$T$1000="MDA1 (IVM+ALB)", COUNTRY_INFO!$T$9:$T$1000, " ") ->  | I143: 0 | M143: 0
A144: =IF(COUNTRY_INFO!A144=0," ",COUNTRY_INFO!A144) -> Mozambique | B144: =IF(COUNTRY_INFO!B144=0," ",COUNTRY_INFO!B144) -> Gaza | C144: =IF(COUNTRY_INFO!C144=0," ",COUNTRY_INFO!C144) -> Chicualacuala | D144: =IF(COUNTRY_INFO!$T$9:$T$1000="MDA1 (IVM+ALB)", COUNTRY_INFO!$T$9:$T$1000, " ") -> MDA1 (IVM+ALB) | E144: March 2019 | G144: 8156 | H144: 16749 | I144: 24905 | K144: 7919 | L144: 14112 | M144: 22031 | O144: 97.09416381 | P144: 84.25577646 | Q144: 88.46014856
A145: =IF(COUNTRY_INFO!A145=0," ",COUNTRY_INFO!A145) -> Mozambique | B145: =IF(COUNTRY_INFO!B145=0," ",COUNTRY_INFO!B145) -> Gaza | C145: =IF(COUNTRY_INFO!C145=0," ",COUNTRY_INFO!C145) -> Chigubo | D145: =IF(COUNTRY_INFO!$T$9:$T$1000="MDA1 (IVM+ALB)", COUNTRY_INFO!$T$9:$T$1000, " ") ->  | I145: 0 | M145: 0
A146: =IF(COUNTRY_INFO!A146=0," ",COUNTRY_INFO!A146) -> Mozambique | B146: =IF(COUNTRY_INFO!B146=0," ",COUNTRY_INFO!B146) -> Gaza | C146: =IF(COUNTRY_INFO!C146=0," ",COUNTRY_INFO!C146) -> Chokwé | D146: =IF(COUNTRY_INFO!$T$9:$T$1000="MDA1 (IVM+ALB)", COUNTRY_INFO!$T$9:$T$1000, " ") ->  | I146: 0 | M146: 0
A147: =IF(COUNTRY_INFO!A147=0," ",COUNTRY_INFO!A147) -> Mozambique | B147: =IF(COUNTRY_INFO!B147=0," ",COUNTRY_INFO!B147) -> Gaza | C147: =IF(COUNTRY_INFO!C147=0," ",COUNTRY_INFO!C147) -> Chongoene | D147: =IF(COUNTRY_INFO!$T$9:$T$1000="MDA1 (IVM+ALB)", COUNTRY_INFO!$T$9:$T$1000, " ") ->  | I147: 0 | M147: 0
A148: =IF(COUNTRY_INFO!A148=0," ",COUNTRY_INFO!A148) -> Mozambique | B148: =IF(COUNTRY_INFO!B148=0," ",COUNTRY_INFO!B148) -> Gaza | C148: =IF(COUNTRY_INFO!C148=0," ",COUNTRY_INFO!C148) -> Guijá | D148: =IF(COUNTRY_INFO!$T$9:$T$1000="MDA1 (IVM+ALB)", COUNTRY_INFO!$T$9:$T$1000, " ") ->  | I148: 0 | M148: 0
A149: =IF(COUNTRY_INFO!A149=0," ",COUNTRY_INFO!A149) -> Mozambique | B149: =IF(COUNTRY_INFO!B149=0," ",COUNTRY_INFO!B149) -> Gaza | C149: =IF(COUNTRY_INFO!C149=0," ",COUNTRY_INFO!C149) -> Limpopo | D149: =IF(COUNTRY_INFO!$T$9:$T$1000="MDA1 (IVM+ALB)", COUNTRY_INFO!$T$9:$T$1000, " ") ->  | I149: 0 | M149: 0
A150: =IF(COUNTRY_INFO!A150=0," ",COUNTRY_INFO!A150) -> Mozambique | B150: =IF(COUNTRY_INFO!B150=0," ",COUNTRY_INFO!B150) -> Gaza | C150: =IF(COUNTRY_INFO!C150=0," ",COUNTRY_INFO!C150) -> Mabalane | D150: =IF(COUNTRY_INFO!$T$9:$T$1000="MDA1 (IVM+ALB)", COUNTRY_INFO!$T$9:$T$1000, " ") -> MDA1 (IVM+ALB) | E150: March 2019 | G150: 13036 | H150: 26770 | I150: 39806 | K150: 13085 | L150: 25003 | M150: 38088 | O150: 100.3758822 | P150: 93.39932761 | Q150: 95.68406773
A151: =IF(COUNTRY_INFO!A151=0," ",COUNTRY_INFO!A151) -> Mozambique | B151: =IF(COUNTRY_INFO!B151=0," ",COUNTRY_INFO!B151) -> Gaza | C151: =IF(COUNTRY_INFO!C151=0," ",COUNTRY_INFO!C151) -> Manjacaze | D151: =IF(COUNTRY_INFO!$T$9:$T$1000="MDA1 (IVM+ALB)", COUNTRY_INFO!$T$9:$T$1000, " ") ->  | I151: 0 | M151: 0
A152: =IF(COUNTRY_INFO!A152=0," ",COUNTRY_INFO!A152) -> Mozambique | B152: =IF(COUNTRY_INFO!B152=0," ",COUNTRY_INFO!B152) -> Gaza | C152: =IF(COUNTRY_INFO!C152=0," ",COUNTRY_INFO!C152) -> Mapai | D152: =IF(COUNTRY_INFO!$T$9:$T$1000="MDA1 (IVM+ALB)", COUNTRY_INFO!$T$9:$T$1000, " ") -> MDA1 (IVM+ALB) | E152: March 2019 | G152: 8862 | H152: 18199 | I152: 27061 | K152: 7128 | L152: 17125 | M152: 24253 | O152: 80.43331077 | P152: 94.09857684 | Q152: 89.62344333
A153: =IF(COUNTRY_INFO!A153=0," ",COUNTRY_INFO!A153) -> Mozambique | B153: =IF(COUNTRY_INFO!B153=0," ",COUNTRY_INFO!B153) -> Gaza | C153: =IF(COUNTRY_INFO!C153=0," ",COUNTRY_INFO!C153) -> Massangena | D153: =IF(COUNTRY_INFO!$T$9:$T$1000="MDA1 (IVM+ALB)", COUNTRY_INFO!$T$9:$T$1000, " ") ->  | I153: 0 | M153: 0
A154: =IF(COUNTRY_INFO!A154=0," ",COUNTRY_INFO!A154) -> Mozambique | B154: =IF(COUNTRY_INFO!B154=0," ",COUNTRY_INFO!B154) -> Gaza | C154: =IF(COUNTRY_INFO!C154=0," ",COUNTRY_INFO!C154) -> Massingir | D154: =IF(COUNTRY_INFO!$T$9:$T$1000="MDA1 (IVM+ALB)", COUNTRY_INFO!$T$9:$T$1000, " ") ->  | I154: 0 | M154: 0
A155: =IF(COUNTRY_INFO!A155=0," ",COUNTRY_INFO!A155) -> Mozambique | B155: =IF(COUNTRY_INFO!B155=0," ",COUNTRY_INFO!B155) -> Maputo Provincia | C155: =IF(COUNTRY_INFO!C155=0," ",COUNTRY_INFO!C155) -> Matola | D155: =IF(COUNTRY_INFO!$T$9:$T$1000="MDA1 (IVM+ALB)", COUNTRY_INFO!$T$9:$T$1000, " ") ->  | I155: 0 | M155: 0
A156: =IF(COUNTRY_INFO!A156=0," ",COUNTRY_INFO!A156) -> Mozambique | B156: =IF(COUNTRY_INFO!B156=0," ",COUNTRY_INFO!B156) -> Maputo Provincia | C156: =IF(COUNTRY_INFO!C156=0," ",COUNTRY_INFO!C156) -> Boane | D156: =IF(COUNTRY_INFO!$T$9:$T$1000="MDA1 (IVM+ALB)", COUNTRY_INFO!$T$9:$T$1000, " ") ->  | I156: 0 | M156: 0
A157: =IF(COUNTRY_INFO!A157=0," ",COUNTRY_INFO!A157) -> Mozambique | B157: =IF(COUNTRY_INFO!B157=0," ",COUNTRY_INFO!B157) -> Maputo Provincia | C157: =IF(COUNTRY_INFO!C157=0," ",COUNTRY_INFO!C157) -> Magude | D157: =IF(COUNTRY_INFO!$T$9:$T$1000="MDA1 (IVM+ALB)", COUNTRY_INFO!$T$9:$T$1000, " ") ->  | I157: 0 | M157: 0
A158: =IF(COUNTRY_INFO!A158=0," ",COUNTRY_INFO!A158) -> Mozambique | B158: =IF(COUNTRY_INFO!B158=0," ",COUNTRY_INFO!B158) -> Maputo Provincia | C158: =IF(COUNTRY_INFO!C158=0," ",COUNTRY_INFO!C158) -> Manhica | D158: =IF(COUNTRY_INFO!$T$9:$T$1000="MDA1 (IVM+ALB)", COUNTRY_INFO!$T$9:$T$1000, " ") ->  | I158: 0 | M158: 0
A159: =IF(COUNTRY_INFO!A159=0," ",COUNTRY_INFO!A159) -> Mozambique | B159: =IF(COUNTRY_INFO!B159=0," ",COUNTRY_INFO!B159) -> Maputo Provincia | C159: =IF(COUNTRY_INFO!C159=0," ",COUNTRY_INFO!C159) -> Marracuene | D159: =IF(COUNTRY_INFO!$T$9:$T$1000="MDA1 (IVM+ALB)", COUNTRY_INFO!$T$9:$T$1000, " ") ->  | I159: 0 | M159: 0
A160: =IF(COUNTRY_INFO!A160=0," ",COUNTRY_INFO!A160) -> Mozambique | B160: =IF(COUNTRY_INFO!B160=0," ",COUNTRY_INFO!B160) -> Maputo Provincia | C160: =IF(COUNTRY_INFO!C160=0," ",COUNTRY_INFO!C160) -> Matutuíne | D160: =IF(COUNTRY_INFO!$T$9:$T$1000="MDA1 (IVM+ALB)", COUNTRY_INFO!$T$9:$T$1000, " ") ->  | I160: 0 | M160: 0
